Workbook

Sheet Home
B11: Home
B13: Performance Metrics
B15: BP-OnTrac Reports
B17: Administration
F24: October Performance Metrics

Sheet CUI Manager Performance
A1: 2023-10-10
F3: Start Date:9/22/2024, End Date: 10/13/2024
F4: Office | G4: Score | H4: FTR | I4: Tool Usage | J4: tNPS
F5: North Alabama | G5: =IFERROR(VLOOKUP($F5,'Big South Manager Performance'!$G$7:$AT$14,2,FALSE),"") -> 10 | H5: =VLOOKUP($F5,'Big South Manager Performance'!$G$7:$AT$14,5,FALSE) -> 0.95 | I5: =IFERROR(VLOOKUP($F5,'Big South Manager Performance'!$G$5:$AX$14,36,FALSE),"") -> 1 | J5: =IFERROR(VLOOKUP($F5,'Big South Manager Performance'!$G$7:$AO$16,28,FALSE),"") -> 1 | M5: From | N5: To
F6: Jacksonville, FL | G6: =IFERROR(VLOOKUP($F6,'Florida Manager Performance'!$G$6:$AO$15,2,FALSE),"") -> 10 | H6: =VLOOKUP($F6,'Florida Manager Performance'!$G$6:$AO$15,5,FALSE) -> 0.921 | I6: =IFERROR(VLOOKUP($F6,'Florida Manager Performance'!$G$4:$AV$15,34,FALSE),"") -> 0.99 | J6: =IFERROR(VLOOKUP($F6,'Florida Manager Performance'!$G$6:$AH$15,25,FALSE),"") -> 0.9321 | M6: 2024-06-22 | N6: 2024-07-22
F7: Keystone | G7: =IFERROR(VLOOKUP($F7,'Keystone Manager Performance'!$G$6:$AY$6,2,FALSE),"") -> 6.5 | H7: =IFERROR(VLOOKUP($F7,'Keystone Manager Performance'!$G$6:$AY$6,5,FALSE),"") -> 0.948 | I7: =IFERROR(VLOOKUP($F7,'Keystone Manager Performance'!$G$6:$AY$6,41,FALSE),"") -> 0.985 | J7: =IFERROR(VLOOKUP($F7,'Keystone Manager Performance'!$G$6:$AY$6,35,FALSE),"") -> 0.9125
F8: Lake/Orlando | G8: =IFERROR(VLOOKUP($F8,'Florida Manager Performance'!$G$6:$AO$15,2,FALSE),"") -> 6.5 | H8: =VLOOKUP($F8,'Florida Manager Performance'!$G$6:$AO$15,5,FALSE) -> 0.928 | I8: =IFERROR(VLOOKUP($F8,'Florida Manager Performance'!$G$4:$AV$15,34,FALSE),"") -> 0.986 | J8: =IFERROR(VLOOKUP($F8,'Florida Manager Performance'!$G$6:$AH$15,25,FALSE),"") -> 0.9021
F9: West Palm Beach County | G9: =IFERROR(VLOOKUP($F9,'Florida Manager Performance'!$G$6:$AO$15,2,FALSE),"") -> 6.5 | H9: =VLOOKUP($F9,'Florida Manager Performance'!$G$6:$AO$15,5,FALSE) -> 0.908 | I9: =IFERROR(VLOOKUP($F9,'Florida Manager Performance'!$G$4:$AV$15,34,FALSE),"") -> 0.99 | J9: =IFERROR(VLOOKUP($F9,'Florida Manager Performance'!$G$6:$AH$15,25,FALSE),"") -> 0.9436
F10: Beltway West | G10: =IFERROR(VLOOKUP($F10,'Beltway Manager Performance'!$G$6:$BD$13,2,FALSE),"") -> 3.5 | H10: =VLOOKUP($F10,'Beltway Manager Performance'!$G$6:$BD$13,5,FALSE) -> 0.914 | I10: =IFERROR(_xlfn.XLOOKUP($F10,'Beltway Manager Performance'!$G$6:$G$7,'Beltway Manager Performance'!$BC$6:$BC$7),"") -> 0.979 | J10: =IFERROR(_xlfn.XLOOKUP($F10,'Beltway Manager Performance'!$G$6:$G$7,'Beltway Manager Performance'!$AU$6:$AU$7),"") -> 0.9555
B11: Home | F11: Nashville, TN | G11: =IFERROR(VLOOKUP($F11,'Big South Manager Performance'!$G$7:$AT$14,2,FALSE),"") -> 3.5 | H11: =VLOOKUP($F11,'Big South Manager Performance'!$G$7:$AT$14,5,FALSE) -> 0.911 | I11: =IFERROR(VLOOKUP($F11,'Big South Manager Performance'!$G$5:$AX$14,36,FALSE),"") -> 0.977 | J11: =IFERROR(VLOOKUP($F11,'Big South Manager Performance'!$G$7:$AO$16,28,FALSE),"") -> 0.939
F12: Beltway East | G12: =IFERROR(VLOOKUP($F12,'Beltway Manager Performance'!$G$6:$BD$13,2,FALSE),"") -> 3.5 | H12: =VLOOKUP($F12,'Beltway Manager Performance'!$G$6:$BD$13,5,FALSE) -> 0.909 | I12: =IFERROR(_xlfn.XLOOKUP($F12,'Beltway Manager Performance'!$G$6:$G$7,'Beltway Manager Performance'!$BC$6:$BC$7),"") -> 0.974 | J12: =IFERROR(_xlfn.XLOOKUP($F12,'Beltway Manager Performance'!$G$6:$G$7,'Beltway Manager Performance'!$AU$6:$AU$7),"") -> 0.9474
B13: Performance Metrics | F13: Florida Panhandle | G13: =IFERROR(VLOOKUP($F13,'Florida Manager Performance'!$G$6:$AO$15,2,FALSE),"") -> 3 | H13: =VLOOKUP($F13,'Florida Manager Performance'!$G$6:$AO$15,5,FALSE) -> 0.918 | I13: =IFERROR(VLOOKUP($F13,'Florida Manager Performance'!$G$4:$AV$15,34,FALSE),"") -> 0.99 | J13: =IFERROR(VLOOKUP($F13,'Florida Manager Performance'!$G$6:$AH$15,25,FALSE),"") -> 0.8991
B14: Florida | F14: West Palm North | G14: =IFERROR(VLOOKUP($F14,'Florida Manager Performance'!$G$6:$AO$15,2,FALSE),"") -> 0 | H14: =VLOOKUP($F14,'Florida Manager Performance'!$G$6:$AO$15,5,FALSE) -> 0.91 | I14: =IFERROR(VLOOKUP($F14,'Florida Manager Performance'!$G$4:$AV$15,34,FALSE),"") -> 0.984 | J14: =IFERROR(VLOOKUP($F14,'Florida Manager Performance'!$G$6:$AH$15,25,FALSE),"") -> 0.9108 | M14: Florida
B15: Beltway
B16: Big South | F16: ='CUI Manager Performance'!$F$3 -> Start Date:9/22/2024, End Date: 10/13/2024
B17: Keystone | F17: Manager Name | G17: Score | H17: FTR | I17: Tool Usage | J17: tNPS | W17: Start Date | Z17: =M6 -> 2024-06-22 | AC17: End Date | AF17: =N6 -> 2024-07-22
F18: James Mason | G18: =VLOOKUP("Jacksonville, FL",$F$5:$J$14,2,FALSE) -> 10 | H18: =VLOOKUP("Jacksonville, FL",$F$5:$J$14,3,FALSE) -> 0.921 | I18: =VLOOKUP("Jacksonville, FL",$F$5:$J$14,4,FALSE) -> 0.99 | J18: =VLOOKUP("Jacksonville, FL",$F$5:$J$14,5,FALSE) -> 0.9321 | M18: Office | N18: Score | O18: Total Jobs | P18: Jobs FTR | Q18: FTR | R18: Total Job | S18: Pass | T18: PHT | U18: Pure Pass Fails | W18: PHT Pure Pass | X18: Calls Met | Y18: Calls Missed | Z18: OTA | AC18: Contact w/in 48hrs | AD18: Total Jobs | AE18: Total invalid | AF18: % Valid RTM | AG18: Jobs | AH18: Pictures Uploaded | AI18: ML Bonding Compliance | AJ18: Total Surveys | AK18: Failures | AL18: tNPS | AM18: Total Jobs | AN18: Total Comp | AO18: Ingress Test Ran | AP18: Number of Drops | AQ18: One Drop Usage | AR18: One Drop | AS18: Tool Usage Jobs | AT18: Tool Usage | AU18: Tool Usage Rate | AV18: Total Installs | AW18: Completed | AX18: Install Completion % | AY18: Total TC's | AZ18: Completed | BA18: TC Completion % | BB18: Total Completion %
B19: BP-OnTrac Reports | F19: Rick Smith | G19: =IFERROR(VLOOKUP($F19,'Keystone Manager Performance'!$G$16:$BB$16,2,FALSE),"") -> 6.5 | H19: =IFERROR(VLOOKUP($F19,'Keystone Manager Performance'!$G$16:$BB$16,5,FALSE),"") -> 0.948 | I19: =IFERROR(VLOOKUP($F19,'Keystone Manager Performance'!$G$16:$BB$16,44,FALSE),"") -> 0.985 | J19: =IFERROR(VLOOKUP($F19,'Keystone Manager Performance'!$G$16:$BB$16,35,FALSE),"") -> 0.9125
F20: Audtin Buchanan | G20: =VLOOKUP("Lake/Orlando",$F$5:$J$14,2,FALSE) -> 6.5 | H20: =VLOOKUP("Lake/Orlando",$F$5:$J$14,3,FALSE) -> 0.928 | I20: =VLOOKUP("Lake/Orlando",$F$5:$J$14,4,FALSE) -> 0.986 | J20: =VLOOKUP("Lake/Orlando",$F$5:$J$14,5,FALSE) -> 0.9021 | M20: West Palm Beach County | N20: =IF(AU20="","",IFERROR(IF(Q20>=92%,3.5,0)+IF(AL20>=92.5%,3.5,0)+IF(AU20>=98.5%,3,0),"")) ->  | O20: =SUMIFS('NSR WO Details'!$AG:$AG,'NSR WO Details'!$H:$H,$M20,'NSR WO Details'!$AI:$AI,">="&$M$6,'NSR WO Details'!$AI:$AI,"<="&$N$6) -> 0 | P20: =COUNTIFS('FTR Detail'!$I:$I,$M20,'FTR Detail'!$AH:$AH,">="&$M$6,'FTR Detail'!$AH:$AH,"<="&$N$6) -> 0 | Q20: =IFERROR(1-(P20/O20),"") ->  | R20: =SUMIFS('NSR WO Details'!$AB:$AB,'NSR WO Details'!$H:$H,$M20,'NSR WO Details'!$AI:$AI,">="&$M$6,'NSR WO Details'!$AI:$AI,"<="&$N$6) -> 0 | S20: =SUMIFS('NSR WO Details'!$AC:$AC,'NSR WO Details'!$H:$H,$M20,'NSR WO Details'!$AI:$AI,">="&$M$6,'NSR WO Details'!$AI:$AI,"<="&$N$6) -> 0 | T20: =IFERROR(SUM(S20/R20),"") ->  | U20: =COUNTIFS('NSR WO Details'!$H:$H,$M20,'NSR WO Details'!$AD:$AD,"PASS_WITH_WARNINGS",'NSR WO Details'!$AI:$AI,">="&$M$6,'NSR WO Details'!$AI:$AI,"<="&$N$6)+COUNTIFS('NSR WO Details'!$H:$H,$M20,'NSR WO Details'!$AD:$AD,"PASS_WITH_OVERRIDES",'NSR WO Details'!$AI:$AI,">="&$M$6,'NSR WO Details'!$AI:$AI,"<="&$N$6) -> 0 | W20: =IFERROR(SUM(1-U20/S20),"") ->  | X20: =COUNTIFS('NSR WO Details'!$W:$W,"=MET",'NSR WO Details'!$H:$H,$M20,'NSR WO Details'!$AI:$AI,">="&$M$6,'NSR WO Details'!$AI:$AI,"<="&$N$6) -> 0 | Y20: =COUNTIFS('NSR WO Details'!$W:$W,"=Missed",'NSR WO Details'!$H:$H,$M20,'NSR WO Details'!$AI:$AI,">="&$M$6,'NSR WO Details'!$AI:$AI,"<="&$N$6) -> 0 | Z20: =IFERROR(SUM(X20/(X20+Y20)),"") ->  | AA20: =SUMIFS('NSR WO Details'!$AG:$AG,'NSR WO Details'!$H:$H,$M20,'NSR WO Details'!$AI:$AI,">="&$M$6,'NSR WO Details'!$AI:$AI,"<="&$N$6) -> 0 | AB20: =SUMIFS('NSR WO Details'!$AE:$AE,'NSR WO Details'!$H:$H,$M20,'NSR WO Details'!$AI:$AI,">="&$M$6,'NSR WO Details'!$AI:$AI,"<="&$N$6) -> 0 | AC20: =IFERROR(SUM(AB20/AA20),"") ->  | AD20: =SUMIFS('RTM Results'!$DI:$DI,'RTM Results'!$R:$R,"WEST PALM CENTRAL",'RTM Results'!$I:$I,">="&$M$6,'RTM Results'!$I:$I,"<="&$N$6) -> 0 | AE20: =SUMIFS('RTM Results'!$DJ:$DJ,'RTM Results'!$R:$R,"WEST PALM CENTRAL",'RTM Results'!$I:$I,">="&$M$6,'RTM Results'!$I:$I,"<="&$N$6) -> 0 | AF20: =IFERROR(1-(SUM(AE20/AD20)),"") ->  | AG20: =SUM(#REF!) ->  | AH20: =SUM(#REF!) ->  | AI20: =IFERROR(SUM(AH20/AG20),"") ->  | AJ20: =SUMIFS('NSR WO Details'!$Z:$Z,'NSR WO Details'!$H:$H,$M20,'NSR WO Details'!$AI:$AI,">="&$M$6,'NSR WO Details'!$AI:$AI,"<="&$N$6) -> 0 | AK20: =SUMIFS('NSR WO Details'!$AA:$AA,'NSR WO Details'!$H:$H,$M20,'NSR WO Details'!$AI:$AI,">="&$M$6,'NSR WO Details'!$AI:$AI,"<="&$N$6) -> 0 | AL20: =IFERROR(SUM(AK20/AJ20),"") ->  | AM20: =SUMIFS('Tool Usage Details'!$T:$T,'Tool Usage Details'!$H:$H,$M20,'Tool Usage Details'!$E:$E,">="&$M$6,'Tool Usage Details'!$E:$E,"<="&$N$6) -> 0 | AN20: =COUNTIFS('Tool Usage Details'!$H:$H,$M20,'Tool Usage Details'!$U:$U,"PASS",'Tool Usage Details'!$E:$E,">="&$M$6,'Tool Usage Details'!$E:$E,"<="&$N$6) -> 0 | AO20: =IFERROR(SUM(AN20/AM20),"") ->  | AP20: =SUMIFS('One Drop'!$BV:$BV,'One Drop'!$BD:$BD,$M20,'One Drop'!$U:$U,">="&$M$6,'One Drop'!$U:$U,"<="&$N$6) -> 0 | AQ20: =SUMIFS('One Drop'!$BQ:$BQ,'One Drop'!$BD:$BD,$M20,'One Drop'!$U:$U,">="&$M$6,'One Drop'!$U:$U,"<="&$N$6) -> 0 | AR20: =IFERROR(SUM(AQ20/AP20),"") ->  | AS20: =SUMIFS('NSR WO Details'!$AK:$AK,'NSR WO Details'!$H:$H,$M20,'NSR WO Details'!$AI:$AI,">="&$M$6,'NSR WO Details'!$AI:$AI,"<="&$N$6) -> 0 | AT20: =SUMIFS('NSR WO Details'!$AL:$AL,'NSR WO Details'!$H:$H,$M20,'NSR WO Details'!$AI:$AI,">="&$M$6,'NSR WO Details'!$AI:$AI,"<="&$N$6) -> 0 | AU20: =IFERROR(SUM(AT20/AS20),"") ->  | AV20: =SUMIFS(Completion!$CH:$CH,Completion!$BC:$BC,$M20,Completion!$L:$L,"INSTALL",Completion!$H:$H,">="&$M$6,Completion!$H:$H,"<="&$N$6) -> 0 | AW20: =SUMIFS(Completion!$BZ:$BZ,Completion!$BC:$BC,$M20,Completion!$L:$L,"INSTALL",Completion!$H:$H,">="&$M$6,Completion!$H:$H,"<="&$N$6) -> 0 | AX20: =IFERROR(SUM(AW20/AV20),"") ->  | AY20: =SUMIFS(Completion!$CH:$CH,Completion!$BC:$BC,$M20,Completion!$L:$L,"TC",Completion!$H:$H,">="&$M$6,Completion!$H:$H,"<="&$N$6) -> 0 | AZ20: =SUMIFS(Completion!$BZ:$BZ,Completion!$BC:$BC,$M20,Completion!$L:$L,"TC",Completion!$H:$H,">="&$M$6,Completion!$H:$H,"<="&$N$6) -> 0 | BA20: =IFERROR(SUM(AZ20/AY20),"") ->  | BB20: =IFERROR(SUM(AW20,AZ20)/SUM(AV20,AY20),"") -> 
F21: Christian Bracero - WPB | G21: =VLOOKUP("West Palm Beach County",$F$5:$J$14,2,FALSE) -> 6.5 | H21: =VLOOKUP("West Palm Beach County",$F$5:$J$14,3,FALSE) -> 0.908 | I21: =VLOOKUP("West Palm Beach County",$F$5:$J$14,4,FALSE) -> 0.99 | J21: =VLOOKUP("West Palm Beach County",$F$5:$J$14,5,FALSE) -> 0.9436 | M21: WEST PALM NORTH | N21: =IF(AU21="","",IFERROR(IF(Q21>=92%,3.5,0)+IF(AL21>=92.5%,3.5,0)+IF(AU21>=98.5%,3,0),"")) ->  | O21: =SUMIFS('NSR WO Details'!$AG:$AG,'NSR WO Details'!$H:$H,$M21,'NSR WO Details'!$AI:$AI,">="&$M$6,'NSR WO Details'!$AI:$AI,"<="&$N$6) -> 0 | P21: =COUNTIFS('FTR Detail'!$I:$I,$M21,'FTR Detail'!$AH:$AH,">="&$M$6,'FTR Detail'!$AH:$AH,"<="&$N$6) -> 0 | R21: =SUMIFS('NSR WO Details'!$AB:$AB,'NSR WO Details'!$H:$H,$M21,'NSR WO Details'!$AI:$AI,">="&$M$6,'NSR WO Details'!$AI:$AI,"<="&$N$6) -> 0 | S21: =SUMIFS('NSR WO Details'!$AC:$AC,'NSR WO Details'!$H:$H,$M21,'NSR WO Details'!$AI:$AI,">="&$M$6,'NSR WO Details'!$AI:$AI,"<="&$N$6) -> 0 | U21: =COUNTIFS('NSR WO Details'!$H:$H,$M21,'NSR WO Details'!$AD:$AD,"PASS_WITH_WARNINGS",'NSR WO Details'!$AI:$AI,">="&$M$6,'NSR WO Details'!$AI:$AI,"<="&$N$6)+COUNTIFS('NSR WO Details'!$H:$H,$M21,'NSR WO Details'!$AD:$AD,"PASS_WITH_OVERRIDES",'NSR WO Details'!$AI:$AI,">="&$M$6,'NSR WO Details'!$AI:$AI,"<="&$N$6) -> 0 | X21: =COUNTIFS('NSR WO Details'!$W:$W,"=MET",'NSR WO Details'!$H:$H,$M21,'NSR WO Details'!$AI:$AI,">="&$M$6,'NSR WO Details'!$AI:$AI,"<="&$N$6) -> 0 | Y21: =COUNTIFS('NSR WO Details'!$W:$W,"=Missed",'NSR WO Details'!$H:$H,$M21,'NSR WO Details'!$AI:$AI,">="&$M$6,'NSR WO Details'!$AI:$AI,"<="&$N$6) -> 0 | AA21: =SUMIFS('NSR WO Details'!$AG:$AG,'NSR WO Details'!$H:$H,$M21,'NSR WO Details'!$AI:$AI,">="&$M$6,'NSR WO Details'!$AI:$AI,"<="&$N$6) -> 0 | AB21: =SUMIFS('NSR WO Details'!$AE:$AE,'NSR WO Details'!$H:$H,$M21,'NSR WO Details'!$AI:$AI,">="&$M$6,'NSR WO Details'!$AI:$AI,"<="&$N$6) -> 0 | AD21: =SUMIFS('RTM Results'!$DI:$DI,'RTM Results'!$R:$R,"WEST PALM NORTH",'RTM Results'!$I:$I,">="&$M$6,'RTM Results'!$I:$I,"<="&$N$6) -> 0 | AE21: =SUMIFS('RTM Results'!$DJ:$DJ,'RTM Results'!$R:$R,"WEST PALM NORTH",'RTM Results'!$I:$I,">="&$M$6,'RTM Results'!$I:$I,"<="&$N$6) -> 0 | AG21: =SUM(#REF!) ->  | AH21: =SUM(#REF!) ->  | AJ21: =SUMIFS('NSR WO Details'!$Z:$Z,'NSR WO Details'!$H:$H,$M21,'NSR WO Details'!$AI:$AI,">="&$M$6,'NSR WO Details'!$AI:$AI,"<="&$N$6) -> 0 | AK21: =SUMIFS('NSR WO Details'!$AA:$AA,'NSR WO Details'!$H:$H,$M21,'NSR WO Details'!$AI:$AI,">="&$M$6,'NSR WO Details'!$AI:$AI,"<="&$N$6) -> 0 | AM21: =SUMIFS('Tool Usage Details'!$T:$T,'Tool Usage Details'!$H:$H,$M21,'Tool Usage Details'!$E:$E,">="&$M$6,'Tool Usage Details'!$E:$E,"<="&$N$6) -> 0 | AN21: =COUNTIFS('Tool Usage Details'!$H:$H,$M21,'Tool Usage Details'!$U:$U,"PASS",'Tool Usage Details'!$E:$E,">="&$M$6,'Tool Usage Details'!$E:$E,"<="&$N$6) -> 0 | AP21: =SUMIFS('One Drop'!$BV:$BV,'One Drop'!$BD:$BD,$M21,'One Drop'!$U:$U,">="&$M$6,'One Drop'!$U:$U,"<="&$N$6) -> 0 | AQ21: =SUMIFS('One Drop'!$BQ:$BQ,'One Drop'!$BD:$BD,$M21,'One Drop'!$U:$U,">="&$M$6,'One Drop'!$U:$U,"<="&$N$6) -> 0 | AS21: =SUMIFS('NSR WO Details'!$AK:$AK,'NSR WO Details'!$H:$H,$M21,'NSR WO Details'!$AI:$AI,">="&$M$6,'NSR WO Details'!$AI:$AI,"<="&$N$6) -> 0 | AT21: =SUMIFS('NSR WO Details'!$AL:$AL,'NSR WO Details'!$H:$H,$M21,'NSR WO Details'!$AI:$AI,">="&$M$6,'NSR WO Details'!$AI:$AI,"<="&$N$6) -> 0 | AV21: =SUMIFS(Completion!$CH:$CH,Completion!$BC:$BC,$M21,Completion!$L:$L,"INSTALL",Completion!$H:$H,">="&$M$6,Completion!$H:$H,"<="&$N$6) -> 0 | AW21: =SUMIFS(Completion!$BZ:$BZ,Completion!$BC:$BC,$M21,Completion!$L:$L,"INSTALL",Completion!$H:$H,">="&$M$6,Completion!$H:$H,"<="&$N$6) -> 0 | AX21: =IFERROR(SUM(AW21/AV21),"") ->  | AY21: =SUMIFS(Completion!$CH:$CH,Completion!$BC:$BC,$M21,Completion!$L:$L,"TC",Completion!$H:$H,">="&$M$6,Completion!$H:$H,"<="&$N$6) -> 0 | AZ21: =SUMIFS(Completion!$BZ:$BZ,Completion!$BC:$BC,$M21,Completion!$L:$L,"TC",Completion!$H:$H,">="&$M$6,Completion!$H:$H,"<="&$N$6) -> 0 | BA21: =IFERROR(SUM(AZ21/AY21),"") ->  | BB21: =IFERROR(SUM(AW21,AZ21)/SUM(AV21,AY21),"") -> 
F22: Daniel Cassidy | G22: =IFERROR(VLOOKUP($F22,'Beltway Manager Performance'!$G$6:$BD$23,2,FALSE),"") -> 3.5 | H22: =VLOOKUP($F22,'Beltway Manager Performance'!$G$6:$BD$23,5,FALSE) -> 0.919 | I22: =IFERROR(_xlfn.XLOOKUP($F22,'Beltway Manager Performance'!$G$16:$G$18,'Beltway Manager Performance'!$BF$16:$BF$18),"") -> 0.969 | J22: =IFERROR(_xlfn.XLOOKUP($F22,'Beltway Manager Performance'!$G$16:$G$18,'Beltway Manager Performance'!$AU$16:$AU$18),"") -> 0.944 | M22: Jacksonville, FL | O22: =SUMIFS('NSR WO Details'!$AG:$AG,'NSR WO Details'!$H:$H,$M22,'NSR WO Details'!$AI:$AI,">="&$M$6,'NSR WO Details'!$AI:$AI,"<="&$N$6) -> 0 | P22: =COUNTIFS('FTR Detail'!$I:$I,$M22,'FTR Detail'!$AH:$AH,">="&$M$6,'FTR Detail'!$AH:$AH,"<="&$N$6) -> 0 | R22: =SUMIFS('NSR WO Details'!$AB:$AB,'NSR WO Details'!$H:$H,$M22,'NSR WO Details'!$AI:$AI,">="&$M$6,'NSR WO Details'!$AI:$AI,"<="&$N$6) -> 0 | S22: =SUMIFS('NSR WO Details'!$AC:$AC,'NSR WO Details'!$H:$H,$M22,'NSR WO Details'!$AI:$AI,">="&$M$6,'NSR WO Details'!$AI:$AI,"<="&$N$6) -> 0 | U22: =COUNTIFS('NSR WO Details'!$H:$H,$M22,'NSR WO Details'!$AD:$AD,"PASS_WITH_WARNINGS",'NSR WO Details'!$AI:$AI,">="&$M$6,'NSR WO Details'!$AI:$AI,"<="&$N$6)+COUNTIFS('NSR WO Details'!$H:$H,$M22,'NSR WO Details'!$AD:$AD,"PASS_WITH_OVERRIDES",'NSR WO Details'!$AI:$AI,">="&$M$6,'NSR WO Details'!$AI:$AI,"<="&$N$6) -> 0 | X22: =COUNTIFS('NSR WO Details'!$W:$W,"=MET",'NSR WO Details'!$H:$H,$M22,'NSR WO Details'!$AI:$AI,">="&$M$6,'NSR WO Details'!$AI:$AI,"<="&$N$6) -> 0 | Y22: =COUNTIFS('NSR WO Details'!$W:$W,"=Missed",'NSR WO Details'!$H:$H,$M22,'NSR WO Details'!$AI:$AI,">="&$M$6,'NSR WO Details'!$AI:$AI,"<="&$N$6) -> 0 | AA22: =SUMIFS('NSR WO Details'!$AG:$AG,'NSR WO Details'!$H:$H,$M22,'NSR WO Details'!$AI:$AI,">="&$M$6,'NSR WO Details'!$AI:$AI,"<="&$N$6) -> 0 | AB22: =SUMIFS('NSR WO Details'!$AE:$AE,'NSR WO Details'!$H:$H,$M22,'NSR WO Details'!$AI:$AI,">="&$M$6,'NSR WO Details'!$AI:$AI,"<="&$N$6) -> 0 | AD22: =SUMIFS('RTM Results'!$DI:$DI,'RTM Results'!$R:$R,"JACKSONVILLE, FL",'RTM Results'!$I:$I,">="&$M$6,'RTM Results'!$I:$I,"<="&$N$6) -> 0 | AE22: =SUMIFS('RTM Results'!$DJ:$DJ,'RTM Results'!$R:$R,"JACKSONVILLE, FL",'RTM Results'!$I:$I,">="&$M$6,'RTM Results'!$I:$I,"<="&$N$6) -> 0 | AG22: =#REF! ->  | AH22: =#REF! ->  | AJ22: =SUMIFS('NSR WO Details'!$Z:$Z,'NSR WO Details'!$H:$H,$M22,'NSR WO Details'!$AI:$AI,">="&$M$6,'NSR WO Details'!$AI:$AI,"<="&$N$6) -> 0 | AK22: =SUMIFS('NSR WO Details'!$AA:$AA,'NSR WO Details'!$H:$H,$M22,'NSR WO Details'!$AI:$AI,">="&$M$6,'NSR WO Details'!$AI:$AI,"<="&$N$6) -> 0 | AM22: =SUMIFS('Tool Usage Details'!$T:$T,'Tool Usage Details'!$H:$H,$M22,'Tool Usage Details'!$E:$E,">="&$M$6,'Tool Usage Details'!$E:$E,"<="&$N$6) -> 0 | AN22: =COUNTIFS('Tool Usage Details'!$H:$H,$M22,'Tool Usage Details'!$U:$U,"PASS",'Tool Usage Details'!$E:$E,">="&$M$6,'Tool Usage Details'!$E:$E,"<="&$N$6) -> 0 | AP22: =SUMIFS('One Drop'!$BV:$BV,'One Drop'!$BD:$BD,$M22,'One Drop'!$U:$U,">="&$M$6,'One Drop'!$U:$U,"<="&$N$6) -> 0 | AQ22: =SUMIFS('One Drop'!$BQ:$BQ,'One Drop'!$BD:$BD,$M22,'One Drop'!$U:$U,">="&$M$6,'One Drop'!$U:$U,"<="&$N$6) -> 0 | AS22: =SUMIFS('NSR WO Details'!$AK:$AK,'NSR WO Details'!$H:$H,$M22,'NSR WO Details'!$AI:$AI,">="&$M$6,'NSR WO Details'!$AI:$AI,"<="&$N$6) -> 0 | AT22: =SUMIFS('NSR WO Details'!$AL:$AL,'NSR WO Details'!$H:$H,$M22,'NSR WO Details'!$AI:$AI,">="&$M$6,'NSR WO Details'!$AI:$AI,"<="&$N$6) -> 0 | AV22: =SUMIFS(Completion!$CH:$CH,Completion!$BC:$BC,$M22,Completion!$L:$L,"INSTALL",Completion!$H:$H,">="&$M$6,Completion!$H:$H,"<="&$N$6) -> 0 | AW22: =SUMIFS(Completion!$BZ:$BZ,Completion!$BC:$BC,$M22,Completion!$L:$L,"INSTALL",Completion!$H:$H,">="&$M$6,Completion!$H:$H,"<="&$N$6) -> 0 | AX22: =IFERROR(SUM(AW22/AV22),"") ->  | AY22: =SUMIFS(Completion!$CH:$CH,Completion!$BC:$BC,$M22,Completion!$L:$L,"TC",Completion!$H:$H,">="&$M$6,Completion!$H:$H,"<="&$N$6) -> 0 | AZ22: =SUMIFS(Completion!$BZ:$BZ,Completion!$BC:$BC,$M22,Completion!$L:$L,"TC",Completion!$H:$H,">="&$M$6,Completion!$H:$H,"<="&$N$6) -> 0 | BA22: =IFERROR(SUM(AZ22/AY22),"") ->  | BB22: =IFERROR(SUM(AW22,AZ22)/SUM(AV22,AY22),"") -> 
F23: Mohamed Kargbo | G23: =IFERROR(VLOOKUP(F23,'Big South Manager Performance'!$G$7:$AT$26,2,FALSE),"") -> 3.5 | H23: =VLOOKUP(F23,'Big South Manager Performance'!$G$7:$AT$26,5,FALSE) -> 0.914 | I23: =IFERROR(VLOOKUP(F23,'Big South Manager Performance'!$G$5:$AX$26,36,FALSE),"") -> 0.98 | J23: =IFERROR(VLOOKUP(F23,'Big South Manager Performance'!$G$7:$AP$26,28,FALSE),"") -> 0.9463 | M23: Florida Panhandle | O23: =SUMIFS('NSR WO Details'!$AG:$AG,'NSR WO Details'!$H:$H,$M23,'NSR WO Details'!$AI:$AI,">="&$M$6,'NSR WO Details'!$AI:$AI,"<="&$N$6) -> 0 | P23: =COUNTIFS('FTR Detail'!$I:$I,$M23,'FTR Detail'!$AH:$AH,">="&$M$6,'FTR Detail'!$AH:$AH,"<="&$N$6) -> 0 | R23: =SUMIFS('NSR WO Details'!$AB:$AB,'NSR WO Details'!$H:$H,$M23,'NSR WO Details'!$AI:$AI,">="&$M$6,'NSR WO Details'!$AI:$AI,"<="&$N$6) -> 0 | S23: =SUMIFS('NSR WO Details'!$AC:$AC,'NSR WO Details'!$H:$H,$M23,'NSR WO Details'!$AI:$AI,">="&$M$6,'NSR WO Details'!$AI:$AI,"<="&$N$6) -> 0 | U23: =COUNTIFS('NSR WO Details'!$H:$H,$M23,'NSR WO Details'!$AD:$AD,"PASS_WITH_WARNINGS",'NSR WO Details'!$AI:$AI,">="&$M$6,'NSR WO Details'!$AI:$AI,"<="&$N$6)+COUNTIFS('NSR WO Details'!$H:$H,$M23,'NSR WO Details'!$AD:$AD,"PASS_WITH_OVERRIDES",'NSR WO Details'!$AI:$AI,">="&$M$6,'NSR WO Details'!$AI:$AI,"<="&$N$6) -> 0 | X23: =COUNTIFS('NSR WO Details'!$W:$W,"=MET",'NSR WO Details'!$H:$H,$M23,'NSR WO Details'!$AI:$AI,">="&$M$6,'NSR WO Details'!$AI:$AI,"<="&$N$6) -> 0 | Y23: =COUNTIFS('NSR WO Details'!$W:$W,"=Missed",'NSR WO Details'!$H:$H,$M23,'NSR WO Details'!$AI:$AI,">="&$M$6,'NSR WO Details'!$AI:$AI,"<="&$N$6) -> 0 | AA23: =SUMIFS('NSR WO Details'!$AG:$AG,'NSR WO Details'!$H:$H,$M23,'NSR WO Details'!$AI:$AI,">="&$M$6,'NSR WO Details'!$AI:$AI,"<="&$N$6) -> 0 | AB23: =SUMIFS('NSR WO Details'!$AE:$AE,'NSR WO Details'!$H:$H,$M23,'NSR WO Details'!$AI:$AI,">="&$M$6,'NSR WO Details'!$AI:$AI,"<="&$N$6) -> 0 | AD23: =SUMIFS('RTM Results'!$DI:$DI,'RTM Results'!$R:$R,"TALLAHASSEE",'RTM Results'!$I:$I,">="&$M$6,'RTM Results'!$I:$I,"<="&$N$6) -> 0 | AE23: =SUMIFS('RTM Results'!$DJ:$DJ,'RTM Results'!$R:$R,"TALLAHASSEE",'RTM Results'!$I:$I,">="&$M$6,'RTM Results'!$I:$I,"<="&$N$6) -> 0 | AG23: =#REF! ->  | AH23: =#REF! ->  | AJ23: =SUMIFS('NSR WO Details'!$Z:$Z,'NSR WO Details'!$H:$H,$M23,'NSR WO Details'!$AI:$AI,">="&$M$6,'NSR WO Details'!$AI:$AI,"<="&$N$6) -> 0 | AK23: =SUMIFS('NSR WO Details'!$AA:$AA,'NSR WO Details'!$H:$H,$M23,'NSR WO Details'!$AI:$AI,">="&$M$6,'NSR WO Details'!$AI:$AI,"<="&$N$6) -> 0 | AM23: =SUMIFS('Tool Usage Details'!$T:$T,'Tool Usage Details'!$H:$H,$M23,'Tool Usage Details'!$E:$E,">="&$M$6,'Tool Usage Details'!$E:$E,"<="&$N$6) -> 0 | AN23: =COUNTIFS('Tool Usage Details'!$H:$H,$M23,'Tool Usage Details'!$U:$U,"PASS",'Tool Usage Details'!$E:$E,">="&$M$6,'Tool Usage Details'!$E:$E,"<="&$N$6) -> 0 | AP23: =SUMIFS('One Drop'!$BV:$BV,'One Drop'!$BD:$BD,$M23,'One Drop'!$U:$U,">="&$M$6,'One Drop'!$U:$U,"<="&$N$6) -> 0 | AQ23: =SUMIFS('One Drop'!$BQ:$BQ,'One Drop'!$BD:$BD,$M23,'One Drop'!$U:$U,">="&$M$6,'One Drop'!$U:$U,"<="&$N$6) -> 0 | AS23: =SUMIFS('NSR WO Details'!$AK:$AK,'NSR WO Details'!$H:$H,$M23,'NSR WO Details'!$AI:$AI,">="&$M$6,'NSR WO Details'!$AI:$AI,"<="&$N$6) -> 0 | AT23: =SUMIFS('NSR WO Details'!$AL:$AL,'NSR WO Details'!$H:$H,$M23,'NSR WO Details'!$AI:$AI,">="&$M$6,'NSR WO Details'!$AI:$AI,"<="&$N$6) -> 0 | AV23: =SUMIFS(Completion!$CH:$CH,Completion!$BC:$BC,$M23,Completion!$L:$L,"INSTALL",Completion!$H:$H,">="&$M$6,Completion!$H:$H,"<="&$N$6) -> 0 | AW23: =SUMIFS(Completion!$BZ:$BZ,Completion!$BC:$BC,$M23,Completion!$L:$L,"INSTALL",Completion!$H:$H,">="&$M$6,Completion!$H:$H,"<="&$N$6) -> 0 | AX23: =IFERROR(SUM(AW23/AV23),"") ->  | AY23: =SUMIFS(Completion!$CH:$CH,Completion!$BC:$BC,$M23,Completion!$L:$L,"TC",Completion!$H:$H,">="&$M$6,Completion!$H:$H,"<="&$N$6) -> 0 | AZ23: =SUMIFS(Completion!$BZ:$BZ,Completion!$BC:$BC,$M23,Completion!$L:$L,"TC",Completion!$H:$H,">="&$M$6,Completion!$H:$H,"<="&$N$6) -> 0 | BA23: =IFERROR(SUM(AZ23/AY23),"") ->  | BB23: =IFERROR(SUM(AW23,AZ23)/SUM(AV23,AY23),"") -> 
F24: Lawrence Smith | G24: =IFERROR(VLOOKUP($F24,'Beltway Manager Performance'!$G$6:$BD$23,2,FALSE),"") -> 3.5 | H24: =VLOOKUP($F24,'Beltway Manager Performance'!$G$6:$BD$23,5,FALSE) -> 0.91 | I24: =IFERROR(_xlfn.XLOOKUP($F24,'Beltway Manager Performance'!$G$16:$G$18,'Beltway Manager Performance'!$BF$16:$BF$18),"") -> 0.983 | J24: =IFERROR(_xlfn.XLOOKUP($F24,'Beltway Manager Performance'!$G$16:$G$18,'Beltway Manager Performance'!$AU$16:$AU$18),"") -> 0.9535 | M24: Lake/Orlando | O24: =SUMIFS('NSR WO Details'!$AG:$AG,'NSR WO Details'!$H:$H,$M24,'NSR WO Details'!$AI:$AI,">="&$M$6,'NSR WO Details'!$AI:$AI,"<="&$N$6) -> 0 | P24: =COUNTIFS('FTR Detail'!$I:$I,$M24,'FTR Detail'!$AH:$AH,">="&$M$6,'FTR Detail'!$AH:$AH,"<="&$N$6) -> 0 | R24: =SUMIFS('NSR WO Details'!$AB:$AB,'NSR WO Details'!$H:$H,$M24,'NSR WO Details'!$AI:$AI,">="&$M$6,'NSR WO Details'!$AI:$AI,"<="&$N$6) -> 0 | S24: =SUMIFS('NSR WO Details'!$AC:$AC,'NSR WO Details'!$H:$H,$M24,'NSR WO Details'!$AI:$AI,">="&$M$6,'NSR WO Details'!$AI:$AI,"<="&$N$6) -> 0 | U24: =COUNTIFS('NSR WO Details'!$H:$H,$M24,'NSR WO Details'!$AD:$AD,"PASS_WITH_WARNINGS",'NSR WO Details'!$AI:$AI,">="&$M$6,'NSR WO Details'!$AI:$AI,"<="&$N$6)+COUNTIFS('NSR WO Details'!$H:$H,$M24,'NSR WO Details'!$AD:$AD,"PASS_WITH_OVERRIDES",'NSR WO Details'!$AI:$AI,">="&$M$6,'NSR WO Details'!$AI:$AI,"<="&$N$6) -> 0 | X24: =COUNTIFS('NSR WO Details'!$W:$W,"=MET",'NSR WO Details'!$H:$H,$M24,'NSR WO Details'!$AI:$AI,">="&$M$6,'NSR WO Details'!$AI:$AI,"<="&$N$6) -> 0 | Y24: =COUNTIFS('NSR WO Details'!$W:$W,"=Missed",'NSR WO Details'!$H:$H,$M24,'NSR WO Details'!$AI:$AI,">="&$M$6,'NSR WO Details'!$AI:$AI,"<="&$N$6) -> 0 | AA24: =SUMIFS('NSR WO Details'!$AG:$AG,'NSR WO Details'!$H:$H,$M24,'NSR WO Details'!$AI:$AI,">="&$M$6,'NSR WO Details'!$AI:$AI,"<="&$N$6) -> 0 | AB24: =SUMIFS('NSR WO Details'!$AE:$AE,'NSR WO Details'!$H:$H,$M24,'NSR WO Details'!$AI:$AI,">="&$M$6,'NSR WO Details'!$AI:$AI,"<="&$N$6) -> 0 | AD24: =SUMIFS('RTM Results'!$DI:$DI,'RTM Results'!$R:$R,"LAKE COUNTY",'RTM Results'!$I:$I,">="&$M$6,'RTM Results'!$I:$I,"<="&$N$6) -> 0 | AE24: =SUMIFS('RTM Results'!$DJ:$DJ,'RTM Results'!$R:$R,"LAKE COUNTY",'RTM Results'!$I:$I,">="&$M$6,'RTM Results'!$I:$I,"<="&$N$6) -> 0 | AG24: =#REF! ->  | AH24: =#REF! ->  | AJ24: =SUMIFS('NSR WO Details'!$Z:$Z,'NSR WO Details'!$H:$H,$M24,'NSR WO Details'!$AI:$AI,">="&$M$6,'NSR WO Details'!$AI:$AI,"<="&$N$6) -> 0 | AK24: =SUMIFS('NSR WO Details'!$AA:$AA,'NSR WO Details'!$H:$H,$M24,'NSR WO Details'!$AI:$AI,">="&$M$6,'NSR WO Details'!$AI:$AI,"<="&$N$6) -> 0 | AM24: =SUMIFS('Tool Usage Details'!$T:$T,'Tool Usage Details'!$H:$H,$M24,'Tool Usage Details'!$E:$E,">="&$M$6,'Tool Usage Details'!$E:$E,"<="&$N$6) -> 0 | AN24: =COUNTIFS('Tool Usage Details'!$H:$H,$M24,'Tool Usage Details'!$U:$U,"PASS",'Tool Usage Details'!$E:$E,">="&$M$6,'Tool Usage Details'!$E:$E,"<="&$N$6) -> 0 | AP24: =SUMIFS('One Drop'!$BV:$BV,'One Drop'!$BD:$BD,$M24,'One Drop'!$U:$U,">="&$M$6,'One Drop'!$U:$U,"<="&$N$6) -> 0 | AQ24: =SUMIFS('One Drop'!$BQ:$BQ,'One Drop'!$BD:$BD,$M24,'One Drop'!$U:$U,">="&$M$6,'One Drop'!$U:$U,"<="&$N$6) -> 0 | AS24: =SUMIFS('NSR WO Details'!$AK:$AK,'NSR WO Details'!$H:$H,$M24,'NSR WO Details'!$AI:$AI,">="&$M$6,'NSR WO Details'!$AI:$AI,"<="&$N$6) -> 0 | AT24: =SUMIFS('NSR WO Details'!$AL:$AL,'NSR WO Details'!$H:$H,$M24,'NSR WO Details'!$AI:$AI,">="&$M$6,'NSR WO Details'!$AI:$AI,"<="&$N$6) -> 0 | AV24: =SUMIFS(Completion!$CH:$CH,Completion!$BC:$BC,$M24,Completion!$L:$L,"INSTALL",Completion!$H:$H,">="&$M$6,Completion!$H:$H,"<="&$N$6) -> 0 | AW24: =SUMIFS(Completion!$BZ:$BZ,Completion!$BC:$BC,$M24,Completion!$L:$L,"INSTALL",Completion!$H:$H,">="&$M$6,Completion!$H:$H,"<="&$N$6) -> 0 | AX24: =IFERROR(SUM(AW24/AV24),"") ->  | AY24: =SUMIFS(Completion!$CH:$CH,Completion!$BC:$BC,$M24,Completion!$L:$L,"TC",Completion!$H:$H,">="&$M$6,Completion!$H:$H,"<="&$N$6) -> 0 | AZ24: =SUMIFS(Completion!$BZ:$BZ,Completion!$BC:$BC,$M24,Completion!$L:$L,"TC",Completion!$H:$H,">="&$M$6,Completion!$H:$H,"<="&$N$6) -> 0 | BA24: =IFERROR(SUM(AZ24/AY24),"") ->  | BB24: =IFERROR(SUM(AW24,AZ24)/SUM(AV24,AY24),"") -> 
F25: Cedric Hall | G25: =IFERROR(VLOOKUP($F25,'Beltway Manager Performance'!$G$6:$BD$23,2,FALSE),"") -> 3.5 | H25: =VLOOKUP($F25,'Beltway Manager Performance'!$G$6:$BD$23,5,FALSE) -> 0.909 | I25: =IFERROR(_xlfn.XLOOKUP($F25,'Beltway Manager Performance'!$G$16:$G$18,'Beltway Manager Performance'!$BF$16:$BF$18),"") -> 0.983 | J25: =IFERROR(_xlfn.XLOOKUP($F25,'Beltway Manager Performance'!$G$16:$G$18,'Beltway Manager Performance'!$AU$16:$AU$18),"") -> 0.9634 | M25: WPB/WPBN Combined | O25: =SUM(O20:O21) -> 0 | P25: =SUM(P20:P21) -> 0 | R25: =SUM(R20:R21) -> 0 | S25: =SUM(S20:S21) -> 0 | U25: =SUM(U20:U21) -> 0 | X25: =SUM(X20:X21) -> 0 | Y25: =SUM(Y20:Y21) -> 0 | AA25: =SUM(AA20:AA21) -> 0 | AB25: =SUM(AB20:AB21) -> 0 | AD25: =AD21+AD20 -> 0 | AE25: =AE21+AE20 -> 0 | AG25: =SUM(AG20:AG21) ->  | AH25: =SUM(AH20:AH21) ->  | AJ25: =SUM(AJ20:AJ21) -> 0 | AK25: =SUM(AK20:AK21) -> 0 | AM25: =SUM(AM20:AM21) -> 0 | AN25: =SUM(AN20:AN21) -> 0 | AP25: =SUM(AP20:AP21) -> 0 | AQ25: =SUM(AQ20:AQ21) -> 0 | AS25: =AS20+AS21 -> 0 | AT25: =AT20+AT21 -> 0
F26: Charles Olah | G26: =VLOOKUP("Florida Panhandle",$F$5:$J$14,2,FALSE) -> 3 | H26: =VLOOKUP("Florida Panhandle",$F$5:$J$14,3,FALSE) -> 0.918 | I26: =VLOOKUP("Florida Panhandle",$F$5:$J$14,4,FALSE) -> 0.99 | J26: =VLOOKUP("Florida Panhandle",$F$5:$J$14,5,FALSE) -> 0.8991 | M26: NFL Combined | O26: =SUM(O22:O24) -> 0 | P26: =COUNTIFS('FTR Detail'!$I:$I,$M26,'FTR Detail'!$AH:$AH,">="&$M$6,'FTR Detail'!$AH:$AH,"<="&$N$6) -> 0 | R26: =SUM(R22:R24) -> 0 | S26: =SUM(S22:S24) -> 0 | U26: =SUM(U22:U24) -> 0 | X26: =SUM(X22:X24) -> 0 | Y26: =SUM(Y22:Y24) -> 0 | AA26: =SUM(AA22:AA24) -> 0 | AB26: =SUM(AB22:AB24) -> 0 | AD26: =SUM(AD22:AD24) -> 0 | AE26: =SUM(AE22:AE24) -> 0 | AG26: =SUM(AG22:AG24) ->  | AH26: =SUM(AH22:AH24) ->  | AJ26: =SUM(AJ22:AJ24) -> 0 | AK26: =SUM(AK22:AK24) -> 0 | AM26: =SUM(AM22:AM24) -> 0 | AN26: =SUM(AN22:AN24) -> 0 | AP26: =SUM(AP22:AP24) -> 0 | AQ26: =SUM(AQ22:AQ24) -> 0 | AS26: =SUM(AS22:AS24) -> 0 | AT26: =SUM(AT22:AT24) -> 0
F27: Christian Bracero - PSL | G27: =VLOOKUP("West Palm North",$F$5:$J$14,2,FALSE) -> 0 | H27: =VLOOKUP("West Palm North",$F$5:$J$14,3,FALSE) -> 0.91 | I27: =VLOOKUP("West Palm North",$F$5:$J$14,4,FALSE) -> 0.984 | J27: =VLOOKUP("West Palm North",$F$5:$J$14,5,FALSE) -> 0.9108 | N27: Score | O27: Total Jobs | P27: Jobs FTR | Q27: FTR | R27: Total Job | S27: Pass | T27: PHT | U27: Pure Pass Fails | W27: PHT Pure Pass | X27: Calls Met | Y27: Calls Missed | Z27: OTA | AC27: Contact w/in 48hrs | AD27: Total Jobs | AE27: Total invalid | AF27: % Valid RTM | AG27: Jobs | AH27: Pictures Uploaded | AI27: ML Bonding Compliance | AJ27: Total Surveys | AK27: Failures | AL27: tNPS | AM27: Total Jobs | AN27: Total Comp | AO27: Ingress Test Ran | AP27: Number of Drops | AQ27: One Drop Usage | AR27: One Drop | AS27: Tool Usage Jobs | AT27: Tool Usage | AU27: Tool Usage Rate | AV27: Total Installs | AW27: Completed | AX27: Install Completion % | AY27: Total TC's | AZ27: Completed | BA27: TC Completion % | BB27: Total Completion %
F29: Supervisor Name | G29: Score | H29: FTR | I29: Tool Usage | J29: tNPS | M29: FLORIDA REGION | N29: =IF(AU29="","",IFERROR(IF(Q29>=92%,3.5,0)+IF(AL29>=92.5%,3.5,0)+IF(AU29>=98.5%,3,0),"")) ->  | O29: =SUMIFS('NSR WO Details'!$AG:$AG,'NSR WO Details'!$F:$F,"Florida",'NSR WO Details'!$AI:$AI,">="&$M$6,'NSR WO Details'!$AI:$AI,"<="&$N$6) -> 0 | P29: =COUNTIFS('FTR Detail'!$H:$H,"Florida",'FTR Detail'!$AH:$AH,">="&$M$6,'FTR Detail'!$AH:$AH,"<="&$N$6) -> 0 | Q29: =IFERROR(1-(P29/O29),"") ->  | R29: =SUM(R20:R24) -> 0 | S29: =SUM(S20:S24) -> 0 | T29: =IFERROR(SUM(S29/R29),"") ->  | U29: =SUM(U20:U24) -> 0 | W29: =IFERROR(SUM(1-U29/S29),"") ->  | X29: =COUNTIFS('NSR WO Details'!$W:$W,"=MET",'NSR WO Details'!$F:$F,"=FLORIDA",'NSR WO Details'!$AI:$AI,">="&$M$6,'NSR WO Details'!$AI:$AI,"<="&$N$6) -> 0 | Y29: =COUNTIFS('NSR WO Details'!$W:$W,"=Missed",'NSR WO Details'!$F:$F,"=FLORIDA",'NSR WO Details'!$AI:$AI,">="&$M$6,'NSR WO Details'!$AI:$AI,"<="&$N$6) -> 0 | Z29: =IFERROR(SUM(X29/(X29+Y29)),"") ->  | AA29: =SUM(AA20:AA24) -> 0 | AB29: =SUM(AB20:AB24) -> 0 | AC29: =IFERROR(SUM(AB29/AA29),"") ->  | AD29: =SUM(AD20:AD24) -> 0 | AE29: =SUM(AE20:AE24) -> 0 | AF29: =IFERROR(1-(SUM(AE29/AD29)),"") ->  | AG29: =SUM(#REF!) ->  | AH29: =SUM(#REF!) ->  | AI29: =IFERROR(SUM(AH29/AG29),"") ->  | AJ29: =SUMIFS('NSR WO Details'!$Z:$Z,'NSR WO Details'!$F:$F,"Florida",'NSR WO Details'!$AI:$AI,">="&$M$6,'NSR WO Details'!$AI:$AI,"<="&$N$6) -> 0 | AK29: =SUMIFS('NSR WO Details'!$AA:$AA,'NSR WO Details'!$F:$F,"Florida",'NSR WO Details'!$AI:$AI,">="&$M$6,'NSR WO Details'!$AI:$AI,"<="&$N$6) -> 0 | AL29: =IFERROR(SUM(AK29/AJ29),"") ->  | AM29: =SUM(AM20:AM24) -> 0 | AN29: =SUM(AN20:AN24) -> 0 | AO29: =IFERROR(SUM(AN29/AM29),"") ->  | AP29: =SUM(AP20:AP24) -> 0 | AQ29: =SUM(AQ20:AQ24) -> 0 | AR29: =IFERROR(SUM(AQ29/AP29),"") ->  | AS29: =SUMIFS('NSR WO Details'!$AK:$AK,'NSR WO Details'!$F:$F,"Florida",'NSR WO Details'!$AI:$AI,">="&$M$6,'NSR WO Details'!$AI:$AI,"<="&$N$6) -> 0 | AT29: =SUMIFS('NSR WO Details'!$AL:$AL,'NSR WO Details'!$F:$F,"Florida",'NSR WO Details'!$AI:$AI,">="&$M$6,'NSR WO Details'!$AI:$AI,"<="&$N$6) -> 0 | AU29: =IFERROR(SUM(AT29/AS29),"") ->  | AV29: =SUM(AV20:AV24) -> 0 | AW29: =SUM(AW20:AW24) -> 0 | AX29: =IFERROR(SUM(AW29/AV29),"") ->  | AY29: =SUM(AY20:AY24) -> 0 | AZ29: =SUM(AZ20:AZ24) -> 0 | BA29: =IFERROR(SUM(AZ29/AY29),"") ->  | BB29: =IFERROR(SUM(AW29,AZ29)/SUM(AV29,AY29),"") -> 
F30: Luis Segarra | G30: =IFERROR(VLOOKUP($F30,'Keystone Manager Performance'!$G$21:$BB$21,2,FALSE),"") ->  | H30: =IFERROR(VLOOKUP($F30,'Keystone Manager Performance'!$G$21:$BB$21,5,FALSE),"") ->  | I30: =IFERROR(VLOOKUP($F30,'Keystone Manager Performance'!$G$21:$BB$21,44,FALSE),"") ->  | J30: =IFERROR(VLOOKUP($F30,'Keystone Manager Performance'!$G$21:$BB$21,35,FALSE),"") -> 
F31: Winston Issacs | G31: =IFERROR(VLOOKUP($F31,'Florida Manager Performance'!$G$6:$AO$43,2,FALSE),"") -> 10 | H31: =VLOOKUP($F31,'Florida Manager Performance'!$G$6:$AO$43,5,FALSE) -> 0.95 | I31: =IFERROR(VLOOKUP($F31,'Florida Manager Performance'!$G$4:$AV$43,34,FALSE),"") -> 0.998 | J31: =IFERROR(VLOOKUP($F31,'Florida Manager Performance'!$G$6:$AN$41,25,FALSE),"") -> 0.9455
F32: Steve Goff | G32: =IFERROR(VLOOKUP($F32,'Florida Manager Performance'!$G$6:$AO$43,2,FALSE),"") -> 10 | H32: =VLOOKUP($F32,'Florida Manager Performance'!$G$6:$AO$43,5,FALSE) -> 0.94 | I32: =IFERROR(VLOOKUP($F32,'Florida Manager Performance'!$G$4:$AV$43,34,FALSE),"") -> 0.987 | J32: =IFERROR(VLOOKUP($F32,'Florida Manager Performance'!$G$6:$AN$41,25,FALSE),"") -> 0.9583 | M32: Beltway
F33: Arcadie Adam | G33: =IFERROR(VLOOKUP($F33,'Florida Manager Performance'!$G$6:$AO$43,2,FALSE),"") -> 10 | H33: =VLOOKUP($F33,'Florida Manager Performance'!$G$6:$AO$43,5,FALSE) -> 0.938 | I33: =IFERROR(VLOOKUP($F33,'Florida Manager Performance'!$G$4:$AV$43,34,FALSE),"") -> 0.99 | J33: =IFERROR(VLOOKUP($F33,'Florida Manager Performance'!$G$6:$AN$41,25,FALSE),"") -> 0.9354
F34: Ramon Rosario | G34: =IFERROR(VLOOKUP($F34,'Florida Manager Performance'!$G$4:$AO$42,2,FALSE),"") -> 10 | H34: =VLOOKUP($F34,'Florida Manager Performance'!$G$4:$AO$43,5,FALSE) -> 0.936 | I34: =IFERROR(VLOOKUP($F34,'Florida Manager Performance'!$G$3:$AV$42,34,FALSE),"") -> 1 | J34: =IFERROR(VLOOKUP($F34,'Florida Manager Performance'!$G$4:$AN$43,25,FALSE),"") -> 1
F35: Phillip Tapper | G35: =IFERROR(VLOOKUP($F35,'Beltway Manager Performance'!$G$6:$BD$43,2,FALSE),"") -> 10 | H35: =VLOOKUP($F35,'Beltway Manager Performance'!$G$6:$BD$44,5,FALSE) -> 0.925 | I35: =IFERROR(_xlfn.XLOOKUP($F35,'Beltway Manager Performance'!$G$23:$G$33,'Beltway Manager Performance'!$BF$23:$BF$33),"") -> 0.994 | J35: =IFERROR(_xlfn.XLOOKUP($F35,'Beltway Manager Performance'!$G$23:$G$33,'Beltway Manager Performance'!$AU$23:$AU$33),"") -> 0.9737 | W35: Start Date | Z35: =M6 -> 2024-06-22 | AC35: End Date | AF35: =N6 -> 2024-07-22
F36: Mikalai Mikhitarau | G36: =IFERROR(VLOOKUP($F36,'Florida Manager Performance'!$G$6:$AO$43,2,FALSE),"") -> 10 | H36: =VLOOKUP($F36,'Florida Manager Performance'!$G$6:$AO$43,5,FALSE) -> 0.923 | I36: =IFERROR(VLOOKUP($F36,'Florida Manager Performance'!$G$4:$AV$43,34,FALSE),"") -> 0.992 | J36: =IFERROR(VLOOKUP($F36,'Florida Manager Performance'!$G$6:$AN$41,25,FALSE),"") -> 0.9486 | M36: Office | N36: Score | O36: Total Jobs | P36: Total FTR Fails | Q36: FTR | R36: Total TC's | S36: Total TC FTR | T36: TC-TC FTR | W36: PHT | X36: Total Pass | Z36: PHT Pure Pass | AA36: Total Calls | AB36: Total Missed | AC36: OTA | AD36: Total Jobs | AE36: Callback | AF36: Contact w/in 48hrs | AG36: Total Installs | AH36: Completed | AL36: Install Completion % | AM36: Total TC's | AN36: Completed | AO36: TC Completion % | AR36: Total Completion % | AS36: Tot Surv | AT36: Tot Pass | AU36: tNPS | AV36: Total Jobs | AW36: Total Comp | AX36: Ingress Test Ran | AY36: Tool Usage Jobs | AZ36: Tool Usage | BA36: Tool Usage Rate
F37: Ivan Myhovych | G37: =IFERROR(VLOOKUP($F37,'Florida Manager Performance'!$G$6:$AO$43,2,FALSE),"") -> 10 | H37: =VLOOKUP($F37,'Florida Manager Performance'!$G$6:$AO$43,5,FALSE) -> 0.922 | I37: =IFERROR(VLOOKUP($F37,'Florida Manager Performance'!$G$4:$AV$43,34,FALSE),"") -> 0.996 | J37: =IFERROR(VLOOKUP($F37,'Florida Manager Performance'!$G$6:$AN$41,25,FALSE),"") -> 0.9598
F38: Chris Franklin | G38: =IFERROR(VLOOKUP($F38,'Big South Manager Performance'!$G$7:$AR$52,2,FALSE),"") -> 7 | H38: =VLOOKUP($F38,'Big South Manager Performance'!$G$7:$AR$53,5,FALSE) -> 0.928 | I38: =IFERROR(VLOOKUP($F38,'Big South Manager Performance'!$G$5:$AX$52,36,FALSE),"") -> 0.979 | J38: =IFERROR(VLOOKUP($F38,'Big South Manager Performance'!$G$7:$AP$54,28,FALSE),"") -> 0.9252 | M38: Beltway East | N38: =IF(AU38="","",IFERROR(IF(Q38>=92%,3.5,0)+IF(AU38>=92.5%,3.5,0)+IF(BA38>=98.5%,3,0),"")) ->  | O38: =SUMIFS('NSR WO Details'!$AG:$AG,'NSR WO Details'!$H:$H,$M38,'NSR WO Details'!$AI:$AI,">="&$M$6,'NSR WO Details'!$AI:$AI,"<="&$N$6) -> 0 | P38: =COUNTIFS('FTR Detail'!$I:$I,$M38,'FTR Detail'!$AH:$AH,">="&$M$6,'FTR Detail'!$AH:$AH,"<="&$N$6) -> 0 | Q38: =IFERROR(1-(P38/O38),"") ->  | R38: =SUMIFS('NSR WO Details'!$AG:$AG,'NSR WO Details'!$H:$H,$M38,'NSR WO Details'!$P:$P,"=TC",'NSR WO Details'!$H:$H,$M38,'NSR WO Details'!$AI:$AI,">="&$M$6,'NSR WO Details'!$AI:$AI,"<="&$N$6) -> 0 | S38: =COUNTIFS('FTR Detail'!$I:$I,$M38,'FTR Detail'!$L:$L,"TC-TC",'FTR Detail'!$I:$I,$M38,'NSR WO Details'!$AI:$AI,">="&$M$6,'NSR WO Details'!$AI:$AI,"<="&$N$6) -> 0 | T38: =IFERROR(1-(S38/R38),"") ->  | U38: =SUMIFS('NSR WO Details'!$AB:$AB,'NSR WO Details'!$H:$H,$M38,'NSR WO Details'!$AI:$AI,">="&$M$6,'NSR WO Details'!$AI:$AI,"<="&$N$6) -> 0 | V38: =SUMIFS('NSR WO Details'!$AC:$AC,'NSR WO Details'!$H:$H,$M38,'NSR WO Details'!$AI:$AI,">="&$M$6,'NSR WO Details'!$AI:$AI,"<="&$N$6) -> 0 | W38: =V38/U38 ->  | X38: =COUNTIFS('NSR WO Details'!$H:$H,$M38,'NSR WO Details'!$AD:$AD,"PASS_WITH_WARNINGS",'NSR WO Details'!$AI:$AI,">="&$M$6,'NSR WO Details'!$AI:$AI,"<="&$N$6)+COUNTIFS('NSR WO Details'!$H:$H,$M38,'NSR WO Details'!$AD:$AD,"PASS_WITH_OVERRIDES",'NSR WO Details'!$AI:$AI,">="&$M$6,'NSR WO Details'!$AI:$AI,"<="&$N$6) -> 0 | Z38: =1-X38/V38 ->  | AA38: =COUNTIFS('NSR WO Details'!$W:$W,"=MET",'NSR WO Details'!$H:$H,$M38,'NSR WO Details'!$AI:$AI,">="&$M$6,'NSR WO Details'!$AI:$AI,"<="&$N$6) -> 0 | AB38: =COUNTIFS('NSR WO Details'!$W:$W,"=Missed",'NSR WO Details'!$H:$H,$M38,'NSR WO Details'!$AI:$AI,">="&$M$6,'NSR WO Details'!$AI:$AI,"<="&$N$6) -> 0 | AC38: =1-(AB38/AA38) ->  | AD38: =SUMIFS('NSR WO Details'!$AG:$AG,'NSR WO Details'!$H:$H,$M38,'NSR WO Details'!$AI:$AI,">="&$M$6,'NSR WO Details'!$AI:$AI,"<="&$N$6) -> 0 | AE38: =SUMIFS('NSR WO Details'!$AE:$AE,'NSR WO Details'!$H:$H,$M38,'NSR WO Details'!$AI:$AI,">="&$M$6,'NSR WO Details'!$AI:$AI,"<="&$N$6) -> 0 | AF38: =IFERROR(SUM(AE38/AD38),"") ->  | AG38: =SUMIFS(Completion!$CH:$CH,Completion!$BC:$BC,$M38,Completion!$L:$L,"INSTALL",Completion!$H:$H,">="&$M$6,Completion!$H:$H,"<="&$N$6) -> 0 | AH38: =SUMIFS(Completion!$BZ:$BZ,Completion!$BC:$BC,$M38,Completion!$L:$L,"INSTALL",Completion!$H:$H,">="&$M$6,Completion!$H:$H,"<="&$N$6) -> 0 | AL38: =IFERROR(SUM(AH38/AG38),"") ->  | AM38: =SUMIFS(Completion!$CH:$CH,Completion!$BC:$BC,$M38,Completion!$L:$L,"TC",Completion!$H:$H,">="&$M$6,Completion!$H:$H,"<="&$N$6) -> 0 | AN38: =SUMIFS(Completion!$BZ:$BZ,Completion!$BC:$BC,$M38,Completion!$L:$L,"TC",Completion!$H:$H,">="&$M$6,Completion!$H:$H,"<="&$N$6) -> 0 | AO38: =IFERROR(SUM(AN38/AM38),"") ->  | AR38: =IFERROR(SUM(AH38,AN38)/SUM(AG38,AM38),"") ->  | AS38: =SUMIFS('NSR WO Details'!$Z:$Z,'NSR WO Details'!$H:$H,$M38,'NSR WO Details'!$AI:$AI,">="&$M$6,'NSR WO Details'!$AI:$AI,"<="&$N$6) -> 0 | AT38: =SUMIFS('NSR WO Details'!$AA:$AA,'NSR WO Details'!$H:$H,$M38,'NSR WO Details'!$AI:$AI,">="&$M$6,'NSR WO Details'!$AI:$AI,"<="&$N$6) -> 0 | AU38: =IFERROR(SUM(AT38/AS38),"") ->  | AV38: =SUMIFS('One Drop'!$BV:$BV,'One Drop'!$BD:$BD,$M38,'One Drop'!$U:$U,">="&$M$6,'One Drop'!$U:$U,"<="&$N$6) -> 0 | AW38: =SUMIFS('One Drop'!$BQ:$BQ,'One Drop'!$BD:$BD,$M38,'One Drop'!$U:$U,">="&$M$6,'One Drop'!$U:$U,"<="&$N$6) -> 0 | AX38: =AW38/AV38 ->  | AY38: =SUMIFS('NSR WO Details'!$AK:$AK,'NSR WO Details'!$H:$H,$M38,'NSR WO Details'!$AI:$AI,">="&$M$6,'NSR WO Details'!$AI:$AI,"<="&$N$6) -> 0 | AZ38: =SUMIFS('NSR WO Details'!$AL:$AL,'NSR WO Details'!$H:$H,$M38,'NSR WO Details'!$AI:$AI,">="&$M$6,'NSR WO Details'!$AI:$AI,"<="&$N$6) -> 0 | BA38: =AZ38/AY38 -> 
F39: Kendall Edwards | G39: =IFERROR(VLOOKUP($F39,'Beltway Manager Performance'!$G$6:$BD$43,2,FALSE),"") -> 7 | H39: =VLOOKUP($F39,'Beltway Manager Performance'!$G$6:$BD$44,5,FALSE) -> 0.92 | I39: =IFERROR(_xlfn.XLOOKUP($F39,'Beltway Manager Performance'!$G$23:$G$33,'Beltway Manager Performance'!$BF$23:$BF$33),"") -> 0.977 | J39: =IFERROR(_xlfn.XLOOKUP($F39,'Beltway Manager Performance'!$G$23:$G$33,'Beltway Manager Performance'!$AU$23:$AU$33),"") -> 0.9655 | M39: Beltway West | N39: =IF(AU39="","",IFERROR(IF(Q39>=92%,3.5,0)+IF(AU39>=92.5%,3.5,0)+IF(BA39>=98.5%,3,0),"")) ->  | O39: =SUMIFS('NSR WO Details'!$AG:$AG,'NSR WO Details'!$H:$H,$M39,'NSR WO Details'!$AI:$AI,">="&$M$6,'NSR WO Details'!$AI:$AI,"<="&$N$6) -> 0 | P39: =COUNTIFS('FTR Detail'!$I:$I,$M39,'FTR Detail'!$AH:$AH,">="&$M$6,'FTR Detail'!$AH:$AH,"<="&$N$6) -> 0 | Q39: =IFERROR(1-(P39/O39),"") ->  | R39: =SUMIFS('NSR WO Details'!$AG:$AG,'NSR WO Details'!$H:$H,$M39,'NSR WO Details'!$P:$P,"=TC",'NSR WO Details'!$H:$H,$M39,'NSR WO Details'!$AI:$AI,">="&$M$6,'NSR WO Details'!$AI:$AI,"<="&$N$6) -> 0 | S39: =COUNTIFS('FTR Detail'!$I:$I,$M39,'FTR Detail'!$L:$L,"TC-TC",'FTR Detail'!$I:$I,$M39,'NSR WO Details'!$AI:$AI,">="&$M$6,'NSR WO Details'!$AI:$AI,"<="&$N$6) -> 0 | T39: =IFERROR(1-(S39/R39),"") ->  | U39: =SUMIFS('NSR WO Details'!$AB:$AB,'NSR WO Details'!$H:$H,$M39,'NSR WO Details'!$AI:$AI,">="&$M$6,'NSR WO Details'!$AI:$AI,"<="&$N$6) -> 0 | V39: =SUMIFS('NSR WO Details'!$AC:$AC,'NSR WO Details'!$H:$H,$M39,'NSR WO Details'!$AI:$AI,">="&$M$6,'NSR WO Details'!$AI:$AI,"<="&$N$6) -> 0 | W39: =V39/U39 ->  | X39: =COUNTIFS('NSR WO Details'!$H:$H,$M39,'NSR WO Details'!$AD:$AD,"PASS_WITH_WARNINGS",'NSR WO Details'!$AI:$AI,">="&$M$6,'NSR WO Details'!$AI:$AI,"<="&$N$6)+COUNTIFS('NSR WO Details'!$H:$H,$M39,'NSR WO Details'!$AD:$AD,"PASS_WITH_OVERRIDES",'NSR WO Details'!$AI:$AI,">="&$M$6,'NSR WO Details'!$AI:$AI,"<="&$N$6) -> 0 | Z39: =1-X39/V39 ->  | AA39: =COUNTIFS('NSR WO Details'!$W:$W,"=MET",'NSR WO Details'!$H:$H,$M39,'NSR WO Details'!$AI:$AI,">="&$M$6,'NSR WO Details'!$AI:$AI,"<="&$N$6) -> 0 | AB39: =COUNTIFS('NSR WO Details'!$W:$W,"=Missed",'NSR WO Details'!$H:$H,$M39,'NSR WO Details'!$AI:$AI,">="&$M$6,'NSR WO Details'!$AI:$AI,"<="&$N$6) -> 0 | AC39: =1-(AB39/AA39) ->  | AD39: =SUMIFS('NSR WO Details'!$AG:$AG,'NSR WO Details'!$H:$H,$M39,'NSR WO Details'!$AI:$AI,">="&$M$6,'NSR WO Details'!$AI:$AI,"<="&$N$6) -> 0 | AE39: =SUMIFS('NSR WO Details'!$AE:$AE,'NSR WO Details'!$H:$H,$M39,'NSR WO Details'!$AI:$AI,">="&$M$6,'NSR WO Details'!$AI:$AI,"<="&$N$6) -> 0 | AF39: =IFERROR(SUM(AE39/AD39),"") ->  | AG39: =SUMIFS(Completion!$CH:$CH,Completion!$BC:$BC,$M39,Completion!$L:$L,"INSTALL",Completion!$H:$H,">="&$M$6,Completion!$H:$H,"<="&$N$6) -> 0 | AH39: =SUMIFS(Completion!$BZ:$BZ,Completion!$BC:$BC,$M39,Completion!$L:$L,"INSTALL",Completion!$H:$H,">="&$M$6,Completion!$H:$H,"<="&$N$6) -> 0 | AL39: =IFERROR(SUM(AH39/AG39),"") ->  | AM39: =SUMIFS(Completion!$CH:$CH,Completion!$BC:$BC,$M39,Completion!$L:$L,"TC",Completion!$H:$H,">="&$M$6,Completion!$H:$H,"<="&$N$6) -> 0 | AN39: =SUMIFS(Completion!$BZ:$BZ,Completion!$BC:$BC,$M39,Completion!$L:$L,"TC",Completion!$H:$H,">="&$M$6,Completion!$H:$H,"<="&$N$6) -> 0 | AO39: =IFERROR(SUM(AN39/AM39),"") ->  | AR39: =IFERROR(SUM(AH39,AN39)/SUM(AG39,AM39),"") ->  | AS39: =SUMIFS('NSR WO Details'!$Z:$Z,'NSR WO Details'!$H:$H,$M39,'NSR WO Details'!$AI:$AI,">="&$M$6,'NSR WO Details'!$AI:$AI,"<="&$N$6) -> 0 | AT39: =SUMIFS('NSR WO Details'!$AA:$AA,'NSR WO Details'!$H:$H,$M39,'NSR WO Details'!$AI:$AI,">="&$M$6,'NSR WO Details'!$AI:$AI,"<="&$N$6) -> 0 | AU39: =IFERROR(SUM(AT39/AS39),"") ->  | AV39: =SUMIFS('One Drop'!$BV:$BV,'One Drop'!$BD:$BD,$M39,'One Drop'!$U:$U,">="&$M$6,'One Drop'!$U:$U,"<="&$N$6) -> 0 | AW39: =SUMIFS('One Drop'!$BQ:$BQ,'One Drop'!$BD:$BD,$M39,'One Drop'!$U:$U,">="&$M$6,'One Drop'!$U:$U,"<="&$N$6) -> 0 | AX39: =AW39/AV39 ->  | AY39: =SUMIFS('NSR WO Details'!$AK:$AK,'NSR WO Details'!$H:$H,$M39,'NSR WO Details'!$AI:$AI,">="&$M$6,'NSR WO Details'!$AI:$AI,"<="&$N$6) -> 0 | AZ39: =SUMIFS('NSR WO Details'!$AL:$AL,'NSR WO Details'!$H:$H,$M39,'NSR WO Details'!$AI:$AI,">="&$M$6,'NSR WO Details'!$AI:$AI,"<="&$N$6) -> 0 | BA39: =AZ39/AY39 -> 
F40: Richard Cornick | G40: =IFERROR(VLOOKUP($F40,'Beltway Manager Performance'!$G$6:$BD$43,2,FALSE),"") -> 7 | H40: =VLOOKUP($F40,'Beltway Manager Performance'!$G$6:$BD$44,5,FALSE) -> 0.92 | I40: =IFERROR(_xlfn.XLOOKUP($F40,'Beltway Manager Performance'!$G$23:$G$33,'Beltway Manager Performance'!$BF$23:$BF$33),"") -> 0.963 | J40: =IFERROR(_xlfn.XLOOKUP($F40,'Beltway Manager Performance'!$G$23:$G$33,'Beltway Manager Performance'!$AU$23:$AU$33),"") -> 0.9701 | N40: Score | O40: Total Jobs | P40: Total FTR Fails | Q40: FTR | R40: Total TC's | S40: Total TC FTR | T40: TC-TC FTR | W40: PHT | X40: Total Pass | Z40: PHT Pure Pass | AA40: Total Calls | AB40: Total Missed | AC40: MET | AD40: Total Jobs | AE40: Callback | AF40: 48hr Callback | AG40: Total Installs | AH40: Completed | AL40: Install Completion % | AM40: Total TC's | AN40: Completed | AO40: TC Completion % | AR40: Total Completion % | AS40: Tot Surv | AT40: Tot Pass | AU40: tNPS | AV40: Total Jobs | AW40: Total Comp | AX40: Ingress Test Ran | AY40: Tool Usage Jobs | AZ40: Tool Usage | BA40: Tool Usage Rate
F41: Shante Miller | G41: =IFERROR(VLOOKUP($F41,'Florida Manager Performance'!$G$6:$AO$43,2,FALSE),"") -> 6.5 | H41: =VLOOKUP($F41,'Florida Manager Performance'!$G$6:$AO$43,5,FALSE) -> 0.941 | I41: =IFERROR(VLOOKUP($F41,'Florida Manager Performance'!$G$4:$AV$43,34,FALSE),"") -> 0.996 | J41: =IFERROR(VLOOKUP($F41,'Florida Manager Performance'!$G$6:$AN$41,25,FALSE),"") -> 0.9244
F42: Jesse Buckler | G42: =IFERROR(VLOOKUP($F42,'Florida Manager Performance'!$G$6:$AO$43,2,FALSE),"") -> 6.5 | H42: =VLOOKUP($F42,'Florida Manager Performance'!$G$6:$AO$43,5,FALSE) -> 0.938 | I42: =IFERROR(VLOOKUP($F42,'Florida Manager Performance'!$G$4:$AV$43,34,FALSE),"") -> 0.993 | J42: =IFERROR(VLOOKUP($F42,'Florida Manager Performance'!$G$6:$AN$41,25,FALSE),"") -> 0.8289 | M42: Beltway Region | N42: =IF(AU42="","",IFERROR(IF(Q42>=92%,3.5,0)+IF(AU42>=92.5%,3.5,0)+IF(BA42>=98.5%,3,0),"")) ->  | O42: =SUMIFS('NSR WO Details'!$AG:$AG,'NSR WO Details'!$F:$F,"Beltway",'NSR WO Details'!$AI:$AI,">="&$M$6,'NSR WO Details'!$AI:$AI,"<="&$N$6) -> 0 | P42: =COUNTIFS('FTR Detail'!$H:$H,"Beltway",'FTR Detail'!$AH:$AH,">="&$M$6,'FTR Detail'!$AH:$AH,"<="&$N$6) -> 0 | Q42: =IFERROR(1-(P42/O42),"") ->  | R42: =SUM(R38:R39) -> 0 | S42: =SUM(S38:S39) -> 0 | T42: =IFERROR(1-(S42/R42),"") ->  | U42: =SUM(U38:U39) -> 0 | V42: =SUM(V38:V39) -> 0 | W42: =V42/U42 ->  | X42: =SUM(X38:X39) -> 0 | Z42: =1-X42/V42 ->  | AA42: =SUM(AA38:AA39) -> 0 | AB42: =SUM(AB38:AB39) -> 0 | AC42: =1-(AB42/AA42) ->  | AD42: =SUM(AD38:AD39) -> 0 | AE42: =SUM(AE38:AE39) -> 0 | AF42: =IFERROR(SUM(AE42/AD42),"") ->  | AG42: =SUM(AG38:AG39) -> 0 | AH42: =SUM(AH38:AH39) -> 0 | AL42: =IFERROR(SUM(AH42/AG42),"") ->  | AM42: =SUM(AM38:AM39) -> 0 | AN42: =SUM(AN38:AN39) -> 0 | AO42: =IFERROR(SUM(AN42/AM42),"") ->  | AR42: =IFERROR(SUM(AH42,AN42)/SUM(AG42,AM42),"") ->  | AS42: =SUMIFS('NSR WO Details'!$Z:$Z,'NSR WO Details'!$F:$F,"Beltway",'NSR WO Details'!$AI:$AI,">="&$M$6,'NSR WO Details'!$AI:$AI,"<="&$N$6) -> 0 | AT42: =SUMIFS('NSR WO Details'!$AA:$AA,'NSR WO Details'!$F:$F,"Beltway",'NSR WO Details'!$AI:$AI,">="&$M$6,'NSR WO Details'!$AI:$AI,"<="&$N$6) -> 0 | AU42: =IFERROR(SUM(AT42/AS42),"") ->  | AV42: =SUM(AV38:AV39) -> 0 | AW42: =SUM(AW38:AW39) -> 0 | AX42: =AW42/AV42 ->  | AY42: =SUMIFS('NSR WO Details'!$AK:$AK,'NSR WO Details'!$F:$F,"Beltway",'NSR WO Details'!$AI:$AI,">="&$M$6,'NSR WO Details'!$AI:$AI,"<="&$N$6) -> 0 | AZ42: =SUMIFS('NSR WO Details'!$AL:$AL,'NSR WO Details'!$F:$F,"Beltway",'NSR WO Details'!$AI:$AI,">="&$M$6,'NSR WO Details'!$AI:$AI,"<="&$N$6) -> 0 | BA42: =AZ42/AY42 -> 
F43: Eugen Cravcenco | G43: =IFERROR(VLOOKUP($F43,'Florida Manager Performance'!$G$4:$AO$200,2,FALSE),"") -> 6.5 | H43: =VLOOKUP($F43,'Florida Manager Performance'!$G$4:$AO$200,5,FALSE) -> 0.922 | I43: =IFERROR(VLOOKUP($F43,'Florida Manager Performance'!$G$3:$AV$200,34,FALSE),"") -> 0.989 | J43: =IFERROR(VLOOKUP($F43,'Florida Manager Performance'!$G$4:$AN$200,25,FALSE),"") -> 0.9213
F44: Mikhail Korzunin | G44: =IFERROR(VLOOKUP($F44,'Florida Manager Performance'!$G$6:$AO$43,2,FALSE),"") -> 6.5 | H44: =VLOOKUP($F44,'Florida Manager Performance'!$G$6:$AO$43,5,FALSE) -> 0.917 | I44: =IFERROR(VLOOKUP($F44,'Florida Manager Performance'!$G$4:$AV$43,34,FALSE),"") -> 1 | J44: =IFERROR(VLOOKUP($F44,'Florida Manager Performance'!$G$6:$AN$41,25,FALSE),"") -> 1
F45: Lucius Deisan | G45: =IFERROR(VLOOKUP($F45,'Florida Manager Performance'!$G$6:$AO$43,2,FALSE),"") -> 6.5 | H45: =VLOOKUP($F45,'Florida Manager Performance'!$G$6:$AO$43,5,FALSE) -> 0.917 | I45: =IFERROR(VLOOKUP($F45,'Florida Manager Performance'!$G$4:$AV$43,34,FALSE),"") -> 0.994 | J45: =IFERROR(VLOOKUP($F45,'Florida Manager Performance'!$G$6:$AN$41,25,FALSE),"") -> 0.9257 | M45: Big South
F46: Jose Barbecho | G46: =IFERROR(VLOOKUP($F46,'Florida Manager Performance'!$G$6:$AO$43,2,FALSE),"") -> 6.5 | H46: =VLOOKUP($F46,'Florida Manager Performance'!$G$6:$AO$43,5,FALSE) -> 0.917 | I46: =IFERROR(VLOOKUP($F46,'Florida Manager Performance'!$G$4:$AV$43,34,FALSE),"") -> 0.987 | J46: =IFERROR(VLOOKUP($F46,'Florida Manager Performance'!$G$6:$AN$41,25,FALSE),"") -> 0.9272
F47: Craig Short | G47: =IFERROR(VLOOKUP($F47,'Beltway Manager Performance'!$G$6:$BD$43,2,FALSE),"") -> 6.5 | H47: =VLOOKUP($F47,'Beltway Manager Performance'!$G$6:$BD$44,5,FALSE) -> 0.911 | I47: =IFERROR(_xlfn.XLOOKUP($F47,'Beltway Manager Performance'!$G$23:$G$33,'Beltway Manager Performance'!$BF$23:$BF$33),"") -> 0.988 | J47: =IFERROR(_xlfn.XLOOKUP($F47,'Beltway Manager Performance'!$G$23:$G$33,'Beltway Manager Performance'!$AU$23:$AU$33),"") -> 0.9685
F48: Joseph Dagaye | G48: =IFERROR(VLOOKUP($F48,'Beltway Manager Performance'!$G$6:$BD$43,2,FALSE),"") -> 6.5 | H48: =VLOOKUP($F48,'Beltway Manager Performance'!$G$6:$BD$44,5,FALSE) -> 0.91 | I48: =IFERROR(_xlfn.XLOOKUP($F48,'Beltway Manager Performance'!$G$23:$G$33,'Beltway Manager Performance'!$BF$23:$BF$33),"") -> 0.987 | J48: =IFERROR(_xlfn.XLOOKUP($F48,'Beltway Manager Performance'!$G$23:$G$33,'Beltway Manager Performance'!$AU$23:$AU$33),"") -> 0.9712 | W48: Start Date | Z48: =M6 -> 2024-06-22 | AC48: End Date | AF48: =N6 -> 2024-07-22
F49: Aaron Shafer Total | G49: =IFERROR(VLOOKUP($F49,'Big South Manager Performance'!$G$7:$AR$52,2,FALSE),"") -> 6.5 | H49: =VLOOKUP($F49,'Big South Manager Performance'!$G$7:$AR$53,5,FALSE) -> 0.908 | I49: =IFERROR(VLOOKUP($F49,'Big South Manager Performance'!$G$5:$AX$52,36,FALSE),"") -> 1 | J49: =IFERROR(VLOOKUP($F49,'Big South Manager Performance'!$G$7:$AP$54,28,FALSE),"") -> 0.9811 | M49: Office | N49: Score | O49: Total Jobs | P49: Jobs FTR | Q49: FTR | R49: Total Job | S49: Pass | T49: PHT | U49: Pure Pass Fails | W49: PHT Pure Pass | X49: Calls Met | Y49: Calls Missed | Z49: OTA | AC49: Contact w/in 48hrs | AD49: Jobs | AE49: Fails | AF49: tNPS | AG49: Total Jobs | AH49: Total Comp | AL49: Ingress Test Ran | AM49: Tool Usage Jobs | AN49: Tool Usage | AO49: Tool Usage Rate | AP49: Number of Drops | AQ49: One Drop Usage | AR49: One Drop | AS49: Total Installs | AT49: Completed | AU49: Install Completion % | AV49: Total TC's | AW49: Completed | AX49: TC Completion % | BA49: Total Completion %
F50: Enrique Gabino | G50: =IFERROR(VLOOKUP($F50,'Florida Manager Performance'!$G$6:$AO$43,2,FALSE),"") -> 6.5 | H50: =VLOOKUP($F50,'Florida Manager Performance'!$G$6:$AO$43,5,FALSE) -> 0.896 | I50: =IFERROR(VLOOKUP($F50,'Florida Manager Performance'!$G$4:$AV$43,34,FALSE),"") -> 1 | J50: =IFERROR(VLOOKUP($F50,'Florida Manager Performance'!$G$6:$AN$41,25,FALSE),"") -> 1
F51: Eric Reneau | G51: =IFERROR(VLOOKUP($F51,'Beltway Manager Performance'!$G$6:$BD$43,2,FALSE),"") -> 6.5 | H51: =VLOOKUP($F51,'Beltway Manager Performance'!$G$6:$BD$44,5,FALSE) -> 0.893 | I51: =IFERROR(_xlfn.XLOOKUP($F51,'Beltway Manager Performance'!$G$23:$G$33,'Beltway Manager Performance'!$BF$23:$BF$33),"") -> 0.989 | J51: =IFERROR(_xlfn.XLOOKUP($F51,'Beltway Manager Performance'!$G$23:$G$33,'Beltway Manager Performance'!$AU$23:$AU$33),"") -> 0.949 | M51: Nashville, TN | N51: =IF(AU51="","",IFERROR(IF(Q51>=92%,3.5,0)+IF(AF51>=92.5%,3.5,0)+IF(AO51>=98.5%,3,0),"")) ->  | O51: =SUMIFS('NSR WO Details'!$AG:$AG,'NSR WO Details'!$H:$H,$M51,'NSR WO Details'!$AI:$AI,">="&$M$6,'NSR WO Details'!$AI:$AI,"<="&$N$6) -> 0 | P51: =COUNTIFS('FTR Detail'!$I:$I,$M51,'FTR Detail'!$AH:$AH,">="&$M$6,'FTR Detail'!$AH:$AH,"<="&$N$6) -> 0 | Q51: =IFERROR(1-(P51/O51),"") ->  | R51: =SUMIFS('NSR WO Details'!$AB:$AB,'NSR WO Details'!$H:$H,$M51,'NSR WO Details'!$AI:$AI,">="&$M$6,'NSR WO Details'!$AI:$AI,"<="&$N$6) -> 0 | S51: =SUMIFS('NSR WO Details'!$AC:$AC,'NSR WO Details'!$H:$H,$M51,'NSR WO Details'!$AI:$AI,">="&$M$6,'NSR WO Details'!$AI:$AI,"<="&$N$6) -> 0 | T51: =IFERROR(SUM(S51/R51),"") ->  | U51: =COUNTIFS('NSR WO Details'!$H:$H,$M51,'NSR WO Details'!$AD:$AD,"PASS_WITH_WARNINGS",'NSR WO Details'!$AI:$AI,">="&$M$6,'NSR WO Details'!$AI:$AI,"<="&$N$6)+COUNTIFS('NSR WO Details'!$H:$H,$M51,'NSR WO Details'!$AD:$AD,"PASS_WITH_OVERRIDES",'NSR WO Details'!$AI:$AI,">="&$M$6,'NSR WO Details'!$AI:$AI,"<="&$N$6) -> 0 | W51: =IFERROR(SUM(1-U51/S51),"") ->  | X51: =COUNTIFS('NSR WO Details'!$W:$W,"=MET",'NSR WO Details'!$H:$H,$M51,'NSR WO Details'!$AI:$AI,">="&$M$6,'NSR WO Details'!$AI:$AI,"<="&$N$6) -> 0 | Y51: =COUNTIFS('NSR WO Details'!$W:$W,"=Missed",'NSR WO Details'!$H:$H,$M51,'NSR WO Details'!$AI:$AI,">="&$M$6,'NSR WO Details'!$AI:$AI,"<="&$N$6) -> 0 | Z51: =IFERROR(SUM(X51/(X51+Y51)),"") ->  | AA51: =SUMIFS('NSR WO Details'!$AG:$AG,'NSR WO Details'!$H:$H,$M51,'NSR WO Details'!$AI:$AI,">="&$M$6,'NSR WO Details'!$AI:$AI,"<="&$N$6) -> 0 | AB51: =SUMIFS('NSR WO Details'!$AE:$AE,'NSR WO Details'!$H:$H,$M51,'NSR WO Details'!$AI:$AI,">="&$M$6,'NSR WO Details'!$AI:$AI,"<="&$N$6) -> 0 | AC51: =IFERROR(SUM(AB51/AA51),"") ->  | AD51: =SUMIFS('NSR WO Details'!$Z:$Z,'NSR WO Details'!$H:$H,$M51,'NSR WO Details'!$AI:$AI,">="&$M$6,'NSR WO Details'!$AI:$AI,"<="&$N$6) -> 0 | AE51: =SUMIFS('NSR WO Details'!$AA:$AA,'NSR WO Details'!$H:$H,$M51,'NSR WO Details'!$AI:$AI,">="&$M$6,'NSR WO Details'!$AI:$AI,"<="&$N$6) -> 0 | AF51: =IFERROR(SUM(AE51/AD51),"") ->  | AG51: =SUMIFS('Tool Usage Details'!$T:$T,'Tool Usage Details'!$H:$H,$M51,'Tool Usage Details'!$E:$E,">="&$M$6,'Tool Usage Details'!$E:$E,"<="&$N$6) -> 0 | AH51: =COUNTIFS('Tool Usage Details'!$H:$H,$M51,'Tool Usage Details'!$U:$U,"PASS",'Tool Usage Details'!$E:$E,">="&$M$6,'Tool Usage Details'!$E:$E,"<="&$N$6) -> 0 | AL51: =IFERROR(SUM(AH51/AG51),"") ->  | AM51: =SUMIFS('NSR WO Details'!$AK:$AK,'NSR WO Details'!$H:$H,$M51,'NSR WO Details'!$AI:$AI,">="&$M$6,'NSR WO Details'!$AI:$AI,"<="&$N$6) -> 0 | AN51: =SUMIFS('NSR WO Details'!$AL:$AL,'NSR WO Details'!$H:$H,$M51,'NSR WO Details'!$AI:$AI,">="&$M$6,'NSR WO Details'!$AI:$AI,"<="&$N$6) -> 0 | AO51: =IFERROR(SUM(AN51/AM51),"") ->  | AP51: =SUMIFS('One Drop'!$BV:$BV,'One Drop'!$BD:$BD,$M51,'One Drop'!$U:$U,">="&$M$6,'One Drop'!$U:$U,"<="&$N$6) -> 0 | AQ51: =SUMIFS('One Drop'!$BQ:$BQ,'One Drop'!$BD:$BD,$M51,'One Drop'!$U:$U,">="&$M$6,'One Drop'!$U:$U,"<="&$N$6) -> 0 | AR51: =IFERROR(SUM(AQ51/AP51),"") ->  | AS51: =SUMIFS(Completion!$CH:$CH,Completion!$BC:$BC,$M51,Completion!$L:$L,"INSTALL",Completion!$H:$H,">="&$M$6,Completion!$H:$H,"<="&$N$6) -> 0 | AT51: =SUMIFS(Completion!$BZ:$BZ,Completion!$BC:$BC,$M51,Completion!$L:$L,"INSTALL",Completion!$H:$H,">="&$M$6,Completion!$H:$H,"<="&$N$6) -> 0 | AU51: =IFERROR(SUM(AT51/AS51),"") ->  | AV51: =SUMIFS(Completion!$CH:$CH,Completion!$BC:$BC,$M51,Completion!$L:$L,"TC",Completion!$H:$H,">="&$M$6,Completion!$H:$H,"<="&$N$6) -> 0 | AW51: =SUMIFS(Completion!$BZ:$BZ,Completion!$BC:$BC,$M51,Completion!$L:$L,"TC",Completion!$H:$H,">="&$M$6,Completion!$H:$H,"<="&$N$6) -> 0 | AX51: =IFERROR(SUM(AW51/AV51),"") ->  | BA51: =IFERROR(SUM(AT51,AW51)/SUM(AS51,AV51),"") -> 
F52: Jeff Bradley | G52: =IFERROR(VLOOKUP($F52,'Beltway Manager Performance'!$G$6:$BD$43,2,FALSE),"") -> 3.5 | H52: =VLOOKUP($F52,'Beltway Manager Performance'!$G$6:$BD$44,5,FALSE) -> 0.926 | I52: =IFERROR(_xlfn.XLOOKUP($F52,'Beltway Manager Performance'!$G$23:$G$33,'Beltway Manager Performance'!$BF$23:$BF$33),"") -> 0.98 | J52: =IFERROR(_xlfn.XLOOKUP($F52,'Beltway Manager Performance'!$G$23:$G$33,'Beltway Manager Performance'!$AU$23:$AU$33),"") -> 0.9097 | M52: North Alabama | N52: =IF(AU52="","",IFERROR(IF(Q52>=92%,3.5,0)+IF(AF52>=92.5%,3.5,0)+IF(AO52>=98.5%,3,0),"")) ->  | O52: =SUMIFS('NSR WO Details'!$AG:$AG,'NSR WO Details'!$H:$H,$M52,'NSR WO Details'!$AI:$AI,">="&$M$6,'NSR WO Details'!$AI:$AI,"<="&$N$6) -> 0 | P52: =COUNTIFS('FTR Detail'!$I:$I,$M52,'FTR Detail'!$AH:$AH,">="&$M$6,'FTR Detail'!$AH:$AH,"<="&$N$6) -> 0 | Q52: =IFERROR(1-(P52/O52),"") ->  | R52: =SUMIFS('NSR WO Details'!$AB:$AB,'NSR WO Details'!$H:$H,$M52,'NSR WO Details'!$AI:$AI,">="&$M$6,'NSR WO Details'!$AI:$AI,"<="&$N$6) -> 0 | S52: =SUMIFS('NSR WO Details'!$AC:$AC,'NSR WO Details'!$H:$H,$M52,'NSR WO Details'!$AI:$AI,">="&$M$6,'NSR WO Details'!$AI:$AI,"<="&$N$6) -> 0 | T52: =IFERROR(SUM(S52/R52),"") ->  | U52: =COUNTIFS('NSR WO Details'!$H:$H,$M52,'NSR WO Details'!$AD:$AD,"PASS_WITH_WARNINGS",'NSR WO Details'!$AI:$AI,">="&$M$6,'NSR WO Details'!$AI:$AI,"<="&$N$6)+COUNTIFS('NSR WO Details'!$H:$H,$M52,'NSR WO Details'!$AD:$AD,"PASS_WITH_OVERRIDES",'NSR WO Details'!$AI:$AI,">="&$M$6,'NSR WO Details'!$AI:$AI,"<="&$N$6) -> 0 | W52: =IFERROR(SUM(1-U52/S52),"") ->  | X52: =COUNTIFS('NSR WO Details'!$W:$W,"=MET",'NSR WO Details'!$H:$H,$M52,'NSR WO Details'!$AI:$AI,">="&$M$6,'NSR WO Details'!$AI:$AI,"<="&$N$6) -> 0 | Y52: =COUNTIFS('NSR WO Details'!$W:$W,"=Missed",'NSR WO Details'!$H:$H,$M52,'NSR WO Details'!$AI:$AI,">="&$M$6,'NSR WO Details'!$AI:$AI,"<="&$N$6) -> 0 | Z52: =IFERROR(SUM(X52/(X52+Y52)),"") ->  | AA52: =SUMIFS('NSR WO Details'!$AG:$AG,'NSR WO Details'!$H:$H,$M52,'NSR WO Details'!$AI:$AI,">="&$M$6,'NSR WO Details'!$AI:$AI,"<="&$N$6) -> 0 | AB52: =SUMIFS('NSR WO Details'!$AE:$AE,'NSR WO Details'!$H:$H,$M52,'NSR WO Details'!$AI:$AI,">="&$M$6,'NSR WO Details'!$AI:$AI,"<="&$N$6) -> 0 | AC52: =IFERROR(SUM(AB52/AA52),"") ->  | AD52: =SUMIFS('NSR WO Details'!$Z:$Z,'NSR WO Details'!$H:$H,$M52,'NSR WO Details'!$AI:$AI,">="&$M$6,'NSR WO Details'!$AI:$AI,"<="&$N$6) -> 0 | AE52: =SUMIFS('NSR WO Details'!$AA:$AA,'NSR WO Details'!$H:$H,$M52,'NSR WO Details'!$AI:$AI,">="&$M$6,'NSR WO Details'!$AI:$AI,"<="&$N$6) -> 0 | AF52: =IFERROR(SUM(AE52/AD52),"") ->  | AG52: =SUMIFS('Tool Usage Details'!$T:$T,'Tool Usage Details'!$H:$H,$M52,'Tool Usage Details'!$E:$E,">="&$M$6,'Tool Usage Details'!$E:$E,"<="&$N$6) -> 0 | AH52: =COUNTIFS('Tool Usage Details'!$H:$H,$M52,'Tool Usage Details'!$U:$U,"PASS",'Tool Usage Details'!$E:$E,">="&$M$6,'Tool Usage Details'!$E:$E,"<="&$N$6) -> 0 | AL52: =IFERROR(SUM(AH52/AG52),"") ->  | AM52: =SUMIFS('NSR WO Details'!$AK:$AK,'NSR WO Details'!$H:$H,$M52,'NSR WO Details'!$AI:$AI,">="&$M$6,'NSR WO Details'!$AI:$AI,"<="&$N$6) -> 0 | AN52: =SUMIFS('NSR WO Details'!$AL:$AL,'NSR WO Details'!$H:$H,$M52,'NSR WO Details'!$AI:$AI,">="&$M$6,'NSR WO Details'!$AI:$AI,"<="&$N$6) -> 0 | AO52: =IFERROR(SUM(AN52/AM52),"") ->  | AP52: =SUMIFS('One Drop'!$BV:$BV,'One Drop'!$BD:$BD,$M52,'One Drop'!$U:$U,">="&$M$6,'One Drop'!$U:$U,"<="&$N$6) -> 0 | AQ52: =SUMIFS('One Drop'!$BQ:$BQ,'One Drop'!$BD:$BD,$M52,'One Drop'!$U:$U,">="&$M$6,'One Drop'!$U:$U,"<="&$N$6) -> 0 | AR52: =IFERROR(SUM(AQ52/AP52),"") ->  | AS52: =SUMIFS(Completion!$CH:$CH,Completion!$BC:$BC,$M52,Completion!$L:$L,"INSTALL",Completion!$H:$H,">="&$M$6,Completion!$H:$H,"<="&$N$6) -> 0 | AT52: =SUMIFS(Completion!$BZ:$BZ,Completion!$BC:$BC,$M52,Completion!$L:$L,"INSTALL",Completion!$H:$H,">="&$M$6,Completion!$H:$H,"<="&$N$6) -> 0 | AU52: =IFERROR(SUM(AT52/AS52),"") ->  | AV52: =SUMIFS(Completion!$CH:$CH,Completion!$BC:$BC,$M52,Completion!$L:$L,"TC",Completion!$H:$H,">="&$M$6,Completion!$H:$H,"<="&$N$6) -> 0 | AW52: =SUMIFS(Completion!$BZ:$BZ,Completion!$BC:$BC,$M52,Completion!$L:$L,"TC",Completion!$H:$H,">="&$M$6,Completion!$H:$H,"<="&$N$6) -> 0 | AX52: =IFERROR(SUM(AW52/AV52),"") ->  | BA52: =IFERROR(SUM(AT52,AW52)/SUM(AS52,AV52),"") -> 
F53: Melvin Gutierrez | G53: =IFERROR(VLOOKUP($F53,'Florida Manager Performance'!$G$6:$AO$43,2,FALSE),"") -> 3.5 | H53: =VLOOKUP($F53,'Florida Manager Performance'!$G$6:$AO$43,5,FALSE) -> 0.906 | I53: =IFERROR(VLOOKUP($F53,'Florida Manager Performance'!$G$4:$AV$43,34,FALSE),"") -> 0.981 | J53: =IFERROR(VLOOKUP($F53,'Florida Manager Performance'!$G$6:$AN$41,25,FALSE),"") -> 0.9273 | N53: Score | O53: Total Jobs | P53: Jobs FTR | Q53: FTR | R53: Total Job | S53: Pass | T53: PHT | U53: Pure Pass Fails | W53: PHT Pure Pass | X53: Calls Met | Y53: Calls Missed | Z53: OTA | AC53: Contact w/in 48hrs | AD53: Jobs | AE53: Fails | AF53: tNPS | AG53: Total Jobs | AH53: Total Comp | AL53: Ingress Test Ran | AM53: Tool Usage Jobs | AN53: Tool Usage | AO53: Tool Usage Rate | AP53: Number of Drops | AQ53: One Drop Usage | AR53: One Drop | AS53: Total Installs | AT53: Completed | AU53: Install Completion % | AV53: Total TC's | AW53: Completed | AX53: TC Completion % | BA53: Total Completion %
F54: Antwan Hopkins | G54: =IFERROR(VLOOKUP($F54,'Beltway Manager Performance'!$G$6:$BD$43,2,FALSE),"") -> 3.5 | H54: =VLOOKUP($F54,'Beltway Manager Performance'!$G$6:$BD$44,5,FALSE) -> 0.902 | I54: =IFERROR(_xlfn.XLOOKUP($F54,'Beltway Manager Performance'!$G$23:$G$33,'Beltway Manager Performance'!$BF$23:$BF$33),"") -> 0.966 | J54: =IFERROR(_xlfn.XLOOKUP($F54,'Beltway Manager Performance'!$G$23:$G$33,'Beltway Manager Performance'!$AU$23:$AU$33),"") -> 0.9344
F55: Stephen Vanhoose | G55: =IFERROR(VLOOKUP($F55,'Florida Manager Performance'!$G$6:$AO$43,2,FALSE),"") -> 3.5 | H55: =VLOOKUP($F55,'Florida Manager Performance'!$G$6:$AO$43,5,FALSE) -> 0.867 | I55: =IFERROR(VLOOKUP($F55,'Florida Manager Performance'!$G$4:$AV$43,34,FALSE),"") -> 0.984 | J55: =IFERROR(VLOOKUP($F55,'Florida Manager Performance'!$G$6:$AN$41,25,FALSE),"") -> 0.987 | M55: Big South | N55: =IF(AU55="","",IFERROR(IF(Q55>=92%,3.5,0)+IF(AF55>=92.5%,3.5,0)+IF(AO55>=98.5%,3,0),"")) ->  | O55: =SUMIFS('NSR WO Details'!$AG:$AG,'NSR WO Details'!$F:$F,"Big South",'NSR WO Details'!$AI:$AI,">="&$M$6,'NSR WO Details'!$AI:$AI,"<="&$N$6) -> 0 | P55: =COUNTIFS('FTR Detail'!$H:$H,"Big South",'FTR Detail'!$AH:$AH,">="&$M$6,'FTR Detail'!$AH:$AH,"<="&$N$6) -> 0 | Q55: =IFERROR(1-(P55/O55),"") ->  | R55: =SUM(R51:R52) -> 0 | S55: =SUM(S51:S52) -> 0 | T55: =IFERROR(SUM(S55/R55),"") ->  | U55: =SUM(U51:U52) -> 0 | W55: =IFERROR(SUM(1-U55/S55),"") ->  | X55: =SUM(X51:X52) -> 0 | Y55: =SUM(Y51:Y52) -> 0 | Z55: =IFERROR(SUM(X55/(X55+Y55)),"") ->  | AA55: =SUM(AA51:AA52) -> 0 | AB55: =SUM(AB51:AB52) -> 0 | AC55: =IFERROR(SUM(AB55/AA55),"") ->  | AD55: =SUMIFS('NSR WO Details'!$Z:$Z,'NSR WO Details'!$F:$F,"Big South",'NSR WO Details'!$AI:$AI,">="&$M$6,'NSR WO Details'!$AI:$AI,"<="&$N$6) -> 0 | AE55: =SUMIFS('NSR WO Details'!$AA:$AA,'NSR WO Details'!$F:$F,"Big South",'NSR WO Details'!$AI:$AI,">="&$M$6,'NSR WO Details'!$AI:$AI,"<="&$N$6) -> 0 | AF55: =IFERROR(SUM(AE55/AD55),"") ->  | AG55: =SUM(AG51:AG52) -> 0 | AH55: =SUM(AH51:AH52) -> 0 | AL55: =IFERROR(SUM(AH55/AG55),"") ->  | AM55: =SUMIFS('NSR WO Details'!$AK:$AK,'NSR WO Details'!$F:$F,"Big South",'NSR WO Details'!$AI:$AI,">="&$M$6,'NSR WO Details'!$AI:$AI,"<="&$N$6) -> 0 | AN55: =SUMIFS('NSR WO Details'!$AL:$AL,'NSR WO Details'!$F:$F,"Big South",'NSR WO Details'!$AI:$AI,">="&$M$6,'NSR WO Details'!$AI:$AI,"<="&$N$6) -> 0 | AO55: =IFERROR(SUM(AN55/AM55),"") ->  | AP55: =SUM(AP51:AP52) -> 0 | AQ55: =SUM(AQ51:AQ52) -> 0 | AR55: =IFERROR(SUM(AQ55/AP55),"") ->  | AS55: =SUM(AS51:AS52) -> 0 | AT55: =SUM(AT51:AT52) -> 0 | AU55: =IFERROR(SUM(AT55/AS55),"") ->  | AV55: =SUM(AV51:AV52) -> 0 | AW55: =SUM(AW51:AW52) -> 0 | AX55: =IFERROR(SUM(AW55/AV55),"") ->  | BA55: =IFERROR(SUM(AT55,AW55)/SUM(AS55,AV55),"") -> 
F56: Ulises Aguilera | G56: =IFERROR(VLOOKUP($F56,'Florida Manager Performance'!$G$6:$AO$43,2,FALSE),"") -> 3 | H56: =VLOOKUP($F56,'Florida Manager Performance'!$G$6:$AO$43,5,FALSE) -> 0.919 | I56: =IFERROR(VLOOKUP($F56,'Florida Manager Performance'!$G$4:$AV$43,34,FALSE),"") -> 0.991 | J56: =IFERROR(VLOOKUP($F56,'Florida Manager Performance'!$G$6:$AN$41,25,FALSE),"") -> 0.9191
F57: Alexander Fontes | G57: =IFERROR(VLOOKUP($F57,'Florida Manager Performance'!$G$6:$AO$43,2,FALSE),"") -> 3 | H57: =VLOOKUP($F57,'Florida Manager Performance'!$G$6:$AO$43,5,FALSE) -> 0.918 | I57: =IFERROR(VLOOKUP($F57,'Florida Manager Performance'!$G$4:$AV$43,34,FALSE),"") -> 0.986 | J57: =IFERROR(VLOOKUP($F57,'Florida Manager Performance'!$G$6:$AN$41,25,FALSE),"") -> 0.9057
F58: Rochard Jean | G58: =IFERROR(VLOOKUP($F58,'Florida Manager Performance'!$G$6:$AO$43,2,FALSE),"") -> 3 | H58: =VLOOKUP($F58,'Florida Manager Performance'!$G$6:$AO$43,5,FALSE) -> 0.906 | I58: =IFERROR(VLOOKUP($F58,'Florida Manager Performance'!$G$4:$AV$43,34,FALSE),"") -> 0.994 | J58: =IFERROR(VLOOKUP($F58,'Florida Manager Performance'!$G$6:$AN$41,25,FALSE),"") -> 0.9054 | M58: Keystone
F59: Alexandr Sviridov | G59: =IFERROR(VLOOKUP($F59,'Florida Manager Performance'!$G$6:$AO$43,2,FALSE),"") -> 3 | H59: =VLOOKUP($F59,'Florida Manager Performance'!$G$6:$AO$43,5,FALSE) -> 0.894 | I59: =IFERROR(VLOOKUP($F59,'Florida Manager Performance'!$G$4:$AV$43,34,FALSE),"") -> 0.992 | J59: =IFERROR(VLOOKUP($F59,'Florida Manager Performance'!$G$6:$AN$41,25,FALSE),"") -> 0.9122
F60: Roger Jones | G60: =IFERROR(VLOOKUP($F60,'Florida Manager Performance'!$G$6:$AO$43,2,FALSE),"") -> 3 | H60: =VLOOKUP($F60,'Florida Manager Performance'!$G$6:$AO$43,5,FALSE) -> 0.841 | I60: =IFERROR(VLOOKUP($F60,'Florida Manager Performance'!$G$4:$AV$43,34,FALSE),"") -> 1 | J60: =IFERROR(VLOOKUP($F60,'Florida Manager Performance'!$G$6:$AN$41,25,FALSE),"") -> 0.8571
F61: Luis Segarra | G61: =IFERROR(VLOOKUP($F61,'Beltway Manager Performance'!$G$6:$BD$43,2,FALSE),"") -> 0 | H61: =VLOOKUP($F61,'Beltway Manager Performance'!$G$6:$BD$44,5,FALSE) -> 0.907 | I61: =IFERROR(_xlfn.XLOOKUP($F61,'Beltway Manager Performance'!$G$23:$G$33,'Beltway Manager Performance'!$BF$23:$BF$33),"") -> 0.981 | J61: =IFERROR(_xlfn.XLOOKUP($F61,'Beltway Manager Performance'!$G$23:$G$33,'Beltway Manager Performance'!$AU$23:$AU$33),"") -> 0.9192 | W61: Start Date | Z61: =M19 -> 00:00:00 | AC61: End Date | AF61: =N19 -> 00:00:00
F62: Adiel Montesino | G62: =IFERROR(VLOOKUP($F62,'Florida Manager Performance'!$G$6:$AO$43,2,FALSE),"") -> 0 | H62: =VLOOKUP($F62,'Florida Manager Performance'!$G$6:$AO$43,5,FALSE) -> 0.903 | I62: =IFERROR(VLOOKUP($F62,'Florida Manager Performance'!$G$4:$AV$43,34,FALSE),"") -> 0.982 | J62: =IFERROR(VLOOKUP($F62,'Florida Manager Performance'!$G$6:$AN$41,25,FALSE),"") -> 0.8077 | M62: Office | N62: Score | O62: Total Jobs | P62: Jobs FTR | Q62: FTR | R62: Total Job | S62: Pass | T62: PHT | U62: Pure Pass Fails | W62: PHT Pure Pass | X62: Calls Met | Y62: Calls Missed | Z62: OTA | AC62: Contact w/in 48hrs | AD62: Jobs | AE62: Fails | AF62: tNPS | AG62: Total Jobs | AH62: Total Comp | AL62: Ingress Test Ran | AM62: Tool Usage Jobs | AN62: Tool Usage | AO62: Tool Usage Rate | AP62: Number of Drops | AQ62: One Drop Usage | AR62: One Drop | AS62: Total Installs | AT62: Completed | AU62: Install Completion % | AV62: Total TC's | AW62: Completed | AX62: TC Completion % | BA62: Total Completion %
F63: Hryhorii Novak | G63: =IFERROR(VLOOKUP($F63,'Florida Manager Performance'!$G$6:$AO$43,2,FALSE),"") -> 0 | H63: =VLOOKUP($F63,'Florida Manager Performance'!$G$6:$AO$43,5,FALSE) -> 0.897 | I63: =IFERROR(VLOOKUP($F63,'Florida Manager Performance'!$G$4:$AV$43,34,FALSE),"") -> 0.98 | J63: =IFERROR(VLOOKUP($F63,'Florida Manager Performance'!$G$6:$AN$41,25,FALSE),"") -> 0.8941
F64: Robert Harris | G64: =IFERROR(VLOOKUP($F64,'Florida Manager Performance'!$G$6:$AO$43,2,FALSE),"") -> 0 | H64: =VLOOKUP($F64,'Florida Manager Performance'!$G$6:$AO$43,5,FALSE) -> 0.894 | I64: =IFERROR(VLOOKUP($F64,'Florida Manager Performance'!$G$4:$AV$43,34,FALSE),"") -> 0.977 | J64: =IFERROR(VLOOKUP($F64,'Florida Manager Performance'!$G$6:$AN$41,25,FALSE),"") -> 0.9055 | M64: Keystone | N64: =IF(AU64="","",IFERROR(IF(Q64>=92%,3.5,0)+IF(AF64>=92.5%,3.5,0)+IF(AO64>=98.5%,3,0),"")) ->  | O64: =SUMIFS('NSR WO Details'!$AG:$AG,'NSR WO Details'!$F:$F,$M64,'NSR WO Details'!$AI:$AI,">="&$M$6,'NSR WO Details'!$AI:$AI,"<="&$N$6) -> 0 | P64: =COUNTIFS('FTR Detail'!$H:$H,$M64,'FTR Detail'!$AH:$AH,">="&$M$6,'FTR Detail'!$AH:$AH,"<="&$N$6) -> 0 | Q64: =IFERROR(1-(P64/O64),"") ->  | R64: =SUMIFS('NSR WO Details'!$AB:$AB,'NSR WO Details'!$F:$F,$M64,'NSR WO Details'!$AI:$AI,">="&$M$6,'NSR WO Details'!$AI:$AI,"<="&$N$6) -> 0 | S64: =SUMIFS('NSR WO Details'!$AC:$AC,'NSR WO Details'!$F:$F,$M64,'NSR WO Details'!$AI:$AI,">="&$M$6,'NSR WO Details'!$AI:$AI,"<="&$N$6) -> 0 | T64: =IFERROR(SUM(S64/R64),"") ->  | U64: =COUNTIFS('NSR WO Details'!$F:$F,$M64,'NSR WO Details'!$AD:$AD,"PASS_WITH_WARNINGS",'NSR WO Details'!$AI:$AI,">="&$M$6,'NSR WO Details'!$AI:$AI,"<="&$N$6)+COUNTIFS('NSR WO Details'!$F:$F,$M64,'NSR WO Details'!$AD:$AD,"PASS_WITH_OVERRIDES",'NSR WO Details'!$AI:$AI,">="&$M$6,'NSR WO Details'!$AI:$AI,"<="&$N$6) -> 0 | W64: =IFERROR(SUM(1-U64/S64),"") ->  | X64: =COUNTIFS('NSR WO Details'!$W:$W,"=MET",'NSR WO Details'!$F:$F,$M64,'NSR WO Details'!$AI:$AI,">="&$M$6,'NSR WO Details'!$AI:$AI,"<="&$N$6) -> 0 | Y64: =COUNTIFS('NSR WO Details'!$W:$W,"=Missed",'NSR WO Details'!$F:$F,$M64,'NSR WO Details'!$AI:$AI,">="&$M$6,'NSR WO Details'!$AI:$AI,"<="&$N$6) -> 0 | Z64: =IFERROR(SUM(X64/(X64+Y64)),"") ->  | AA64: =SUMIFS('NSR WO Details'!$AG:$AG,'NSR WO Details'!$F:$F,$M64,'NSR WO Details'!$AI:$AI,">="&$M$6,'NSR WO Details'!$AI:$AI,"<="&$N$6) -> 0 | AB64: =SUMIFS('NSR WO Details'!$AE:$AE,'NSR WO Details'!$F:$F,$M64,'NSR WO Details'!$AI:$AI,">="&$M$6,'NSR WO Details'!$AI:$AI,"<="&$N$6) -> 0 | AC64: =IFERROR(SUM(AB64/AA64),"") ->  | AD64: =SUMIFS('NSR WO Details'!$Z:$Z,'NSR WO Details'!$F:$F,$M64,'NSR WO Details'!$AI:$AI,">="&$M$6,'NSR WO Details'!$AI:$AI,"<="&$N$6) -> 0 | AE64: =SUMIFS('NSR WO Details'!$AA:$AA,'NSR WO Details'!$F:$F,$M64,'NSR WO Details'!$AI:$AI,">="&$M$6,'NSR WO Details'!$AI:$AI,"<="&$N$6) -> 0 | AF64: =IFERROR(SUM(AE64/AD64),"") ->  | AG64: =SUMIFS('Tool Usage Details'!$T:$T,'Tool Usage Details'!$G:$G,"Keystone Region",'Tool Usage Details'!$E:$E,">="&$M$6,'Tool Usage Details'!$E:$E,"<="&$N$6) -> 0 | AH64: =COUNTIFS('Tool Usage Details'!$G:$G,"Keystone Region",'Tool Usage Details'!$U:$U,"PASS",'Tool Usage Details'!$E:$E,">="&$M$6,'Tool Usage Details'!$E:$E,"<="&$N$6) -> 0 | AL64: =IFERROR(SUM(AH64/AG64),"") ->  | AM64: =SUMIFS('NSR WO Details'!$AK:$AK,'NSR WO Details'!$F:$F,$M64,'NSR WO Details'!$AI:$AI,">="&$M$6,'NSR WO Details'!$AI:$AI,"<="&$N$6) -> 0 | AN64: =SUMIFS('NSR WO Details'!$AL:$AL,'NSR WO Details'!$F:$F,$M64,'NSR WO Details'!$AI:$AI,">="&$M$6,'NSR WO Details'!$AI:$AI,"<="&$N$6) -> 0 | AO64: =IFERROR(SUM(AN64/AM64),"") ->  | AP64: =SUMIFS('One Drop'!$BV:$BV,'One Drop'!$BB:$BB,"Keystone Region",'One Drop'!$U:$U,">="&$M$6,'One Drop'!$U:$U,"<="&$N$6) -> 0 | AQ64: =SUMIFS('One Drop'!$BQ:$BQ,'One Drop'!$BB:$BB,"Keystone Region",'One Drop'!$U:$U,">="&$M$6,'One Drop'!$U:$U,"<="&$N$6) -> 0 | AR64: =IFERROR(SUM(AQ64/AP64),"") ->  | AS64: =SUMIFS(Completion!$CH:$CH,Completion!$E:$E,$M64,Completion!$L:$L,"INSTALL",Completion!$H:$H,">="&$M$6,Completion!$H:$H,"<="&$N$6) -> 0 | AT64: =SUMIFS(Completion!$BZ:$BZ,Completion!$E:$E,$M64,Completion!$L:$L,"INSTALL",Completion!$H:$H,">="&$M$6,Completion!$H:$H,"<="&$N$6) -> 0 | AU64: =IFERROR(SUM(AT64/AS64),"") ->  | AV64: =SUMIFS(Completion!$CH:$CH,Completion!$E:$E,$M64,Completion!$L:$L,"TC",Completion!$H:$H,">="&$M$6,Completion!$H:$H,"<="&$N$6) -> 0 | AW64: =SUMIFS(Completion!$BZ:$BZ,Completion!$E:$E,$M64,Completion!$L:$L,"TC",Completion!$H:$H,">="&$M$6,Completion!$H:$H,"<="&$N$6) -> 0 | AX64: =IFERROR(SUM(AW64/AV64),"") ->  | BA64: =IFERROR(SUM(AT64,AW64)/SUM(AS64,AV64),"") -> 
N65: Score | O65: Total Jobs | P65: Jobs FTR | Q65: FTR | R65: Total Job | S65: Pass | T65: PHT | U65: Pure Pass Fails | W65: PHT Pure Pass | X65: Calls Met | Y65: Calls Missed | Z65: OTA | AC65: Contact w/in 48hrs | AD65: Jobs | AE65: Fails | AF65: tNPS | AG65: Total Jobs | AH65: Total Comp | AL65: Ingress Test Ran | AM65: Tool Usage Jobs | AN65: Tool Usage | AO65: Tool Usage Rate | AP65: Number of Drops | AQ65: One Drop Usage | AR65: One Drop | AS65: Total Installs | AT65: Completed | AU65: Install Completion % | AV65: Total TC's | AW65: Completed | AX65: TC Completion % | BA65: Total Completion %
M67: Keystone Region | N67: =IF(AU67="","",IFERROR(IF(Q67>=92%,3.5,0)+IF(AF67>=92.5%,3.5,0)+IF(AO67>=98.5%,3,0),"")) ->  | O67: =SUMIFS('NSR WO Details'!$AG:$AG,'NSR WO Details'!$F:$F,"Keystone",'NSR WO Details'!$AI:$AI,">="&$M$6,'NSR WO Details'!$AI:$AI,"<="&$N$6) -> 0 | P67: =COUNTIFS('FTR Detail'!$H:$H,"Keystone",'FTR Detail'!$AH:$AH,">="&$M$6,'FTR Detail'!$AH:$AH,"<="&$N$6) -> 0 | Q67: =IFERROR(1-(P67/O67),"") ->  | R67: =SUM(R64:R64) -> 0 | S67: =SUM(S64:S64) -> 0 | T67: =IFERROR(SUM(S67/R67),"") ->  | U67: =SUM(U64:U64) -> 0 | W67: =IFERROR(SUM(1-U67/S67),"") ->  | X67: =SUM(X64:X64) -> 0 | Y67: =SUM(Y64:Y64) -> 0 | Z67: =IFERROR(SUM(X67/(X67+Y67)),"") ->  | AA67: =SUM(AA64:AA64) -> 0 | AB67: =SUM(AB64:AB64) -> 0 | AC67: =IFERROR(SUM(AB67/AA67),"") ->  | AD67: =SUMIFS('NSR WO Details'!$Z:$Z,'NSR WO Details'!$F:$F,"Keystone",'NSR WO Details'!$AI:$AI,">="&$M$6,'NSR WO Details'!$AI:$AI,"<="&$N$6) -> 0 | AE67: =SUMIFS('NSR WO Details'!$AA:$AA,'NSR WO Details'!$F:$F,"Keystone",'NSR WO Details'!$AI:$AI,">="&$M$6,'NSR WO Details'!$AI:$AI,"<="&$N$6) -> 0 | AF67: =IFERROR(SUM(AE67/AD67),"") ->  | AG67: =SUM(AG64:AG64) -> 0 | AH67: =SUM(AH64:AH64) -> 0 | AL67: =IFERROR(SUM(AH67/AG67),"") ->  | AM67: =SUMIFS('NSR WO Details'!$AK:$AK,'NSR WO Details'!$F:$F,"Keystone",'NSR WO Details'!$AI:$AI,">="&$M$6,'NSR WO Details'!$AI:$AI,"<="&$N$6) -> 0 | AN67: =SUMIFS('NSR WO Details'!$AL:$AL,'NSR WO Details'!$F:$F,"Keystone",'NSR WO Details'!$AI:$AI,">="&$M$6,'NSR WO Details'!$AI:$AI,"<="&$N$6) -> 0 | AO67: =IFERROR(SUM(AN67/AM67),"") ->  | AP67: =AP64 -> 0 | AQ67: =AQ64 -> 0 | AR67: =IFERROR(SUM(AQ67/AP67),"") ->  | AS67: =SUM(AS64:AS64) -> 0 | AT67: =SUM(AT64:AT64) -> 0 | AU67: =IFERROR(SUM(AT67/AS67),"") ->  | AV67: =SUM(AV64:AV64) -> 0 | AW67: =SUM(AW64:AW64) -> 0 | AX67: =IFERROR(SUM(AW67/AV67),"") ->  | BA67: =IFERROR(SUM(AT67,AW67)/SUM(AS67,AV67),"") -> 

Sheet Stretch Goal Challenge
B11: Home
F12: September Challenge
B13: Performance Metrics
B14: Florida
B15: West Palm Beach
B16: Treasure Coast
B17: Jacksonville
B18: Florida Panhandle | G18: ='CUI Manager Performance'!F3 -> Start Date:9/22/2024, End Date: 10/13/2024
B19: Lake Orlando | G19: Shop | H19: Score | I19: Total Jobs | J19: Jobs FTR | K19: FTR | N19: tNPS | O19: Tool Usage Jobs | P19: Tool Usage | Q19: Tool Usage Rate
B20: Drop Bury
B21: Low Performers | G21: West Palm Beach County | H21: =IF(Q21="","",IFERROR(IF(K21>=92.5%,3.5,0)+IF(N21>=94.5%,3.5,0)+IF(Q21>=99%,3,0),"")) -> 3 | I21: =SUMIF('NSR WO Details'!H:H,G21,'NSR WO Details'!AG:AG) -> 4888 | J21: =COUNTIF('FTR Detail'!I:I,G21) -> 450 | K21: =IFERROR(1-(J21/I21),"") -> 0.908 | L21: =SUMIF('NSR WO Details'!H:H,G21,'NSR WO Details'!Z:Z) -> 780 | M21: =SUMIF('NSR WO Details'!H:H,G21,'NSR WO Details'!AA:AA) -> 736 | N21: =IFERROR(SUM(M21/L21),"") -> 0.9436 | O21: =SUMIF('NSR WO Details'!H:H,G21,'NSR WO Details'!AK:AK) -> 3101 | P21: =SUMIF('NSR WO Details'!H:H,G21,'NSR WO Details'!AL:AL) -> 3071 | Q21: =IFERROR(SUM(P21/O21),"") -> 0.99
B22: Tech Rankings | G22: WEST PALM NORTH | H22: =IF(Q22="","",IFERROR(IF(K22>=92.5%,3.5,0)+IF(N22>=94.5%,3.5,0)+IF(Q22>=99%,3,0),"")) -> 0 | I22: =SUMIF('NSR WO Details'!H:H,G22,'NSR WO Details'!AG:AG) -> 1985 | J22: =COUNTIF('FTR Detail'!I:I,G22) -> 178 | K22: 0.91 | L22: =SUMIF('NSR WO Details'!H:H,G22,'NSR WO Details'!Z:Z) -> 314 | M22: =SUMIF('NSR WO Details'!H:H,G22,'NSR WO Details'!AA:AA) -> 286 | N22: =IFERROR(SUM(M22/L22),"") -> 0.9108 | O22: =SUMIF('NSR WO Details'!H:H,G22,'NSR WO Details'!AK:AK) -> 1268 | P22: =SUMIF('NSR WO Details'!H:H,G22,'NSR WO Details'!AL:AL) -> 1248 | Q22: =IFERROR(SUM(P22/O22),"") -> 0.984
B23: Tech Coaching Form | G23: Jacksonville, FL | H23: 3 | I23: =SUMIF('NSR WO Details'!H:H,G23,'NSR WO Details'!AG:AG) -> 6151 | J23: =COUNTIF('FTR Detail'!I:I,G23) -> 487 | K23: 0.921 | L23: =SUMIF('NSR WO Details'!H:H,G23,'NSR WO Details'!Z:Z) -> 1016 | M23: =SUMIF('NSR WO Details'!H:H,G23,'NSR WO Details'!AA:AA) -> 947 | N23: 0.9321 | O23: =SUMIF('NSR WO Details'!H:H,G23,'NSR WO Details'!AK:AK) -> 3381 | P23: =SUMIF('NSR WO Details'!H:H,G23,'NSR WO Details'!AL:AL) -> 3347 | Q23: 0.99
B24: Rework Summary | G24: Florida Panhandle | H24: 3 | I24: =SUMIF('NSR WO Details'!H:H,G24,'NSR WO Details'!AG:AG) -> 2134 | J24: =COUNTIF('FTR Detail'!I:I,G24) -> 175 | K24: 0.918 | L24: =SUMIF('NSR WO Details'!H:H,G24,'NSR WO Details'!Z:Z) -> 337 | M24: =SUMIF('NSR WO Details'!H:H,G24,'NSR WO Details'!AA:AA) -> 303 | N24: 0.8991 | O24: =SUMIF('NSR WO Details'!H:H,G24,'NSR WO Details'!AK:AK) -> 1524 | P24: =SUMIF('NSR WO Details'!H:H,G24,'NSR WO Details'!AL:AL) -> 1509 | Q24: 0.99
B25: FTR Rankings | G25: Lake/Orlando | H25: 3.5 | I25: =SUMIF('NSR WO Details'!H:H,G25,'NSR WO Details'!AG:AG) -> 1495 | J25: =COUNTIF('FTR Detail'!I:I,G25) -> 108 | K25: 0.928 | L25: =SUMIF('NSR WO Details'!H:H,G25,'NSR WO Details'!Z:Z) -> 286 | M25: =SUMIF('NSR WO Details'!H:H,G25,'NSR WO Details'!AA:AA) -> 258 | N25: 0.9021 | O25: =SUMIF('NSR WO Details'!H:H,G25,'NSR WO Details'!AK:AK) -> 1063 | P25: =SUMIF('NSR WO Details'!H:H,G25,'NSR WO Details'!AL:AL) -> 1048 | Q25: 0.986
B26: tNPS Rankings | G26: WPB/WPBN Combined | H26: 0 | I26: =SUM(I21:I22) -> 6873 | J26: =SUM(J21:J22) -> 628 | K26: 0.909 | L26: =SUM(L21:L22) -> 1094 | M26: =SUM(M21:M22) -> 1022 | N26: 0.9342 | O26: =O21+O22 -> 4369 | P26: =P21+P22 -> 4319 | Q26: 0.989
B27: Tool Usage Rankings | G27: NFL Combined | H27: 0 | I27: =SUM(I23:I25) -> 9780 | J27: =SUM(J23:J25) -> 770 | K27: 0.921 | L27: =SUM(L23:L25) -> 1639 | M27: =SUM(M23:M25) -> 1508 | N27: 0.9201 | O27: =SUM(O23:O25) -> 5968 | P27: =SUM(P23:P25) -> 5904 | Q27: 0.989
B28: T360 CNH Rannkings | H28: Score | I28: Total Jobs | J28: Jobs FTR | K28: FTR | N28: tNPS | O28: Tool Usage Jobs | P28: Tool Usage | Q28: Tool Usage Rate
B29: 48hr Callback Rankings
B30: Cancel Rate | G30: FLORIDA REGION | H30: =IF(Q30="","",IFERROR(IF(K30>=92.5%,3.5,0)+IF(N30>=94.5%,3.5,0)+IF(Q30>=99%,3,0),"")) -> 0 | I30: =SUMIF('NSR WO Details'!F:F,"Florida",'NSR WO Details'!AG:AG) -> 16653 | J30: =COUNTIF('FTR Detail'!H:H,"Florida") -> 1398 | K30: =IFERROR(1-(J30/I30),"") -> 0.916 | L30: =SUMIF('NSR WO Details'!F:F,"Florida",'NSR WO Details'!Z:Z) -> 2733 | M30: =SUMIF('NSR WO Details'!F:F,"Florida",'NSR WO Details'!AA:AA) -> 2530 | N30: =IFERROR(SUM(M30/L30),"") -> 0.9257 | O30: =SUMIF('NSR WO Details'!F:F,"Florida",'NSR WO Details'!AK:AK) -> 10337 | P30: =SUMIF('NSR WO Details'!F:F,"Florida",'NSR WO Details'!AL:AL) -> 10223 | Q30: =IFERROR(SUM(P30/O30),"") -> 0.989
B31: Partner Performance
B33: BP-OnTrac Reports

Sheet Florida Manager Performance
G3: ='CUI Manager Performance'!F3 -> Start Date:9/22/2024, End Date: 10/13/2024
G4: Shop | H4: Score | I4: Total Jobs | J4: Jobs FTR | K4: FTR | L4: Total Job | M4: Pass | N4: PHT | O4: Pure Pass Fails | P4: PHT Pure Pass | Q4: Calls Met | R4: Calls Missed | S4: OTA | V4: Contact w/in 48hrs | W4: Total Jobs | X4: Total invalid | Y4: % Valid RTM | Z4: Jobs | AA4: Pictures Uploaded | AB4: ML Bonding Compliance | AE4: tNPS | AF4: Total Jobs | AG4: Total Comp | AH4: Ingress Test Ran | AI4: Number of Drops | AJ4: One Drop Usage | AK4: One Drop | AL4: Tool Usage Jobs | AM4: Tool Usage | AN4: Tool Usage Rate | AO4: TC W/IN 30 Days of Bury | AP4: QB Audits | AQ4: QC Audits | AR4: % Techs >=2 QC/QB | AS4: QA % | AT4: Total Installs | AU4: Completed | AV4: Install Completion % | AW4: Total TC's | AX4: Completed | AY4: TC Completion % | AZ4: Total Completion % | BA4: TC's | BB4: TC Cancels | BC4: Cancel Rate | BD4: Not Home Jobs | BE4: CNH Initiate | BF4: T360 CNH
G6: West Palm Beach County | H6: =IF(AN6="","",IFERROR(IF(K6>=92%,3.5,0)+IF(AE6>=92.5%,3.5,0)+IF(AN6>=98.5%,3,0),"")) -> 6.5 | I6: =SUMIF('NSR WO Details'!H:H,G6,'NSR WO Details'!AG:AG) -> 4888 | J6: =COUNTIF('FTR Detail'!I:I,G6) -> 450 | K6: =IFERROR(1-(J6/I6),"") -> 0.908 | L6: =SUMIF('NSR WO Details'!$H:$H,$G6,'NSR WO Details'!$AB:$AB) -> 4343 | M6: =SUMIF('NSR WO Details'!$H:$H,$G6,'NSR WO Details'!$AC:$AC) -> 4104 | N6: =IFERROR(SUM(M6/L6),"") -> 0.945 | O6: =COUNTIFS('NSR WO Details'!$H:$H,$G6,'NSR WO Details'!$AD:$AD,"PASS_WITH_WARNINGS")+COUNTIFS('NSR WO Details'!$H:$H,$G6,'NSR WO Details'!$AD:$AD,"PASS_WITH_OVERRIDES") -> 48 | P6: =IFERROR(SUM(1-O6/M6),"") -> 0.9883 | Q6: =COUNTIFS('NSR WO Details'!$W:$W,"=MET",'NSR WO Details'!$H:$H,$G6) -> 5172 | R6: =COUNTIFS('NSR WO Details'!$W:$W,"=Missed",'NSR WO Details'!$H:$H,$G6) -> 169 | S6: =IFERROR(SUM(Q6/(Q6+R6)),"") -> 0.9684 | T6: =SUMIF('NSR WO Details'!$H:$H,$G6,'NSR WO Details'!$AG:$AG) -> 4888 | U6: =SUMIF('NSR WO Details'!$H:$H,$G6,'NSR WO Details'!$AE:$AE) -> 385 | V6: =IFERROR(SUM(U6/T6),"") -> 0.079 | W6: =SUMIFS('RTM Results'!$AT:$AT,'RTM Results'!$R:$R,"WEST PALM CENTRAL") -> 117 | X6: =SUMIFS('RTM Results'!$AP:$AP,'RTM Results'!$R:$R,"WEST PALM CENTRAL") -> 8 | Y6: =IFERROR(1-(SUM(X6/W6)),"") -> 0.932 | Z6: =SUM(Z19:Z25) -> 3850 | AA6: =SUM(AA19:AA25) -> 447 | AB6: =IFERROR(SUM(AA6/Z6),"") -> 0.1161 | AC6: =SUMIF('NSR WO Details'!H:H,G6,'NSR WO Details'!Z:Z) -> 780 | AD6: =SUMIF('NSR WO Details'!H:H,G6,'NSR WO Details'!AA:AA) -> 736 | AE6: =IFERROR(SUM(AD6/AC6),"") -> 0.9436 | AF6: =SUM(AF19:AF25) -> 4003 | AG6: =SUM(AG19:AG25) -> 3980 | AH6: =IFERROR(SUM(AG6/AF6),"") -> 0.9943 | AI6: =SUM(AI19:AI25)+'Drop Bury'!L68 -> 748 | AJ6: =SUM(AJ19:AJ25)+'Drop Bury'!M68 -> 701 | AK6: =IFERROR(SUM(AJ6/AI6),"") -> 0.9372 | AL6: =SUMIF('NSR WO Details'!H:H,G6,'NSR WO Details'!AK:AK) -> 3101 | AM6: =SUMIF('NSR WO Details'!H:H,G6,'NSR WO Details'!AL:AL) -> 3071 | AN6: =IFERROR(SUM(AM6/AL6),"") -> 0.99 | AO6: =IFERROR(SUMIF('TC Post Bury Rate'!N:N,G6,'TC Post Bury Rate'!DC:DC)/SUMIF('TC Post Bury Rate'!N:N,G6,'TC Post Bury Rate'!AL:AL),"") -> 0.0686 | AP6: =SUM(AO19:AO25) -> 124 | AQ6: =SUM(AP19:AP25) -> 233 | AR6: =IFERROR(SUM('West Palm Beach'!BD8:BD19,'West Palm Beach'!BD29:BD56,'West Palm Beach'!BD67:BD78,'West Palm Beach'!BD88:BD118,'West Palm Beach'!BD128:BD155,'West Palm Beach'!BD165:BD184)/(COUNTIF('West Palm Beach'!I8:I19,">=10")+COUNTIF('West Palm Beach'!I29:I56,">=10")+COUNTIF('West Palm Beach'!I67:I78,">=10")+COUNTIF('West Palm Beach'!I88:I118,">=10")+COUNTIF('West Palm Beach'!I128:I155,">=10")+COUNTIF('West Palm Beach'!I165:I184,">=10")),"") -> 0.3415 | AS6: =IFERROR(SUM(AQ6/I6),"") -> 0.0477 | AT6: =SUM(AT19:AT25) -> 2928 | AU6: =SUM(AU19:AU25) -> 2311 | AV6: =IFERROR(SUM(AU6/AT6),"") -> 0.7893 | AW6: =SUM(AW19:AW25) -> 4613 | AX6: =SUM(AX19:AX25) -> 4003 | AY6: =IFERROR(SUM(AX6/AW6),"") -> 0.8678 | AZ6: =IFERROR(SUM(AU6,AX6)/SUM(AT6,AW6),"") -> 0.8373 | BA6: =SUM(BA19:BA25) -> 4311 | BB6: =SUM(BB19:BB25) -> 251 | BC6: =BB6/BA6 -> 0.0582 | BD6: =SUM(BD19:BD25) -> 312 | BE6: =SUM(BE19:BE25) -> 293 | BF6: =IFERROR(SUM(BE6/BD6),"") -> 0.939
G7: WEST PALM NORTH | H7: =IF(AN7="","",IFERROR(IF(K7>=92%,3.5,0)+IF(AE7>=92.5%,3.5,0)+IF(AN7>=98.5%,3,0),"")) -> 0 | I7: =SUMIF('NSR WO Details'!H:H,G7,'NSR WO Details'!AG:AG) -> 1985 | J7: =COUNTIF('FTR Detail'!I:I,G7) -> 178 | K7: 0.91 | L7: =SUMIF('NSR WO Details'!$H:$H,$G7,'NSR WO Details'!$AB:$AB) -> 1560 | M7: =SUMIF('NSR WO Details'!$H:$H,$G7,'NSR WO Details'!$AC:$AC) -> 1510 | N7: =IFERROR(SUM(M7/L7),"") -> 0.9679 | O7: =COUNTIFS('NSR WO Details'!$H:$H,$G7,'NSR WO Details'!$AD:$AD,"PASS_WITH_WARNINGS")+COUNTIFS('NSR WO Details'!$H:$H,$G7,'NSR WO Details'!$AD:$AD,"PASS_WITH_OVERRIDES") -> 16 | P7: =IFERROR(SUM(1-O7/M7),"") -> 0.9894 | Q7: =COUNTIFS('NSR WO Details'!$W:$W,"=MET",'NSR WO Details'!$H:$H,$G7) -> 1989 | R7: =COUNTIFS('NSR WO Details'!$W:$W,"=Missed",'NSR WO Details'!$H:$H,$G7) -> 149 | S7: =IFERROR(SUM(Q7/(Q7+R7)),"") -> 0.9303 | T7: =SUMIF('NSR WO Details'!$H:$H,$G7,'NSR WO Details'!$AG:$AG) -> 1985 | U7: =SUMIF('NSR WO Details'!$H:$H,$G7,'NSR WO Details'!$AE:$AE) -> 169 | V7: =IFERROR(SUM(U7/T7),"") -> 0.085 | W7: =SUMIFS('RTM Results'!$AT:$AT,'RTM Results'!$R:$R,"WEST PALM NORTH") -> 42 | X7: =SUMIFS('RTM Results'!$AP:$AP,'RTM Results'!$R:$R,"WEST PALM NORTH") -> 2 | Y7: =IFERROR(1-(SUM(X7/W7)),"") -> 0.952 | Z7: =SUM(Z26:Z28) -> 1358 | AA7: =SUM(AA26:AA28) -> 230 | AB7: 0.1694 | AC7: =SUMIF('NSR WO Details'!H:H,G7,'NSR WO Details'!Z:Z) -> 314 | AD7: =SUMIF('NSR WO Details'!H:H,G7,'NSR WO Details'!AA:AA) -> 286 | AE7: =IFERROR(SUM(AD7/AC7),"") -> 0.9108 | AF7: =SUM(AF26:AF28) -> 1739 | AG7: =SUM(AG26:AG28) -> 1718 | AH7: 0.9879 | AI7: =SUM(AI26:AI28) -> 430 | AJ7: =SUM(AJ26:AJ28) -> 429 | AK7: =IFERROR(SUM(AJ7/AI7),"") -> 0.9977 | AL7: =SUMIF('NSR WO Details'!H:H,G7,'NSR WO Details'!AK:AK) -> 1268 | AM7: =SUMIF('NSR WO Details'!H:H,G7,'NSR WO Details'!AL:AL) -> 1248 | AN7: =IFERROR(SUM(AM7/AL7),"") -> 0.984 | AO7: =IFERROR(SUMIF('TC Post Bury Rate'!N:N,G7,'TC Post Bury Rate'!DC:DC)/SUMIF('TC Post Bury Rate'!N:N,G7,'TC Post Bury Rate'!AL:AL),"") -> 0.0699 | AP7: =SUM(AO26:AO28) -> 67 | AQ7: =SUM(AP26:AP28) -> 73 | AR7: =IFERROR(SUM('Treasure Coast'!BD9:BD28,'Treasure Coast'!BD38:BD59)/(COUNTIF('Treasure Coast'!I9:I28,">=10")+COUNTIF('Treasure Coast'!I38:I59,">=10")),"") -> 0.5667 | AS7: =IFERROR(SUM(AQ7/I7),"") -> 0.0368 | AT7: =SUM(AW26:AW28) -> 1426 | AU7: =SUM(AX26:AX28) -> 1192 | AV7: 0.8359 | AW7: =SUM(AW26:AW28) -> 1426 | AX7: =SUM(AX26:AX28) -> 1192 | AY7: =IFERROR(SUM(AX7/AW7),"") -> 0.8359 | AZ7: =IFERROR(SUM(AU7,AX7)/SUM(AT7,AW7),"") -> 0.8359 | BA7: =SUM(BA26:BA28) -> 1426 | BB7: =SUM(BB26:BB28) -> 95 | BC7: =BB7/BA7 -> 0.0666 | BD7: =SUM(BD26:BD28) -> 75 | BE7: =SUM(BE26:BE28) -> 72 | BF7: 0.96
G8: Jacksonville, FL | H8: 10 | I8: =SUMIF('NSR WO Details'!H:H,G8,'NSR WO Details'!AG:AG) -> 6151 | J8: =COUNTIF('FTR Detail'!I:I,G8) -> 487 | K8: 0.921 | L8: =SUMIF('NSR WO Details'!$H:$H,$G8,'NSR WO Details'!$AB:$AB) -> 4024 | M8: =SUMIF('NSR WO Details'!$H:$H,$G8,'NSR WO Details'!$AC:$AC) -> 3953 | N8: 0.9824 | O8: =COUNTIFS('NSR WO Details'!$H:$H,$G8,'NSR WO Details'!$AD:$AD,"PASS_WITH_WARNINGS")+COUNTIFS('NSR WO Details'!$H:$H,$G8,'NSR WO Details'!$AD:$AD,"PASS_WITH_OVERRIDES") -> 24 | P8: 0.9939 | Q8: =COUNTIFS('NSR WO Details'!$W:$W,"=MET",'NSR WO Details'!$H:$H,$G8) -> 6039 | R8: =COUNTIFS('NSR WO Details'!$W:$W,"=Missed",'NSR WO Details'!$H:$H,$G8) -> 532 | S8: 0.919 | T8: =SUMIF('NSR WO Details'!$H:$H,$G8,'NSR WO Details'!$AG:$AG) -> 6151 | U8: =SUMIF('NSR WO Details'!$H:$H,$G8,'NSR WO Details'!$AE:$AE) -> 518 | V8: 0.084 | W8: =SUMIFS('RTM Results'!$AT:$AT,'RTM Results'!$R:$R,G8) -> 336 | X8: =SUMIFS('RTM Results'!$AP:$AP,'RTM Results'!$R:$R,G8) -> 22 | Y8: 0.935 | Z8: =SUM(Z29:Z35) -> 4660 | AA8: =SUM(AA29:AA35) -> 330 | AB8: 0.0708 | AC8: =SUMIF('NSR WO Details'!H:H,G8,'NSR WO Details'!Z:Z) -> 1016 | AD8: =SUMIF('NSR WO Details'!H:H,G8,'NSR WO Details'!AA:AA) -> 947 | AE8: 0.9321 | AF8: =SUM(AF29:AF35) -> 3404 | AG8: =SUM(AG29:AG35) -> 3383 | AH8: 0.9938 | AI8: =SUM(AI29:AI35)+'Drop Bury'!L141 -> 795 | AJ8: =SUM(AJ29:AJ35)+'Drop Bury'!M141 -> 776 | AK8: 0.9761 | AL8: =SUMIF('NSR WO Details'!H:H,G8,'NSR WO Details'!AK:AK) -> 3381 | AM8: =SUMIF('NSR WO Details'!H:H,G8,'NSR WO Details'!AL:AL) -> 3347 | AN8: 0.99 | AO8: =IFERROR(SUMIF('TC Post Bury Rate'!N:N,G8,'TC Post Bury Rate'!DC:DC)/SUMIF('TC Post Bury Rate'!N:N,G8,'TC Post Bury Rate'!AL:AL),"") -> 0.0538 | AP8: =SUM(AO29:AO35) -> 40 | AQ8: =SUM(AP29:AP35) -> 127 | AR8: =IFERROR(SUM(Jacksonville!BD8:BD20,Jacksonville!BD30:BD54,Jacksonville!BD64:BD74,Jacksonville!BD84:BD92,Jacksonville!BD102:BD120,Jacksonville!BD130:BD153)/(COUNTIF(Jacksonville!I8:I20,">=10")+COUNTIF(Jacksonville!I30:I54,">=10")+COUNTIF(Jacksonville!I64:I74,">=10")+COUNTIF(Jacksonville!I84:I92,">=10")+COUNTIF(Jacksonville!I102:I120,">=10")+COUNTIF(Jacksonville!I130:I153,">=10")),"") -> 0.1232 | AS8: =IFERROR(SUM(AQ8/I8),"") -> 0.0206 | AT8: =SUM(AT29:AT35) -> 3123 | AU8: =SUM(AU29:AU35) -> 2448 | AV8: 0.7839 | AW8: =SUM(AW29:AW35) -> 4555 | AX8: =SUM(AX29:AX35) -> 3915 | AY8: 0.8595 | AZ8: 0.8287 | BA8: =SUM(BA29:BA35) -> 4555 | BB8: =SUM(BB29:BB35) -> 275 | BC8: 0.0604 | BD8: =SUM(BD29:BD35) -> 325 | BE8: =SUM(BE29:BE35) -> 289 | BF8: 0.889 | BG8: Total Appointments | BH8: Total Drop SRO's
G9: Florida Panhandle | H9: 3 | I9: =SUMIF('NSR WO Details'!H:H,G9,'NSR WO Details'!AG:AG) -> 2134 | J9: =COUNTIF('FTR Detail'!I:I,G9) -> 175 | K9: 0.918 | L9: =SUMIF('NSR WO Details'!$H:$H,$G9,'NSR WO Details'!$AB:$AB) -> 1936 | M9: =SUMIF('NSR WO Details'!$H:$H,$G9,'NSR WO Details'!$AC:$AC) -> 1834 | N9: 0.9473 | O9: =COUNTIFS('NSR WO Details'!$H:$H,$G9,'NSR WO Details'!$AD:$AD,"PASS_WITH_WARNINGS")+COUNTIFS('NSR WO Details'!$H:$H,$G9,'NSR WO Details'!$AD:$AD,"PASS_WITH_OVERRIDES") -> 24 | P9: 0.9869 | Q9: =COUNTIFS('NSR WO Details'!$W:$W,"=MET",'NSR WO Details'!$H:$H,$G9) -> 2199 | R9: =COUNTIFS('NSR WO Details'!$W:$W,"=Missed",'NSR WO Details'!$H:$H,$G9) -> 93 | S9: 0.9594 | T9: =SUMIF('NSR WO Details'!$H:$H,$G9,'NSR WO Details'!$AG:$AG) -> 2134 | U9: =SUMIF('NSR WO Details'!$H:$H,$G9,'NSR WO Details'!$AE:$AE) -> 158 | V9: 0.074 | W9: =SUMIFS('RTM Results'!$AT:$AT,'RTM Results'!$R:$R,"TALLAHASSEE") -> 114 | X9: =SUMIFS('RTM Results'!$AP:$AP,'RTM Results'!$R:$R,"TALLAHASSEE") -> 11 | Y9: 0.904 | Z9: =SUM(Z36:Z37) -> 410 | AA9: =SUM(AA36:AA37) -> 48 | AB9: 0.1171 | AC9: =SUMIF('NSR WO Details'!H:H,G9,'NSR WO Details'!Z:Z) -> 337 | AD9: =SUMIF('NSR WO Details'!H:H,G9,'NSR WO Details'!AA:AA) -> 303 | AE9: 0.8991 | AF9: =SUM(AF36:AF37) -> 355 | AG9: =SUM(AG36:AG37) -> 354 | AH9: 0.9972 | AI9: =SUM(AI36:AI37)+'Drop Bury'!L102 -> 47 | AJ9: =SUM(AJ36:AJ37)+'Drop Bury'!M102 -> 40 | AK9: 0.8511 | AL9: =SUMIF('NSR WO Details'!H:H,G9,'NSR WO Details'!AK:AK) -> 1524 | AM9: =SUMIF('NSR WO Details'!H:H,G9,'NSR WO Details'!AL:AL) -> 1509 | AN9: 0.99 | AO9: =IFERROR(SUMIF('TC Post Bury Rate'!N:N,G9,'TC Post Bury Rate'!DC:DC)/SUMIF('TC Post Bury Rate'!N:N,G9,'TC Post Bury Rate'!AL:AL),"") -> 0.0377 | AP9: =SUM(AO36:AO37) -> 30 | AQ9: =SUM(AP36:AP37) -> 30 | AR9: =IFERROR(SUM('Florida Panhandle'!BD8:BD32,'Florida Panhandle'!BD42:BD66)/(COUNTIF('Florida Panhandle'!I8:I32,">=10")+COUNTIF('Florida Panhandle'!I42:I66,">=10")),"") -> 0 | AS9: =IFERROR(SUM(AQ9/I9),"") -> 0.0141 | AT9: =SUM(AT36:AT37) -> 293 | AU9: =SUM(AU36:AU37) -> 225 | AV9: 0.7679 | AW9: =SUM(AW36:AW37) -> 366 | AX9: =SUM(AX36:AX37) -> 302 | AY9: =IFERROR(SUM(AX9/AW9),"") -> 0.8251 | AZ9: =IFERROR(SUM(AU9,AX9)/SUM(AT9,AW9),"") -> 0.7997 | BA9: =SUM(BA36:BA37) -> 366 | BB9: =SUM(BB36:BB37) -> 17 | BC9: 0.0464 | BD9: =SUM(BD36:BD37) -> 27 | BE9: =SUM(BE36:BE37) -> 19 | BF9: 0.704 | BG9: =SUM(I19:I40) -> 16162 | BH9: =COUNTIFS('NSR WO Details'!$P:$P,"SRO",'NSR WO Details'!$Q:$Q,"JS")+COUNTIFS('NSR WO Details'!$P:$P,"SRO",'NSR WO Details'!$Q:$Q,"YY") -> 8021
G10: Lake/Orlando | H10: 6.5 | I10: =SUMIF('NSR WO Details'!H:H,G10,'NSR WO Details'!AG:AG) -> 1495 | J10: =COUNTIF('FTR Detail'!I:I,G10) -> 108 | K10: 0.928 | L10: =SUMIF('NSR WO Details'!$H:$H,$G10,'NSR WO Details'!$AB:$AB) -> 1491 | M10: =SUMIF('NSR WO Details'!$H:$H,$G10,'NSR WO Details'!$AC:$AC) -> 1436 | N10: 0.9631 | O10: =COUNTIFS('NSR WO Details'!$H:$H,$G10,'NSR WO Details'!$AD:$AD,"PASS_WITH_WARNINGS")+COUNTIFS('NSR WO Details'!$H:$H,$G10,'NSR WO Details'!$AD:$AD,"PASS_WITH_OVERRIDES") -> 16 | P10: 0.9889 | Q10: =COUNTIFS('NSR WO Details'!$W:$W,"=MET",'NSR WO Details'!$H:$H,$G10) -> 1569 | R10: =COUNTIFS('NSR WO Details'!$W:$W,"=Missed",'NSR WO Details'!$H:$H,$G10) -> 54 | S10: 0.9667 | T10: =SUMIF('NSR WO Details'!$H:$H,$G10,'NSR WO Details'!$AG:$AG) -> 1495 | U10: =SUMIF('NSR WO Details'!$H:$H,$G10,'NSR WO Details'!$AE:$AE) -> 135 | V10: 0.09 | W10: =SUMIFS('RTM Results'!$AT:$AT,'RTM Results'!$R:$R,"LAKE COUNTY") -> 60 | X10: =SUMIFS('RTM Results'!$AP:$AP,'RTM Results'!$R:$R,"LAKE COUNTY") -> 3 | Y10: 0.95 | Z10: =SUM(Z38:Z40) -> 1069 | AA10: =SUM(AA38:AA40) -> 4 | AB10: 0.0037 | AC10: =SUMIF('NSR WO Details'!H:H,G10,'NSR WO Details'!Z:Z) -> 286 | AD10: =SUMIF('NSR WO Details'!H:H,G10,'NSR WO Details'!AA:AA) -> 258 | AE10: 0.9021 | AF10: =SUM(AF38:AF40) -> 963 | AG10: =SUM(AG38:AG40) -> 957 | AH10: 0.9938 | AI10: =SUM(AI38:AI40)+'Drop Bury'!L141 -> 279 | AJ10: =SUM(AJ38:AJ40)+'Drop Bury'!M141 -> 262 | AK10: 0.9391 | AL10: =SUMIF('NSR WO Details'!H:H,G10,'NSR WO Details'!AK:AK) -> 1063 | AM10: =SUMIF('NSR WO Details'!H:H,G10,'NSR WO Details'!AL:AL) -> 1048 | AN10: 0.986 | AO10: =IFERROR(SUMIF('TC Post Bury Rate'!N:N,G10,'TC Post Bury Rate'!DC:DC)/SUMIF('TC Post Bury Rate'!N:N,G10,'TC Post Bury Rate'!AL:AL),"") -> 0.0429 | AP10: =SUM(AO38:AO40) -> 2 | AQ10: =SUM(AP38:AP40) -> 3 | AR10: =IFERROR(SUM('Lake-Orlando'!BD8:BD28,'Lake-Orlando'!BD38:BD50)/(COUNTIF('Lake-Orlando'!I8:I28,">=10")+COUNTIF('Lake-Orlando'!I38:I50,">=10")),"") -> 0.0938 | AS10: =IFERROR(SUM(AQ10/I10),"") -> 0.002 | AT10: =SUM(AT38:AT40) -> 860 | AU10: =SUM(AU38:AU40) -> 648 | AV10: 0.7535 | AW10: =SUM(AW38:AW40) -> 812 | AX10: =SUM(AX38:AX40) -> 714 | AY10: =IFERROR(SUM(AX10/AW10),"") -> 0.8793 | AZ10: =IFERROR(SUM(AU10,AX10)/SUM(AT10,AW10),"") -> 0.8146 | BA10: =SUM(BA38:BA40) -> 838 | BB10: =SUM(BB38:BB40) -> 53 | BC10: 0.0632 | BD10: =SUM(BD38:BD41) -> 67 | BE10: =SUM(BE38:BE41) -> 66 | BF10: 0.985
B11: Home | G11: WPB/WPBN Combined | H11: 6.5 | I11: =SUM(I6:I7) -> 6873 | J11: =SUM(J6:J7) -> 628 | K11: 0.909 | L11: =SUM(L6:L7) -> 5903 | M11: =SUM(M6:M7) -> 5614 | N11: 0.951 | O11: =SUM(O6:O7) -> 64 | P11: 0.9886 | Q11: =SUM(Q6:Q7) -> 7161 | R11: =SUM(R6:R7) -> 318 | S11: 0.9575 | T11: =SUM(T6:T7) -> 6873 | U11: =SUM(U6:U7) -> 554 | V11: 0.081 | W11: =SUM(W6:W7) -> 159 | X11: =SUM(X6:X7) -> 10 | Y11: 0.937 | Z11: =SUM(Z6:Z7) -> 5208 | AA11: =SUM(AA6:AA7) -> 677 | AB11: 0.13 | AC11: =SUM(AC6:AC7) -> 1094 | AD11: =SUM(AD6:AD7) -> 1022 | AE11: 0.9342 | AF11: =SUM(AF6:AF7) -> 5742 | AG11: =SUM(AG6:AG7) -> 5698 | AH11: 0.9923 | AI11: =SUM(AI6:AI7) -> 1178 | AJ11: =SUM(AJ6:AJ7) -> 1130 | AK11: 0.9593 | AL11: =AL6+AL7 -> 4369 | AM11: =AM6+AM7 -> 4319 | AN11: 0.989
G12: NFL Combined | H12: 6.5 | I12: =SUM(I8:I10) -> 9780 | J12: =SUM(J8:J10) -> 770 | K12: 0.921 | L12: =SUM(L8:L10) -> 7451 | M12: =SUM(M8:M10) -> 7223 | N12: 0.9694 | O12: =SUM(O8:O10) -> 64 | P12: 0.9911 | Q12: =SUM(Q8:Q10) -> 9807 | R12: =SUM(R8:R10) -> 679 | S12: 0.9352 | T12: =SUM(T8:T10) -> 9780 | U12: =SUM(U8:U10) -> 811 | V12: 0.083 | W12: =SUM(W8:W10) -> 510 | X12: =SUM(X8:X10) -> 36 | Y12: 0.929 | Z12: =SUM(Z8:Z10) -> 6139 | AA12: =SUM(AA8:AA10) -> 382 | AB12: 0.0622 | AC12: =SUM(AC8:AC10) -> 1639 | AD12: =SUM(AD8:AD10) -> 1508 | AE12: 0.9201 | AF12: =SUM(AF8:AF10) -> 4722 | AG12: =SUM(AG8:AG10) -> 4694 | AH12: 0.9941 | AI12: =SUM(AI8:AI10) -> 1121 | AJ12: =SUM(AJ8:AJ10) -> 1078 | AK12: 0.9616 | AL12: =SUM(AL8:AL10) -> 5968 | AM12: =SUM(AM8:AM10) -> 5904 | AN12: 0.989
B13: Performance Metrics | H13: Score | I13: Total Jobs | J13: Jobs FTR | K13: FTR | L13: Total Job | M13: Pass | N13: PHT | O13: Pure Pass Fails | P13: PHT Pure Pass | Q13: Calls Met | R13: Calls Missed | S13: OTA | V13: Contact w/in 48hrs | W13: Total Jobs | X13: Total invalid | Y13: % Valid RTM | Z13: Jobs | AA13: Pictures Uploaded | AB13: ML Bonding Compliance | AE13: tNPS | AF13: Total Jobs | AG13: Total Comp | AH13: Ingress Test Ran | AI13: Number of Drops | AJ13: One Drop Usage | AK13: One Drop | AL13: Tool Usage Jobs | AM13: Tool Usage | AN13: Tool Usage Rate | AO13: TC W/IN 30 Days of Bury | AP13: Fulfillment QC | AQ13: Drop Bury QC | AR13: % Techs >=2 QC's | AS13: Total QC | AT13: Total Installs | AU13: Completed | AV13: Install Completion % | AW13: Total TC's | AX13: Completed | AY13: TC Completion % | AZ13: Total Completion % | BA13: TC's | BB13: TC Cancels | BC13: Cancel Rate | BD13: Not Home Jobs | BE13: CNH Initiate | BF13: T360 CNH
B14: Florida
B15: West Palm Beach | G15: FLORIDA REGION | H15: =IF(AN15="","",IFERROR(IF(K15>=92%,3.5,0)+IF(AE15>=92.5%,3.5,0)+IF(AN15>=98.5%,3,0),"")) -> 6.5 | I15: =SUMIF('NSR WO Details'!F:F,"Florida",'NSR WO Details'!AG:AG) -> 16653 | J15: =COUNTIF('FTR Detail'!H:H,"Florida") -> 1398 | K15: =IFERROR(1-(J15/I15),"") -> 0.916 | L15: =SUM(L6:L10) -> 13354 | M15: =SUM(M6:M10) -> 12837 | N15: =IFERROR(SUM(M15/L15),"") -> 0.961 | O15: =SUM(O6:O10) -> 128 | P15: =IFERROR(SUM(1-O15/M15),"") -> 0.99 | Q15: =COUNTIFS('NSR WO Details'!$W:$W,"=MET",'NSR WO Details'!$F:$F,"=FLORIDA") -> 16968 | R15: =COUNTIFS('NSR WO Details'!$W:$W,"=Missed",'NSR WO Details'!$F:$F,"=FLORIDA") -> 997 | S15: =IFERROR(SUM(Q15/(Q15+R15)),"") -> 0.9445 | T15: =SUM(T6:T10) -> 16653 | U15: =SUM(U6:U10) -> 1365 | V15: =IFERROR(SUM(U15/T15),"") -> 0.082 | W15: =SUM(W6:W10) -> 669 | X15: =SUM(X6:X10) -> 46 | Y15: =IFERROR(1-(SUM(X15/W15)),"") -> 0.931 | Z15: =SUM(Z6:Z10) -> 11347 | AA15: =SUM(AA6:AA10) -> 1059 | AB15: =IFERROR(SUM(AA15/Z15),"") -> 0.0933 | AC15: =SUMIF('NSR WO Details'!F:F,"Florida",'NSR WO Details'!Z:Z) -> 2733 | AD15: =SUMIF('NSR WO Details'!F:F,"Florida",'NSR WO Details'!AA:AA) -> 2530 | AE15: =IFERROR(SUM(AD15/AC15),"") -> 0.9257 | AF15: =SUM(AF6:AF10) -> 10464 | AG15: =SUM(AG6:AG10) -> 10392 | AH15: =IFERROR(SUM(AG15/AF15),"") -> 0.9931 | AI15: =SUM(AI6:AI10) -> 2299 | AJ15: =SUM(AJ6:AJ10) -> 2208 | AK15: =IFERROR(SUM(AJ15/AI15),"") -> 0.9604 | AL15: =SUMIF('NSR WO Details'!F:F,"Florida",'NSR WO Details'!AK:AK) -> 10337 | AM15: =SUMIF('NSR WO Details'!F:F,"Florida",'NSR WO Details'!AL:AL) -> 10223 | AN15: =IFERROR(SUM(AM15/AL15),"") -> 0.989 | AO15: =IFERROR(SUMIF('TC Post Bury Rate'!CJ:CJ,G15,'TC Post Bury Rate'!DC:DC)/SUMIF('TC Post Bury Rate'!CJ:CJ,G15,'TC Post Bury Rate'!AL:AL),"") -> 0.0567 | AP15: =IFERROR(SUM(AQ6:AQ10/BG9),"") -> 0.0288 | AQ15: =IFERROR(SUM('Drop Bury'!U3:U8/BG9),"") -> 0.0119 | AR15: =IFERROR(SUMIF('TQI BP Tech Compliance'!$F:$F,"FLORIDA REGION",'TQI BP Tech Compliance'!$AD:$AD)/SUMIF('TQI BP Tech Compliance'!$F:$F,"FLORIDA REGION",'TQI BP Tech Compliance'!$AE:$AE),"") -> 0.062 | AS15: =IFERROR(SUM(AP19:AP40)/SUM(BG9:BH9),"") -> 0.0193 | AT15: =SUM(AT6:AT10) -> 8630 | AU15: =SUM(AU6:AU10) -> 6824 | AV15: =IFERROR(SUM(AU15/AT15),"") -> 0.7907 | AW15: =SUM(AW6:AW10) -> 11772 | AX15: =SUM(AX6:AX10) -> 10126 | AY15: =IFERROR(SUM(AX15/AW15),"") -> 0.8602 | AZ15: =IFERROR(SUM(AU15,AX15)/SUM(AT15,AW15),"") -> 0.8308 | BA15: =SUM(BA6:BA10) -> 11496 | BB15: =SUM(BB6:BB10) -> 691 | BC15: =BB15/BA15 -> 0.0601 | BD15: =IF(SUMIF('T360 CNH'!I:I,"Florida",'T360 CNH'!V:V)=0,"",SUMIF('T360 CNH'!I:I,"Florida",'T360 CNH'!V:V)) -> 809 | BE15: =IF(BD15="","",SUMIF('T360 CNH'!I:I,"Florida",'T360 CNH'!S:S)) -> 742 | BF15: =IFERROR(SUM(BE15/BD15),"") -> 0.917
B16: Treasure Coast
B17: Jacksonville | G17: Supervisor Name | H17: Score | I17: Total Jobs | J17: Jobs FTR | K17: FTR | L17: Total Job | M17: Pass | N17: PHT | O17: Pure Pass Fails | P17: PHT Pure Pass | Q17: Calls Met | R17: Calls Missed | S17: OTA | V17: Contact w/in 48hrs | W17: Total Jobs | X17: Total invalid | Y17: % Valid RTM | Z17: Jobs | AA17: Pictures Uploaded | AB17: ML Bonding Compliance | AC17: Jobs | AD17: Passes | AE17: tNPS | AF17: Total Jobs | AG17: Total Comp | AH17: Ingress Test Ran | AI17: Number of Drops | AJ17: One Drop Usage | AK17: One Drop | AL17: Tool Usage Jobs | AM17: Tool Usage | AN17: Tool Usage Rate | AO17: QB Audits | AP17: QC Audits | AQ17: % Techs >=2 QC/QB | AR17: QA % | AT17: Total Installs | AU17: Completed | AV17: Install Completion % | AW17: Total TC's | AX17: Completed | AY17: TC Completion % | AZ17: Total Completion % | BA17: TC's | BB17: TC Cancels | BC17: Cancel Rate | BD17: Not Home Jobs | BE17: CNH Initiate | BF17: T360 CNH
B18: Florida Panhandle
B19: Lake Orlando | F19: West Palm Beach | G19: Enrique Gabino | H19: =IF(AN19="","",IFERROR(IF(K19>=92%,3.5,0)+IF(AE19>=92.5%,3.5,0)+IF(AN19>=98.5%,3,0),"")) -> 6.5 | I19: ='West Palm Beach'!I22 -> 280 | J19: ='West Palm Beach'!J22 -> 29 | K19: =IFERROR(1-(J19/I19),"") -> 0.896 | L19: ='West Palm Beach'!U22 -> 161 | M19: ='West Palm Beach'!V22 -> 161 | N19: =IFERROR(SUM(M19/L19),"") -> 1 | O19: ='West Palm Beach'!X22 -> 1 | P19: =IFERROR(SUM(1-O19/M19),"") -> 0.9938 | Q19: ='West Palm Beach'!AC22 -> 282 | R19: ='West Palm Beach'!AD22 -> 8 | S19: =IFERROR(SUM(Q19/(Q19+R19)),"") -> 0.9724 | T19: ='West Palm Beach'!AF22 -> 292 | U19: ='West Palm Beach'!AG22 -> 25 | V19: =IFERROR(SUM(U19/T19),"") -> 0.086 | W19: ='West Palm Beach'!AI22 -> 6 | X19: ='West Palm Beach'!AJ22 -> 0 | Y19: =IFERROR(1-(SUM(X19/W19)),"") -> 1 | Z19: ='West Palm Beach'!AL22 -> 161 | AA19: ='West Palm Beach'!AM22 -> 12 | AB19: =IFERROR(AA19/Z19,"") -> 0.0745 | AC19: ='West Palm Beach'!Z22 -> 42 | AD19: ='West Palm Beach'!AA22 -> 42 | AE19: =IFERROR(SUM(AD19/AC19),"") -> 1 | AF19: ='West Palm Beach'!AO22 -> 161 | AG19: ='West Palm Beach'!AP22 -> 161 | AH19: =IFERROR(SUM(AG19/AF19),"") -> 1 | AI19: ='West Palm Beach'!AR22 -> 28 | AJ19: ='West Palm Beach'!AS22 -> 27 | AK19: =IFERROR(SUM(AJ19/AI19),"") -> 0.9643 | AL19: ='West Palm Beach'!AU22 -> 161 | AM19: ='West Palm Beach'!AV22 -> 161 | AN19: =IFERROR(SUM(AM19/AL19),"") -> 1 | AO19: ='West Palm Beach'!BB22 -> 3 | AP19: ='West Palm Beach'!AZ22 -> 10 | AQ19: ='West Palm Beach'!BD22 -> 0.5625 | AR19: =IFERROR(AP19/(I19),"") -> 0.0357 | AT19: ='West Palm Beach'!BF22 -> 119 | AU19: ='West Palm Beach'!BG22 -> 104 | AV19: =IFERROR(SUM(AU19/AT19),"") -> 0.8739 | AW19: ='West Palm Beach'!BI22 -> 202 | AX19: ='West Palm Beach'!BJ22 -> 178 | AY19: =IFERROR(SUM(AX19/AW19),"") -> 0.8812 | AZ19: =IFERROR(SUM(AU19,AX19)/SUM(AT19,AW19),"") -> 0.8785 | BA19: ='West Palm Beach'!BM22 -> 202 | BB19: ='West Palm Beach'!BN22 -> 10 | BC19: =BB19/BA19 -> 0.0495 | BD19: ='West Palm Beach'!BP22 -> 5 | BE19: ='West Palm Beach'!BQ22 -> 5 | BF19: =IFERROR(SUM(BE19/BD19),"") -> 1
B20: Drop Bury | G20: Steve Goff | H20: 10 | I20: ='West Palm Beach'!I81 -> 233 | J20: ='West Palm Beach'!J81 -> 14 | K20: 0.94 | L20: ='West Palm Beach'!U81 -> 157 | M20: ='West Palm Beach'!V81 -> 157 | N20: 1 | O20: ='West Palm Beach'!X81 -> 3 | P20: 0.9809 | Q20: ='West Palm Beach'!AC81 -> 271 | R20: ='West Palm Beach'!AD81 -> 16 | S20: 0.9443 | T20: ='West Palm Beach'!AF81 -> 291 | U20: ='West Palm Beach'!AG81 -> 17 | V20: 0.058 | W20: ='West Palm Beach'!AI81 -> 5 | X20: ='West Palm Beach'!AJ81 -> 0 | Y20: 1 | Z20: ='West Palm Beach'!AL81 -> 156 | AA20: ='West Palm Beach'!AM81 -> 25 | AB20: =IFERROR(AA20/Z20,"") -> 0.1603 | AC20: ='West Palm Beach'!Z81 -> 24 | AD20: ='West Palm Beach'!AA81 -> 23 | AE20: =IFERROR(SUM(AD20/AC20),"") -> 0.9583 | AF20: ='West Palm Beach'!AO81 -> 146 | AG20: ='West Palm Beach'!AP81 -> 144 | AH20: 0.9863 | AI20: ='West Palm Beach'!AR81 -> 13 | AJ20: ='West Palm Beach'!AS81 -> 13 | AK20: 1 | AL20: ='West Palm Beach'!AU81 -> 157 | AM20: ='West Palm Beach'!AV81 -> 155 | AN20: =IFERROR(SUM(AM20/AL20),"") -> 0.987 | AO20: ='West Palm Beach'!BB81 -> 7 | AP20: ='West Palm Beach'!AZ81 -> 12 | AQ20: ='West Palm Beach'!BD81 -> 0.9167 | AR20: 0.0515 | AT20: ='West Palm Beach'!BF81 -> 112 | AU20: ='West Palm Beach'!BG81 -> 100 | AV20: 0.8929 | AW20: ='West Palm Beach'!BI81 -> 160 | AX20: ='West Palm Beach'!BJ81 -> 134 | AY20: =IFERROR(SUM(AX20/AW20),"") -> 0.8375 | AZ20: =IFERROR(SUM(AU20,AX20)/SUM(AT20,AW20),"") -> 0.8603 | BA20: ='West Palm Beach'!BM81 -> 160 | BB20: ='West Palm Beach'!BN81 -> 15 | BC20: =BB20/BA20 -> 0.0938 | BD20: ='West Palm Beach'!BP81 -> 4 | BE20: ='West Palm Beach'!BQ81 -> 4 | BF20: 1
B21: Low Performers | G21: Alexander Fontes | H21: 3 | I21: ='West Palm Beach'!I158 -> 1046 | J21: ='West Palm Beach'!J158 -> 86 | K21: 0.918 | L21: ='West Palm Beach'!U158 -> 651 | M21: ='West Palm Beach'!V158 -> 648 | N21: 0.9954 | O21: ='West Palm Beach'!X158 -> 4 | P21: 0.9938 | Q21: ='West Palm Beach'!AC158 -> 1168 | R21: ='West Palm Beach'!AD158 -> 38 | S21: 0.9685 | T21: ='West Palm Beach'!AF158 -> 1334 | U21: ='West Palm Beach'!AG158 -> 69 | V21: 0.052 | W21: ='West Palm Beach'!AI158 -> 29 | X21: ='West Palm Beach'!AJ158 -> 6 | Y21: 0.793 | Z21: ='West Palm Beach'!AL158 -> 655 | AA21: ='West Palm Beach'!AM158 -> 221 | AB21: =IFERROR(AA21/Z21,"") -> 0.3374 | AC21: ='West Palm Beach'!Z158 -> 159 | AD21: ='West Palm Beach'!AA158 -> 144 | AE21: 0.9057 | AF21: ='West Palm Beach'!AO158 -> 651 | AG21: ='West Palm Beach'!AP158 -> 644 | AH21: 0.9892 | AI21: ='West Palm Beach'!AR158 -> 137 | AJ21: ='West Palm Beach'!AS158 -> 134 | AK21: =IFERROR(SUM(AJ21/AI21),"") -> 0.9781 | AL21: ='West Palm Beach'!AU158 -> 651 | AM21: ='West Palm Beach'!AV158 -> 642 | AN21: 0.986 | AO21: ='West Palm Beach'!BB158 -> 36 | AP21: ='West Palm Beach'!AZ158 -> 41 | AQ21: ='West Palm Beach'!BD158 -> 0.5313 | AR21: 0.0392 | AT21: ='West Palm Beach'!BF158 -> 563 | AU21: ='West Palm Beach'!BG158 -> 439 | AV21: 0.7798 | AW21: ='West Palm Beach'!BI158 -> 771 | AX21: ='West Palm Beach'!BJ158 -> 667 | AY21: =IFERROR(SUM(AX21/AW21),"") -> 0.8651 | AZ21: =IFERROR(SUM(AU21,AX21)/SUM(AT21,AW21),"") -> 0.8291 | BA21: ='West Palm Beach'!BM158 -> 771 | BB21: ='West Palm Beach'!BN158 -> 46 | BC21: 0.0597 | BD21: ='West Palm Beach'!BP158 -> 75 | BE21: ='West Palm Beach'!BQ158 -> 72 | BF21: 0.96
B22: Tech Rankings | G22: Ivan Myhovych | H22: =IF(AN22="","",IFERROR(IF(K22>=92%,3.5,0)+IF(AE22>=92.5%,3.5,0)+IF(AN22>=98.5%,3,0),"")) -> 10 | I22: ='West Palm Beach'!I251 -> 1212 | J22: ='West Palm Beach'!J251 -> 95 | K22: =IFERROR(1-(J22/I22),"") -> 0.922 | L22: ='West Palm Beach'!U251 -> 850 | M22: ='West Palm Beach'!V251 -> 848 | N22: =IFERROR(SUM(M22/L22),"") -> 0.9976 | O22: ='West Palm Beach'!X251 -> 13 | P22: =IFERROR(SUM(1-O22/M22),"") -> 0.9847 | Q22: ='West Palm Beach'!AC251 -> 1294 | R22: ='West Palm Beach'!AD251 -> 35 | S22: =IFERROR(SUM(Q22/(Q22+R22)),"") -> 0.9737 | T22: ='West Palm Beach'!AF251 -> 1550 | U22: ='West Palm Beach'!AG251 -> 94 | V22: =IFERROR(SUM(U22/T22),"") -> 0.061 | W22: ='West Palm Beach'!AI251 -> 41 | X22: ='West Palm Beach'!AJ251 -> 4 | Y22: =IFERROR(1-(SUM(X22/W22)),"") -> 0.902 | Z22: ='West Palm Beach'!AL251 -> 781 | AA22: ='West Palm Beach'!AM251 -> 82 | AB22: =IFERROR(AA22/Z22,"") -> 0.105 | AC22: ='West Palm Beach'!Z251 -> 224 | AD22: ='West Palm Beach'!AA251 -> 215 | AE22: =IFERROR(SUM(AD22/AC22),"") -> 0.9598 | AF22: ='West Palm Beach'!AO251 -> 850 | AG22: ='West Palm Beach'!AP251 -> 848 | AH22: =IFERROR(SUM(AG22/AF22),"") -> 0.9976 | AI22: ='West Palm Beach'!AR251 -> 118 | AJ22: ='West Palm Beach'!AS251 -> 116 | AK22: =IFERROR(SUM(AJ22/AI22),"") -> 0.9831 | AL22: ='West Palm Beach'!AU251 -> 850 | AM22: ='West Palm Beach'!AV251 -> 847 | AN22: =IFERROR(SUM(AM22/AL22),"") -> 0.996 | AO22: ='West Palm Beach'!BB251 -> 78 | AP22: ='West Palm Beach'!AZ251 -> 112 | AQ22: ='West Palm Beach'!BD251 -> 1 | AR22: =IFERROR(AP22/(I22),"") -> 0.0924 | AT22: ='West Palm Beach'!BF251 -> 606 | AU22: ='West Palm Beach'!BG251 -> 494 | AV22: =IFERROR(SUM(AU22/AT22),"") -> 0.8152 | AW22: ='West Palm Beach'!BI251 -> 903 | AX22: ='West Palm Beach'!BJ251 -> 770 | AY22: =IFERROR(SUM(AX22/AW22),"") -> 0.8527 | AZ22: =IFERROR(SUM(AU22,AX22)/SUM(AT22,AW22),"") -> 0.8376 | BA22: ='West Palm Beach'!BM251 -> 903 | BB22: ='West Palm Beach'!BN251 -> 58 | BC22: 0.0642 | BD22: ='West Palm Beach'!BP251 -> 81 | BE22: ='West Palm Beach'!BQ251 -> 79 | BF22: 0.975
B23: Tech Coaching Form | G23: Mikalai Mikhitarau | H23: 10 | I23: ='West Palm Beach'!I218 -> 1189 | J23: ='West Palm Beach'!J218 -> 92 | K23: 0.923 | L23: ='West Palm Beach'!U218 -> 774 | M23: ='West Palm Beach'!V218 -> 769 | N23: 0.9935 | O23: ='West Palm Beach'!X218 -> 4 | P23: 0.9948 | Q23: ='West Palm Beach'!AC218 -> 1242 | R23: ='West Palm Beach'!AD218 -> 42 | S23: 0.9673 | T23: ='West Palm Beach'!AF218 -> 1388 | U23: ='West Palm Beach'!AG218 -> 84 | V23: 0.061 | W23: ='West Palm Beach'!AI218 -> 36 | X23: ='West Palm Beach'!AJ218 -> 1 | Y23: 0.972 | Z23: ='West Palm Beach'!AL218 -> 740 | AA23: ='West Palm Beach'!AM218 -> 26 | AB23: 0.0351 | AC23: ='West Palm Beach'!Z218 -> 214 | AD23: ='West Palm Beach'!AA218 -> 203 | AE23: 0.9486 | AF23: ='West Palm Beach'!AO218 -> 774 | AG23: ='West Palm Beach'!AP218 -> 773 | AH23: 0.9987 | AI23: ='West Palm Beach'!AR218 -> 129 | AJ23: ='West Palm Beach'!AS218 -> 128 | AK23: 0.9922 | AL23: ='West Palm Beach'!AU218 -> 774 | AM23: ='West Palm Beach'!AV218 -> 768 | AN23: 0.992 | AO23: ='West Palm Beach'!BB218 -> 0 | AP23: ='West Palm Beach'!AZ218 -> 0 | AQ23: ='West Palm Beach'!BD218 -> 0 | AR23: 0 | AT23: ='West Palm Beach'!BF218 -> 515 | AU23: ='West Palm Beach'!BG218 -> 392 | AV23: 0.7612 | AW23: ='West Palm Beach'!BI218 -> 931 | AX23: ='West Palm Beach'!BJ218 -> 836 | AY23: 0.898 | AZ23: 0.8492 | BA23: ='West Palm Beach'!BM218 -> 931 | BB23: ='West Palm Beach'!BN218 -> 47 | BC23: 0.0505 | BD23: ='West Palm Beach'!BP218 -> 76 | BE23: ='West Palm Beach'!BQ218 -> 69 | BF23: 0.908
B24: Rework Summary | G24: Melvin Gutierrez | H24: 3.5 | I24: ='West Palm Beach'!I286 -> 801 | J24: ='West Palm Beach'!J286 -> 75 | K24: =IFERROR(1-(J24/I24),"") -> 0.906 | L24: ='West Palm Beach'!U286 -> 571 | M24: ='West Palm Beach'!V286 -> 568 | N24: =IFERROR(SUM(M24/L24),"") -> 0.9947 | O24: ='West Palm Beach'!X286 -> 3 | P24: =IFERROR(SUM(1-O24/M24),"") -> 0.9947 | Q24: ='West Palm Beach'!AC286 -> 783 | R24: ='West Palm Beach'!AD286 -> 44 | S24: =IFERROR(SUM(Q24/(Q24+R24)),"") -> 0.9468 | T24: ='West Palm Beach'!AF286 -> 868 | U24: ='West Palm Beach'!AG286 -> 71 | V24: =IFERROR(SUM(U24/T24),"") -> 0.082 | W24: ='West Palm Beach'!AI286 -> 20 | X24: ='West Palm Beach'!AJ286 -> 0 | Y24: =IFERROR(1-(SUM(X24/W24)),"") -> 1 | Z24: ='West Palm Beach'!AL286 -> 503 | AA24: ='West Palm Beach'!AM286 -> 70 | AB24: =IFERROR(AA24/Z24,"") -> 0.1392 | AC24: ='West Palm Beach'!Z286 -> 110 | AD24: ='West Palm Beach'!AA286 -> 102 | AE24: =IFERROR(SUM(AD24/AC24),"") -> 0.9273 | AF24: ='West Palm Beach'!AO286 -> 571 | AG24: ='West Palm Beach'!AP286 -> 562 | AH24: =IFERROR(SUM(AG24/AF24),"") -> 0.9842 | AI24: ='West Palm Beach'!AR286 -> 81 | AJ24: ='West Palm Beach'!AS286 -> 81 | AK24: =IFERROR(SUM(AJ24/AI24),"") -> 1 | AL24: ='West Palm Beach'!AU286 -> 571 | AM24: ='West Palm Beach'!AV286 -> 560 | AN24: =IFERROR(SUM(AM24/AL24),"") -> 0.981 | AO24: ='West Palm Beach'!BB286 -> 0 | AP24: ='West Palm Beach'!AZ286 -> 56 | AQ24: ='West Palm Beach'!BD286 -> 0.7955 | AR24: 0.0699 | AT24: ='West Palm Beach'!BF286 -> 356 | AU24: ='West Palm Beach'!BG286 -> 284 | AV24: =IFERROR(SUM(AU24/AT24),"") -> 0.7978 | AW24: ='West Palm Beach'!BI286 -> 573 | AX24: ='West Palm Beach'!BJ286 -> 506 | AY24: =IFERROR(SUM(AX24/AW24),"") -> 0.8831 | AZ24: =IFERROR(SUM(AU24,AX24)/SUM(AT24,AW24),"") -> 0.8504 | BA24: ='West Palm Beach'!BM286 -> 573 | BB24: ='West Palm Beach'!BN286 -> 29 | BC24: 0.0506 | BD24: ='West Palm Beach'!BP286 -> 11 | BE24: ='West Palm Beach'!BQ286 -> 10 | BF24: 0.909
B25: FTR Rankings | G25: Alexandr Sviridov | H25: 3 | I25: ='West Palm Beach'!I59 -> 1382 | J25: ='West Palm Beach'!J59 -> 147 | K25: 0.894 | L25: ='West Palm Beach'!U59 -> 850 | M25: ='West Palm Beach'!V59 -> 844 | N25: 0.9929 | O25: ='West Palm Beach'!X59 -> 12 | P25: 0.9858 | Q25: ='West Palm Beach'!AC59 -> 1434 | R25: ='West Palm Beach'!AD59 -> 39 | S25: 0.9735 | T25: ='West Palm Beach'!AF59 -> 1555 | U25: ='West Palm Beach'!AG59 -> 114 | V25: 0.073 | W25: ='West Palm Beach'!AI59 -> 37 | X25: ='West Palm Beach'!AJ59 -> 2 | Y25: 0.946 | Z25: ='West Palm Beach'!AL59 -> 854 | AA25: ='West Palm Beach'!AM59 -> 11 | AB25: 0.0129 | AC25: ='West Palm Beach'!Z59 -> 205 | AD25: ='West Palm Beach'!AA59 -> 187 | AE25: 0.9122 | AF25: ='West Palm Beach'!AO59 -> 850 | AG25: ='West Palm Beach'!AP59 -> 848 | AH25: 0.9976 | AI25: ='West Palm Beach'!AR59 -> 162 | AJ25: ='West Palm Beach'!AS59 -> 161 | AK25: 0.9938 | AL25: ='West Palm Beach'!AU59 -> 850 | AM25: ='West Palm Beach'!AV59 -> 843 | AN25: 0.992 | AO25: ='West Palm Beach'!BB59 -> 0 | AP25: ='West Palm Beach'!AZ59 -> 2 | AQ25: ='West Palm Beach'!BD59 -> 0.0278 | AR25: 0.0014 | AT25: ='West Palm Beach'!BF59 -> 657 | AU25: ='West Palm Beach'!BG59 -> 498 | AV25: 0.758 | AW25: ='West Palm Beach'!BI59 -> 1073 | AX25: ='West Palm Beach'!BJ59 -> 912 | AY25: =IFERROR(SUM(AX25/AW25),"") -> 0.85 | AZ25: =IFERROR(SUM(AU25,AX25)/SUM(AT25,AW25),"") -> 0.815 | BA25: ='West Palm Beach'!BM158 -> 771 | BB25: ='West Palm Beach'!BN158 -> 46 | BC25: 0.0597 | BD25: ='West Palm Beach'!BP59 -> 60 | BE25: ='West Palm Beach'!BQ59 -> 54 | BF25: 0.9
B26: tNPS Rankings | F26: West Palm North | G26: Robert Harris | H26: 0 | I26: ='Treasure Coast'!I31 -> 775 | J26: ='Treasure Coast'!J31 -> 82 | K26: 0.894 | L26: ='Treasure Coast'!U31 -> 486 | M26: ='Treasure Coast'!V31 -> 483 | N26: 0.9938 | O26: ='Treasure Coast'!X31 -> 6 | P26: 0.9876 | Q26: ='Treasure Coast'!AC31 -> 754 | R26: ='Treasure Coast'!AD31 -> 78 | S26: 0.9063 | T26: ='Treasure Coast'!AF31 -> 876 | U26: ='Treasure Coast'!AG31 -> 72 | V26: 0.082 | W26: ='Treasure Coast'!AI31 -> 14 | X26: ='Treasure Coast'!AJ31 -> 1 | Y26: 0.929 | Z26: ='Treasure Coast'!AL31 -> 520 | AA26: ='Treasure Coast'!AM31 -> 119 | AB26: 0.2288 | AC26: ='Treasure Coast'!Z31 -> 127 | AD26: ='Treasure Coast'!AA31 -> 115 | AE26: 0.9055 | AF26: ='Treasure Coast'!AO31 -> 486 | AG26: ='Treasure Coast'!AP31 -> 477 | AH26: 0.9815 | AI26: ='Treasure Coast'!AR31 -> 134 | AJ26: ='Treasure Coast'!AS31 -> 134 | AK26: 1 | AL26: ='Treasure Coast'!AU31 -> 486 | AM26: ='Treasure Coast'!AV31 -> 475 | AN26: 0.977 | AO26: ='Treasure Coast'!BB31 -> 0 | AP26: ='Treasure Coast'!AZ31 -> 0 | AQ26: ='Treasure Coast'!BD31 -> 0 | AR26: 0 | AT26: ='Treasure Coast'!BF31 -> 412 | AU26: ='Treasure Coast'!BG31 -> 289 | AV26: 0.7015 | AW26: ='Treasure Coast'!BI31 -> 572 | AX26: ='Treasure Coast'!BJ31 -> 488 | AY26: =IFERROR(SUM(AX26/AW26),"") -> 0.8531 | AZ26: =IFERROR(SUM(AU26,AX26)/SUM(AT26,AW26),"") -> 0.7896 | BA26: ='Treasure Coast'!BM31 -> 572 | BB26: ='Treasure Coast'!BN31 -> 39 | BC26: 0.0682 | BD26: ='Treasure Coast'!BP31 -> 37 | BE26: ='Treasure Coast'!BQ31 -> 35 | BF26: 0.946
B27: Tool Usage Rankings | G27: Adiel Montesino | H27: 0 | I27: ='Treasure Coast'!I96 -> 176 | J27: ='Treasure Coast'!J96 -> 17 | K27: 0.903 | L27: ='Treasure Coast'!U96 -> 111 | M27: ='Treasure Coast'!V96 -> 109 | N27: 0.982 | O27: ='Treasure Coast'!X96 -> 0 | P27: 1 | Q27: ='Treasure Coast'!AC96 -> 189 | R27: ='Treasure Coast'!AD96 -> 7 | S27: 0.9643 | T27: ='Treasure Coast'!AF96 -> 201 | U27: ='Treasure Coast'!AG96 -> 15 | V27: 0.075 | W27: ='Treasure Coast'!AI96 -> 5 | X27: ='Treasure Coast'!AJ96 -> 1 | Y27: 0.8 | Z27: ='Treasure Coast'!AL96 -> 136 | AA27: ='Treasure Coast'!AM96 -> 73 | AB27: 0.5368 | AC27: ='Treasure Coast'!Z96 -> 26 | AD27: ='Treasure Coast'!AA96 -> 21 | AE27: 0.8077 | AF27: ='Treasure Coast'!AO96 -> 111 | AG27: ='Treasure Coast'!AP96 -> 110 | AH27: 0.991 | AI27: ='Treasure Coast'!AR96 -> 22 | AJ27: ='Treasure Coast'!AS96 -> 22 | AK27: 1 | AL27: ='Treasure Coast'!AU96 -> 111 | AM27: ='Treasure Coast'!AV96 -> 109 | AN27: 0.982 | AO27: ='Treasure Coast'!BB96 -> 0 | AP27: ='Treasure Coast'!AZ96 -> 0 | AQ27: ='Treasure Coast'!BD96 -> 0 | AR27: 0 | AT27: ='Treasure Coast'!BF96 -> 86 | AU27: ='Treasure Coast'!BG96 -> 68 | AV27: 0.7907 | AW27: ='Treasure Coast'!BI96 -> 136 | AX27: ='Treasure Coast'!BJ96 -> 110 | AY27: =IFERROR(SUM(AX27/AW27),"") -> 0.8088 | AZ27: =IFERROR(SUM(AU27,AX27)/SUM(AT27,AW27),"") -> 0.8018 | BA27: ='Treasure Coast'!BM96 -> 136 | BB27: ='Treasure Coast'!BN96 -> 12 | BC27: 0.0882 | BD27: ='Treasure Coast'!BP96 -> 10 | BE27: ='Treasure Coast'!BQ96 -> 10 | BF27: 1
B28: T360 CNH Rannkings | G28: Lucius Deisan | H28: 6.5 | I28: ='Treasure Coast'!I62 -> 1013 | J28: ='Treasure Coast'!J62 -> 84 | K28: 0.917 | L28: ='Treasure Coast'!U62 -> 1142 | M28: ='Treasure Coast'!V62 -> 1137 | N28: 0.9956 | O28: ='Treasure Coast'!X62 -> 13 | P28: 0.9886 | Q28: ='Treasure Coast'!AC62 -> 1035 | R28: ='Treasure Coast'!AD62 -> 49 | S28: 0.9548 | T28: ='Treasure Coast'!AF62 -> 1191 | U28: ='Treasure Coast'!AG62 -> 76 | V28: 0.064 | W28: ='Treasure Coast'!AI62 -> 18 | X28: ='Treasure Coast'!AJ62 -> 0 | Y28: 1 | Z28: ='Treasure Coast'!AL62 -> 702 | AA28: ='Treasure Coast'!AM62 -> 38 | AB28: 0.0541 | AC28: ='Treasure Coast'!Z62 -> 148 | AD28: ='Treasure Coast'!AA62 -> 137 | AE28: 0.9257 | AF28: ='Treasure Coast'!AO62 -> 1142 | AG28: ='Treasure Coast'!AP62 -> 1131 | AH28: 0.9904 | AI28: ='Treasure Coast'!AR62 -> 274 | AJ28: ='Treasure Coast'!AS62 -> 273 | AK28: 0.9964 | AL28: ='Treasure Coast'!AU62 -> 656 | AM28: ='Treasure Coast'!AV62 -> 652 | AN28: 0.994 | AO28: ='Treasure Coast'!BB62 -> 67 | AP28: ='Treasure Coast'!AZ62 -> 73 | AQ28: ='Treasure Coast'!BD62 -> 1 | AR28: 0.0721 | AT28: ='Treasure Coast'!BF62 -> 504 | AU28: ='Treasure Coast'!BG62 -> 406 | AV28: 0.8056 | AW28: ='Treasure Coast'!BI62 -> 718 | AX28: ='Treasure Coast'!BJ62 -> 594 | AY28: 0.8273 | AZ28: 0.8183 | BA28: ='Treasure Coast'!BM62 -> 718 | BB28: ='Treasure Coast'!BN62 -> 44 | BC28: 0.0613 | BD28: ='Treasure Coast'!BP62 -> 28 | BE28: ='Treasure Coast'!BQ62 -> 27 | BF28: 0.964
B29: 48hr Callback Rankings | F29: Jacksonville | G29: Shante Miller | H29: 6.5 | I29: =Jacksonville!I23 -> 724 | J29: =Jacksonville!J23 -> 43 | K29: 0.941 | L29: =Jacksonville!U23 -> 461 | M29: =Jacksonville!V23 -> 459 | N29: 0.9957 | O29: =Jacksonville!X23 -> 9 | P29: 0.9804 | Q29: =Jacksonville!AC23 -> 678 | R29: =Jacksonville!AD23 -> 87 | S29: 0.8863 | T29: =Jacksonville!AF23 -> 827 | U29: =Jacksonville!AG23 -> 53 | V29: 0.064 | W29: =Jacksonville!AI23 -> 51 | X29: =Jacksonville!AJ23 -> 1 | Y29: 0.98 | Z29: =Jacksonville!AL23 -> 572 | AA29: =Jacksonville!AM23 -> 31 | AB29: 0.0542 | AC29: =Jacksonville!Z23 -> 119 | AD29: =Jacksonville!AA23 -> 110 | AE29: 0.9244 | AF29: =Jacksonville!AO23 -> 461 | AG29: =Jacksonville!AP23 -> 461 | AH29: 1 | AI29: =Jacksonville!AR23 -> 147 | AJ29: =Jacksonville!AS23 -> 147 | AK29: 1 | AL29: =Jacksonville!AU23 -> 461 | AM29: =Jacksonville!AV23 -> 459 | AN29: 0.996 | AO29: =Jacksonville!BB23 -> 0 | AP29: =Jacksonville!AZ23 -> 0 | AQ29: =Jacksonville!BD23 -> 0 | AR29: 0 | AT29: =Jacksonville!BF23 -> 333 | AU29: =Jacksonville!BG23 -> 272 | AV29: 0.8168 | AW29: =Jacksonville!BI23 -> 539 | AX29: =Jacksonville!BJ23 -> 463 | AY29: 0.859 | AZ29: 0.8429 | BA29: =Jacksonville!BM23 -> 539 | BB29: =Jacksonville!BN23 -> 31 | BC29: 0.0575 | BD29: =Jacksonville!BP23 -> 26 | BE29: =Jacksonville!BQ23 -> 23 | BF29: 0.885
B30: Cancel Rate | G30: Winston Issacs | H30: 10 | I30: =Jacksonville!I77 -> 585 | J30: =Jacksonville!J77 -> 29 | K30: 0.95 | L30: =Jacksonville!U77 -> 410 | M30: =Jacksonville!V77 -> 410 | N30: 1 | O30: =Jacksonville!X77 -> 1 | P30: 0.9976 | Q30: =Jacksonville!AC77 -> 584 | R30: =Jacksonville!AD77 -> 39 | S30: 0.9374 | T30: =Jacksonville!AF77 -> 672 | U30: =Jacksonville!AG77 -> 20 | V30: 0.03 | W30: =Jacksonville!AI77 -> 31 | X30: =Jacksonville!AJ77 -> 1 | Y30: 0.968 | Z30: =Jacksonville!AL77 -> 419 | AA30: =Jacksonville!AM77 -> 76 | AB30: 0.1814 | AC30: =Jacksonville!Z77 -> 110 | AD30: =Jacksonville!AA77 -> 104 | AE30: 0.9455 | AF30: =Jacksonville!AO77 -> 410 | AG30: =Jacksonville!AP77 -> 409 | AH30: 0.9976 | AI30: =Jacksonville!AR57 -> 199 | AJ30: =Jacksonville!AS57 -> 196 | AK30: 0.9849 | AL30: =Jacksonville!AU77 -> 410 | AM30: =Jacksonville!AV77 -> 409 | AN30: 0.998 | AO30: =Jacksonville!BB77 -> 6 | AP30: =Jacksonville!AZ77 -> 60 | AQ30: =Jacksonville!BD77 -> 0.5625 | AR30: 0.1026 | AT30: =Jacksonville!BF77 -> 268 | AU30: =Jacksonville!BG77 -> 207 | AV30: 0.7724 | AW30: =Jacksonville!BI77 -> 485 | AX30: =Jacksonville!BJ77 -> 393 | AY30: 0.8103 | AZ30: 0.7968 | BA30: =Jacksonville!BM77 -> 485 | BB30: =Jacksonville!BN77 -> 33 | BC30: 0.068 | BD30: =Jacksonville!BP77 -> 28 | BE30: =Jacksonville!BQ77 -> 27 | BF30: 0.964
B31: Partner Performance | G31: Stephen Vanhoose | H31: 3.5 | I31: =Jacksonville!I95 -> 324 | J31: =Jacksonville!J95 -> 43 | K31: 0.867 | L31: =Jacksonville!U95 -> 183 | M31: =Jacksonville!V95 -> 182 | N31: 0.9945 | O31: =Jacksonville!X95 -> 1 | P31: 0.9945 | Q31: =Jacksonville!AC95 -> 323 | R31: =Jacksonville!AD95 -> 89 | S31: 0.784 | T31: =Jacksonville!AF95 -> 450 | U31: =Jacksonville!AG95 -> 49 | V31: 0.109 | W31: =Jacksonville!AI95 -> 36 | X31: =Jacksonville!AJ95 -> 4 | Y31: 0.889 | Z31: =Jacksonville!AL95 -> 255 | AA31: =Jacksonville!AM95 -> 14 | AB31: 0.0549 | AC31: =Jacksonville!Z95 -> 77 | AD31: =Jacksonville!AA95 -> 76 | AE31: 0.987 | AF31: =Jacksonville!AO95 -> 183 | AG31: =Jacksonville!AP95 -> 181 | AH31: 0.9891 | AI31: =Jacksonville!AR95 -> 25 | AJ31: =Jacksonville!AS95 -> 25 | AK31: 1 | AL31: =Jacksonville!AU95 -> 183 | AM31: =Jacksonville!AV95 -> 180 | AN31: 0.984 | AO31: =Jacksonville!BB95 -> 0 | AP31: =Jacksonville!AZ95 -> 0 | AQ31: =Jacksonville!BD95 -> 0 | AR31: 0 | AT31: =Jacksonville!BF95 -> 111 | AU31: =Jacksonville!BG95 -> 69 | AV31: 0.6216 | AW31: =Jacksonville!BI95 -> 380 | AX31: =Jacksonville!BJ95 -> 321 | AY31: 0.8447 | AZ31: 0.7943 | BA31: =Jacksonville!BM95 -> 380 | BB31: =Jacksonville!BN95 -> 19 | BC31: 0.05 | BD31: =Jacksonville!BP95 -> 89 | BE31: =Jacksonville!BQ95 -> 83 | BF31: 0.933
G32: Jose Barbecho | H32: 6.5 | I32: =Jacksonville!I123 -> 931 | J32: =Jacksonville!J123 -> 77 | K32: =IFERROR(1-(J32/I32),"") -> 0.917 | L32: =Jacksonville!U123 -> 394 | M32: =Jacksonville!V123 -> 393 | N32: =IFERROR(SUM(M32/L32),"") -> 0.9975 | O32: =Jacksonville!X123 -> 2 | P32: =IFERROR(SUM(1-O32/M32),"") -> 0.9949 | Q32: =Jacksonville!AC123 -> 930 | R32: =Jacksonville!AD123 -> 76 | S32: =IFERROR(SUM(Q32/(Q32+R32)),"") -> 0.9245 | T32: =Jacksonville!AF123 -> 1106 | U32: =Jacksonville!AG123 -> 80 | V32: =IFERROR(SUM(U32/T32),"") -> 0.072 | W32: =Jacksonville!AI123 -> 61 | X32: =Jacksonville!AJ123 -> 6 | Y32: 0.902 | Z32: =Jacksonville!AL123 -> 734 | AA32: =Jacksonville!AM123 -> 0 | AB32: =IFERROR(AA32/Z32,"") -> 0 | AC32: =Jacksonville!Z123 -> 151 | AD32: =Jacksonville!AA123 -> 140 | AE32: 0.9272 | AF32: =Jacksonville!AO123 -> 377 | AG32: =Jacksonville!AP123 -> 373 | AH32: =IFERROR(SUM(AG32/AF32),"") -> 0.9894 | AI32: =Jacksonville!AR123 -> 121 | AJ32: =Jacksonville!AS123 -> 121 | AK32: =IFERROR(SUM(AJ32/AI32),"") -> 1 | AL32: =Jacksonville!AU123 -> 394 | AM32: =Jacksonville!AV123 -> 389 | AN32: =IFERROR(SUM(AM32/AL32),"") -> 0.987 | AO32: =Jacksonville!BB123 -> 0 | AP32: =Jacksonville!AZ123 -> 0 | AQ32: =Jacksonville!BD123 -> 0 | AR32: 0 | AT32: =Jacksonville!BF123 -> 525 | AU32: =Jacksonville!BG123 -> 389 | AV32: 0.741 | AW32: =Jacksonville!BI123 -> 686 | AX32: =Jacksonville!BJ123 -> 579 | AY32: 0.844 | AZ32: 0.7993 | BA32: =Jacksonville!BM123 -> 686 | BB32: =Jacksonville!BN123 -> 48 | BC32: 0.07 | BD32: =Jacksonville!BP123 -> 62 | BE32: =Jacksonville!BQ123 -> 56 | BF32: 0.903
B33: BP-OnTrac Reports | G33: Arcadie Adam | H33: 10 | I33: =Jacksonville!I156 -> 1596 | J33: =Jacksonville!J156 -> 99 | K33: 0.938 | L33: =Jacksonville!U156 -> 770 | M33: =Jacksonville!V156 -> 765 | N33: 0.9935 | O33: =Jacksonville!X156 -> 4 | P33: 0.9948 | Q33: =Jacksonville!AC156 -> 1580 | R33: =Jacksonville!AD156 -> 74 | S33: 0.9553 | T33: =Jacksonville!AF156 -> 1865 | U33: =Jacksonville!AG156 -> 141 | V33: 0.076 | W33: =Jacksonville!AI156 -> 82 | X33: =Jacksonville!AJ156 -> 4 | Y33: 0.951 | Z33: =Jacksonville!AL156 -> 1175 | AA33: =Jacksonville!AM156 -> 117 | AB33: 0.0996 | AC33: =Jacksonville!Z156 -> 263 | AD33: =Jacksonville!AA156 -> 246 | AE33: 0.9354 | AF33: =Jacksonville!AO156 -> 770 | AG33: =Jacksonville!AP156 -> 767 | AH33: 0.9961 | AI33: =Jacksonville!AR156 -> 193 | AJ33: =Jacksonville!AS156 -> 192 | AK33: 0.9948 | AL33: =Jacksonville!AU156 -> 770 | AM33: =Jacksonville!AV156 -> 762 | AN33: 0.99 | AO33: =Jacksonville!BB156 -> 3 | AP33: =Jacksonville!AZ156 -> 4 | AQ33: =Jacksonville!BD156 -> 0.0556 | AR33: 0.0025 | AT33: =Jacksonville!BF156 -> 794 | AU33: =Jacksonville!BG156 -> 650 | AV33: 0.8186 | AW33: =Jacksonville!BI156 -> 1092 | AX33: =Jacksonville!BJ156 -> 946 | AY33: 0.8663 | AZ33: 0.8462 | BA33: =Jacksonville!BM156 -> 1092 | BB33: =Jacksonville!BN156 -> 60 | BC33: 0.0549 | BD33: =Jacksonville!BP156 -> 30 | BE33: =Jacksonville!BQ156 -> 26 | BF33: 0.867
G34: Hryhorii Novak | H34: 0 | I34: =Jacksonville!I184 -> 583 | J34: =Jacksonville!J184 -> 60 | K34: 0.897 | L34: =Jacksonville!U184 -> 297 | M34: =Jacksonville!V184 -> 293 | N34: 0.9865 | O34: =Jacksonville!X184 -> 1 | P34: 0.9966 | Q34: =Jacksonville!AC184 -> 559 | R34: =Jacksonville!AD184 -> 43 | S34: 0.9286 | T34: =Jacksonville!AF184 -> 733 | U34: =Jacksonville!AG184 -> 50 | V34: 0.068 | W34: =Jacksonville!AI184 -> 29 | X34: =Jacksonville!AJ184 -> 2 | Y34: 0.931 | Z34: =Jacksonville!AL184 -> 413 | AA34: =Jacksonville!AM184 -> 9 | AB34: 0.0218 | AC34: =Jacksonville!Z184 -> 85 | AD34: =Jacksonville!AA184 -> 76 | AE34: 0.8941 | AF34: =Jacksonville!AO184 -> 297 | AG34: =Jacksonville!AP184 -> 293 | AH34: 0.9865 | AI34: =Jacksonville!AR184 -> 75 | AJ34: =Jacksonville!AS184 -> 75 | AK34: 1 | AL34: =Jacksonville!AU184 -> 297 | AM34: =Jacksonville!AV184 -> 291 | AN34: 0.98 | AO34: =Jacksonville!BB184 -> 20 | AP34: =Jacksonville!AZ184 -> 41 | AQ34: =Jacksonville!BD184 -> 0.5455 | AR34: 0.0703 | AT34: =Jacksonville!BF184 -> 289 | AU34: =Jacksonville!BG184 -> 232 | AV34: 0.8028 | AW34: =Jacksonville!BI184 -> 385 | AX34: =Jacksonville!BJ184 -> 342 | AY34: =IFERROR(SUM(AX34/AW34),"") -> 0.8883 | AZ34: =IFERROR(SUM(AU34,AX34)/SUM(AT34,AW34),"") -> 0.8516 | BA34: =Jacksonville!BM184 -> 385 | BB34: =Jacksonville!BN184 -> 18 | BC34: 0.0468 | BD34: =Jacksonville!BP184 -> 14 | BE34: =Jacksonville!BQ184 -> 9 | BF34: 0.643
G35: Ulises Aguilera | H35: 3 | I35: =Jacksonville!I57 -> 1452 | J35: =Jacksonville!J57 -> 117 | K35: =IFERROR(1-(J35/I35),"") -> 0.919 | L35: =Jacksonville!U57 -> 906 | M35: =Jacksonville!V57 -> 904 | N35: =IFERROR(SUM(M35/L35),"") -> 0.9978 | O35: =Jacksonville!X57 -> 2 | P35: =IFERROR(SUM(1-O35/M35),"") -> 0.9978 | Q35: =Jacksonville!AC57 -> 1422 | R35: =Jacksonville!AD57 -> 134 | S35: =IFERROR(SUM(Q35/(Q35+R35)),"") -> 0.9139 | T35: =Jacksonville!AF57 -> 1653 | U35: =Jacksonville!AG57 -> 132 | V35: =IFERROR(SUM(U35/T35),"") -> 0.08 | W35: =Jacksonville!AI57 -> 59 | X35: =Jacksonville!AJ57 -> 3 | Y35: 0.949 | Z35: =Jacksonville!AL57 -> 1092 | AA35: =Jacksonville!AM57 -> 83 | AB35: =IFERROR(AA35/Z35,"") -> 0.076 | AC35: =Jacksonville!Z57 -> 235 | AD35: =Jacksonville!AA57 -> 216 | AE35: 0.9191 | AF35: =Jacksonville!AO57 -> 906 | AG35: =Jacksonville!AP57 -> 899 | AH35: =IFERROR(SUM(AG35/AF35),"") -> 0.9923 | AI35: ='Florida Panhandle'!AR35 -> 14 | AJ35: ='Florida Panhandle'!AS35 -> 14 | AK35: =IFERROR(SUM(AJ35/AI35),"") -> 1 | AL35: =Jacksonville!AU57 -> 906 | AM35: =Jacksonville!AV57 -> 898 | AN35: =IFERROR(SUM(AM35/AL35),"") -> 0.991 | AO35: =Jacksonville!BB57 -> 11 | AP35: =Jacksonville!AZ57 -> 22 | AQ35: =Jacksonville!BD57 -> 0.1806 | AR35: 0.0152 | AT35: =Jacksonville!BF57 -> 803 | AU35: =Jacksonville!BG57 -> 629 | AV35: 0.7833 | AW35: =Jacksonville!BI57 -> 988 | AX35: =Jacksonville!BJ57 -> 871 | AY35: =IFERROR(SUM(AX35/AW35),"") -> 0.8816 | AZ35: =IFERROR(SUM(AU35,AX35)/SUM(AT35,AW35),"") -> 0.8375 | BA35: =Jacksonville!BM57 -> 988 | BB35: =Jacksonville!BN57 -> 66 | BC35: 0.0668 | BD35: =Jacksonville!BP57 -> 76 | BE35: =Jacksonville!BQ57 -> 65 | BF35: 0.855
F36: Florida Panhandle | G36: Roger Jones | H36: 3 | I36: ='Florida Panhandle'!I69 -> 44 | J36: ='Florida Panhandle'!J69 -> 7 | K36: 0.841 | L36: ='Florida Panhandle'!U69 -> 31 | M36: ='Florida Panhandle'!V69 -> 31 | N36: 1 | O36: ='Florida Panhandle'!X69 -> 2 | P36: 0.9355 | Q36: ='Florida Panhandle'!AC69 -> 49 | R36: ='Florida Panhandle'!AD69 -> 6 | S36: 0.8909 | T36: ='Florida Panhandle'!AF69 -> 61 | U36: ='Florida Panhandle'!AG69 -> 3 | V36: 0.049 | W36: ='Florida Panhandle'!AI69 -> 3 | X36: ='Florida Panhandle'!AJ69 -> 0 | Y36: 1 | Z36: ='Florida Panhandle'!AL69 -> 41 | AA36: ='Florida Panhandle'!AM69 -> 3 | AB36: 0.0732 | AC36: ='Florida Panhandle'!Z69 -> 7 | AD36: ='Florida Panhandle'!AA69 -> 6 | AE36: 0.8571 | AF36: ='Florida Panhandle'!AO69 -> 31 | AG36: ='Florida Panhandle'!AP69 -> 31 | AH36: 1 | AI36: ='Florida Panhandle'!AR69 -> 3 | AJ36: ='Florida Panhandle'!AS69 -> 3 | AK36: 1 | AL36: ='Florida Panhandle'!AU69 -> 31 | AM36: ='Florida Panhandle'!AV69 -> 31 | AN36: 1 | AO36: ='Florida Panhandle'!BB69 -> 0 | AP36: ='Florida Panhandle'!AZ69 -> 0 | AQ36: ='Florida Panhandle'!BD69 -> 0 | AR36: 0 | AT36: ='Florida Panhandle'!BF69 -> 12 | AU36: ='Florida Panhandle'!BG69 -> 8 | AV36: 0.6667 | AW36: ='Florida Panhandle'!BI69 -> 52 | AX36: ='Florida Panhandle'!BJ69 -> 38 | AY36: =IFERROR(SUM(AX36/AW36),"") -> 0.7308 | AZ36: =IFERROR(SUM(AU36,AX36)/SUM(AT36,AW36),"") -> 0.7188 | BA36: ='Florida Panhandle'!BM69 -> 52 | BB36: ='Florida Panhandle'!BN69 -> 3 | BC36: 0.0577 | BD36: ='Florida Panhandle'!BP69 -> 8 | BE36: ='Florida Panhandle'!BQ69 -> 6 | BF36: 0.75
G37: Rochard Jean | H37: 3 | I37: ='Florida Panhandle'!I104 -> 478 | J37: ='Florida Panhandle'!J104 -> 45 | K37: 0.906 | L37: ='Florida Panhandle'!U104 -> 324 | M37: ='Florida Panhandle'!V104 -> 322 | N37: 0.9938 | O37: ='Florida Panhandle'!X104 -> 4 | P37: 0.9876 | Q37: ='Florida Panhandle'!AC104 -> 485 | R37: ='Florida Panhandle'!AD104 -> 21 | S37: 0.9585 | T37: ='Florida Panhandle'!AF104 -> 550 | U37: ='Florida Panhandle'!AG104 -> 42 | V37: 0.076 | W37: ='Florida Panhandle'!AI104 -> 26 | X37: ='Florida Panhandle'!AJ104 -> 3 | Y37: 0.885 | Z37: ='Florida Panhandle'!AL104 -> 369 | AA37: ='Florida Panhandle'!AM104 -> 45 | AB37: 0.122 | AC37: ='Florida Panhandle'!Z104 -> 74 | AD37: ='Florida Panhandle'!AA104 -> 67 | AE37: 0.9054 | AF37: ='Florida Panhandle'!AO104 -> 324 | AG37: ='Florida Panhandle'!AP104 -> 323 | AH37: 0.9969 | AI37: ='Florida Panhandle'!AR104 -> 38 | AJ37: ='Florida Panhandle'!AS104 -> 37 | AK37: 0.9737 | AL37: ='Florida Panhandle'!AU104 -> 324 | AM37: ='Florida Panhandle'!AV104 -> 322 | AN37: 0.994 | AO37: ='Florida Panhandle'!BB104 -> 30 | AP37: ='Florida Panhandle'!AZ104 -> 30 | AQ37: ='Florida Panhandle'!BD104 -> 1 | AR37: 0.0628 | AT37: ='Florida Panhandle'!BF104 -> 281 | AU37: ='Florida Panhandle'!BG104 -> 217 | AV37: 0.7722 | AW37: ='Florida Panhandle'!BI104 -> 314 | AX37: ='Florida Panhandle'!BJ104 -> 264 | AY37: =IFERROR(SUM(AX37/AW37),"") -> 0.8408 | AZ37: =IFERROR(SUM(AU37,AX37)/SUM(AT37,AW37),"") -> 0.8084 | BA37: ='Florida Panhandle'!BM104 -> 314 | BB37: ='Florida Panhandle'!BN104 -> 14 | BC37: 0.0446 | BD37: ='Florida Panhandle'!BP104 -> 19 | BE37: ='Florida Panhandle'!BQ104 -> 13 | BF37: 0.684
F38: Lake/Orlando | G38: Ramon Rosario | H38: =IF(AN38="","",IFERROR(IF(K38>=92%,3.5,0)+IF(AE38>=92.5%,3.5,0)+IF(AN38>=98.5%,3,0),"")) -> 10 | I38: ='Lake-Orlando'!I31 -> 94 | J38: ='Lake-Orlando'!J31 -> 6 | K38: =IFERROR(1-(J38/I38),"") -> 0.936 | L38: ='Lake-Orlando'!U31 -> 70 | M38: ='Lake-Orlando'!V31 -> 70 | N38: =IFERROR(SUM(M38/L38),"") -> 1 | O38: ='Lake-Orlando'!X31 -> 1 | P38: =IFERROR(SUM(1-O38/M38),"") -> 0.9857 | Q38: ='Lake-Orlando'!AC31 -> 99 | R38: ='Lake-Orlando'!AD31 -> 0 | S38: =IFERROR(SUM(Q38/(Q38+R38)),"") -> 1 | T38: ='Lake-Orlando'!AF31 -> 104 | U38: ='Lake-Orlando'!AG31 -> 6 | V38: =IFERROR(SUM(U38/T38),"") -> 0.058 | W38: ='Lake-Orlando'!AI31 -> 6 | X38: ='Lake-Orlando'!AJ31 -> 0 | Y38: =IFERROR(1-(SUM(X38/W38)),"") -> 1 | Z38: ='Lake-Orlando'!AL31 -> 87 | AA38: ='Lake-Orlando'!AM31 -> 4 | AB38: 0.046 | AC38: ='Lake-Orlando'!Z31 -> 12 | AD38: ='Lake-Orlando'!AA31 -> 12 | AE38: =IFERROR(SUM(AD38/AC38),"") -> 1 | AF38: ='Lake-Orlando'!AO31 -> 70 | AG38: ='Lake-Orlando'!AP31 -> 70 | AH38: =IFERROR(SUM(AG38/AF38),"") -> 1 | AI38: ='Lake-Orlando'!AR31 -> 15 | AJ38: ='Lake-Orlando'!AS31 -> 15 | AK38: =IFERROR(SUM(AJ38/AI38),"") -> 1 | AL38: ='Lake-Orlando'!AU31 -> 70 | AM38: ='Lake-Orlando'!AV31 -> 70 | AN38: =IFERROR(SUM(AM38/AL38),"") -> 1 | AO38: ='Lake-Orlando'!BB31 -> 2 | AP38: ='Lake-Orlando'!AZ31 -> 3 | AQ38: ='Lake-Orlando'!BD31 -> 0.375 | AR38: =IFERROR(AP38/(I38),"") -> 0.0319 | AT38: ='Lake-Orlando'!BF31 -> 61 | AU38: ='Lake-Orlando'!BG31 -> 48 | AV38: =IFERROR(SUM(AU38/AT38),"") -> 0.7869 | AW38: ='Lake-Orlando'!BI31 -> 26 | AX38: ='Lake-Orlando'!BJ31 -> 24 | AY38: =IFERROR(SUM(AX38/AW38),"") -> 0.9231 | AZ38: =IFERROR(SUM(AU38,AX38)/SUM(AT38,AW38),"") -> 0.8276 | BA38: ='Lake-Orlando'!BM31 -> 52 | BB38: ='Lake-Orlando'!BN31 -> 4 | BC38: =BB38/BA38 -> 0.0769 | BD38: ='Lake-Orlando'!BP31 -> 3 | BE38: ='Lake-Orlando'!BQ31 -> 3 | BF38: 1
G39: Eugen Cravcenco | H39: =IF(AN39="","",IFERROR(IF(K39>=92%,3.5,0)+IF(AE39>=92.5%,3.5,0)+IF(AN39>=98.5%,3,0),"")) -> 6.5 | I39: ='Lake-Orlando'!I80 -> 858 | J39: ='Lake-Orlando'!J80 -> 67 | K39: =IFERROR(1-(J39/I39),"") -> 0.922 | L39: ='Lake-Orlando'!U80 -> 617 | M39: ='Lake-Orlando'!V80 -> 615 | N39: =IFERROR(SUM(M39/L39),"") -> 0.9968 | O39: ='Lake-Orlando'!X80 -> 6 | P39: =IFERROR(SUM(1-O39/M39),"") -> 0.9902 | Q39: ='Lake-Orlando'!AC80 -> 888 | R39: ='Lake-Orlando'!AD80 -> 38 | S39: =IFERROR(SUM(Q39/(Q39+R39)),"") -> 0.959 | T39: ='Lake-Orlando'!AF80 -> 985 | U39: ='Lake-Orlando'!AG80 -> 85 | V39: =IFERROR(SUM(U39/T39),"") -> 0.086 | W39: ='Lake-Orlando'!AI80 -> 25 | X39: ='Lake-Orlando'!AJ80 -> 3 | Y39: =IFERROR(1-(SUM(X39/W39)),"") -> 0.88 | Z39: ='Lake-Orlando'!AL80 -> 652 | AA39: ='Lake-Orlando'!AM80 -> 0 | AB39: 0 | AC39: ='Lake-Orlando'!Z80 -> 178 | AD39: ='Lake-Orlando'!AA80 -> 164 | AE39: =IFERROR(SUM(AD39/AC39),"") -> 0.9213 | AF39: ='Lake-Orlando'!AO80 -> 617 | AG39: ='Lake-Orlando'!AP80 -> 612 | AH39: =IFERROR(SUM(AG39/AF39),"") -> 0.9919 | AI39: ='Lake-Orlando'!AR80 -> 179 | AJ39: ='Lake-Orlando'!AS80 -> 177 | AK39: =IFERROR(SUM(AJ39/AI39),"") -> 0.9888 | AL39: ='Lake-Orlando'!AU80 -> 617 | AM39: ='Lake-Orlando'!AV80 -> 610 | AN39: =IFERROR(SUM(AM39/AL39),"") -> 0.989 | AO39: ='Lake-Orlando'!BB80 -> 0 | AP39: ='Lake-Orlando'!AZ80 -> 0 | AQ39: ='Lake-Orlando'!BD80 -> 0 | AR39: =IFERROR(AP39/(I39),"") -> 0 | AT39: ='Lake-Orlando'!BF80 -> 550 | AU39: ='Lake-Orlando'!BG80 -> 414 | AV39: =IFERROR(SUM(AU39/AT39),"") -> 0.7527 | AW39: ='Lake-Orlando'!BI80 -> 526 | AX39: ='Lake-Orlando'!BJ80 -> 471 | AY39: ='Lake-Orlando'!BK80 -> 0.8954 | AZ39: ='Lake-Orlando'!BL80 -> 0.8225 | BA39: ='Lake-Orlando'!BM80 -> 526 | BB39: ='Lake-Orlando'!BN80 -> 27 | BC39: =BB39/BA39 -> 0.0513 | BD39: ='Lake-Orlando'!BP80 -> 35 | BE39: ='Lake-Orlando'!BQ80 -> 34 | BF39: 0.971
G40: Jesse Buckler | H40: =IF(AN40="","",IFERROR(IF(K40>=92%,3.5,0)+IF(AE40>=92.5%,3.5,0)+IF(AN40>=98.5%,3,0),"")) -> 6.5 | I40: ='Lake-Orlando'!I53 -> 386 | J40: ='Lake-Orlando'!J53 -> 24 | K40: =IFERROR(1-(J40/I40),"") -> 0.938 | L40: ='Lake-Orlando'!U53 -> 276 | M40: ='Lake-Orlando'!V53 -> 275 | N40: =IFERROR(SUM(M40/L40),"") -> 0.9964 | O40: ='Lake-Orlando'!X53 -> 1 | P40: =IFERROR(SUM(1-O40/M40),"") -> 0.9964 | Q40: ='Lake-Orlando'!AC53 -> 427 | R40: ='Lake-Orlando'!AD53 -> 6 | S40: =IFERROR(SUM(Q40/(Q40+R40)),"") -> 0.9861 | T40: ='Lake-Orlando'!AF53 -> 471 | U40: ='Lake-Orlando'!AG53 -> 34 | V40: =IFERROR(SUM(U40/T40),"") -> 0.072 | W40: ='Lake-Orlando'!AI53 -> 15 | X40: ='Lake-Orlando'!AJ53 -> 0 | Y40: =IFERROR(1-(SUM(X40/W40)),"") -> 1 | Z40: ='Lake-Orlando'!AL53 -> 330 | AA40: ='Lake-Orlando'!AM53 -> 0 | AB40: 0 | AC40: ='Lake-Orlando'!Z53 -> 76 | AD40: ='Lake-Orlando'!AA53 -> 63 | AE40: =IFERROR(SUM(AD40/AC40),"") -> 0.8289 | AF40: ='Lake-Orlando'!AO53 -> 276 | AG40: ='Lake-Orlando'!AP53 -> 275 | AH40: =IFERROR(SUM(AG40/AF40),"") -> 0.9964 | AI40: ='Lake-Orlando'!AR53 -> 64 | AJ40: ='Lake-Orlando'!AS53 -> 64 | AK40: =IFERROR(SUM(AJ40/AI40),"") -> 1 | AL40: ='Lake-Orlando'!AU53 -> 276 | AM40: ='Lake-Orlando'!AV53 -> 274 | AN40: =IFERROR(SUM(AM40/AL40),"") -> 0.993 | AO40: ='Lake-Orlando'!BB53 -> 0 | AP40: ='Lake-Orlando'!AZ53 -> 0 | AQ40: ='Lake-Orlando'!BD53 -> 0 | AR40: =IFERROR(AP40/(I40),"") -> 0 | AT40: ='Lake-Orlando'!BF53 -> 249 | AU40: ='Lake-Orlando'!BG53 -> 186 | AV40: =IFERROR(SUM(AU40/AT40),"") -> 0.747 | AW40: ='Lake-Orlando'!BI53 -> 260 | AX40: ='Lake-Orlando'!BJ53 -> 219 | AY40: =IFERROR(SUM(AX40/AW40),"") -> 0.8423 | AZ40: =IFERROR(SUM(AU40,AX40)/SUM(AT40,AW40),"") -> 0.7957 | BA40: ='Lake-Orlando'!BM53 -> 260 | BB40: ='Lake-Orlando'!BN53 -> 22 | BC40: =BB40/BA40 -> 0.0846 | BD40: ='Lake-Orlando'!BP53 -> 28 | BE40: ='Lake-Orlando'!BQ53 -> 28 | BF40: 1
G41: Mikhail Korzunin | H41: =IF(AN41="","",IFERROR(IF(K41>=92%,3.5,0)+IF(AE41>=92.5%,3.5,0)+IF(AN41>=98.5%,3,0),"")) -> 6.5 | I41: ='Lake-Orlando'!I104 -> 120 | J41: ='Lake-Orlando'!J104 -> 10 | K41: =IFERROR(1-(J41/I41),"") -> 0.917 | L41: ='Lake-Orlando'!U104 -> 80 | M41: ='Lake-Orlando'!V104 -> 80 | N41: =IFERROR(SUM(M41/L41),"") -> 1 | O41: ='Lake-Orlando'!X104 -> 0 | P41: =IFERROR(SUM(1-O41/M41),"") -> 1 | Q41: ='Lake-Orlando'!AC104 -> 118 | R41: ='Lake-Orlando'!AD104 -> 9 | S41: =IFERROR(SUM(Q41/(Q41+R41)),"") -> 0.9291 | T41: ='Lake-Orlando'!AF104 -> 128 | U41: ='Lake-Orlando'!AG104 -> 10 | V41: =IFERROR(SUM(U41/T41),"") -> 0.078 | W41: ='Lake-Orlando'!AI104 -> 14 | X41: ='Lake-Orlando'!AJ104 -> 0 | Y41: =IFERROR(1-(SUM(X41/W41)),"") -> 1 | Z41: ='Lake-Orlando'!AL104 -> 97 | AA41: ='Lake-Orlando'!AM104 -> 0 | AB41: =IFERROR(AA41/Z41,"") -> 0 | AC41: ='Lake-Orlando'!Z104 -> 20 | AD41: ='Lake-Orlando'!AA104 -> 20 | AE41: =IFERROR(SUM(AD41/AC41),"") -> 1 | AF41: ='Lake-Orlando'!AO104 -> 80 | AG41: ='Lake-Orlando'!AP104 -> 80 | AH41: =IFERROR(SUM(AG41/AF41),"") -> 1 | AI41: ='Lake-Orlando'!AR104 -> 38 | AJ41: ='Lake-Orlando'!AS104 -> 38 | AK41: =IFERROR(SUM(AJ41/AI41),"") -> 1 | AL41: ='Lake-Orlando'!AU104 -> 80 | AM41: ='Lake-Orlando'!AV104 -> 80 | AN41: =IFERROR(SUM(AM41/AL41),"") -> 1 | AO41: ='Lake-Orlando'!BB104 -> 0 | AP41: ='Lake-Orlando'!AZ104 -> 0 | AQ41: ='Lake-Orlando'!BD54 -> 0 | AR41: =IFERROR(AP41/(I41),"") -> 0 | AT41: ='Lake-Orlando'!BF104 -> 92 | AU41: ='Lake-Orlando'!BG104 -> 67 | AV41: =IFERROR(SUM(AU41/AT41),"") -> 0.7283 | AW41: ='Lake-Orlando'!BI104 -> 64 | AX41: ='Lake-Orlando'!BJ104 -> 54 | AY41: =IFERROR(SUM(AX41/AW41),"") -> 0.8438 | AZ41: =IFERROR(SUM(AU41,AX41)/SUM(AT41,AW41),"") -> 0.7756 | BA41: ='Lake-Orlando'!BM104 -> 64 | BB41: ='Lake-Orlando'!BN104 -> 3 | BC41: =BB41/BA41 -> 0.0469 | BD41: ='Lake-Orlando'!BP104 -> 1 | BE41: ='Lake-Orlando'!BQ104 -> 1 | BF41: 1
G43: Florida Team
G44: Supervisor | H44: Score | K44: FTR
G45: Winston Issacs | H45: =IFERROR(VLOOKUP(G45,$G$19:$H$41,2,FALSE),"") -> 10 | K45: =IFERROR(VLOOKUP(G45,$G$19:$S$41,5,FALSE),"") -> 0.95
G46: Steve Goff | H46: =IFERROR(VLOOKUP(G46,$G$19:$H$41,2,FALSE),"") -> 10 | K46: =IFERROR(VLOOKUP(G46,$G$19:$S$41,5,FALSE),"") -> 0.94
B47: Stretch Goal Challenge | G47: Arcadie Adam | H47: =IFERROR(VLOOKUP(G47,$G$19:$H$41,2,FALSE),"") -> 10 | K47: =IFERROR(VLOOKUP(G47,$G$19:$S$41,5,FALSE),"") -> 0.938
G48: Ramon Rosario | H48: =IFERROR(VLOOKUP(G48,$G$19:$H$41,2,FALSE),"") -> 10 | K48: =IFERROR(VLOOKUP(G48,$G$19:$S$41,5,FALSE),"") -> 0.936 | V48: September Challenge
G49: Mikalai Mikhitarau | H49: =IFERROR(VLOOKUP(G49,$G$19:$H$41,2,FALSE),"") -> 10 | K49: =IFERROR(VLOOKUP(G49,$G$19:$S$41,5,FALSE),"") -> 0.923
G50: Ivan Myhovych | H50: =IFERROR(VLOOKUP(G50,$G$19:$H$41,2,FALSE),"") -> 10 | K50: =IFERROR(VLOOKUP(G50,$G$19:$S$41,5,FALSE),"") -> 0.922
G51: Shante Miller | H51: =IFERROR(VLOOKUP(G51,$G$19:$H$41,2,FALSE),"") -> 6.5 | K51: =IFERROR(VLOOKUP(G51,$G$19:$S$41,5,FALSE),"") -> 0.941
G52: Jesse Buckler | H52: =IFERROR(VLOOKUP(G52,$G$19:$H$41,2,FALSE),"") -> 6.5 | K52: =IFERROR(VLOOKUP(G52,$G$19:$S$41,5,FALSE),"") -> 0.938
G53: Eugen Cravcenco | H53: =IFERROR(VLOOKUP(G53,$G$19:$H$41,2,FALSE),"") -> 6.5 | K53: =IFERROR(VLOOKUP(G53,$G$19:$S$41,5,FALSE),"") -> 0.922
G54: Mikhail Korzunin | H54: =IFERROR(VLOOKUP(G54,$G$19:$H$41,2,FALSE),"") -> 6.5 | K54: =IFERROR(VLOOKUP(G54,$G$19:$S$41,5,FALSE),"") -> 0.917
G55: Lucius Deisan | H55: =IFERROR(VLOOKUP(G55,$G$19:$H$41,2,FALSE),"") -> 6.5 | K55: =IFERROR(VLOOKUP(G55,$G$19:$S$41,5,FALSE),"") -> 0.917 | S55: FTR - 92.5%
G56: Jose Barbecho | H56: =IFERROR(VLOOKUP(G56,$G$19:$H$41,2,FALSE),"") -> 6.5 | K56: =IFERROR(VLOOKUP(G56,$G$19:$S$41,5,FALSE),"") -> 0.917
G57: Enrique Gabino | H57: =IFERROR(VLOOKUP(G57,$G$19:$H$41,2,FALSE),"") -> 6.5 | K57: =IFERROR(VLOOKUP(G57,$G$19:$S$41,5,FALSE),"") -> 0.896 | S57: tNPS - 94.5%
G58: Melvin Gutierrez | H58: =IFERROR(VLOOKUP(G58,$G$19:$H$41,2,FALSE),"") -> 3.5 | K58: =IFERROR(VLOOKUP(G58,$G$19:$S$41,5,FALSE),"") -> 0.906
G59: Stephen Vanhoose | H59: =IFERROR(VLOOKUP(G59,$G$19:$H$41,2,FALSE),"") -> 3.5 | K59: =IFERROR(VLOOKUP(G59,$G$19:$S$41,5,FALSE),"") -> 0.867 | S59: Tool Usage -99%
G60: Ulises Aguilera | H60: =IFERROR(VLOOKUP(G60,$G$19:$H$41,2,FALSE),"") -> 3 | K60: =IFERROR(VLOOKUP(G60,$G$19:$S$41,5,FALSE),"") -> 0.919
G61: Alexander Fontes | H61: =IFERROR(VLOOKUP(G61,$G$19:$H$41,2,FALSE),"") -> 3 | K61: =IFERROR(VLOOKUP(G61,$G$19:$S$41,5,FALSE),"") -> 0.918
G62: Alexandr Sviridov | H62: =IFERROR(VLOOKUP(G62,$G$19:$H$41,2,FALSE),"") -> 3 | K62: =IFERROR(VLOOKUP(G62,$G$19:$S$41,5,FALSE),"") -> 0.894
G63: Roger Jones | H63: =IFERROR(VLOOKUP(G63,$G$19:$H$41,2,FALSE),"") -> 3 | K63: =IFERROR(VLOOKUP(G63,$G$19:$S$41,5,FALSE),"") -> 0.841
G64: Hryhorii Novak | H64: 1 | K64: 1.844
G65: Adiel Montesino | H65: =IFERROR(VLOOKUP(G65,$G$19:$H$41,2,FALSE),"") -> 0 | K65: =IFERROR(VLOOKUP(G65,$G$19:$S$41,5,FALSE),"") -> 0.903
G66: Robert Harris | H66: =IFERROR(VLOOKUP(G66,$G$19:$H$41,2,FALSE),"") -> 0 | K66: =IFERROR(VLOOKUP(G66,$G$19:$S$41,5,FALSE),"") -> 0.894
G67: Rochard Jean | H67: 0 | K67: 0.844

Sheet West Palm Beach
A1: 45373
F3: Enrique Gabino | BY3: Enrique Gabino
F5: ='Florida Manager Performance'!$G$3 -> Start Date:9/22/2024, End Date: 10/13/2024 | CL5: From | CO5: =$BU$17 -> 2024-03-22 | CR5: To | CU5: =$BV$17 -> 2024-03-29
F6: Tech Name | G6: Tech ID | H6: Score | I6: Total Jobs | J6: Jobs FTR | K6: FTR | L6: Total Jobs | M6: Total Installs | N6: Total SOI | O6: SOI | P6: Total TC's | Q6: Total Repeats | R6: Repeats | S6: Total Rework | T6: Rework | U6: Jobs | V6: Pass | W6: PHT | X6: Pure Pass Fails | Y6: PHT Pure Pass | Z6: Tot Surv | AA6: Tot Fail | AB6: tNPS | AC6: Calls Met | AD6: Calls Missed | AE6: OTA | AF6: Total Jobs | AG6: Callback | AH6: Contact w/in 48hrs | AI6: Total Jobs | AJ6: Total Invalid | AK6: % Valid RTM | AL6: Jobs | AM6: Pictures Uploaded | AN6: ML Bonding Compliance | AO6: Total Jobs | AP6: Total Comp | AQ6: Ingress Test Ran | AR6: Number of Drops | AS6: One Drop Usage | AT6: One Drop | AU6: Tool Usage Jobs | AV6: Tool Usage | AW6: Tool Usage Rate | AX6: Average Time in Home - Installs | AY6: Average Time in Home - TC's | AZ6: QC Audits Completed | BA6: Average Score | BB6: QB Audits Completed | BC6: Average Score | BD6: >=2 QA/QB Compliance | BF6: Total Installs | BG6: Completed | BH6: Install Completion % | BI6: Total TC's | BJ6: Completed | BK6: TC Completion % | BL6: Total Completion % | BM6: TC's | BN6: TC Cancels | BO6: Cancel Rate | BP6: Not Home Jobs | BQ6: CNH Initiate | BR6: T360 CNH | BY6: Tech Name | BZ6: Tech ID | CA6: Score | CB6: Total Jobs | CC6: Jobs FTR | CD6: FTR | CE6: Jobs | CF6: Pass | CG6: PHT | CH6: Pure Pass Fails | CI6: PHT Pure Pass | CJ6: Tot Surv | CK6: Tot Fail | CL6: tNPS | CM6: Calls Met | CN6: Calls Missed | CO6: OTA | CP6: Total Jobs | CQ6: Callback | CR6: Contact w/in 48hrs | CS6: Total Jobs | CT6: Total Invalid | CU6: % Valid RTM | CV6: Total Jobs | CW6: Total Comp | CX6: Ingress Test Ran | CY6: Number of Drops | CZ6: One Drop Usage | DA6: One Drop | DB6: Tool Usage Jobs | DC6: Tool Usage | DD6: Tool Usage Rate | DE6: Total Installs | DF6: Completed | DG6: Install Completion % | DH6: Total TC's | DI6: Completed | DJ6: TC Completion % | DK6: Total Completion %
F8: Enrique Gabino | G8: 7564 | H8: =IF(AW8="","",IFERROR(IF(K8>=92%,3.5,0)+IF(AB8>=92.5%,3.5,0)+IF(AW8>=98.5%,3,0),"")) ->  | I8: =IF(G8="","",SUMIFS('NSR WO Details'!$AG:$AG,'NSR WO Details'!$N:$N,G8,'NSR WO Details'!$F:$F,"FLORIDA")) -> 0 | J8: =IF(G8="","",COUNTIFS('FTR Detail'!$P:$P,G8,'FTR Detail'!$H:$H,"=FLORIDA")) -> 0 | K8: =IFERROR(1-(J8/I8),"") ->  | L8: =IF(G8="","",SUMIF('Florida Rework'!$E:$E,$G8,'Florida Rework'!$H:$H)) -> 0 | M8: =IF(G8="","",SUMIF('Florida Rework'!$E:$E,$G8,'Florida Rework'!$I:$I)) -> 0 | N8: =IF(G8="","",SUMIF('Florida Rework'!$E:$E,$G8,'Florida Rework'!$M:$M)) -> 0 | O8: =IFERROR(SUM(N8/M8),"") ->  | P8: =IF(G8="","",SUMIF('Florida Rework'!$E:$E,$G8,'Florida Rework'!$J:$J)) -> 0 | Q8: =IF(G8="","",SUMIF('Florida Rework'!$E:$E,$G8,'Florida Rework'!$O:$O)) -> 0 | R8: =IFERROR(SUM(Q8/P8),"") ->  | S8: =IFERROR(SUM(N8+Q8),"") -> 0 | T8: =IFERROR(SUM(S8/L8),"") ->  | U8: =IF(G8="","",SUMIFS('Tool Usage Details'!$Q:$Q,'Tool Usage Details'!$I:$I,G8,'Tool Usage Details'!$G:$G,"FLORIDA REGION")) -> 0 | V8: =IF(G8="","",COUNTIFS('Tool Usage Details'!$I:$I,G8,'Tool Usage Details'!$S:$S,"PASS",'Tool Usage Details'!$G:$G,"FLORIDA REGION")) -> 0 | W8: =IFERROR(SUM(V8/U8),"") ->  | X8: =IF(G8="","",COUNTIFS('Tool Usage Details'!$I:$I,G8,'Tool Usage Details'!$R:$R,"PWW",'Tool Usage Details'!G:G,"FLORIDA REGION")+COUNTIFS('Tool Usage Details'!$I:$I,G8,'Tool Usage Details'!$R:$R,"PWO",'Tool Usage Details'!$G:$G,"FLORIDA REGION")) -> 0 | Y8: =IFERROR(1-(X8/V8),"") ->  | Z8: =IF(G8="","",SUMIFS('NSR WO Details'!$Z:$Z,'NSR WO Details'!$N:$N,G8,'NSR WO Details'!$F:$F,"FLORIDA")) -> 0 | AA8: =IF(G8="","",SUMIFS('NSR WO Details'!$AA:$AA,'NSR WO Details'!$N:$N,G8,'NSR WO Details'!$F:$F,"FLORIDA")) -> 0 | AB8: =IF(G8="","",IFERROR((AA8/Z8),"")) ->  | AC8: =IF(G8="","",COUNTIFS('NSR WO Details'!$N:$N,G8,'NSR WO Details'!$W:$W,"Met",'NSR WO Details'!$F:$F,"FLORIDA")) -> 0 | AD8: =IF(G8="","",COUNTIFS('NSR WO Details'!$N:$N,G8,'NSR WO Details'!$W:$W,"Missed",'NSR WO Details'!$F:$F,"FLORIDA")) -> 0 | AE8: =IFERROR(SUM(AC8/(AC8+AD8)),"") ->  | AF8: =IF(G8="","",COUNTIFS('NSR WO Details'!$N:$N,G8,'NSR WO Details'!$F:$F,"FLORIDA")) -> 0 | AG8: =IF(G8="","",SUMIFS('NSR WO Details'!$AE:$AE,'NSR WO Details'!$N:$N,G8,'NSR WO Details'!$F:$F,"FLORIDA")) -> 0 | AH8: =IFERROR(SUM(AG8/AF8),"") ->  | AI8: =IF(G8="","",SUMIFS('RTM Results'!$AT:$AT,'RTM Results'!$DD:$DD,G8,'RTM Results'!$P:$P,"Florida")) -> 0 | AJ8: =IF(G8="","",SUMIFS('RTM Results'!$AP:$AP,'RTM Results'!$DD:$DD,G8,'RTM Results'!$P:$P,"Florida")) -> 0 | AK8: =IFERROR(1-(SUM(AJ8/AI8)),"") ->  | AL8: =SUMIFS('ML Bonding Compliance'!$AC:$AC,'ML Bonding Compliance'!$S:$S,$G8,'ML Bonding Compliance'!$F:$F,"FLORIDA") -> 0 | AM8: =SUMIFS('ML Bonding Compliance'!$AE:$AE,'ML Bonding Compliance'!$S:$S,$G8,'ML Bonding Compliance'!$F:$F,"FLORIDA") -> 0 | AN8: =IFERROR(SUM(AM8/AL8),"") ->  | AO8: =IF(G8="","",SUMIFS('Tool Usage Details'!$T:$T,'Tool Usage Details'!$I:$I,G8,'Tool Usage Details'!$G:$G,"FLORIDA REGION")) -> 0 | AP8: =IF(G8="","",COUNTIFS('Tool Usage Details'!$I:$I,G8,'Tool Usage Details'!$U:$U,"PASS",'Tool Usage Details'!$G:$G,"FLORIDA REGION")) -> 0 | AQ8: =IFERROR(SUM(AP8/AO8),"") ->  | AR8: =IF(G8="","",SUMIFS('One Drop'!$AB:$AB,'One Drop'!$P:$P,G8,'One Drop'!$L:$L,"FLORIDA REGION")) -> 0 | AS8: =IF(G8="","",SUMIFS('One Drop'!$AA:$AA,'One Drop'!$P:$P,G8,'One Drop'!$L:$L,"FLORIDA REGION")) -> 0 | AT8: =IFERROR(SUM(AS8/AR8),"") ->  | AU8: =IF(G8="","",SUMIFS('NSR WO Details'!$AK:$AK,'NSR WO Details'!$N:$N,G8,'NSR WO Details'!$F:$F,"FLORIDA")) -> 0 | AV8: =IF(G8="","",SUMIFS('NSR WO Details'!$AL:$AL,'NSR WO Details'!$N:$N,G8,'NSR WO Details'!$F:$F,"FLORIDA")) -> 0 | AW8: =IFERROR(SUM(AV8/AU8),"") ->  | AX8: =IF(OR($I8=0,$I8=""),"",SUMIFS('Time in Home'!$L:$L,'Time in Home'!$I:$I,$G8,'Time in Home'!$E:$E,"FLORIDA REGION")) ->  | AY8: =IF(OR($I8=0,$I8=""),"",SUMIFS('Time in Home'!$P:$P,'Time in Home'!$I:$I,$G8,'Time in Home'!$E:$E,"FLORIDA REGION")) ->  | AZ8: =SUMIFS('TQI BP Tech Compliance'!$N:$N,'TQI BP Tech Compliance'!$L:$L,$G8,'TQI BP Tech Compliance'!$F:$F,"FLORIDA REGION") -> 0 | BA8: =SUMIFS('TQI BP Tech Compliance'!$AI:$AI,'TQI BP Tech Compliance'!$L:$L,$G8,'TQI BP Tech Compliance'!$F:$F,"FLORIDA REGION") -> 0 | BB8: =SUMIFS('TQI BP Tech Compliance'!$AB:$AB,'TQI BP Tech Compliance'!$L:$L,$G8,'TQI BP Tech Compliance'!$F:$F,"FLORIDA REGION") -> 0 | BC8: =IFERROR(SUMIFS('TQI BP Tech Compliance'!$AA:$AA,'TQI BP Tech Compliance'!$L:$L,$G8,'TQI BP Tech Compliance'!$F:$F,"FLORIDA REGION")/BB8,"") ->  | BD8: =IFERROR(SUMIFS('TQI BP Tech Compliance'!$Q:$Q,'TQI BP Tech Compliance'!$L:$L,$G8,'TQI BP Tech Compliance'!$F:$F,"FLORIDA REGION"),"") -> 0 | BE8: Enrique Gabino | BF8: =IF(G8="","",SUMIFS(Completion!$CH:$CH,Completion!$AC:$AC,G8,Completion!$N:$N,"Install",Completion!$E:$E,"Florida")) -> 0 | BG8: =IF(G8="","",SUMIFS(Completion!$AL:$AL,Completion!$AC:$AC,G8,Completion!$N:$N,"Install",Completion!$E:$E,"Florida")) -> 0 | BH8: =IFERROR(SUM(BG8/BF8),"") ->  | BI8: =IF(G8="","",SUMIFS(Completion!$CH:$CH,Completion!$AC:$AC,G8,Completion!$N:$N,"TC",Completion!$E:$E,"Florida")) -> 0 | BJ8: =IF(G8="","",SUMIFS(Completion!$AL:$AL,Completion!$AC:$AC,G8,Completion!$N:$N,"TC",Completion!$E:$E,"Florida")) -> 0 | BK8: =IFERROR(SUM(BJ8/BI8),"") ->  | BL8: =IFERROR(SUM(BG8,BJ8)/SUM(BF8,BI8),"") ->  | BM8: =COUNTIFS(Completion!$AC:$AC,$G8,Completion!$E:$E,"FLORIDA",Completion!$N:$N,"TC") -> 0 | BN8: =COUNTIFS(Completion!$AC:$AC,$G8,Completion!$E:$E,"FLORIDA",Completion!$N:$N,"TC",Completion!$BA:$BA,"Customer") -> 0 | BO8: =IFERROR(SUM(BN8/BM8),"") ->  | BP8: =IF(SUMIFS('T360 CNH'!V:V,'T360 CNH'!J:J,G8,'T360 CNH'!I:I,"Florida")=0,"",SUMIFS('T360 CNH'!V:V,'T360 CNH'!J:J,G8,'T360 CNH'!I:I,"Florida")) ->  | BQ8: =IF(BP8="","",SUMIFS('T360 CNH'!S:S,'T360 CNH'!J:J,G8,'T360 CNH'!I:I,"Florida")) ->  | BR8: =IFERROR(SUM(BQ8/BP8),"") ->  | BY8: Enrique Gabino (Off Wed) | BZ8: 7564 | CA8: =IF(DD8="","",IFERROR(IF(CD8>=92%,3.5,0)+IF(CL8>=92.5%,3.5,0)+IF(DD8>=98.5%,3,0),"")) ->  | CB8: =IF(BZ8="","",SUMIFS('NSR WO Details'!$AG:$AG,'NSR WO Details'!$N:$N,BZ8,'NSR WO Details'!$F:$F,"FLORIDA",'NSR WO Details'!AI:AI,">="&$BU$17,'NSR WO Details'!AI:AI,"<="&$BV$17)) -> 0 | CC8: =IF(BZ8="","",COUNTIFS('FTR Detail'!$P:$P,BZ8,'FTR Detail'!$H:$H,"=FLORIDA",'NSR WO Details'!AI:AI,">="&$BU$17,'NSR WO Details'!AI:AI,"<="&$BV$17)) -> 0 | CD8: =IFERROR(1-(CC8/CB8),"") ->  | CE8: =IF(BZ8="","",SUMIFS('Tool Usage Details'!$Q:$Q,'Tool Usage Details'!$I:$I,BZ8,'Tool Usage Details'!$G:$G,"FLORIDA REGION",'NSR WO Details'!AI:AI,">="&$BU$17,'NSR WO Details'!AJ:AJ,"<="&$BV$17)) -> 0 | CF8: =IF(BZ8="","",COUNTIFS('Tool Usage Details'!$I:$I,BZ8,'Tool Usage Details'!$S:$S,"PASS",'Tool Usage Details'!$G:$G,"FLORIDA REGION",'NSR WO Details'!AI:AI,">="&$BU$17,'NSR WO Details'!AI:AI,"<="&$BV$17)) -> 0 | CG8: =IFERROR(SUM(CF8/CE8),"") ->  | CH8: =IF(BZ8="","",COUNTIFS('Tool Usage Details'!$I:$I,BZ8,'Tool Usage Details'!$R:$R,"PWW",'Tool Usage Details'!$G:$G,"FLORIDA REGION")+COUNTIFS('Tool Usage Details'!$I:$I,BZ8,'Tool Usage Details'!$R:$R,"PWO",'Tool Usage Details'!$G:$G,"FLORIDA REGION",'Tool Usage Details'!E:E,">="&$BU$17,'Tool Usage Details'!E:E,"<="&$BV$17)) -> 0 | CI8: =IFERROR(1-(CH8/CF8),"") ->  | CJ8: =IF(BZ8="","",SUMIFS('NSR WO Details'!$Z:$Z,'NSR WO Details'!$N:$N,BZ8,'NSR WO Details'!$F:$F,"FLORIDA",'NSR WO Details'!AI:AI,">="&$BU$17,'NSR WO Details'!AI:AI,"<="&$BV$17)) -> 0 | CK8: =IF(BZ8="","",SUMIFS('NSR WO Details'!$AA:$AA,'NSR WO Details'!$N:$N,BZ8,'NSR WO Details'!$F:$F,"FLORIDA",'NSR WO Details'!AI:AI,">="&$BU$17,'NSR WO Details'!AI:AI,"<="&$BV$17)) -> 0 | CL8: =IF(BZ8="","",IFERROR((CK8/CJ8),"")) ->  | CM8: =IF(BZ8="","",COUNTIFS('NSR WO Details'!$N:$N,BZ8,'NSR WO Details'!$W:$W,"Met",'NSR WO Details'!$F:$F,"FLORIDA",'NSR WO Details'!AI:AI,">="&$BU$17,'NSR WO Details'!AI:AI,"<="&$BV$17)) -> 0 | CN8: =IF(BZ8="","",COUNTIFS('NSR WO Details'!$N:$N,BZ8,'NSR WO Details'!$W:$W,"Missed",'NSR WO Details'!$F:$F,"FLORIDA",'NSR WO Details'!AI:AI,">="&$BU$17,'NSR WO Details'!AI:AI,"<="&$BV$17)) -> 0 | CO8: =IFERROR(SUM(CM8/(CM8+CN8)),"") ->  | CP8: =IF(BZ8="","",COUNTIFS('NSR WO Details'!$N:$N,BZ8,'NSR WO Details'!$F:$F,"FLORIDA",'NSR WO Details'!AI:AI,">="&$BU$17,'NSR WO Details'!AI:AI,"<="&$BV$17)) -> 0 | CQ8: =IF(BZ8="","",SUMIFS('NSR WO Details'!$AE:$AE,'NSR WO Details'!$N:$N,BZ8,'NSR WO Details'!$F:$F,"FLORIDA",'NSR WO Details'!AI:AI,">="&$BU$17,'NSR WO Details'!AI:AI,"<="&$BV$17)) -> 0 | CR8: =IFERROR(SUM(CQ8/CP8),"") ->  | CS8: =IF(BZ8="","",SUMIFS('RTM Results'!$DG:$DG,'RTM Results'!$BD:$BD,BZ8,'RTM Results'!$O:$O,"Florida",'RTM Results'!H:H,">="&$BU$17,'RTM Results'!H:H,"<="&$BV$17)) -> 0 | CT8: =IF(BZ8="","",SUMIFS('RTM Results'!$DC:$DC,'RTM Results'!$BD:$BD,BZ8,'RTM Results'!$O:$O,"Florida",'RTM Results'!H:H,">="&$BU$17,'RTM Results'!H:H,"<="&$BV$17)) -> 0 | CU8: =IFERROR(1-(SUM(CT8/CS8)),"") ->  | CV8: =IF(BZ8="","",SUMIFS('Tool Usage Details'!$T:$T,'Tool Usage Details'!$I:$I,BZ8,'Tool Usage Details'!$G:$G,"FLORIDA REGION",'Tool Usage Details'!E:E,">="&$BU$17,'Tool Usage Details'!E:E,"<="&$BV$17)) -> 0 | CW8: =IF(BZ8="","",COUNTIFS('Tool Usage Details'!$I:$I,BZ8,'Tool Usage Details'!$U:$U,"PASS",'Tool Usage Details'!$G:$G,"FLORIDA REGION",'Tool Usage Details'!E:E,">="&$BU$17,'Tool Usage Details'!E:E,"<="&$BV$17)) -> 0 | CX8: =IFERROR(SUM(CW8/CV8),"") ->  | CY8: =IF(BZ8="","",SUMIFS('One Drop'!$BV:$BV,'One Drop'!$P:$P,BZ8,'One Drop'!$L:$L,"FLORIDA REGION",'One Drop'!AQ:AQ,">="&$BU$17,'One Drop'!AQ:AQ,"<="&$BV$17)) -> 0 | CZ8: =IF(BZ8="","",SUMIFS('One Drop'!$BQ:$BQ,'One Drop'!$P:$P,BZ8,'One Drop'!$L:$L,"FLORIDA REGION",'One Drop'!AQ:AQ,">="&$BU$17,'One Drop'!AQ:AQ,"<="&$BV$17)) -> 0 | DA8: =IFERROR(SUM(CZ8/CY8),"") ->  | DB8: =IF(BZ8="","",SUMIFS('NSR WO Details'!$AK:$AK,'NSR WO Details'!$N:$N,BZ8,'NSR WO Details'!$F:$F,"FLORIDA",'NSR WO Details'!AI:AI,">="&$BU$17,'NSR WO Details'!AI:AI,"<="&$BV$17)) -> 0 | DC8: =IF(BZ8="","",SUMIFS('NSR WO Details'!$AL:$AL,'NSR WO Details'!$N:$N,BZ8,'NSR WO Details'!$F:$F,"FLORIDA",'NSR WO Details'!AI:AI,">="&$BU$17,'NSR WO Details'!AI:AI,"<="&$BV$17)) -> 0 | DD8: =IFERROR(SUM(DC8/DB8),"") ->  | DE8: =IF(BZ8="","",SUMIFS(Completion!$CJ:$CJ,Completion!$G:$G,BZ8,Completion!$N:$N,"Install",Completion!$E:$E,"Florida",Completion!AA:AA,">="&$BU$17,Completion!AA:AA,"<="&$BV$17)) -> 0 | DF8: =IF(BZ8="","",SUMIFS(Completion!$CB:$CB,Completion!$G:$G,BZ8,Completion!$N:$N,"Install",Completion!$E:$E,"Florida",Completion!AA:AA,">="&$BU$17,Completion!AA:AA,"<="&$BV$17)) -> 0 | DG8: =IFERROR(SUM(DF8/DE8),"") ->  | DH8: =IF(BZ8="","",SUMIFS(Completion!$CJ:$CJ,Completion!$G:$G,BZ8,Completion!$N:$N,"TC",Completion!$E:$E,"Florida",Completion!AA:AA,">="&BU$17,Completion!AA:AA,"<="&$BV$17)) -> 0 | DI8: =IF(BZ8="","",SUMIFS(Completion!$CB:$CB,Completion!$G:$G,BZ8,Completion!$N:$N,"TC",Completion!$E:$E,"Florida",Completion!AA:AA,">="&$BU$17,Completion!AA:AA,"<="&$BV$17)) -> 0 | DJ8: =IFERROR(SUM(DI8/DH8),"") ->  | DK8: =IFERROR(SUM(DF8,DI8)/SUM(DE8,DH8),"") -> 
F9: Jean Blanc | G9: 6584 | H9: =IF(AW9="","",IFERROR(IF(K9>=92%,3.5,0)+IF(AB9>=92.5%,3.5,0)+IF(AW9>=98.5%,3,0),"")) -> 6.5 | I9: =IF(G9="","",SUMIFS('NSR WO Details'!$AG:$AG,'NSR WO Details'!$N:$N,G9,'NSR WO Details'!$F:$F,"FLORIDA")) -> 80 | J9: =IF(G9="","",COUNTIFS('FTR Detail'!$P:$P,G9,'FTR Detail'!$H:$H,"=FLORIDA")) -> 8 | K9: 0.9 | L9: =IF(G9="","",SUMIF('Florida Rework'!$E:$E,$G9,'Florida Rework'!$H:$H)) -> 80 | M9: =IF(G9="","",SUMIF('Florida Rework'!$E:$E,$G9,'Florida Rework'!$I:$I)) -> 25 | N9: =IF(G9="","",SUMIF('Florida Rework'!$E:$E,$G9,'Florida Rework'!$M:$M)) -> 2 | O9: =IFERROR(SUM(N9/M9),"") -> 0.08 | P9: =IF(G9="","",SUMIF('Florida Rework'!$E:$E,$G9,'Florida Rework'!$J:$J)) -> 55 | Q9: =IF(G9="","",SUMIF('Florida Rework'!$E:$E,$G9,'Florida Rework'!$O:$O)) -> 6 | R9: =IFERROR(SUM(Q9/P9),"") -> 0.1091 | S9: =IFERROR(SUM(N9+Q9),"") -> 8 | T9: =IFERROR(SUM(S9/L9),"") -> 0.1 | U9: =IF(G9="","",SUMIFS('Tool Usage Details'!$Q:$Q,'Tool Usage Details'!$I:$I,G9,'Tool Usage Details'!$G:$G,"FLORIDA REGION")) -> 45 | V9: =IF(G9="","",COUNTIFS('Tool Usage Details'!$I:$I,G9,'Tool Usage Details'!$S:$S,"PASS",'Tool Usage Details'!$G:$G,"FLORIDA REGION")) -> 45 | W9: =IFERROR(SUM(V9/U9),"") -> 1 | X9: =IF(G9="","",COUNTIFS('Tool Usage Details'!$I:$I,G9,'Tool Usage Details'!$R:$R,"PWW",'Tool Usage Details'!G:G,"FLORIDA REGION")+COUNTIFS('Tool Usage Details'!$I:$I,G9,'Tool Usage Details'!$R:$R,"PWO",'Tool Usage Details'!$G:$G,"FLORIDA REGION")) -> 0 | Y9: =IFERROR(1-(X9/V9),"") -> 1 | Z9: =IF(G9="","",SUMIFS('NSR WO Details'!$Z:$Z,'NSR WO Details'!$N:$N,G9,'NSR WO Details'!$F:$F,"FLORIDA")) -> 16 | AA9: =IF(G9="","",SUMIFS('NSR WO Details'!$AA:$AA,'NSR WO Details'!$N:$N,G9,'NSR WO Details'!$F:$F,"FLORIDA")) -> 16 | AB9: 1 | AC9: =IF(G9="","",COUNTIFS('NSR WO Details'!$N:$N,G9,'NSR WO Details'!$W:$W,"Met",'NSR WO Details'!$F:$F,"FLORIDA")) -> 75 | AD9: =IF(G9="","",COUNTIFS('NSR WO Details'!$N:$N,G9,'NSR WO Details'!$W:$W,"Missed",'NSR WO Details'!$F:$F,"FLORIDA")) -> 5 | AE9: =IFERROR(SUM(AC9/(AC9+AD9)),"") -> 0.9375 | AF9: =IF(G9="","",COUNTIFS('NSR WO Details'!$N:$N,G9,'NSR WO Details'!$F:$F,"FLORIDA")) -> 80 | AG9: =IF(G9="","",SUMIFS('NSR WO Details'!$AE:$AE,'NSR WO Details'!$N:$N,G9,'NSR WO Details'!$F:$F,"FLORIDA")) -> 7 | AH9: =IFERROR(SUM(AG9/AF9),"") -> 0.088 | AI9: =IF(G9="","",SUMIFS('RTM Results'!$AT:$AT,'RTM Results'!$DD:$DD,G9,'RTM Results'!$P:$P,"Florida")) -> 2 | AJ9: =IF(G9="","",SUMIFS('RTM Results'!$AP:$AP,'RTM Results'!$DD:$DD,G9,'RTM Results'!$P:$P,"Florida")) -> 0 | AK9: =IFERROR(1-(SUM(AJ9/AI9)),"") -> 1 | AL9: =SUMIFS('ML Bonding Compliance'!$AC:$AC,'ML Bonding Compliance'!$S:$S,$G9,'ML Bonding Compliance'!$F:$F,"FLORIDA") -> 33 | AM9: =SUMIFS('ML Bonding Compliance'!$AE:$AE,'ML Bonding Compliance'!$S:$S,$G9,'ML Bonding Compliance'!$F:$F,"FLORIDA") -> 0 | AN9: =IFERROR(SUM(AM9/AL9),"") -> 0 | AO9: =IF(G9="","",SUMIFS('Tool Usage Details'!$T:$T,'Tool Usage Details'!$I:$I,G9,'Tool Usage Details'!$G:$G,"FLORIDA REGION")) -> 45 | AP9: =IF(G9="","",COUNTIFS('Tool Usage Details'!$I:$I,G9,'Tool Usage Details'!$U:$U,"PASS",'Tool Usage Details'!$G:$G,"FLORIDA REGION")) -> 45 | AQ9: =IFERROR(SUM(AP9/AO9),"") -> 1 | AR9: =IF(G9="","",SUMIFS('One Drop'!$AB:$AB,'One Drop'!$P:$P,G9,'One Drop'!$L:$L,"FLORIDA REGION")) -> 10 | AS9: =IF(G9="","",SUMIFS('One Drop'!$AA:$AA,'One Drop'!$P:$P,G9,'One Drop'!$L:$L,"FLORIDA REGION")) -> 9 | AT9: =IFERROR(SUM(AS9/AR9),"") -> 0.9 | AU9: =IF(G9="","",SUMIFS('NSR WO Details'!$AK:$AK,'NSR WO Details'!$N:$N,G9,'NSR WO Details'!$F:$F,"FLORIDA")) -> 45 | AV9: =IF(G9="","",SUMIFS('NSR WO Details'!$AL:$AL,'NSR WO Details'!$N:$N,G9,'NSR WO Details'!$F:$F,"FLORIDA")) -> 45 | AW9: 1 | AX9: =IF(OR(I9=0,I9=""),"",SUMIFS('Time in Home'!$L:$L,'Time in Home'!$I:$I,$G9,'Time in Home'!E:E,"FLORIDA REGION")) -> 131.6 | AY9: =IF(OR(I9=0,I9=""),"",SUMIFS('Time in Home'!$P:$P,'Time in Home'!$I:$I,$G9,'Time in Home'!E:E,"FLORIDA REGION")) -> 70.47 | AZ9: =SUMIFS('TQI BP Tech Compliance'!$N:$N,'TQI BP Tech Compliance'!$L:$L,$G9,'TQI BP Tech Compliance'!$F:$F,"FLORIDA REGION") -> 3 | BA9: =SUMIFS('TQI BP Tech Compliance'!$AI:$AI,'TQI BP Tech Compliance'!$L:$L,$G9,'TQI BP Tech Compliance'!$F:$F,"FLORIDA REGION") -> 86 | BB9: =SUMIFS('TQI BP Tech Compliance'!$AB:$AB,'TQI BP Tech Compliance'!$L:$L,$G9,'TQI BP Tech Compliance'!$F:$F,"FLORIDA REGION") -> 2 | BC9: =IFERROR(SUMIFS('TQI BP Tech Compliance'!$AA:$AA,'TQI BP Tech Compliance'!$L:$L,$G9,'TQI BP Tech Compliance'!$F:$F,"FLORIDA REGION")/BB9,"") -> 24 | BD9: =IFERROR(SUMIFS('TQI BP Tech Compliance'!$Q:$Q,'TQI BP Tech Compliance'!$L:$L,$G9,'TQI BP Tech Compliance'!$F:$F,"FLORIDA REGION"),"") -> 0.75 | BE9: Enrique Gabino | BF9: =IF(G9="","",SUMIFS(Completion!$CH:$CH,Completion!$AC:$AC,G9,Completion!$N:$N,"Install",Completion!$E:$E,"Florida")) -> 29 | BG9: =IF(G9="","",SUMIFS(Completion!$AL:$AL,Completion!$AC:$AC,G9,Completion!$N:$N,"Install",Completion!$E:$E,"Florida")) -> 25 | BH9: =IFERROR(SUM(BG9/BF9),"") -> 0.8621 | BI9: =IF(G9="","",SUMIFS(Completion!$CH:$CH,Completion!$AC:$AC,G9,Completion!$N:$N,"TC",Completion!$E:$E,"Florida")) -> 61 | BJ9: =IF(G9="","",SUMIFS(Completion!$AL:$AL,Completion!$AC:$AC,G9,Completion!$N:$N,"TC",Completion!$E:$E,"Florida")) -> 54 | BK9: =IFERROR(SUM(BJ9/BI9),"") -> 0.8852 | BL9: =IFERROR(SUM(BG9,BJ9)/SUM(BF9,BI9),"") -> 0.8778 | BM9: =COUNTIFS(Completion!$AC:$AC,$G9,Completion!$E:$E,"FLORIDA",Completion!$N:$N,"TC") -> 61 | BN9: =COUNTIFS(Completion!$AC:$AC,$G9,Completion!$E:$E,"FLORIDA",Completion!$N:$N,"TC",Completion!$BA:$BA,"Customer") -> 2 | BO9: =IFERROR(SUM(BN9/BM9),"") -> 0.0328 | BP9: =IF(SUMIFS('T360 CNH'!V:V,'T360 CNH'!J:J,G9,'T360 CNH'!I:I,"Florida")=0,"",SUMIFS('T360 CNH'!V:V,'T360 CNH'!J:J,G9,'T360 CNH'!I:I,"Florida")) ->  | BQ9: =IF(BP9="","",SUMIFS('T360 CNH'!S:S,'T360 CNH'!J:J,G9,'T360 CNH'!I:I,"Florida")) ->  | BY9: Steve Goff (Off Sun) | BZ9: 9117 | CA9: =IF(DD9="","",IFERROR(IF(CD9>=92%,3.5,0)+IF(CL9>=92.5%,3.5,0)+IF(DD9>=98.5%,3,0),"")) ->  | CB9: =IF(BZ9="","",SUMIFS('NSR WO Details'!$AG:$AG,'NSR WO Details'!$N:$N,BZ9,'NSR WO Details'!$F:$F,"FLORIDA",'NSR WO Details'!AI:AI,">="&$BU$17,'NSR WO Details'!AI:AI,"<="&$BV$17)) -> 0 | CC9: =IF(BZ9="","",COUNTIFS('FTR Detail'!$P:$P,BZ9,'FTR Detail'!$H:$H,"=FLORIDA",'NSR WO Details'!AI:AI,">="&$BU$17,'NSR WO Details'!AI:AI,"<="&$BV$17)) -> 0 | CE9: =IF(BZ9="","",SUMIFS('Tool Usage Details'!$Q:$Q,'Tool Usage Details'!$I:$I,BZ9,'Tool Usage Details'!$G:$G,"FLORIDA REGION",'NSR WO Details'!AI:AI,">="&$BU$17,'NSR WO Details'!AJ:AJ,"<="&$BV$17)) -> 0 | CF9: =IF(BZ9="","",COUNTIFS('Tool Usage Details'!$I:$I,BZ9,'Tool Usage Details'!$S:$S,"PASS",'Tool Usage Details'!$G:$G,"FLORIDA REGION",'NSR WO Details'!AI:AI,">="&$BU$17,'NSR WO Details'!AI:AI,"<="&$BV$17)) -> 0 | CG9: =IFERROR(SUM(CF9/CE9),"") ->  | CH9: =IF(BZ9="","",COUNTIFS('Tool Usage Details'!$I:$I,BZ9,'Tool Usage Details'!$R:$R,"PWW",'Tool Usage Details'!$G:$G,"FLORIDA REGION")+COUNTIFS('Tool Usage Details'!$I:$I,BZ9,'Tool Usage Details'!$R:$R,"PWO",'Tool Usage Details'!$G:$G,"FLORIDA REGION",'Tool Usage Details'!E:E,">="&$BU$17,'Tool Usage Details'!E:E,"<="&$BV$17)) -> 0 | CI9: =IFERROR(1-(CH9/CF9),"") ->  | CJ9: =IF(BZ9="","",SUMIFS('NSR WO Details'!$Z:$Z,'NSR WO Details'!$N:$N,BZ9,'NSR WO Details'!$F:$F,"FLORIDA",'NSR WO Details'!AI:AI,">="&$BU$17,'NSR WO Details'!AI:AI,"<="&$BV$17)) -> 0 | CK9: =IF(BZ9="","",SUMIFS('NSR WO Details'!$AA:$AA,'NSR WO Details'!$N:$N,BZ9,'NSR WO Details'!$F:$F,"FLORIDA",'NSR WO Details'!AI:AI,">="&$BU$17,'NSR WO Details'!AI:AI,"<="&$BV$17)) -> 0 | CM9: =IF(BZ9="","",COUNTIFS('NSR WO Details'!$N:$N,BZ9,'NSR WO Details'!$W:$W,"Met",'NSR WO Details'!$F:$F,"FLORIDA",'NSR WO Details'!AI:AI,">="&$BU$17,'NSR WO Details'!AI:AI,"<="&$BV$17)) -> 0 | CN9: =IF(BZ9="","",COUNTIFS('NSR WO Details'!$N:$N,BZ9,'NSR WO Details'!$W:$W,"Missed",'NSR WO Details'!$F:$F,"FLORIDA",'NSR WO Details'!AI:AI,">="&$BU$17,'NSR WO Details'!AI:AI,"<="&$BV$17)) -> 0 | CO9: =IFERROR(SUM(CM9/(CM9+CN9)),"") ->  | CP9: =IF(BZ9="","",COUNTIFS('NSR WO Details'!$N:$N,BZ9,'NSR WO Details'!$F:$F,"FLORIDA",'NSR WO Details'!AI:AI,">="&$BU$17,'NSR WO Details'!AI:AI,"<="&$BV$17)) -> 0 | CQ9: =IF(BZ9="","",SUMIFS('NSR WO Details'!$AE:$AE,'NSR WO Details'!$N:$N,BZ9,'NSR WO Details'!$F:$F,"FLORIDA",'NSR WO Details'!AI:AI,">="&$BU$17,'NSR WO Details'!AI:AI,"<="&$BV$17)) -> 0 | CR9: =IFERROR(SUM(CQ9/CP9),"") ->  | CS9: =IF(BZ9="","",SUMIFS('RTM Results'!$DG:$DG,'RTM Results'!$BD:$BD,BZ9,'RTM Results'!$O:$O,"Florida",'RTM Results'!H:H,">="&$BU$17,'RTM Results'!H:H,"<="&$BV$17)) -> 0 | CT9: =IF(BZ9="","",SUMIFS('RTM Results'!$DC:$DC,'RTM Results'!$BD:$BD,BZ9,'RTM Results'!$O:$O,"Florida",'RTM Results'!H:H,">="&$BU$17,'RTM Results'!H:H,"<="&$BV$17)) -> 0 | CU9: =IFERROR(1-(SUM(CT9/CS9)),"") ->  | CV9: =IF(BZ9="","",SUMIFS('Tool Usage Details'!$T:$T,'Tool Usage Details'!$I:$I,BZ9,'Tool Usage Details'!$G:$G,"FLORIDA REGION",'Tool Usage Details'!E:E,">="&$BU$17,'Tool Usage Details'!E:E,"<="&$BV$17)) -> 0 | CW9: =IF(BZ9="","",COUNTIFS('Tool Usage Details'!$I:$I,BZ9,'Tool Usage Details'!$U:$U,"PASS",'Tool Usage Details'!$G:$G,"FLORIDA REGION",'Tool Usage Details'!E:E,">="&$BU$17,'Tool Usage Details'!E:E,"<="&$BV$17)) -> 0 | CY9: =IF(BZ9="","",SUMIFS('One Drop'!$BV:$BV,'One Drop'!$P:$P,BZ9,'One Drop'!$L:$L,"FLORIDA REGION",'One Drop'!AQ:AQ,">="&$BU$17,'One Drop'!AQ:AQ,"<="&$BV$17)) -> 0 | CZ9: =IF(BZ9="","",SUMIFS('One Drop'!$BQ:$BQ,'One Drop'!$P:$P,BZ9,'One Drop'!$L:$L,"FLORIDA REGION",'One Drop'!AQ:AQ,">="&$BU$17,'One Drop'!AQ:AQ,"<="&$BV$17)) -> 0 | DB9: =IF(BZ9="","",SUMIFS('NSR WO Details'!$AK:$AK,'NSR WO Details'!$N:$N,BZ9,'NSR WO Details'!$F:$F,"FLORIDA",'NSR WO Details'!AI:AI,">="&$BU$17,'NSR WO Details'!AI:AI,"<="&$BV$17)) -> 0 | DC9: =IF(BZ9="","",SUMIFS('NSR WO Details'!$AL:$AL,'NSR WO Details'!$N:$N,BZ9,'NSR WO Details'!$F:$F,"FLORIDA",'NSR WO Details'!AI:AI,">="&$BU$17,'NSR WO Details'!AI:AI,"<="&$BV$17)) -> 0 | DE9: =IF(BZ9="","",SUMIFS(Completion!$CJ:$CJ,Completion!$G:$G,BZ9,Completion!$N:$N,"Install",Completion!$E:$E,"Florida",Completion!AA:AA,">="&$BU$17,Completion!AA:AA,"<="&$BV$17)) -> 0 | DF9: =IF(BZ9="","",SUMIFS(Completion!$CB:$CB,Completion!$G:$G,BZ9,Completion!$N:$N,"Install",Completion!$E:$E,"Florida",Completion!AA:AA,">="&$BU$17,Completion!AA:AA,"<="&$BV$17)) -> 0 | DG9: =IFERROR(SUM(DF9/DE9),"") ->  | DH9: =IF(BZ9="","",SUMIFS(Completion!$CJ:$CJ,Completion!$G:$G,BZ9,Completion!$N:$N,"TC",Completion!$E:$E,"Florida",Completion!AA:AA,">="&BU$17,Completion!AA:AA,"<="&$BV$17)) -> 0 | DI9: =IF(BZ9="","",SUMIFS(Completion!$CB:$CB,Completion!$G:$G,BZ9,Completion!$N:$N,"TC",Completion!$E:$E,"Florida",Completion!AA:AA,">="&$BU$17,Completion!AA:AA,"<="&$BV$17)) -> 0 | DJ9: =IFERROR(SUM(DI9/DH9),"") ->  | DK9: =IFERROR(SUM(DF9,DI9)/SUM(DE9,DH9),"") -> 
F10: Kenwood Dhaiti | G10: 7362 | H10: 6.5 | I10: =IF(G10="","",SUMIFS('NSR WO Details'!$AG:$AG,'NSR WO Details'!$N:$N,G10,'NSR WO Details'!$F:$F,"FLORIDA")) -> 58 | J10: =IF(G10="","",COUNTIFS('FTR Detail'!$P:$P,G10,'FTR Detail'!$H:$H,"=FLORIDA")) -> 11 | K10: 0.81 | L10: =IF(G10="","",SUMIF('Florida Rework'!$E:$E,$G10,'Florida Rework'!$H:$H)) -> 60 | M10: =IF(G10="","",SUMIF('Florida Rework'!$E:$E,$G10,'Florida Rework'!$I:$I)) -> 26 | N10: =IF(G10="","",SUMIF('Florida Rework'!$E:$E,$G10,'Florida Rework'!$M:$M)) -> 2 | O10: 0.0769 | P10: =IF(G10="","",SUMIF('Florida Rework'!$E:$E,$G10,'Florida Rework'!$J:$J)) -> 33 | Q10: =IF(G10="","",SUMIF('Florida Rework'!$E:$E,$G10,'Florida Rework'!$O:$O)) -> 9 | R10: 0.2727 | S10: 11 | T10: 0.1833 | U10: =IF(G10="","",SUMIFS('Tool Usage Details'!$Q:$Q,'Tool Usage Details'!$I:$I,G10,'Tool Usage Details'!$G:$G,"FLORIDA REGION")) -> 33 | V10: =IF(G10="","",COUNTIFS('Tool Usage Details'!$I:$I,G10,'Tool Usage Details'!$S:$S,"PASS",'Tool Usage Details'!$G:$G,"FLORIDA REGION")) -> 33 | W10: 1 | X10: =IF(G10="","",COUNTIFS('Tool Usage Details'!$I:$I,G10,'Tool Usage Details'!$R:$R,"PWW",'Tool Usage Details'!G:G,"FLORIDA REGION")+COUNTIFS('Tool Usage Details'!$I:$I,G10,'Tool Usage Details'!$R:$R,"PWO",'Tool Usage Details'!$G:$G,"FLORIDA REGION")) -> 0 | Y10: 1 | Z10: =IF(G10="","",SUMIFS('NSR WO Details'!$Z:$Z,'NSR WO Details'!$N:$N,G10,'NSR WO Details'!$F:$F,"FLORIDA")) -> 7 | AA10: =IF(G10="","",SUMIFS('NSR WO Details'!$AA:$AA,'NSR WO Details'!$N:$N,G10,'NSR WO Details'!$F:$F,"FLORIDA")) -> 7 | AB10: =IF(G10="","",IFERROR((AA10/Z10),"")) -> 1 | AC10: =IF(G10="","",COUNTIFS('NSR WO Details'!$N:$N,G10,'NSR WO Details'!$W:$W,"Met",'NSR WO Details'!$F:$F,"FLORIDA")) -> 57 | AD10: =IF(G10="","",COUNTIFS('NSR WO Details'!$N:$N,G10,'NSR WO Details'!$W:$W,"Missed",'NSR WO Details'!$F:$F,"FLORIDA")) -> 2 | AE10: 0.9661 | AF10: =IF(G10="","",COUNTIFS('NSR WO Details'!$N:$N,G10,'NSR WO Details'!$F:$F,"FLORIDA")) -> 60 | AG10: =IF(G10="","",SUMIFS('NSR WO Details'!$AE:$AE,'NSR WO Details'!$N:$N,G10,'NSR WO Details'!$F:$F,"FLORIDA")) -> 5 | AH10: 0.083 | AI10: =IF(G10="","",SUMIFS('RTM Results'!$AT:$AT,'RTM Results'!$DD:$DD,G10,'RTM Results'!$P:$P,"Florida")) -> 1 | AJ10: =IF(G10="","",SUMIFS('RTM Results'!$AP:$AP,'RTM Results'!$DD:$DD,G10,'RTM Results'!$P:$P,"Florida")) -> 0 | AK10: 1 | AL10: =SUMIFS('ML Bonding Compliance'!$AC:$AC,'ML Bonding Compliance'!$S:$S,$G10,'ML Bonding Compliance'!$F:$F,"FLORIDA") -> 31 | AM10: =SUMIFS('ML Bonding Compliance'!$AE:$AE,'ML Bonding Compliance'!$S:$S,$G10,'ML Bonding Compliance'!$F:$F,"FLORIDA") -> 0 | AN10: 0 | AO10: =IF(G10="","",SUMIFS('Tool Usage Details'!$T:$T,'Tool Usage Details'!$I:$I,G10,'Tool Usage Details'!$G:$G,"FLORIDA REGION")) -> 33 | AP10: =IF(G10="","",COUNTIFS('Tool Usage Details'!$I:$I,G10,'Tool Usage Details'!$U:$U,"PASS",'Tool Usage Details'!$G:$G,"FLORIDA REGION")) -> 33 | AQ10: 1 | AR10: =IF(G10="","",SUMIFS('One Drop'!$AB:$AB,'One Drop'!$P:$P,G10,'One Drop'!$L:$L,"FLORIDA REGION")) -> 2 | AS10: =IF(G10="","",SUMIFS('One Drop'!$AA:$AA,'One Drop'!$P:$P,G10,'One Drop'!$L:$L,"FLORIDA REGION")) -> 2 | AT10: 1 | AU10: =IF(G10="","",SUMIFS('NSR WO Details'!$AK:$AK,'NSR WO Details'!$N:$N,G10,'NSR WO Details'!$F:$F,"FLORIDA")) -> 33 | AV10: =IF(G10="","",SUMIFS('NSR WO Details'!$AL:$AL,'NSR WO Details'!$N:$N,G10,'NSR WO Details'!$F:$F,"FLORIDA")) -> 33 | AW10: 1 | AX10: =IF(OR(I10=0,I10=""),"",SUMIFS('Time in Home'!$L:$L,'Time in Home'!$I:$I,$G10,'Time in Home'!E:E,"FLORIDA REGION")) -> 95.84 | AY10: =IF(OR(I10=0,I10=""),"",SUMIFS('Time in Home'!$P:$P,'Time in Home'!$I:$I,$G10,'Time in Home'!E:E,"FLORIDA REGION")) -> 53.93 | AZ10: =SUMIFS('TQI BP Tech Compliance'!$N:$N,'TQI BP Tech Compliance'!$L:$L,$G10,'TQI BP Tech Compliance'!$F:$F,"FLORIDA REGION") -> 3 | BA10: =SUMIFS('TQI BP Tech Compliance'!$AI:$AI,'TQI BP Tech Compliance'!$L:$L,$G10,'TQI BP Tech Compliance'!$F:$F,"FLORIDA REGION") -> 81 | BB10: =SUMIFS('TQI BP Tech Compliance'!$AB:$AB,'TQI BP Tech Compliance'!$L:$L,$G10,'TQI BP Tech Compliance'!$F:$F,"FLORIDA REGION") -> 0 | BC10: =IFERROR(SUMIFS('TQI BP Tech Compliance'!$AA:$AA,'TQI BP Tech Compliance'!$L:$L,$G10,'TQI BP Tech Compliance'!$F:$F,"FLORIDA REGION")/BB10,"") ->  | BD10: =IFERROR(SUMIFS('TQI BP Tech Compliance'!$Q:$Q,'TQI BP Tech Compliance'!$L:$L,$G10,'TQI BP Tech Compliance'!$F:$F,"FLORIDA REGION"),"") -> 0.5 | BE10: Enrique Gabino | BF10: =IF(G10="","",SUMIFS(Completion!$CH:$CH,Completion!$AC:$AC,G10,Completion!$N:$N,"Install",Completion!$E:$E,"Florida")) -> 31 | BG10: =IF(G10="","",SUMIFS(Completion!$AL:$AL,Completion!$AC:$AC,G10,Completion!$N:$N,"Install",Completion!$E:$E,"Florida")) -> 26 | BH10: 0.8387 | BI10: =IF(G10="","",SUMIFS(Completion!$CH:$CH,Completion!$AC:$AC,G10,Completion!$N:$N,"TC",Completion!$E:$E,"Florida")) -> 36 | BJ10: =IF(G10="","",SUMIFS(Completion!$AL:$AL,Completion!$AC:$AC,G10,Completion!$N:$N,"TC",Completion!$E:$E,"Florida")) -> 32 | BK10: 0.8889 | BL10: 0.8657 | BM10: =COUNTIFS(Completion!$AC:$AC,$G10,Completion!$E:$E,"FLORIDA",Completion!$N:$N,"TC") -> 36 | BN10: =COUNTIFS(Completion!$AC:$AC,$G10,Completion!$E:$E,"FLORIDA",Completion!$N:$N,"TC",Completion!$BA:$BA,"Customer") -> 1 | BO10: 0.0278 | BP10: =IF(SUMIFS('T360 CNH'!V:V,'T360 CNH'!J:J,G10,'T360 CNH'!I:I,"Florida")=0,"",SUMIFS('T360 CNH'!V:V,'T360 CNH'!J:J,G10,'T360 CNH'!I:I,"Florida")) -> 1 | BQ10: =IF(BP10="","",SUMIFS('T360 CNH'!S:S,'T360 CNH'!J:J,G10,'T360 CNH'!I:I,"Florida")) -> 1 | BR10: 1 | BY10: Jean Blanc | BZ10: 6584 | CB10: =IF(BZ10="","",SUMIFS('NSR WO Details'!$AG:$AG,'NSR WO Details'!$N:$N,BZ10,'NSR WO Details'!$F:$F,"FLORIDA",'NSR WO Details'!AI:AI,">="&$BU$17,'NSR WO Details'!AI:AI,"<="&$BV$17)) -> 0 | CC10: =IF(BZ10="","",COUNTIFS('FTR Detail'!$P:$P,BZ10,'FTR Detail'!$H:$H,"=FLORIDA",'NSR WO Details'!AI:AI,">="&$BU$17,'NSR WO Details'!AI:AI,"<="&$BV$17)) -> 0 | CE10: =IF(BZ10="","",SUMIFS('Tool Usage Details'!$Q:$Q,'Tool Usage Details'!$I:$I,BZ10,'Tool Usage Details'!$G:$G,"FLORIDA REGION",'NSR WO Details'!AI:AI,">="&$BU$17,'NSR WO Details'!AJ:AJ,"<="&$BV$17)) -> 0 | CF10: =IF(BZ10="","",COUNTIFS('Tool Usage Details'!$I:$I,BZ10,'Tool Usage Details'!$S:$S,"PASS",'Tool Usage Details'!$G:$G,"FLORIDA REGION",'NSR WO Details'!AI:AI,">="&$BU$17,'NSR WO Details'!AI:AI,"<="&$BV$17)) -> 0 | CH10: =IF(BZ10="","",COUNTIFS('Tool Usage Details'!$I:$I,BZ10,'Tool Usage Details'!$R:$R,"PWW",'Tool Usage Details'!$G:$G,"FLORIDA REGION")+COUNTIFS('Tool Usage Details'!$I:$I,BZ10,'Tool Usage Details'!$R:$R,"PWO",'Tool Usage Details'!$G:$G,"FLORIDA REGION",'Tool Usage Details'!E:E,">="&$BU$17,'Tool Usage Details'!E:E,"<="&$BV$17)) -> 0 | CJ10: =IF(BZ10="","",SUMIFS('NSR WO Details'!$Z:$Z,'NSR WO Details'!$N:$N,BZ10,'NSR WO Details'!$F:$F,"FLORIDA",'NSR WO Details'!AI:AI,">="&$BU$17,'NSR WO Details'!AI:AI,"<="&$BV$17)) -> 0 | CK10: =IF(BZ10="","",SUMIFS('NSR WO Details'!$AA:$AA,'NSR WO Details'!$N:$N,BZ10,'NSR WO Details'!$F:$F,"FLORIDA",'NSR WO Details'!AI:AI,">="&$BU$17,'NSR WO Details'!AI:AI,"<="&$BV$17)) -> 0 | CM10: =IF(BZ10="","",COUNTIFS('NSR WO Details'!$N:$N,BZ10,'NSR WO Details'!$W:$W,"Met",'NSR WO Details'!$F:$F,"FLORIDA",'NSR WO Details'!AI:AI,">="&$BU$17,'NSR WO Details'!AI:AI,"<="&$BV$17)) -> 0 | CN10: =IF(BZ10="","",COUNTIFS('NSR WO Details'!$N:$N,BZ10,'NSR WO Details'!$W:$W,"Missed",'NSR WO Details'!$F:$F,"FLORIDA",'NSR WO Details'!AI:AI,">="&$BU$17,'NSR WO Details'!AI:AI,"<="&$BV$17)) -> 0 | CP10: =IF(BZ10="","",COUNTIFS('NSR WO Details'!$N:$N,BZ10,'NSR WO Details'!$F:$F,"FLORIDA",'NSR WO Details'!AI:AI,">="&$BU$17,'NSR WO Details'!AI:AI,"<="&$BV$17)) -> 0 | CQ10: =IF(BZ10="","",SUMIFS('NSR WO Details'!$AE:$AE,'NSR WO Details'!$N:$N,BZ10,'NSR WO Details'!$F:$F,"FLORIDA",'NSR WO Details'!AI:AI,">="&$BU$17,'NSR WO Details'!AI:AI,"<="&$BV$17)) -> 0 | CS10: =IF(BZ10="","",SUMIFS('RTM Results'!$DG:$DG,'RTM Results'!$BD:$BD,BZ10,'RTM Results'!$O:$O,"Florida",'RTM Results'!H:H,">="&$BU$17,'RTM Results'!H:H,"<="&$BV$17)) -> 0 | CT10: =IF(BZ10="","",SUMIFS('RTM Results'!$DC:$DC,'RTM Results'!$BD:$BD,BZ10,'RTM Results'!$O:$O,"Florida",'RTM Results'!H:H,">="&$BU$17,'RTM Results'!H:H,"<="&$BV$17)) -> 0 | CV10: =IF(BZ10="","",SUMIFS('Tool Usage Details'!$T:$T,'Tool Usage Details'!$I:$I,BZ10,'Tool Usage Details'!$G:$G,"FLORIDA REGION",'Tool Usage Details'!E:E,">="&$BU$17,'Tool Usage Details'!E:E,"<="&$BV$17)) -> 0 | CW10: =IF(BZ10="","",COUNTIFS('Tool Usage Details'!$I:$I,BZ10,'Tool Usage Details'!$U:$U,"PASS",'Tool Usage Details'!$G:$G,"FLORIDA REGION",'Tool Usage Details'!E:E,">="&$BU$17,'Tool Usage Details'!E:E,"<="&$BV$17)) -> 0 | CY10: =IF(BZ10="","",SUMIFS('One Drop'!$BV:$BV,'One Drop'!$P:$P,BZ10,'One Drop'!$L:$L,"FLORIDA REGION",'One Drop'!AQ:AQ,">="&$BU$17,'One Drop'!AQ:AQ,"<="&$BV$17)) -> 0 | CZ10: =IF(BZ10="","",SUMIFS('One Drop'!$BQ:$BQ,'One Drop'!$P:$P,BZ10,'One Drop'!$L:$L,"FLORIDA REGION",'One Drop'!AQ:AQ,">="&$BU$17,'One Drop'!AQ:AQ,"<="&$BV$17)) -> 0 | DB10: =IF(BZ10="","",SUMIFS('NSR WO Details'!$AK:$AK,'NSR WO Details'!$N:$N,BZ10,'NSR WO Details'!$F:$F,"FLORIDA",'NSR WO Details'!AI:AI,">="&$BU$17,'NSR WO Details'!AI:AI,"<="&$BV$17)) -> 0 | DC10: =IF(BZ10="","",SUMIFS('NSR WO Details'!$AL:$AL,'NSR WO Details'!$N:$N,BZ10,'NSR WO Details'!$F:$F,"FLORIDA",'NSR WO Details'!AI:AI,">="&$BU$17,'NSR WO Details'!AI:AI,"<="&$BV$17)) -> 0 | DE10: =IF(BZ10="","",SUMIFS(Completion!$CJ:$CJ,Completion!$G:$G,BZ10,Completion!$N:$N,"Install",Completion!$E:$E,"Florida",Completion!AA:AA,">="&$BU$17,Completion!AA:AA,"<="&$BV$17)) -> 0 | DF10: =IF(BZ10="","",SUMIFS(Completion!$CB:$CB,Completion!$G:$G,BZ10,Completion!$N:$N,"Install",Completion!$E:$E,"Florida",Completion!AA:AA,">="&$BU$17,Completion!AA:AA,"<="&$BV$17)) -> 0 | DH10: =IF(BZ10="","",SUMIFS(Completion!$CJ:$CJ,Completion!$G:$G,BZ10,Completion!$N:$N,"TC",Completion!$E:$E,"Florida",Completion!AA:AA,">="&BU$17,Completion!AA:AA,"<="&$BV$17)) -> 0 | DI10: =IF(BZ10="","",SUMIFS(Completion!$CB:$CB,Completion!$G:$G,BZ10,Completion!$N:$N,"TC",Completion!$E:$E,"Florida",Completion!AA:AA,">="&$BU$17,Completion!AA:AA,"<="&$BV$17)) -> 0
B11: Home | F11: Marcel Jean Baptiste Jr | G11: 7728 | H11: 6.5 | I11: =IF(G11="","",SUMIFS('NSR WO Details'!$AG:$AG,'NSR WO Details'!$N:$N,G11,'NSR WO Details'!$F:$F,"FLORIDA")) -> 73 | J11: =IF(G11="","",COUNTIFS('FTR Detail'!$P:$P,G11,'FTR Detail'!$H:$H,"=FLORIDA")) -> 6 | K11: 0.918 | L11: =IF(G11="","",SUMIF('Florida Rework'!$E:$E,$G11,'Florida Rework'!$H:$H)) -> 81 | M11: =IF(G11="","",SUMIF('Florida Rework'!$E:$E,$G11,'Florida Rework'!$I:$I)) -> 28 | N11: =IF(G11="","",SUMIF('Florida Rework'!$E:$E,$G11,'Florida Rework'!$M:$M)) -> 2 | O11: 0.0714 | P11: =IF(G11="","",SUMIF('Florida Rework'!$E:$E,$G11,'Florida Rework'!$J:$J)) -> 46 | Q11: =IF(G11="","",SUMIF('Florida Rework'!$E:$E,$G11,'Florida Rework'!$O:$O)) -> 3 | R11: 0.0652 | S11: 5 | T11: 0.0617 | U11: =IF(G11="","",SUMIFS('Tool Usage Details'!$Q:$Q,'Tool Usage Details'!$I:$I,G11,'Tool Usage Details'!$G:$G,"FLORIDA REGION")) -> 43 | V11: =IF(G11="","",COUNTIFS('Tool Usage Details'!$I:$I,G11,'Tool Usage Details'!$S:$S,"PASS",'Tool Usage Details'!$G:$G,"FLORIDA REGION")) -> 43 | W11: 1 | X11: =IF(G11="","",COUNTIFS('Tool Usage Details'!$I:$I,G11,'Tool Usage Details'!$R:$R,"PWW",'Tool Usage Details'!G:G,"FLORIDA REGION")+COUNTIFS('Tool Usage Details'!$I:$I,G11,'Tool Usage Details'!$R:$R,"PWO",'Tool Usage Details'!$G:$G,"FLORIDA REGION")) -> 0 | Y11: 1 | Z11: =IF(G11="","",SUMIFS('NSR WO Details'!$Z:$Z,'NSR WO Details'!$N:$N,G11,'NSR WO Details'!$F:$F,"FLORIDA")) -> 10 | AA11: =IF(G11="","",SUMIFS('NSR WO Details'!$AA:$AA,'NSR WO Details'!$N:$N,G11,'NSR WO Details'!$F:$F,"FLORIDA")) -> 10 | AB11: 1 | AC11: =IF(G11="","",COUNTIFS('NSR WO Details'!$N:$N,G11,'NSR WO Details'!$W:$W,"Met",'NSR WO Details'!$F:$F,"FLORIDA")) -> 79 | AD11: =IF(G11="","",COUNTIFS('NSR WO Details'!$N:$N,G11,'NSR WO Details'!$W:$W,"Missed",'NSR WO Details'!$F:$F,"FLORIDA")) -> 1 | AE11: 0.9875 | AF11: =IF(G11="","",COUNTIFS('NSR WO Details'!$N:$N,G11,'NSR WO Details'!$F:$F,"FLORIDA")) -> 81 | AG11: =IF(G11="","",SUMIFS('NSR WO Details'!$AE:$AE,'NSR WO Details'!$N:$N,G11,'NSR WO Details'!$F:$F,"FLORIDA")) -> 5 | AH11: 0.062 | AI11: =IF(G11="","",SUMIFS('RTM Results'!$AT:$AT,'RTM Results'!$DD:$DD,G11,'RTM Results'!$P:$P,"Florida")) -> 1 | AJ11: =IF(G11="","",SUMIFS('RTM Results'!$AP:$AP,'RTM Results'!$DD:$DD,G11,'RTM Results'!$P:$P,"Florida")) -> 0 | AK11: 1 | AL11: =SUMIFS('ML Bonding Compliance'!$AC:$AC,'ML Bonding Compliance'!$S:$S,$G11,'ML Bonding Compliance'!$F:$F,"FLORIDA") -> 42 | AM11: =SUMIFS('ML Bonding Compliance'!$AE:$AE,'ML Bonding Compliance'!$S:$S,$G11,'ML Bonding Compliance'!$F:$F,"FLORIDA") -> 0 | AN11: 0 | AO11: =IF(G11="","",SUMIFS('Tool Usage Details'!$T:$T,'Tool Usage Details'!$I:$I,G11,'Tool Usage Details'!$G:$G,"FLORIDA REGION")) -> 43 | AP11: =IF(G11="","",COUNTIFS('Tool Usage Details'!$I:$I,G11,'Tool Usage Details'!$U:$U,"PASS",'Tool Usage Details'!$G:$G,"FLORIDA REGION")) -> 43 | AQ11: 1 | AR11: =IF(G11="","",SUMIFS('One Drop'!$AB:$AB,'One Drop'!$P:$P,G11,'One Drop'!$L:$L,"FLORIDA REGION")) -> 6 | AS11: =IF(G11="","",SUMIFS('One Drop'!$AA:$AA,'One Drop'!$P:$P,G11,'One Drop'!$L:$L,"FLORIDA REGION")) -> 6 | AT11: 1 | AU11: =IF(G11="","",SUMIFS('NSR WO Details'!$AK:$AK,'NSR WO Details'!$N:$N,G11,'NSR WO Details'!$F:$F,"FLORIDA")) -> 43 | AV11: =IF(G11="","",SUMIFS('NSR WO Details'!$AL:$AL,'NSR WO Details'!$N:$N,G11,'NSR WO Details'!$F:$F,"FLORIDA")) -> 43 | AW11: 1 | AX11: =IF(OR(I11=0,I11=""),"",SUMIFS('Time in Home'!$L:$L,'Time in Home'!$I:$I,$G11,'Time in Home'!E:E,"FLORIDA REGION")) -> 68.36 | AY11: =IF(OR(I11=0,I11=""),"",SUMIFS('Time in Home'!$P:$P,'Time in Home'!$I:$I,$G11,'Time in Home'!E:E,"FLORIDA REGION")) -> 48.7 | AZ11: =SUMIFS('TQI BP Tech Compliance'!$N:$N,'TQI BP Tech Compliance'!$L:$L,$G11,'TQI BP Tech Compliance'!$F:$F,"FLORIDA REGION") -> 3 | BA11: =SUMIFS('TQI BP Tech Compliance'!$AI:$AI,'TQI BP Tech Compliance'!$L:$L,$G11,'TQI BP Tech Compliance'!$F:$F,"FLORIDA REGION") -> 91 | BB11: =SUMIFS('TQI BP Tech Compliance'!$AB:$AB,'TQI BP Tech Compliance'!$L:$L,$G11,'TQI BP Tech Compliance'!$F:$F,"FLORIDA REGION") -> 1 | BC11: =IFERROR(SUMIFS('TQI BP Tech Compliance'!$AA:$AA,'TQI BP Tech Compliance'!$L:$L,$G11,'TQI BP Tech Compliance'!$F:$F,"FLORIDA REGION")/BB11,"") -> 33 | BD11: =IFERROR(SUMIFS('TQI BP Tech Compliance'!$Q:$Q,'TQI BP Tech Compliance'!$L:$L,$G11,'TQI BP Tech Compliance'!$F:$F,"FLORIDA REGION"),"") -> 0.75 | BE11: Enrique Gabino | BF11: =IF(G11="","",SUMIFS(Completion!$CH:$CH,Completion!$AC:$AC,G11,Completion!$N:$N,"Install",Completion!$E:$E,"Florida")) -> 34 | BG11: =IF(G11="","",SUMIFS(Completion!$AL:$AL,Completion!$AC:$AC,G11,Completion!$N:$N,"Install",Completion!$E:$E,"Florida")) -> 28 | BH11: 0.8235 | BI11: =IF(G11="","",SUMIFS(Completion!$CH:$CH,Completion!$AC:$AC,G11,Completion!$N:$N,"TC",Completion!$E:$E,"Florida")) -> 51 | BJ11: =IF(G11="","",SUMIFS(Completion!$AL:$AL,Completion!$AC:$AC,G11,Completion!$N:$N,"TC",Completion!$E:$E,"Florida")) -> 46 | BK11: 0.902 | BL11: 0.8706 | BM11: =COUNTIFS(Completion!$AC:$AC,$G11,Completion!$E:$E,"FLORIDA",Completion!$N:$N,"TC") -> 51 | BN11: =COUNTIFS(Completion!$AC:$AC,$G11,Completion!$E:$E,"FLORIDA",Completion!$N:$N,"TC",Completion!$BA:$BA,"Customer") -> 1 | BO11: 0.0196 | BP11: =IF(SUMIFS('T360 CNH'!V:V,'T360 CNH'!J:J,G11,'T360 CNH'!I:I,"Florida")=0,"",SUMIFS('T360 CNH'!V:V,'T360 CNH'!J:J,G11,'T360 CNH'!I:I,"Florida")) -> 3 | BQ11: =IF(BP11="","",SUMIFS('T360 CNH'!S:S,'T360 CNH'!J:J,G11,'T360 CNH'!I:I,"Florida")) -> 3 | BR11: 1 | BY11: Kenwood Dhati | BZ11: 7362 | CB11: =IF(BZ11="","",SUMIFS('NSR WO Details'!$AG:$AG,'NSR WO Details'!$N:$N,BZ11,'NSR WO Details'!$F:$F,"FLORIDA",'NSR WO Details'!AI:AI,">="&$BU$17,'NSR WO Details'!AI:AI,"<="&$BV$17)) -> 0 | CC11: =IF(BZ11="","",COUNTIFS('FTR Detail'!$P:$P,BZ11,'FTR Detail'!$H:$H,"=FLORIDA",'NSR WO Details'!AI:AI,">="&$BU$17,'NSR WO Details'!AI:AI,"<="&$BV$17)) -> 0 | CE11: =IF(BZ11="","",SUMIFS('Tool Usage Details'!$Q:$Q,'Tool Usage Details'!$I:$I,BZ11,'Tool Usage Details'!$G:$G,"FLORIDA REGION",'NSR WO Details'!AI:AI,">="&$BU$17,'NSR WO Details'!AJ:AJ,"<="&$BV$17)) -> 0 | CF11: =IF(BZ11="","",COUNTIFS('Tool Usage Details'!$I:$I,BZ11,'Tool Usage Details'!$S:$S,"PASS",'Tool Usage Details'!$G:$G,"FLORIDA REGION",'NSR WO Details'!AI:AI,">="&$BU$17,'NSR WO Details'!AI:AI,"<="&$BV$17)) -> 0 | CH11: =IF(BZ11="","",COUNTIFS('Tool Usage Details'!$I:$I,BZ11,'Tool Usage Details'!$R:$R,"PWW",'Tool Usage Details'!$G:$G,"FLORIDA REGION")+COUNTIFS('Tool Usage Details'!$I:$I,BZ11,'Tool Usage Details'!$R:$R,"PWO",'Tool Usage Details'!$G:$G,"FLORIDA REGION",'Tool Usage Details'!E:E,">="&$BU$17,'Tool Usage Details'!E:E,"<="&$BV$17)) -> 0 | CJ11: =IF(BZ11="","",SUMIFS('NSR WO Details'!$Z:$Z,'NSR WO Details'!$N:$N,BZ11,'NSR WO Details'!$F:$F,"FLORIDA",'NSR WO Details'!AI:AI,">="&$BU$17,'NSR WO Details'!AI:AI,"<="&$BV$17)) -> 0 | CK11: =IF(BZ11="","",SUMIFS('NSR WO Details'!$AA:$AA,'NSR WO Details'!$N:$N,BZ11,'NSR WO Details'!$F:$F,"FLORIDA",'NSR WO Details'!AI:AI,">="&$BU$17,'NSR WO Details'!AI:AI,"<="&$BV$17)) -> 0 | CM11: =IF(BZ11="","",COUNTIFS('NSR WO Details'!$N:$N,BZ11,'NSR WO Details'!$W:$W,"Met",'NSR WO Details'!$F:$F,"FLORIDA",'NSR WO Details'!AI:AI,">="&$BU$17,'NSR WO Details'!AI:AI,"<="&$BV$17)) -> 0 | CN11: =IF(BZ11="","",COUNTIFS('NSR WO Details'!$N:$N,BZ11,'NSR WO Details'!$W:$W,"Missed",'NSR WO Details'!$F:$F,"FLORIDA",'NSR WO Details'!AI:AI,">="&$BU$17,'NSR WO Details'!AI:AI,"<="&$BV$17)) -> 0 | CP11: =IF(BZ11="","",COUNTIFS('NSR WO Details'!$N:$N,BZ11,'NSR WO Details'!$F:$F,"FLORIDA",'NSR WO Details'!AI:AI,">="&$BU$17,'NSR WO Details'!AI:AI,"<="&$BV$17)) -> 0 | CQ11: =IF(BZ11="","",SUMIFS('NSR WO Details'!$AE:$AE,'NSR WO Details'!$N:$N,BZ11,'NSR WO Details'!$F:$F,"FLORIDA",'NSR WO Details'!AI:AI,">="&$BU$17,'NSR WO Details'!AI:AI,"<="&$BV$17)) -> 0 | CS11: =IF(BZ11="","",SUMIFS('RTM Results'!$DG:$DG,'RTM Results'!$BD:$BD,BZ11,'RTM Results'!$O:$O,"Florida",'RTM Results'!H:H,">="&$BU$17,'RTM Results'!H:H,"<="&$BV$17)) -> 0 | CT11: =IF(BZ11="","",SUMIFS('RTM Results'!$DC:$DC,'RTM Results'!$BD:$BD,BZ11,'RTM Results'!$O:$O,"Florida",'RTM Results'!H:H,">="&$BU$17,'RTM Results'!H:H,"<="&$BV$17)) -> 0 | CV11: =IF(BZ11="","",SUMIFS('Tool Usage Details'!$T:$T,'Tool Usage Details'!$I:$I,BZ11,'Tool Usage Details'!$G:$G,"FLORIDA REGION",'Tool Usage Details'!E:E,">="&$BU$17,'Tool Usage Details'!E:E,"<="&$BV$17)) -> 0 | CW11: =IF(BZ11="","",COUNTIFS('Tool Usage Details'!$I:$I,BZ11,'Tool Usage Details'!$U:$U,"PASS",'Tool Usage Details'!$G:$G,"FLORIDA REGION",'Tool Usage Details'!E:E,">="&$BU$17,'Tool Usage Details'!E:E,"<="&$BV$17)) -> 0 | CY11: =IF(BZ11="","",SUMIFS('One Drop'!$BV:$BV,'One Drop'!$P:$P,BZ11,'One Drop'!$L:$L,"FLORIDA REGION",'One Drop'!AQ:AQ,">="&$BU$17,'One Drop'!AQ:AQ,"<="&$BV$17)) -> 0 | CZ11: =IF(BZ11="","",SUMIFS('One Drop'!$BQ:$BQ,'One Drop'!$P:$P,BZ11,'One Drop'!$L:$L,"FLORIDA REGION",'One Drop'!AQ:AQ,">="&$BU$17,'One Drop'!AQ:AQ,"<="&$BV$17)) -> 0 | DB11: =IF(BZ11="","",SUMIFS('NSR WO Details'!$AK:$AK,'NSR WO Details'!$N:$N,BZ11,'NSR WO Details'!$F:$F,"FLORIDA",'NSR WO Details'!AI:AI,">="&$BU$17,'NSR WO Details'!AI:AI,"<="&$BV$17)) -> 0 | DC11: =IF(BZ11="","",SUMIFS('NSR WO Details'!$AL:$AL,'NSR WO Details'!$N:$N,BZ11,'NSR WO Details'!$F:$F,"FLORIDA",'NSR WO Details'!AI:AI,">="&$BU$17,'NSR WO Details'!AI:AI,"<="&$BV$17)) -> 0 | DE11: =IF(BZ11="","",SUMIFS(Completion!$CJ:$CJ,Completion!$G:$G,BZ11,Completion!$N:$N,"Install",Completion!$E:$E,"Florida",Completion!AA:AA,">="&$BU$17,Completion!AA:AA,"<="&$BV$17)) -> 0 | DF11: =IF(BZ11="","",SUMIFS(Completion!$CB:$CB,Completion!$G:$G,BZ11,Completion!$N:$N,"Install",Completion!$E:$E,"Florida",Completion!AA:AA,">="&$BU$17,Completion!AA:AA,"<="&$BV$17)) -> 0 | DH11: =IF(BZ11="","",SUMIFS(Completion!$CJ:$CJ,Completion!$G:$G,BZ11,Completion!$N:$N,"TC",Completion!$E:$E,"Florida",Completion!AA:AA,">="&BU$17,Completion!AA:AA,"<="&$BV$17)) -> 0 | DI11: =IF(BZ11="","",SUMIFS(Completion!$CB:$CB,Completion!$G:$G,BZ11,Completion!$N:$N,"TC",Completion!$E:$E,"Florida",Completion!AA:AA,">="&$BU$17,Completion!AA:AA,"<="&$BV$17)) -> 0
F12: Christopher Anderson | G12: 8452 | H12: 10 | I12: =IF(G12="","",SUMIFS('NSR WO Details'!$AG:$AG,'NSR WO Details'!$N:$N,G12,'NSR WO Details'!$F:$F,"FLORIDA")) -> 69 | J12: =IF(G12="","",COUNTIFS('FTR Detail'!$P:$P,G12,'FTR Detail'!$H:$H,"=FLORIDA")) -> 4 | K12: =IFERROR(1-(J12/I12),"") -> 0.942 | L12: =IF(G12="","",SUMIF('Florida Rework'!$E:$E,$G12,'Florida Rework'!$H:$H)) -> 71 | M12: =IF(G12="","",SUMIF('Florida Rework'!$E:$E,$G12,'Florida Rework'!$I:$I)) -> 25 | N12: =IF(G12="","",SUMIF('Florida Rework'!$E:$E,$G12,'Florida Rework'!$M:$M)) -> 2 | O12: 0.08 | P12: =IF(G12="","",SUMIF('Florida Rework'!$E:$E,$G12,'Florida Rework'!$J:$J)) -> 46 | Q12: =IF(G12="","",SUMIF('Florida Rework'!$E:$E,$G12,'Florida Rework'!$O:$O)) -> 2 | R12: 0.0435 | S12: 4 | T12: 0.0563 | U12: =IF(G12="","",SUMIFS('Tool Usage Details'!$Q:$Q,'Tool Usage Details'!$I:$I,G12,'Tool Usage Details'!$G:$G,"FLORIDA REGION")) -> 40 | V12: =IF(G12="","",COUNTIFS('Tool Usage Details'!$I:$I,G12,'Tool Usage Details'!$S:$S,"PASS",'Tool Usage Details'!$G:$G,"FLORIDA REGION")) -> 40 | W12: 1 | X12: =IF(G12="","",COUNTIFS('Tool Usage Details'!$I:$I,G12,'Tool Usage Details'!$R:$R,"PWW",'Tool Usage Details'!G:G,"FLORIDA REGION")+COUNTIFS('Tool Usage Details'!$I:$I,G12,'Tool Usage Details'!$R:$R,"PWO",'Tool Usage Details'!$G:$G,"FLORIDA REGION")) -> 1 | Y12: 0.975 | Z12: =IF(G12="","",SUMIFS('NSR WO Details'!$Z:$Z,'NSR WO Details'!$N:$N,G12,'NSR WO Details'!$F:$F,"FLORIDA")) -> 9 | AA12: =IF(G12="","",SUMIFS('NSR WO Details'!$AA:$AA,'NSR WO Details'!$N:$N,G12,'NSR WO Details'!$F:$F,"FLORIDA")) -> 9 | AB12: 1 | AC12: =IF(G12="","",COUNTIFS('NSR WO Details'!$N:$N,G12,'NSR WO Details'!$W:$W,"Met",'NSR WO Details'!$F:$F,"FLORIDA")) -> 71 | AD12: =IF(G12="","",COUNTIFS('NSR WO Details'!$N:$N,G12,'NSR WO Details'!$W:$W,"Missed",'NSR WO Details'!$F:$F,"FLORIDA")) -> 0 | AE12: 1 | AF12: =IF(G12="","",COUNTIFS('NSR WO Details'!$N:$N,G12,'NSR WO Details'!$F:$F,"FLORIDA")) -> 71 | AG12: =IF(G12="","",SUMIFS('NSR WO Details'!$AE:$AE,'NSR WO Details'!$N:$N,G12,'NSR WO Details'!$F:$F,"FLORIDA")) -> 8 | AH12: 0.113 | AI12: =IF(G12="","",SUMIFS('RTM Results'!$AT:$AT,'RTM Results'!$DD:$DD,G12,'RTM Results'!$P:$P,"Florida")) -> 2 | AJ12: =IF(G12="","",SUMIFS('RTM Results'!$AP:$AP,'RTM Results'!$DD:$DD,G12,'RTM Results'!$P:$P,"Florida")) -> 0 | AK12: 1 | AL12: =SUMIFS('ML Bonding Compliance'!$AC:$AC,'ML Bonding Compliance'!$S:$S,$G12,'ML Bonding Compliance'!$F:$F,"FLORIDA") -> 55 | AM12: =SUMIFS('ML Bonding Compliance'!$AE:$AE,'ML Bonding Compliance'!$S:$S,$G12,'ML Bonding Compliance'!$F:$F,"FLORIDA") -> 12 | AN12: 0.2182 | AO12: =IF(G12="","",SUMIFS('Tool Usage Details'!$T:$T,'Tool Usage Details'!$I:$I,G12,'Tool Usage Details'!$G:$G,"FLORIDA REGION")) -> 40 | AP12: =IF(G12="","",COUNTIFS('Tool Usage Details'!$I:$I,G12,'Tool Usage Details'!$U:$U,"PASS",'Tool Usage Details'!$G:$G,"FLORIDA REGION")) -> 40 | AQ12: 1 | AR12: =IF(G12="","",SUMIFS('One Drop'!$AB:$AB,'One Drop'!$P:$P,G12,'One Drop'!$L:$L,"FLORIDA REGION")) -> 10 | AS12: =IF(G12="","",SUMIFS('One Drop'!$AA:$AA,'One Drop'!$P:$P,G12,'One Drop'!$L:$L,"FLORIDA REGION")) -> 10 | AT12: 1 | AU12: =IF(G12="","",SUMIFS('NSR WO Details'!$AK:$AK,'NSR WO Details'!$N:$N,G12,'NSR WO Details'!$F:$F,"FLORIDA")) -> 40 | AV12: =IF(G12="","",SUMIFS('NSR WO Details'!$AL:$AL,'NSR WO Details'!$N:$N,G12,'NSR WO Details'!$F:$F,"FLORIDA")) -> 40 | AW12: 1 | AX12: =IF(OR(I12=0,I12=""),"",SUMIFS('Time in Home'!$L:$L,'Time in Home'!$I:$I,$G12,'Time in Home'!E:E,"FLORIDA REGION")) -> 109.04 | AY12: =IF(OR(I12=0,I12=""),"",SUMIFS('Time in Home'!$P:$P,'Time in Home'!$I:$I,$G12,'Time in Home'!E:E,"FLORIDA REGION")) -> 58.91 | AZ12: =SUMIFS('TQI BP Tech Compliance'!$N:$N,'TQI BP Tech Compliance'!$L:$L,$G12,'TQI BP Tech Compliance'!$F:$F,"FLORIDA REGION") -> 1 | BA12: =SUMIFS('TQI BP Tech Compliance'!$AI:$AI,'TQI BP Tech Compliance'!$L:$L,$G12,'TQI BP Tech Compliance'!$F:$F,"FLORIDA REGION") -> 86 | BB12: =SUMIFS('TQI BP Tech Compliance'!$AB:$AB,'TQI BP Tech Compliance'!$L:$L,$G12,'TQI BP Tech Compliance'!$F:$F,"FLORIDA REGION") -> 0 | BC12: =IFERROR(SUMIFS('TQI BP Tech Compliance'!$AA:$AA,'TQI BP Tech Compliance'!$L:$L,$G12,'TQI BP Tech Compliance'!$F:$F,"FLORIDA REGION")/BB12,"") ->  | BD12: =IFERROR(SUMIFS('TQI BP Tech Compliance'!$Q:$Q,'TQI BP Tech Compliance'!$L:$L,$G12,'TQI BP Tech Compliance'!$F:$F,"FLORIDA REGION"),"") -> 0.25 | BE12: Enrique Gabino | BF12: =IF(G12="","",SUMIFS(Completion!$CH:$CH,Completion!$AC:$AC,G12,Completion!$N:$N,"Install",Completion!$E:$E,"Florida")) -> 25 | BG12: =IF(G12="","",SUMIFS(Completion!$AL:$AL,Completion!$AC:$AC,G12,Completion!$N:$N,"Install",Completion!$E:$E,"Florida")) -> 25 | BH12: 1 | BI12: =IF(G12="","",SUMIFS(Completion!$CH:$CH,Completion!$AC:$AC,G12,Completion!$N:$N,"TC",Completion!$E:$E,"Florida")) -> 54 | BJ12: =IF(G12="","",SUMIFS(Completion!$AL:$AL,Completion!$AC:$AC,G12,Completion!$N:$N,"TC",Completion!$E:$E,"Florida")) -> 46 | BK12: 0.8519 | BL12: 0.8987 | BM12: =COUNTIFS(Completion!$AC:$AC,$G12,Completion!$E:$E,"FLORIDA",Completion!$N:$N,"TC") -> 54 | BN12: =COUNTIFS(Completion!$AC:$AC,$G12,Completion!$E:$E,"FLORIDA",Completion!$N:$N,"TC",Completion!$BA:$BA,"Customer") -> 6 | BO12: 0.1111 | BP12: =IF(SUMIFS('T360 CNH'!V:V,'T360 CNH'!J:J,G12,'T360 CNH'!I:I,"Florida")=0,"",SUMIFS('T360 CNH'!V:V,'T360 CNH'!J:J,G12,'T360 CNH'!I:I,"Florida")) -> 1 | BQ12: =IF(BP12="","",SUMIFS('T360 CNH'!S:S,'T360 CNH'!J:J,G12,'T360 CNH'!I:I,"Florida")) -> 1 | BR12: 1 | BY12: Kedny Desarme | BZ12: 7105 | CB12: =IF(BZ12="","",SUMIFS('NSR WO Details'!$AG:$AG,'NSR WO Details'!$N:$N,BZ12,'NSR WO Details'!$F:$F,"FLORIDA",'NSR WO Details'!AI:AI,">="&$BU$17,'NSR WO Details'!AI:AI,"<="&$BV$17)) -> 0 | CC12: =IF(BZ12="","",COUNTIFS('FTR Detail'!$P:$P,BZ12,'FTR Detail'!$H:$H,"=FLORIDA",'NSR WO Details'!AI:AI,">="&$BU$17,'NSR WO Details'!AI:AI,"<="&$BV$17)) -> 0 | CE12: =IF(BZ12="","",SUMIFS('Tool Usage Details'!$Q:$Q,'Tool Usage Details'!$I:$I,BZ12,'Tool Usage Details'!$G:$G,"FLORIDA REGION",'NSR WO Details'!AI:AI,">="&$BU$17,'NSR WO Details'!AJ:AJ,"<="&$BV$17)) -> 0 | CF12: =IF(BZ12="","",COUNTIFS('Tool Usage Details'!$I:$I,BZ12,'Tool Usage Details'!$S:$S,"PASS",'Tool Usage Details'!$G:$G,"FLORIDA REGION",'NSR WO Details'!AI:AI,">="&$BU$17,'NSR WO Details'!AI:AI,"<="&$BV$17)) -> 0 | CH12: =IF(BZ12="","",COUNTIFS('Tool Usage Details'!$I:$I,BZ12,'Tool Usage Details'!$R:$R,"PWW",'Tool Usage Details'!$G:$G,"FLORIDA REGION")+COUNTIFS('Tool Usage Details'!$I:$I,BZ12,'Tool Usage Details'!$R:$R,"PWO",'Tool Usage Details'!$G:$G,"FLORIDA REGION",'Tool Usage Details'!E:E,">="&$BU$17,'Tool Usage Details'!E:E,"<="&$BV$17)) -> 0 | CJ12: =IF(BZ12="","",SUMIFS('NSR WO Details'!$Z:$Z,'NSR WO Details'!$N:$N,BZ12,'NSR WO Details'!$F:$F,"FLORIDA",'NSR WO Details'!AI:AI,">="&$BU$17,'NSR WO Details'!AI:AI,"<="&$BV$17)) -> 0 | CK12: =IF(BZ12="","",SUMIFS('NSR WO Details'!$AA:$AA,'NSR WO Details'!$N:$N,BZ12,'NSR WO Details'!$F:$F,"FLORIDA",'NSR WO Details'!AI:AI,">="&$BU$17,'NSR WO Details'!AI:AI,"<="&$BV$17)) -> 0 | CM12: =IF(BZ12="","",COUNTIFS('NSR WO Details'!$N:$N,BZ12,'NSR WO Details'!$W:$W,"Met",'NSR WO Details'!$F:$F,"FLORIDA",'NSR WO Details'!AI:AI,">="&$BU$17,'NSR WO Details'!AI:AI,"<="&$BV$17)) -> 0 | CN12: =IF(BZ12="","",COUNTIFS('NSR WO Details'!$N:$N,BZ12,'NSR WO Details'!$W:$W,"Missed",'NSR WO Details'!$F:$F,"FLORIDA",'NSR WO Details'!AI:AI,">="&$BU$17,'NSR WO Details'!AI:AI,"<="&$BV$17)) -> 0 | CP12: =IF(BZ12="","",COUNTIFS('NSR WO Details'!$N:$N,BZ12,'NSR WO Details'!$F:$F,"FLORIDA",'NSR WO Details'!AI:AI,">="&$BU$17,'NSR WO Details'!AI:AI,"<="&$BV$17)) -> 0 | CQ12: =IF(BZ12="","",SUMIFS('NSR WO Details'!$AE:$AE,'NSR WO Details'!$N:$N,BZ12,'NSR WO Details'!$F:$F,"FLORIDA",'NSR WO Details'!AI:AI,">="&$BU$17,'NSR WO Details'!AI:AI,"<="&$BV$17)) -> 0 | CS12: =IF(BZ12="","",SUMIFS('RTM Results'!$DG:$DG,'RTM Results'!$BD:$BD,BZ12,'RTM Results'!$O:$O,"Florida",'RTM Results'!H:H,">="&$BU$17,'RTM Results'!H:H,"<="&$BV$17)) -> 0 | CT12: =IF(BZ12="","",SUMIFS('RTM Results'!$DC:$DC,'RTM Results'!$BD:$BD,BZ12,'RTM Results'!$O:$O,"Florida",'RTM Results'!H:H,">="&$BU$17,'RTM Results'!H:H,"<="&$BV$17)) -> 0 | CV12: =IF(BZ12="","",SUMIFS('Tool Usage Details'!$T:$T,'Tool Usage Details'!$I:$I,BZ12,'Tool Usage Details'!$G:$G,"FLORIDA REGION",'Tool Usage Details'!E:E,">="&$BU$17,'Tool Usage Details'!E:E,"<="&$BV$17)) -> 0 | CW12: =IF(BZ12="","",COUNTIFS('Tool Usage Details'!$I:$I,BZ12,'Tool Usage Details'!$U:$U,"PASS",'Tool Usage Details'!$G:$G,"FLORIDA REGION",'Tool Usage Details'!E:E,">="&$BU$17,'Tool Usage Details'!E:E,"<="&$BV$17)) -> 0 | CY12: =IF(BZ12="","",SUMIFS('One Drop'!$BV:$BV,'One Drop'!$P:$P,BZ12,'One Drop'!$L:$L,"FLORIDA REGION",'One Drop'!AQ:AQ,">="&$BU$17,'One Drop'!AQ:AQ,"<="&$BV$17)) -> 0 | CZ12: =IF(BZ12="","",SUMIFS('One Drop'!$BQ:$BQ,'One Drop'!$P:$P,BZ12,'One Drop'!$L:$L,"FLORIDA REGION",'One Drop'!AQ:AQ,">="&$BU$17,'One Drop'!AQ:AQ,"<="&$BV$17)) -> 0 | DB12: =IF(BZ12="","",SUMIFS('NSR WO Details'!$AK:$AK,'NSR WO Details'!$N:$N,BZ12,'NSR WO Details'!$F:$F,"FLORIDA",'NSR WO Details'!AI:AI,">="&$BU$17,'NSR WO Details'!AI:AI,"<="&$BV$17)) -> 0 | DC12: =IF(BZ12="","",SUMIFS('NSR WO Details'!$AL:$AL,'NSR WO Details'!$N:$N,BZ12,'NSR WO Details'!$F:$F,"FLORIDA",'NSR WO Details'!AI:AI,">="&$BU$17,'NSR WO Details'!AI:AI,"<="&$BV$17)) -> 0 | DE12: =IF(BZ12="","",SUMIFS(Completion!$CJ:$CJ,Completion!$G:$G,BZ12,Completion!$N:$N,"Install",Completion!$E:$E,"Florida",Completion!AA:AA,">="&$BU$17,Completion!AA:AA,"<="&$BV$17)) -> 0 | DF12: =IF(BZ12="","",SUMIFS(Completion!$CB:$CB,Completion!$G:$G,BZ12,Completion!$N:$N,"Install",Completion!$E:$E,"Florida",Completion!AA:AA,">="&$BU$17,Completion!AA:AA,"<="&$BV$17)) -> 0 | DH12: =IF(BZ12="","",SUMIFS(Completion!$CJ:$CJ,Completion!$G:$G,BZ12,Completion!$N:$N,"TC",Completion!$E:$E,"Florida",Completion!AA:AA,">="&BU$17,Completion!AA:AA,"<="&$BV$17)) -> 0 | DI12: =IF(BZ12="","",SUMIFS(Completion!$CB:$CB,Completion!$G:$G,BZ12,Completion!$N:$N,"TC",Completion!$E:$E,"Florida",Completion!AA:AA,">="&$BU$17,Completion!AA:AA,"<="&$BV$17)) -> 0
B13: Performance Metrics | I13: =IF(G13="","",SUMIFS('NSR WO Details'!$AG:$AG,'NSR WO Details'!$N:$N,G13,'NSR WO Details'!$F:$F,"FLORIDA")) ->  | J13: =IF(G13="","",COUNTIFS('FTR Detail'!$P:$P,G13,'FTR Detail'!$H:$H,"=FLORIDA")) ->  | L13: =IF(G13="","",SUMIF('Florida Rework'!$E:$E,$G13,'Florida Rework'!$H:$H)) ->  | M13: =IF(G13="","",SUMIF('Florida Rework'!$E:$E,$G13,'Florida Rework'!$I:$I)) ->  | N13: =IF(G13="","",SUMIF('Florida Rework'!$E:$E,$G13,'Florida Rework'!$M:$M)) ->  | P13: =IF(G13="","",SUMIF('Florida Rework'!$E:$E,$G13,'Florida Rework'!$J:$J)) ->  | Q13: =IF(G13="","",SUMIF('Florida Rework'!$E:$E,$G13,'Florida Rework'!$O:$O)) ->  | U13: =IF(G13="","",SUMIFS('Tool Usage Details'!$Q:$Q,'Tool Usage Details'!$I:$I,G13,'Tool Usage Details'!$G:$G,"FLORIDA REGION")) ->  | V13: =IF(G13="","",COUNTIFS('Tool Usage Details'!$I:$I,G13,'Tool Usage Details'!$S:$S,"PASS",'Tool Usage Details'!$G:$G,"FLORIDA REGION")) ->  | X13: =IF(G13="","",COUNTIFS('Tool Usage Details'!$I:$I,G13,'Tool Usage Details'!$R:$R,"PWW",'Tool Usage Details'!G:G,"FLORIDA REGION")+COUNTIFS('Tool Usage Details'!$I:$I,G13,'Tool Usage Details'!$R:$R,"PWO",'Tool Usage Details'!$G:$G,"FLORIDA REGION")) ->  | Z13: =IF(G13="","",SUMIFS('NSR WO Details'!$Z:$Z,'NSR WO Details'!$N:$N,G13,'NSR WO Details'!$F:$F,"FLORIDA")) ->  | AA13: =IF(G13="","",SUMIFS('NSR WO Details'!$AA:$AA,'NSR WO Details'!$N:$N,G13,'NSR WO Details'!$F:$F,"FLORIDA")) ->  | AC13: =IF(G13="","",COUNTIFS('NSR WO Details'!$N:$N,G13,'NSR WO Details'!$W:$W,"Met",'NSR WO Details'!$F:$F,"FLORIDA")) ->  | AD13: =IF(G13="","",COUNTIFS('NSR WO Details'!$N:$N,G13,'NSR WO Details'!$W:$W,"Missed",'NSR WO Details'!$F:$F,"FLORIDA")) ->  | AF13: =IF(G13="","",COUNTIFS('NSR WO Details'!$N:$N,G13,'NSR WO Details'!$F:$F,"FLORIDA")) ->  | AG13: =IF(G13="","",SUMIFS('NSR WO Details'!$AE:$AE,'NSR WO Details'!$N:$N,G13,'NSR WO Details'!$F:$F,"FLORIDA")) ->  | AI13: =IF(G13="","",SUMIFS('RTM Results'!$AT:$AT,'RTM Results'!$DD:$DD,G13,'RTM Results'!$P:$P,"Florida")) ->  | AJ13: =IF(G13="","",SUMIFS('RTM Results'!$AP:$AP,'RTM Results'!$DD:$DD,G13,'RTM Results'!$P:$P,"Florida")) ->  | AL13: =SUMIFS('ML Bonding Compliance'!$AC:$AC,'ML Bonding Compliance'!$S:$S,$G13,'ML Bonding Compliance'!$F:$F,"FLORIDA") -> 0 | AM13: =SUMIFS('ML Bonding Compliance'!$AE:$AE,'ML Bonding Compliance'!$S:$S,$G13,'ML Bonding Compliance'!$F:$F,"FLORIDA") -> 0 | AO13: =IF(G13="","",SUMIFS('Tool Usage Details'!$T:$T,'Tool Usage Details'!$I:$I,G13,'Tool Usage Details'!$G:$G,"FLORIDA REGION")) ->  | AP13: =IF(G13="","",COUNTIFS('Tool Usage Details'!$I:$I,G13,'Tool Usage Details'!$U:$U,"PASS",'Tool Usage Details'!$G:$G,"FLORIDA REGION")) ->  | AR13: =IF(G13="","",SUMIFS('One Drop'!$AB:$AB,'One Drop'!$P:$P,G13,'One Drop'!$L:$L,"FLORIDA REGION")) ->  | AS13: =IF(G13="","",SUMIFS('One Drop'!$AA:$AA,'One Drop'!$P:$P,G13,'One Drop'!$L:$L,"FLORIDA REGION")) ->  | AU13: =IF(G13="","",SUMIFS('NSR WO Details'!$AK:$AK,'NSR WO Details'!$N:$N,G13,'NSR WO Details'!$F:$F,"FLORIDA")) ->  | AV13: =IF(G13="","",SUMIFS('NSR WO Details'!$AL:$AL,'NSR WO Details'!$N:$N,G13,'NSR WO Details'!$F:$F,"FLORIDA")) ->  | AX13: =IF(OR(I13=0,I13=""),"",SUMIFS('Time in Home'!$L:$L,'Time in Home'!$I:$I,$G13,'Time in Home'!E:E,"FLORIDA REGION")) ->  | AY13: =IF(OR(I13=0,I13=""),"",SUMIFS('Time in Home'!$P:$P,'Time in Home'!$I:$I,$G13,'Time in Home'!E:E,"FLORIDA REGION")) ->  | AZ13: =SUMIFS('TQI BP Tech Compliance'!$N:$N,'TQI BP Tech Compliance'!$L:$L,$G13,'TQI BP Tech Compliance'!$F:$F,"FLORIDA REGION") -> 0 | BA13: =SUMIFS('TQI BP Tech Compliance'!$AI:$AI,'TQI BP Tech Compliance'!$L:$L,$G13,'TQI BP Tech Compliance'!$F:$F,"FLORIDA REGION") -> 0 | BB13: =SUMIFS('TQI BP Tech Compliance'!$AB:$AB,'TQI BP Tech Compliance'!$L:$L,$G13,'TQI BP Tech Compliance'!$F:$F,"FLORIDA REGION") -> 0 | BC13: =IFERROR(SUMIFS('TQI BP Tech Compliance'!$AA:$AA,'TQI BP Tech Compliance'!$L:$L,$G13,'TQI BP Tech Compliance'!$F:$F,"FLORIDA REGION")/BB13,"") ->  | BD13: =IFERROR(SUMIFS('TQI BP Tech Compliance'!$Q:$Q,'TQI BP Tech Compliance'!$L:$L,$G13,'TQI BP Tech Compliance'!$F:$F,"FLORIDA REGION"),"") -> 0 | BE13: Enrique Gabino | BF13: =IF(G13="","",SUMIFS(Completion!$CH:$CH,Completion!$AC:$AC,G13,Completion!$N:$N,"Install",Completion!$E:$E,"Florida")) ->  | BG13: =IF(G13="","",SUMIFS(Completion!$AL:$AL,Completion!$AC:$AC,G13,Completion!$N:$N,"Install",Completion!$E:$E,"Florida")) ->  | BI13: =IF(G13="","",SUMIFS(Completion!$CH:$CH,Completion!$AC:$AC,G13,Completion!$N:$N,"TC",Completion!$E:$E,"Florida")) ->  | BJ13: =IF(G13="","",SUMIFS(Completion!$AL:$AL,Completion!$AC:$AC,G13,Completion!$N:$N,"TC",Completion!$E:$E,"Florida")) ->  | BM13: =COUNTIFS(Completion!$AC:$AC,$G13,Completion!$E:$E,"FLORIDA",Completion!$N:$N,"TC") -> 0 | BN13: =COUNTIFS(Completion!$AC:$AC,$G13,Completion!$E:$E,"FLORIDA",Completion!$N:$N,"TC",Completion!$BA:$BA,"Customer") -> 0 | BP13: =IF(SUMIFS('T360 CNH'!V:V,'T360 CNH'!J:J,G13,'T360 CNH'!I:I,"Florida")=0,"",SUMIFS('T360 CNH'!V:V,'T360 CNH'!J:J,G13,'T360 CNH'!I:I,"Florida")) ->  | BQ13: =IF(BP13="","",SUMIFS('T360 CNH'!S:S,'T360 CNH'!J:J,G13,'T360 CNH'!I:I,"Florida")) ->  | BY13: Dravis Williams | BZ13: 6560 | CB13: =IF(BZ13="","",SUMIFS('NSR WO Details'!$AG:$AG,'NSR WO Details'!$N:$N,BZ13,'NSR WO Details'!$F:$F,"FLORIDA",'NSR WO Details'!AI:AI,">="&$BU$17,'NSR WO Details'!AI:AI,"<="&$BV$17)) -> 0 | CC13: =IF(BZ13="","",COUNTIFS('FTR Detail'!$P:$P,BZ13,'FTR Detail'!$H:$H,"=FLORIDA",'NSR WO Details'!AI:AI,">="&$BU$17,'NSR WO Details'!AI:AI,"<="&$BV$17)) -> 0 | CE13: =IF(BZ13="","",SUMIFS('Tool Usage Details'!$Q:$Q,'Tool Usage Details'!$I:$I,BZ13,'Tool Usage Details'!$G:$G,"FLORIDA REGION",'NSR WO Details'!AI:AI,">="&$BU$17,'NSR WO Details'!AJ:AJ,"<="&$BV$17)) -> 0 | CF13: =IF(BZ13="","",COUNTIFS('Tool Usage Details'!$I:$I,BZ13,'Tool Usage Details'!$S:$S,"PASS",'Tool Usage Details'!$G:$G,"FLORIDA REGION",'NSR WO Details'!AI:AI,">="&$BU$17,'NSR WO Details'!AI:AI,"<="&$BV$17)) -> 0 | CH13: =IF(BZ13="","",COUNTIFS('Tool Usage Details'!$I:$I,BZ13,'Tool Usage Details'!$R:$R,"PWW",'Tool Usage Details'!$G:$G,"FLORIDA REGION")+COUNTIFS('Tool Usage Details'!$I:$I,BZ13,'Tool Usage Details'!$R:$R,"PWO",'Tool Usage Details'!$G:$G,"FLORIDA REGION",'Tool Usage Details'!E:E,">="&$BU$17,'Tool Usage Details'!E:E,"<="&$BV$17)) -> 0 | CJ13: =IF(BZ13="","",SUMIFS('NSR WO Details'!$Z:$Z,'NSR WO Details'!$N:$N,BZ13,'NSR WO Details'!$F:$F,"FLORIDA",'NSR WO Details'!AI:AI,">="&$BU$17,'NSR WO Details'!AI:AI,"<="&$BV$17)) -> 0 | CK13: =IF(BZ13="","",SUMIFS('NSR WO Details'!$AA:$AA,'NSR WO Details'!$N:$N,BZ13,'NSR WO Details'!$F:$F,"FLORIDA",'NSR WO Details'!AI:AI,">="&$BU$17,'NSR WO Details'!AI:AI,"<="&$BV$17)) -> 0 | CM13: =IF(BZ13="","",COUNTIFS('NSR WO Details'!$N:$N,BZ13,'NSR WO Details'!$W:$W,"Met",'NSR WO Details'!$F:$F,"FLORIDA",'NSR WO Details'!AI:AI,">="&$BU$17,'NSR WO Details'!AI:AI,"<="&$BV$17)) -> 0 | CN13: =IF(BZ13="","",COUNTIFS('NSR WO Details'!$N:$N,BZ13,'NSR WO Details'!$W:$W,"Missed",'NSR WO Details'!$F:$F,"FLORIDA",'NSR WO Details'!AI:AI,">="&$BU$17,'NSR WO Details'!AI:AI,"<="&$BV$17)) -> 0 | CP13: =IF(BZ13="","",COUNTIFS('NSR WO Details'!$N:$N,BZ13,'NSR WO Details'!$F:$F,"FLORIDA",'NSR WO Details'!AI:AI,">="&$BU$17,'NSR WO Details'!AI:AI,"<="&$BV$17)) -> 0 | CQ13: =IF(BZ13="","",SUMIFS('NSR WO Details'!$AE:$AE,'NSR WO Details'!$N:$N,BZ13,'NSR WO Details'!$F:$F,"FLORIDA",'NSR WO Details'!AI:AI,">="&$BU$17,'NSR WO Details'!AI:AI,"<="&$BV$17)) -> 0 | CS13: =IF(BZ13="","",SUMIFS('RTM Results'!$DG:$DG,'RTM Results'!$BD:$BD,BZ13,'RTM Results'!$O:$O,"Florida",'RTM Results'!H:H,">="&$BU$17,'RTM Results'!H:H,"<="&$BV$17)) -> 0 | CT13: =IF(BZ13="","",SUMIFS('RTM Results'!$DC:$DC,'RTM Results'!$BD:$BD,BZ13,'RTM Results'!$O:$O,"Florida",'RTM Results'!H:H,">="&$BU$17,'RTM Results'!H:H,"<="&$BV$17)) -> 0 | CV13: =IF(BZ13="","",SUMIFS('Tool Usage Details'!$T:$T,'Tool Usage Details'!$I:$I,BZ13,'Tool Usage Details'!$G:$G,"FLORIDA REGION",'Tool Usage Details'!E:E,">="&$BU$17,'Tool Usage Details'!E:E,"<="&$BV$17)) -> 0 | CW13: =IF(BZ13="","",COUNTIFS('Tool Usage Details'!$I:$I,BZ13,'Tool Usage Details'!$U:$U,"PASS",'Tool Usage Details'!$G:$G,"FLORIDA REGION",'Tool Usage Details'!E:E,">="&$BU$17,'Tool Usage Details'!E:E,"<="&$BV$17)) -> 0 | CY13: =IF(BZ13="","",SUMIFS('One Drop'!$BV:$BV,'One Drop'!$P:$P,BZ13,'One Drop'!$L:$L,"FLORIDA REGION",'One Drop'!AQ:AQ,">="&$BU$17,'One Drop'!AQ:AQ,"<="&$BV$17)) -> 0 | CZ13: =IF(BZ13="","",SUMIFS('One Drop'!$BQ:$BQ,'One Drop'!$P:$P,BZ13,'One Drop'!$L:$L,"FLORIDA REGION",'One Drop'!AQ:AQ,">="&$BU$17,'One Drop'!AQ:AQ,"<="&$BV$17)) -> 0 | DB13: =IF(BZ13="","",SUMIFS('NSR WO Details'!$AK:$AK,'NSR WO Details'!$N:$N,BZ13,'NSR WO Details'!$F:$F,"FLORIDA",'NSR WO Details'!AI:AI,">="&$BU$17,'NSR WO Details'!AI:AI,"<="&$BV$17)) -> 0 | DC13: =IF(BZ13="","",SUMIFS('NSR WO Details'!$AL:$AL,'NSR WO Details'!$N:$N,BZ13,'NSR WO Details'!$F:$F,"FLORIDA",'NSR WO Details'!AI:AI,">="&$BU$17,'NSR WO Details'!AI:AI,"<="&$BV$17)) -> 0 | DE13: =IF(BZ13="","",SUMIFS(Completion!$CJ:$CJ,Completion!$G:$G,BZ13,Completion!$N:$N,"Install",Completion!$E:$E,"Florida",Completion!AA:AA,">="&$BU$17,Completion!AA:AA,"<="&$BV$17)) -> 0 | DF13: =IF(BZ13="","",SUMIFS(Completion!$CB:$CB,Completion!$G:$G,BZ13,Completion!$N:$N,"Install",Completion!$E:$E,"Florida",Completion!AA:AA,">="&$BU$17,Completion!AA:AA,"<="&$BV$17)) -> 0 | DH13: =IF(BZ13="","",SUMIFS(Completion!$CJ:$CJ,Completion!$G:$G,BZ13,Completion!$N:$N,"TC",Completion!$E:$E,"Florida",Completion!AA:AA,">="&BU$17,Completion!AA:AA,"<="&$BV$17)) -> 0 | DI13: =IF(BZ13="","",SUMIFS(Completion!$CB:$CB,Completion!$G:$G,BZ13,Completion!$N:$N,"TC",Completion!$E:$E,"Florida",Completion!AA:AA,">="&$BU$17,Completion!AA:AA,"<="&$BV$17)) -> 0
B14: Florida | I14: =IF(G14="","",SUMIFS('NSR WO Details'!$AG:$AG,'NSR WO Details'!$N:$N,G14,'NSR WO Details'!$F:$F,"FLORIDA")) ->  | J14: =IF(G14="","",COUNTIFS('FTR Detail'!$P:$P,G14,'FTR Detail'!$H:$H,"=FLORIDA")) ->  | L14: =IF(G14="","",SUMIF('Florida Rework'!$E:$E,$G14,'Florida Rework'!$H:$H)) ->  | M14: =IF(G14="","",SUMIF('Florida Rework'!$E:$E,$G14,'Florida Rework'!$I:$I)) ->  | N14: =IF(G14="","",SUMIF('Florida Rework'!$E:$E,$G14,'Florida Rework'!$M:$M)) ->  | P14: =IF(G14="","",SUMIF('Florida Rework'!$E:$E,$G14,'Florida Rework'!$J:$J)) ->  | Q14: =IF(G14="","",SUMIF('Florida Rework'!$E:$E,$G14,'Florida Rework'!$O:$O)) ->  | U14: =IF(G14="","",SUMIFS('Tool Usage Details'!$Q:$Q,'Tool Usage Details'!$I:$I,G14,'Tool Usage Details'!$G:$G,"FLORIDA REGION")) ->  | V14: =IF(G14="","",COUNTIFS('Tool Usage Details'!$I:$I,G14,'Tool Usage Details'!$S:$S,"PASS",'Tool Usage Details'!$G:$G,"FLORIDA REGION")) ->  | X14: =IF(G14="","",COUNTIFS('Tool Usage Details'!$I:$I,G14,'Tool Usage Details'!$R:$R,"PWW",'Tool Usage Details'!G:G,"FLORIDA REGION")+COUNTIFS('Tool Usage Details'!$I:$I,G14,'Tool Usage Details'!$R:$R,"PWO",'Tool Usage Details'!$G:$G,"FLORIDA REGION")) ->  | Z14: =IF(G14="","",SUMIFS('NSR WO Details'!$Z:$Z,'NSR WO Details'!$N:$N,G14,'NSR WO Details'!$F:$F,"FLORIDA")) ->  | AA14: =IF(G14="","",SUMIFS('NSR WO Details'!$AA:$AA,'NSR WO Details'!$N:$N,G14,'NSR WO Details'!$F:$F,"FLORIDA")) ->  | AC14: =IF(G14="","",COUNTIFS('NSR WO Details'!$N:$N,G14,'NSR WO Details'!$W:$W,"Met",'NSR WO Details'!$F:$F,"FLORIDA")) ->  | AD14: =IF(G14="","",COUNTIFS('NSR WO Details'!$N:$N,G14,'NSR WO Details'!$W:$W,"Missed",'NSR WO Details'!$F:$F,"FLORIDA")) ->  | AF14: =IF(G14="","",COUNTIFS('NSR WO Details'!$N:$N,G14,'NSR WO Details'!$F:$F,"FLORIDA")) ->  | AG14: =IF(G14="","",SUMIFS('NSR WO Details'!$AE:$AE,'NSR WO Details'!$N:$N,G14,'NSR WO Details'!$F:$F,"FLORIDA")) ->  | AI14: =IF(G14="","",SUMIFS('RTM Results'!$AT:$AT,'RTM Results'!$DD:$DD,G14,'RTM Results'!$P:$P,"Florida")) ->  | AJ14: =IF(G14="","",SUMIFS('RTM Results'!$AP:$AP,'RTM Results'!$DD:$DD,G14,'RTM Results'!$P:$P,"Florida")) ->  | AL14: =SUMIFS('ML Bonding Compliance'!$AC:$AC,'ML Bonding Compliance'!$S:$S,$G14,'ML Bonding Compliance'!$F:$F,"FLORIDA") -> 0 | AM14: =SUMIFS('ML Bonding Compliance'!$AE:$AE,'ML Bonding Compliance'!$S:$S,$G14,'ML Bonding Compliance'!$F:$F,"FLORIDA") -> 0 | AO14: =IF(G14="","",SUMIFS('Tool Usage Details'!$T:$T,'Tool Usage Details'!$I:$I,G14,'Tool Usage Details'!$G:$G,"FLORIDA REGION")) ->  | AP14: =IF(G14="","",COUNTIFS('Tool Usage Details'!$I:$I,G14,'Tool Usage Details'!$U:$U,"PASS",'Tool Usage Details'!$G:$G,"FLORIDA REGION")) ->  | AR14: =IF(G14="","",SUMIFS('One Drop'!$AB:$AB,'One Drop'!$P:$P,G14,'One Drop'!$L:$L,"FLORIDA REGION")) ->  | AS14: =IF(G14="","",SUMIFS('One Drop'!$AA:$AA,'One Drop'!$P:$P,G14,'One Drop'!$L:$L,"FLORIDA REGION")) ->  | AU14: =IF(G14="","",SUMIFS('NSR WO Details'!$AK:$AK,'NSR WO Details'!$N:$N,G14,'NSR WO Details'!$F:$F,"FLORIDA")) ->  | AV14: =IF(G14="","",SUMIFS('NSR WO Details'!$AL:$AL,'NSR WO Details'!$N:$N,G14,'NSR WO Details'!$F:$F,"FLORIDA")) ->  | AX14: =IF(OR(I14=0,I14=""),"",SUMIFS('Time in Home'!$L:$L,'Time in Home'!$I:$I,$G14,'Time in Home'!E:E,"FLORIDA REGION")) ->  | AY14: =IF(OR(I14=0,I14=""),"",SUMIFS('Time in Home'!$P:$P,'Time in Home'!$I:$I,$G14,'Time in Home'!E:E,"FLORIDA REGION")) ->  | AZ14: =SUMIFS('TQI BP Tech Compliance'!$N:$N,'TQI BP Tech Compliance'!$L:$L,$G14,'TQI BP Tech Compliance'!$F:$F,"FLORIDA REGION") -> 0 | BA14: =SUMIFS('TQI BP Tech Compliance'!$AI:$AI,'TQI BP Tech Compliance'!$L:$L,$G14,'TQI BP Tech Compliance'!$F:$F,"FLORIDA REGION") -> 0 | BB14: =SUMIFS('TQI BP Tech Compliance'!$AB:$AB,'TQI BP Tech Compliance'!$L:$L,$G14,'TQI BP Tech Compliance'!$F:$F,"FLORIDA REGION") -> 0 | BC14: =IFERROR(SUMIFS('TQI BP Tech Compliance'!$AA:$AA,'TQI BP Tech Compliance'!$L:$L,$G14,'TQI BP Tech Compliance'!$F:$F,"FLORIDA REGION")/BB14,"") ->  | BD14: =IFERROR(SUMIFS('TQI BP Tech Compliance'!$Q:$Q,'TQI BP Tech Compliance'!$L:$L,$G14,'TQI BP Tech Compliance'!$F:$F,"FLORIDA REGION"),"") -> 0 | BE14: Enrique Gabino | BF14: =IF(G14="","",SUMIFS(Completion!$CH:$CH,Completion!$AC:$AC,G14,Completion!$N:$N,"Install",Completion!$E:$E,"Florida")) ->  | BG14: =IF(G14="","",SUMIFS(Completion!$AL:$AL,Completion!$AC:$AC,G14,Completion!$N:$N,"Install",Completion!$E:$E,"Florida")) ->  | BI14: =IF(G14="","",SUMIFS(Completion!$CH:$CH,Completion!$AC:$AC,G14,Completion!$N:$N,"TC",Completion!$E:$E,"Florida")) ->  | BJ14: =IF(G14="","",SUMIFS(Completion!$AL:$AL,Completion!$AC:$AC,G14,Completion!$N:$N,"TC",Completion!$E:$E,"Florida")) ->  | BM14: =COUNTIFS(Completion!$AC:$AC,$G14,Completion!$E:$E,"FLORIDA",Completion!$N:$N,"TC") -> 0 | BN14: =COUNTIFS(Completion!$AC:$AC,$G14,Completion!$E:$E,"FLORIDA",Completion!$N:$N,"TC",Completion!$BA:$BA,"Customer") -> 0 | BP14: =IF(SUMIFS('T360 CNH'!V:V,'T360 CNH'!J:J,G14,'T360 CNH'!I:I,"Florida")=0,"",SUMIFS('T360 CNH'!V:V,'T360 CNH'!J:J,G14,'T360 CNH'!I:I,"Florida")) ->  | BQ14: =IF(BP14="","",SUMIFS('T360 CNH'!S:S,'T360 CNH'!J:J,G14,'T360 CNH'!I:I,"Florida")) ->  | BY14: Chris Anderson | BZ14: 8452 | CB14: =IF(BZ14="","",SUMIFS('NSR WO Details'!$AG:$AG,'NSR WO Details'!$N:$N,BZ14,'NSR WO Details'!$F:$F,"FLORIDA",'NSR WO Details'!AI:AI,">="&$BU$17,'NSR WO Details'!AI:AI,"<="&$BV$17)) -> 0 | CC14: =IF(BZ14="","",COUNTIFS('FTR Detail'!$P:$P,BZ14,'FTR Detail'!$H:$H,"=FLORIDA",'NSR WO Details'!AI:AI,">="&$BU$17,'NSR WO Details'!AI:AI,"<="&$BV$17)) -> 0 | CE14: =IF(BZ14="","",SUMIFS('Tool Usage Details'!$Q:$Q,'Tool Usage Details'!$I:$I,BZ14,'Tool Usage Details'!$G:$G,"FLORIDA REGION",'NSR WO Details'!AI:AI,">="&$BU$17,'NSR WO Details'!AJ:AJ,"<="&$BV$17)) -> 0 | CF14: =IF(BZ14="","",COUNTIFS('Tool Usage Details'!$I:$I,BZ14,'Tool Usage Details'!$S:$S,"PASS",'Tool Usage Details'!$G:$G,"FLORIDA REGION",'NSR WO Details'!AI:AI,">="&$BU$17,'NSR WO Details'!AI:AI,"<="&$BV$17)) -> 0 | CH14: =IF(BZ14="","",COUNTIFS('Tool Usage Details'!$I:$I,BZ14,'Tool Usage Details'!$R:$R,"PWW",'Tool Usage Details'!$G:$G,"FLORIDA REGION")+COUNTIFS('Tool Usage Details'!$I:$I,BZ14,'Tool Usage Details'!$R:$R,"PWO",'Tool Usage Details'!$G:$G,"FLORIDA REGION",'Tool Usage Details'!E:E,">="&$BU$17,'Tool Usage Details'!E:E,"<="&$BV$17)) -> 0 | CJ14: =IF(BZ14="","",SUMIFS('NSR WO Details'!$Z:$Z,'NSR WO Details'!$N:$N,BZ14,'NSR WO Details'!$F:$F,"FLORIDA",'NSR WO Details'!AI:AI,">="&$BU$17,'NSR WO Details'!AI:AI,"<="&$BV$17)) -> 0 | CK14: =IF(BZ14="","",SUMIFS('NSR WO Details'!$AA:$AA,'NSR WO Details'!$N:$N,BZ14,'NSR WO Details'!$F:$F,"FLORIDA",'NSR WO Details'!AI:AI,">="&$BU$17,'NSR WO Details'!AI:AI,"<="&$BV$17)) -> 0 | CM14: =IF(BZ14="","",COUNTIFS('NSR WO Details'!$N:$N,BZ14,'NSR WO Details'!$W:$W,"Met",'NSR WO Details'!$F:$F,"FLORIDA",'NSR WO Details'!AI:AI,">="&$BU$17,'NSR WO Details'!AI:AI,"<="&$BV$17)) -> 0 | CN14: =IF(BZ14="","",COUNTIFS('NSR WO Details'!$N:$N,BZ14,'NSR WO Details'!$W:$W,"Missed",'NSR WO Details'!$F:$F,"FLORIDA",'NSR WO Details'!AI:AI,">="&$BU$17,'NSR WO Details'!AI:AI,"<="&$BV$17)) -> 0 | CP14: =IF(BZ14="","",COUNTIFS('NSR WO Details'!$N:$N,BZ14,'NSR WO Details'!$F:$F,"FLORIDA",'NSR WO Details'!AI:AI,">="&$BU$17,'NSR WO Details'!AI:AI,"<="&$BV$17)) -> 0 | CQ14: =IF(BZ14="","",SUMIFS('NSR WO Details'!$AE:$AE,'NSR WO Details'!$N:$N,BZ14,'NSR WO Details'!$F:$F,"FLORIDA",'NSR WO Details'!AI:AI,">="&$BU$17,'NSR WO Details'!AI:AI,"<="&$BV$17)) -> 0 | CS14: =IF(BZ14="","",SUMIFS('RTM Results'!$DG:$DG,'RTM Results'!$BD:$BD,BZ14,'RTM Results'!$O:$O,"Florida",'RTM Results'!H:H,">="&$BU$17,'RTM Results'!H:H,"<="&$BV$17)) -> 0 | CT14: =IF(BZ14="","",SUMIFS('RTM Results'!$DC:$DC,'RTM Results'!$BD:$BD,BZ14,'RTM Results'!$O:$O,"Florida",'RTM Results'!H:H,">="&$BU$17,'RTM Results'!H:H,"<="&$BV$17)) -> 0 | CV14: =IF(BZ14="","",SUMIFS('Tool Usage Details'!$T:$T,'Tool Usage Details'!$I:$I,BZ14,'Tool Usage Details'!$G:$G,"FLORIDA REGION",'Tool Usage Details'!E:E,">="&$BU$17,'Tool Usage Details'!E:E,"<="&$BV$17)) -> 0 | CW14: =IF(BZ14="","",COUNTIFS('Tool Usage Details'!$I:$I,BZ14,'Tool Usage Details'!$U:$U,"PASS",'Tool Usage Details'!$G:$G,"FLORIDA REGION",'Tool Usage Details'!E:E,">="&$BU$17,'Tool Usage Details'!E:E,"<="&$BV$17)) -> 0 | CY14: =IF(BZ14="","",SUMIFS('One Drop'!$BV:$BV,'One Drop'!$P:$P,BZ14,'One Drop'!$L:$L,"FLORIDA REGION",'One Drop'!AQ:AQ,">="&$BU$17,'One Drop'!AQ:AQ,"<="&$BV$17)) -> 0 | CZ14: =IF(BZ14="","",SUMIFS('One Drop'!$BQ:$BQ,'One Drop'!$P:$P,BZ14,'One Drop'!$L:$L,"FLORIDA REGION",'One Drop'!AQ:AQ,">="&$BU$17,'One Drop'!AQ:AQ,"<="&$BV$17)) -> 0 | DB14: =IF(BZ14="","",SUMIFS('NSR WO Details'!$AK:$AK,'NSR WO Details'!$N:$N,BZ14,'NSR WO Details'!$F:$F,"FLORIDA",'NSR WO Details'!AI:AI,">="&$BU$17,'NSR WO Details'!AI:AI,"<="&$BV$17)) -> 0 | DC14: =IF(BZ14="","",SUMIFS('NSR WO Details'!$AL:$AL,'NSR WO Details'!$N:$N,BZ14,'NSR WO Details'!$F:$F,"FLORIDA",'NSR WO Details'!AI:AI,">="&$BU$17,'NSR WO Details'!AI:AI,"<="&$BV$17)) -> 0 | DE14: =IF(BZ14="","",SUMIFS(Completion!$CJ:$CJ,Completion!$G:$G,BZ14,Completion!$N:$N,"Install",Completion!$E:$E,"Florida",Completion!AA:AA,">="&$BU$17,Completion!AA:AA,"<="&$BV$17)) -> 0 | DF14: =IF(BZ14="","",SUMIFS(Completion!$CB:$CB,Completion!$G:$G,BZ14,Completion!$N:$N,"Install",Completion!$E:$E,"Florida",Completion!AA:AA,">="&$BU$17,Completion!AA:AA,"<="&$BV$17)) -> 0 | DH14: =IF(BZ14="","",SUMIFS(Completion!$CJ:$CJ,Completion!$G:$G,BZ14,Completion!$N:$N,"TC",Completion!$E:$E,"Florida",Completion!AA:AA,">="&BU$17,Completion!AA:AA,"<="&$BV$17)) -> 0 | DI14: =IF(BZ14="","",SUMIFS(Completion!$CB:$CB,Completion!$G:$G,BZ14,Completion!$N:$N,"TC",Completion!$E:$E,"Florida",Completion!AA:AA,">="&$BU$17,Completion!AA:AA,"<="&$BV$17)) -> 0
B15: West Palm Beach | I15: =IF(G15="","",SUMIFS('NSR WO Details'!$AG:$AG,'NSR WO Details'!$N:$N,G15,'NSR WO Details'!$F:$F,"FLORIDA")) ->  | J15: =IF(G15="","",COUNTIFS('FTR Detail'!$P:$P,G15,'FTR Detail'!$H:$H,"=FLORIDA")) ->  | L15: =IF(G15="","",SUMIF('Florida Rework'!$E:$E,$G15,'Florida Rework'!$H:$H)) ->  | M15: =IF(G15="","",SUMIF('Florida Rework'!$E:$E,$G15,'Florida Rework'!$I:$I)) ->  | N15: =IF(G15="","",SUMIF('Florida Rework'!$E:$E,$G15,'Florida Rework'!$M:$M)) ->  | P15: =IF(G15="","",SUMIF('Florida Rework'!$E:$E,$G15,'Florida Rework'!$J:$J)) ->  | Q15: =IF(G15="","",SUMIF('Florida Rework'!$E:$E,$G15,'Florida Rework'!$O:$O)) ->  | U15: =IF(G15="","",SUMIFS('Tool Usage Details'!$Q:$Q,'Tool Usage Details'!$I:$I,G15,'Tool Usage Details'!$G:$G,"FLORIDA REGION")) ->  | V15: =IF(G15="","",COUNTIFS('Tool Usage Details'!$I:$I,G15,'Tool Usage Details'!$S:$S,"PASS",'Tool Usage Details'!$G:$G,"FLORIDA REGION")) ->  | X15: =IF(G15="","",COUNTIFS('Tool Usage Details'!$I:$I,G15,'Tool Usage Details'!$R:$R,"PWW",'Tool Usage Details'!G:G,"FLORIDA REGION")+COUNTIFS('Tool Usage Details'!$I:$I,G15,'Tool Usage Details'!$R:$R,"PWO",'Tool Usage Details'!$G:$G,"FLORIDA REGION")) ->  | Z15: =IF(G15="","",SUMIFS('NSR WO Details'!$Z:$Z,'NSR WO Details'!$N:$N,G15,'NSR WO Details'!$F:$F,"FLORIDA")) ->  | AA15: =IF(G15="","",SUMIFS('NSR WO Details'!$AA:$AA,'NSR WO Details'!$N:$N,G15,'NSR WO Details'!$F:$F,"FLORIDA")) ->  | AC15: =IF(G15="","",COUNTIFS('NSR WO Details'!$N:$N,G15,'NSR WO Details'!$W:$W,"Met",'NSR WO Details'!$F:$F,"FLORIDA")) ->  | AD15: =IF(G15="","",COUNTIFS('NSR WO Details'!$N:$N,G15,'NSR WO Details'!$W:$W,"Missed",'NSR WO Details'!$F:$F,"FLORIDA")) ->  | AF15: =IF(G15="","",COUNTIFS('NSR WO Details'!$N:$N,G15,'NSR WO Details'!$F:$F,"FLORIDA")) ->  | AG15: =IF(G15="","",SUMIFS('NSR WO Details'!$AE:$AE,'NSR WO Details'!$N:$N,G15,'NSR WO Details'!$F:$F,"FLORIDA")) ->  | AI15: =IF(G15="","",SUMIFS('RTM Results'!$AT:$AT,'RTM Results'!$DD:$DD,G15,'RTM Results'!$P:$P,"Florida")) ->  | AJ15: =IF(G15="","",SUMIFS('RTM Results'!$AP:$AP,'RTM Results'!$DD:$DD,G15,'RTM Results'!$P:$P,"Florida")) ->  | AL15: =SUMIFS('ML Bonding Compliance'!$AC:$AC,'ML Bonding Compliance'!$S:$S,$G15,'ML Bonding Compliance'!$F:$F,"FLORIDA") -> 0 | AM15: =SUMIFS('ML Bonding Compliance'!$AE:$AE,'ML Bonding Compliance'!$S:$S,$G15,'ML Bonding Compliance'!$F:$F,"FLORIDA") -> 0 | AO15: =IF(G15="","",SUMIFS('Tool Usage Details'!$T:$T,'Tool Usage Details'!$I:$I,G15,'Tool Usage Details'!$G:$G,"FLORIDA REGION")) ->  | AP15: =IF(G15="","",COUNTIFS('Tool Usage Details'!$I:$I,G15,'Tool Usage Details'!$U:$U,"PASS",'Tool Usage Details'!$G:$G,"FLORIDA REGION")) ->  | AR15: =IF(G15="","",SUMIFS('One Drop'!$AB:$AB,'One Drop'!$P:$P,G15,'One Drop'!$L:$L,"FLORIDA REGION")) ->  | AS15: =IF(G15="","",SUMIFS('One Drop'!$AA:$AA,'One Drop'!$P:$P,G15,'One Drop'!$L:$L,"FLORIDA REGION")) ->  | AU15: =IF(G15="","",SUMIFS('NSR WO Details'!$AK:$AK,'NSR WO Details'!$N:$N,G15,'NSR WO Details'!$F:$F,"FLORIDA")) ->  | AV15: =IF(G15="","",SUMIFS('NSR WO Details'!$AL:$AL,'NSR WO Details'!$N:$N,G15,'NSR WO Details'!$F:$F,"FLORIDA")) ->  | AX15: =IF(OR(I15=0,I15=""),"",SUMIFS('Time in Home'!$L:$L,'Time in Home'!$I:$I,$G15,'Time in Home'!E:E,"FLORIDA REGION")) ->  | AY15: =IF(OR(I15=0,I15=""),"",SUMIFS('Time in Home'!$P:$P,'Time in Home'!$I:$I,$G15,'Time in Home'!E:E,"FLORIDA REGION")) ->  | AZ15: =SUMIFS('TQI BP Tech Compliance'!$N:$N,'TQI BP Tech Compliance'!$L:$L,$G15,'TQI BP Tech Compliance'!$F:$F,"FLORIDA REGION") -> 0 | BA15: =SUMIFS('TQI BP Tech Compliance'!$AI:$AI,'TQI BP Tech Compliance'!$L:$L,$G15,'TQI BP Tech Compliance'!$F:$F,"FLORIDA REGION") -> 0 | BB15: =SUMIFS('TQI BP Tech Compliance'!$AB:$AB,'TQI BP Tech Compliance'!$L:$L,$G15,'TQI BP Tech Compliance'!$F:$F,"FLORIDA REGION") -> 0 | BC15: =IFERROR(SUMIFS('TQI BP Tech Compliance'!$AA:$AA,'TQI BP Tech Compliance'!$L:$L,$G15,'TQI BP Tech Compliance'!$F:$F,"FLORIDA REGION")/BB15,"") ->  | BD15: =IFERROR(SUMIFS('TQI BP Tech Compliance'!$Q:$Q,'TQI BP Tech Compliance'!$L:$L,$G15,'TQI BP Tech Compliance'!$F:$F,"FLORIDA REGION"),"") -> 0 | BE15: Enrique Gabino | BF15: =IF(G15="","",SUMIFS(Completion!$CH:$CH,Completion!$AC:$AC,G15,Completion!$N:$N,"Install",Completion!$E:$E,"Florida")) ->  | BG15: =IF(G15="","",SUMIFS(Completion!$AL:$AL,Completion!$AC:$AC,G15,Completion!$N:$N,"Install",Completion!$E:$E,"Florida")) ->  | BI15: =IF(G15="","",SUMIFS(Completion!$CH:$CH,Completion!$AC:$AC,G15,Completion!$N:$N,"TC",Completion!$E:$E,"Florida")) ->  | BJ15: =IF(G15="","",SUMIFS(Completion!$AL:$AL,Completion!$AC:$AC,G15,Completion!$N:$N,"TC",Completion!$E:$E,"Florida")) ->  | BM15: =COUNTIFS(Completion!$AC:$AC,$G15,Completion!$E:$E,"FLORIDA",Completion!$N:$N,"TC") -> 0 | BN15: =COUNTIFS(Completion!$AC:$AC,$G15,Completion!$E:$E,"FLORIDA",Completion!$N:$N,"TC",Completion!$BA:$BA,"Customer") -> 0 | BP15: =IF(SUMIFS('T360 CNH'!V:V,'T360 CNH'!J:J,G15,'T360 CNH'!I:I,"Florida")=0,"",SUMIFS('T360 CNH'!V:V,'T360 CNH'!J:J,G15,'T360 CNH'!I:I,"Florida")) ->  | BQ15: =IF(BP15="","",SUMIFS('T360 CNH'!S:S,'T360 CNH'!J:J,G15,'T360 CNH'!I:I,"Florida")) ->  | BY15: Marcel Baptiste | BZ15: 7728 | CB15: =IF(BZ15="","",SUMIFS('NSR WO Details'!$AG:$AG,'NSR WO Details'!$N:$N,BZ15,'NSR WO Details'!$F:$F,"FLORIDA",'NSR WO Details'!AI:AI,">="&$BU$17,'NSR WO Details'!AI:AI,"<="&$BV$17)) -> 0 | CC15: =IF(BZ15="","",COUNTIFS('FTR Detail'!$P:$P,BZ15,'FTR Detail'!$H:$H,"=FLORIDA",'NSR WO Details'!AI:AI,">="&$BU$17,'NSR WO Details'!AI:AI,"<="&$BV$17)) -> 0 | CE15: =IF(BZ15="","",SUMIFS('Tool Usage Details'!$Q:$Q,'Tool Usage Details'!$I:$I,BZ15,'Tool Usage Details'!$G:$G,"FLORIDA REGION",'NSR WO Details'!AI:AI,">="&$BU$17,'NSR WO Details'!AJ:AJ,"<="&$BV$17)) -> 0 | CF15: =IF(BZ15="","",COUNTIFS('Tool Usage Details'!$I:$I,BZ15,'Tool Usage Details'!$S:$S,"PASS",'Tool Usage Details'!$G:$G,"FLORIDA REGION",'NSR WO Details'!AI:AI,">="&$BU$17,'NSR WO Details'!AI:AI,"<="&$BV$17)) -> 0 | CH15: =IF(BZ15="","",COUNTIFS('Tool Usage Details'!$I:$I,BZ15,'Tool Usage Details'!$R:$R,"PWW",'Tool Usage Details'!$G:$G,"FLORIDA REGION")+COUNTIFS('Tool Usage Details'!$I:$I,BZ15,'Tool Usage Details'!$R:$R,"PWO",'Tool Usage Details'!$G:$G,"FLORIDA REGION",'Tool Usage Details'!E:E,">="&$BU$17,'Tool Usage Details'!E:E,"<="&$BV$17)) -> 0 | CJ15: =IF(BZ15="","",SUMIFS('NSR WO Details'!$Z:$Z,'NSR WO Details'!$N:$N,BZ15,'NSR WO Details'!$F:$F,"FLORIDA",'NSR WO Details'!AI:AI,">="&$BU$17,'NSR WO Details'!AI:AI,"<="&$BV$17)) -> 0 | CK15: =IF(BZ15="","",SUMIFS('NSR WO Details'!$AA:$AA,'NSR WO Details'!$N:$N,BZ15,'NSR WO Details'!$F:$F,"FLORIDA",'NSR WO Details'!AI:AI,">="&$BU$17,'NSR WO Details'!AI:AI,"<="&$BV$17)) -> 0 | CM15: =IF(BZ15="","",COUNTIFS('NSR WO Details'!$N:$N,BZ15,'NSR WO Details'!$W:$W,"Met",'NSR WO Details'!$F:$F,"FLORIDA",'NSR WO Details'!AI:AI,">="&$BU$17,'NSR WO Details'!AI:AI,"<="&$BV$17)) -> 0 | CN15: =IF(BZ15="","",COUNTIFS('NSR WO Details'!$N:$N,BZ15,'NSR WO Details'!$W:$W,"Missed",'NSR WO Details'!$F:$F,"FLORIDA",'NSR WO Details'!AI:AI,">="&$BU$17,'NSR WO Details'!AI:AI,"<="&$BV$17)) -> 0 | CP15: =IF(BZ15="","",COUNTIFS('NSR WO Details'!$N:$N,BZ15,'NSR WO Details'!$F:$F,"FLORIDA",'NSR WO Details'!AI:AI,">="&$BU$17,'NSR WO Details'!AI:AI,"<="&$BV$17)) -> 0 | CQ15: =IF(BZ15="","",SUMIFS('NSR WO Details'!$AE:$AE,'NSR WO Details'!$N:$N,BZ15,'NSR WO Details'!$F:$F,"FLORIDA",'NSR WO Details'!AI:AI,">="&$BU$17,'NSR WO Details'!AI:AI,"<="&$BV$17)) -> 0 | CS15: =IF(BZ15="","",SUMIFS('RTM Results'!$DG:$DG,'RTM Results'!$BD:$BD,BZ15,'RTM Results'!$O:$O,"Florida",'RTM Results'!H:H,">="&$BU$17,'RTM Results'!H:H,"<="&$BV$17)) -> 0 | CT15: =IF(BZ15="","",SUMIFS('RTM Results'!$DC:$DC,'RTM Results'!$BD:$BD,BZ15,'RTM Results'!$O:$O,"Florida",'RTM Results'!H:H,">="&$BU$17,'RTM Results'!H:H,"<="&$BV$17)) -> 0 | CV15: =IF(BZ15="","",SUMIFS('Tool Usage Details'!$T:$T,'Tool Usage Details'!$I:$I,BZ15,'Tool Usage Details'!$G:$G,"FLORIDA REGION",'Tool Usage Details'!E:E,">="&$BU$17,'Tool Usage Details'!E:E,"<="&$BV$17)) -> 0 | CW15: =IF(BZ15="","",COUNTIFS('Tool Usage Details'!$I:$I,BZ15,'Tool Usage Details'!$U:$U,"PASS",'Tool Usage Details'!$G:$G,"FLORIDA REGION",'Tool Usage Details'!E:E,">="&$BU$17,'Tool Usage Details'!E:E,"<="&$BV$17)) -> 0 | CY15: =IF(BZ15="","",SUMIFS('One Drop'!$BV:$BV,'One Drop'!$P:$P,BZ15,'One Drop'!$L:$L,"FLORIDA REGION",'One Drop'!AQ:AQ,">="&$BU$17,'One Drop'!AQ:AQ,"<="&$BV$17)) -> 0 | CZ15: =IF(BZ15="","",SUMIFS('One Drop'!$BQ:$BQ,'One Drop'!$P:$P,BZ15,'One Drop'!$L:$L,"FLORIDA REGION",'One Drop'!AQ:AQ,">="&$BU$17,'One Drop'!AQ:AQ,"<="&$BV$17)) -> 0 | DB15: =IF(BZ15="","",SUMIFS('NSR WO Details'!$AK:$AK,'NSR WO Details'!$N:$N,BZ15,'NSR WO Details'!$F:$F,"FLORIDA",'NSR WO Details'!AI:AI,">="&$BU$17,'NSR WO Details'!AI:AI,"<="&$BV$17)) -> 0 | DC15: =IF(BZ15="","",SUMIFS('NSR WO Details'!$AL:$AL,'NSR WO Details'!$N:$N,BZ15,'NSR WO Details'!$F:$F,"FLORIDA",'NSR WO Details'!AI:AI,">="&$BU$17,'NSR WO Details'!AI:AI,"<="&$BV$17)) -> 0 | DE15: =IF(BZ15="","",SUMIFS(Completion!$CJ:$CJ,Completion!$G:$G,BZ15,Completion!$N:$N,"Install",Completion!$E:$E,"Florida",Completion!AA:AA,">="&$BU$17,Completion!AA:AA,"<="&$BV$17)) -> 0 | DF15: =IF(BZ15="","",SUMIFS(Completion!$CB:$CB,Completion!$G:$G,BZ15,Completion!$N:$N,"Install",Completion!$E:$E,"Florida",Completion!AA:AA,">="&$BU$17,Completion!AA:AA,"<="&$BV$17)) -> 0 | DH15: =IF(BZ15="","",SUMIFS(Completion!$CJ:$CJ,Completion!$G:$G,BZ15,Completion!$N:$N,"TC",Completion!$E:$E,"Florida",Completion!AA:AA,">="&BU$17,Completion!AA:AA,"<="&$BV$17)) -> 0 | DI15: =IF(BZ15="","",SUMIFS(Completion!$CB:$CB,Completion!$G:$G,BZ15,Completion!$N:$N,"TC",Completion!$E:$E,"Florida",Completion!AA:AA,">="&$BU$17,Completion!AA:AA,"<="&$BV$17)) -> 0
B16: Treasure Coast | I16: =IF(G16="","",SUMIFS('NSR WO Details'!$AG:$AG,'NSR WO Details'!$N:$N,G16,'NSR WO Details'!$F:$F,"FLORIDA")) ->  | J16: =IF(G16="","",COUNTIFS('FTR Detail'!$P:$P,G16,'FTR Detail'!$H:$H,"=FLORIDA")) ->  | L16: =IF(G16="","",SUMIF('Florida Rework'!$E:$E,$G16,'Florida Rework'!$H:$H)) ->  | M16: =IF(G16="","",SUMIF('Florida Rework'!$E:$E,$G16,'Florida Rework'!$I:$I)) ->  | N16: =IF(G16="","",SUMIF('Florida Rework'!$E:$E,$G16,'Florida Rework'!$M:$M)) ->  | P16: =IF(G16="","",SUMIF('Florida Rework'!$E:$E,$G16,'Florida Rework'!$J:$J)) ->  | Q16: =IF(G16="","",SUMIF('Florida Rework'!$E:$E,$G16,'Florida Rework'!$O:$O)) ->  | U16: =IF(G16="","",SUMIFS('Tool Usage Details'!$Q:$Q,'Tool Usage Details'!$I:$I,G16,'Tool Usage Details'!$G:$G,"FLORIDA REGION")) ->  | V16: =IF(G16="","",COUNTIFS('Tool Usage Details'!$I:$I,G16,'Tool Usage Details'!$S:$S,"PASS",'Tool Usage Details'!$G:$G,"FLORIDA REGION")) ->  | X16: =IF(G16="","",COUNTIFS('Tool Usage Details'!$I:$I,G16,'Tool Usage Details'!$R:$R,"PWW",'Tool Usage Details'!G:G,"FLORIDA REGION")+COUNTIFS('Tool Usage Details'!$I:$I,G16,'Tool Usage Details'!$R:$R,"PWO",'Tool Usage Details'!$G:$G,"FLORIDA REGION")) ->  | Z16: =IF(G16="","",SUMIFS('NSR WO Details'!$Z:$Z,'NSR WO Details'!$N:$N,G16,'NSR WO Details'!$F:$F,"FLORIDA")) ->  | AA16: =IF(G16="","",SUMIFS('NSR WO Details'!$AA:$AA,'NSR WO Details'!$N:$N,G16,'NSR WO Details'!$F:$F,"FLORIDA")) ->  | AC16: =IF(G16="","",COUNTIFS('NSR WO Details'!$N:$N,G16,'NSR WO Details'!$W:$W,"Met",'NSR WO Details'!$F:$F,"FLORIDA")) ->  | AD16: =IF(G16="","",COUNTIFS('NSR WO Details'!$N:$N,G16,'NSR WO Details'!$W:$W,"Missed",'NSR WO Details'!$F:$F,"FLORIDA")) ->  | AF16: =IF(G16="","",COUNTIFS('NSR WO Details'!$N:$N,G16,'NSR WO Details'!$F:$F,"FLORIDA")) ->  | AG16: =IF(G16="","",SUMIFS('NSR WO Details'!$AE:$AE,'NSR WO Details'!$N:$N,G16,'NSR WO Details'!$F:$F,"FLORIDA")) ->  | AI16: =IF(G16="","",SUMIFS('RTM Results'!$AT:$AT,'RTM Results'!$DD:$DD,G16,'RTM Results'!$P:$P,"Florida")) ->  | AJ16: =IF(G16="","",SUMIFS('RTM Results'!$AP:$AP,'RTM Results'!$DD:$DD,G16,'RTM Results'!$P:$P,"Florida")) ->  | AL16: =SUMIFS('ML Bonding Compliance'!$AC:$AC,'ML Bonding Compliance'!$S:$S,$G16,'ML Bonding Compliance'!$F:$F,"FLORIDA") -> 0 | AM16: =SUMIFS('ML Bonding Compliance'!$AE:$AE,'ML Bonding Compliance'!$S:$S,$G16,'ML Bonding Compliance'!$F:$F,"FLORIDA") -> 0 | AO16: =IF(G16="","",SUMIFS('Tool Usage Details'!$T:$T,'Tool Usage Details'!$I:$I,G16,'Tool Usage Details'!$G:$G,"FLORIDA REGION")) ->  | AP16: =IF(G16="","",COUNTIFS('Tool Usage Details'!$I:$I,G16,'Tool Usage Details'!$U:$U,"PASS",'Tool Usage Details'!$G:$G,"FLORIDA REGION")) ->  | AR16: =IF(G16="","",SUMIFS('One Drop'!$AB:$AB,'One Drop'!$P:$P,G16,'One Drop'!$L:$L,"FLORIDA REGION")) ->  | AS16: =IF(G16="","",SUMIFS('One Drop'!$AA:$AA,'One Drop'!$P:$P,G16,'One Drop'!$L:$L,"FLORIDA REGION")) ->  | AU16: =IF(G16="","",SUMIFS('NSR WO Details'!$AK:$AK,'NSR WO Details'!$N:$N,G16,'NSR WO Details'!$F:$F,"FLORIDA")) ->  | AV16: =IF(G16="","",SUMIFS('NSR WO Details'!$AL:$AL,'NSR WO Details'!$N:$N,G16,'NSR WO Details'!$F:$F,"FLORIDA")) ->  | AX16: =IF(OR(I16=0,I16=""),"",SUMIFS('Time in Home'!$L:$L,'Time in Home'!$I:$I,$G16,'Time in Home'!E:E,"FLORIDA REGION")) ->  | AY16: =IF(OR(I16=0,I16=""),"",SUMIFS('Time in Home'!$P:$P,'Time in Home'!$I:$I,$G16,'Time in Home'!E:E,"FLORIDA REGION")) ->  | AZ16: =SUMIFS('TQI BP Tech Compliance'!$N:$N,'TQI BP Tech Compliance'!$L:$L,$G16,'TQI BP Tech Compliance'!$F:$F,"FLORIDA REGION") -> 0 | BA16: =SUMIFS('TQI BP Tech Compliance'!$AI:$AI,'TQI BP Tech Compliance'!$L:$L,$G16,'TQI BP Tech Compliance'!$F:$F,"FLORIDA REGION") -> 0 | BB16: =SUMIFS('TQI BP Tech Compliance'!$AB:$AB,'TQI BP Tech Compliance'!$L:$L,$G16,'TQI BP Tech Compliance'!$F:$F,"FLORIDA REGION") -> 0 | BC16: =IFERROR(SUMIFS('TQI BP Tech Compliance'!$AA:$AA,'TQI BP Tech Compliance'!$L:$L,$G16,'TQI BP Tech Compliance'!$F:$F,"FLORIDA REGION")/BB16,"") ->  | BD16: =IFERROR(SUMIFS('TQI BP Tech Compliance'!$Q:$Q,'TQI BP Tech Compliance'!$L:$L,$G16,'TQI BP Tech Compliance'!$F:$F,"FLORIDA REGION"),"") -> 0 | BE16: Enrique Gabino | BF16: =IF(G16="","",SUMIFS(Completion!$CH:$CH,Completion!$AC:$AC,G16,Completion!$N:$N,"Install",Completion!$E:$E,"Florida")) ->  | BG16: =IF(G16="","",SUMIFS(Completion!$AL:$AL,Completion!$AC:$AC,G16,Completion!$N:$N,"Install",Completion!$E:$E,"Florida")) ->  | BI16: =IF(G16="","",SUMIFS(Completion!$CH:$CH,Completion!$AC:$AC,G16,Completion!$N:$N,"TC",Completion!$E:$E,"Florida")) ->  | BJ16: =IF(G16="","",SUMIFS(Completion!$AL:$AL,Completion!$AC:$AC,G16,Completion!$N:$N,"TC",Completion!$E:$E,"Florida")) ->  | BM16: =COUNTIFS(Completion!$AC:$AC,$G16,Completion!$E:$E,"FLORIDA",Completion!$N:$N,"TC") -> 0 | BN16: =COUNTIFS(Completion!$AC:$AC,$G16,Completion!$E:$E,"FLORIDA",Completion!$N:$N,"TC",Completion!$BA:$BA,"Customer") -> 0 | BP16: =IF(SUMIFS('T360 CNH'!V:V,'T360 CNH'!J:J,G16,'T360 CNH'!I:I,"Florida")=0,"",SUMIFS('T360 CNH'!V:V,'T360 CNH'!J:J,G16,'T360 CNH'!I:I,"Florida")) ->  | BQ16: =IF(BP16="","",SUMIFS('T360 CNH'!S:S,'T360 CNH'!J:J,G16,'T360 CNH'!I:I,"Florida")) ->  | BU16: From | BV16: To | CB16: =IF(BZ16="","",SUMIFS('NSR WO Details'!$AG:$AG,'NSR WO Details'!$N:$N,BZ16,'NSR WO Details'!$F:$F,"FLORIDA",'NSR WO Details'!AI:AI,">="&$BU$17,'NSR WO Details'!AI:AI,"<="&$BV$17)) ->  | CC16: =IF(BZ16="","",COUNTIFS('FTR Detail'!$P:$P,BZ16,'FTR Detail'!$H:$H,"=FLORIDA",'NSR WO Details'!AI:AI,">="&$BU$17,'NSR WO Details'!AI:AI,"<="&$BV$17)) ->  | CE16: =IF(BZ16="","",SUMIFS('Tool Usage Details'!$Q:$Q,'Tool Usage Details'!$I:$I,BZ16,'Tool Usage Details'!$G:$G,"FLORIDA REGION",'NSR WO Details'!AI:AI,">="&$BU$17,'NSR WO Details'!AJ:AJ,"<="&$BV$17)) ->  | CF16: =IF(BZ16="","",COUNTIFS('Tool Usage Details'!$I:$I,BZ16,'Tool Usage Details'!$S:$S,"PASS",'Tool Usage Details'!$G:$G,"FLORIDA REGION",'NSR WO Details'!AI:AI,">="&$BU$17,'NSR WO Details'!AI:AI,"<="&$BV$17)) ->  | CH16: =IF(BZ16="","",COUNTIFS('Tool Usage Details'!$I:$I,BZ16,'Tool Usage Details'!$R:$R,"PWW",'Tool Usage Details'!$G:$G,"FLORIDA REGION")+COUNTIFS('Tool Usage Details'!$I:$I,BZ16,'Tool Usage Details'!$R:$R,"PWO",'Tool Usage Details'!$G:$G,"FLORIDA REGION",'Tool Usage Details'!E:E,">="&$BU$17,'Tool Usage Details'!E:E,"<="&$BV$17)) ->  | CJ16: =IF(BZ16="","",SUMIFS('NSR WO Details'!$Z:$Z,'NSR WO Details'!$N:$N,BZ16,'NSR WO Details'!$F:$F,"FLORIDA",'NSR WO Details'!AI:AI,">="&$BU$17,'NSR WO Details'!AI:AI,"<="&$BV$17)) ->  | CK16: =IF(BZ16="","",SUMIFS('NSR WO Details'!$AA:$AA,'NSR WO Details'!$N:$N,BZ16,'NSR WO Details'!$F:$F,"FLORIDA",'NSR WO Details'!AI:AI,">="&$BU$17,'NSR WO Details'!AI:AI,"<="&$BV$17)) ->  | CM16: =IF(BZ16="","",COUNTIFS('NSR WO Details'!$N:$N,BZ16,'NSR WO Details'!$W:$W,"Met",'NSR WO Details'!$F:$F,"FLORIDA",'NSR WO Details'!AI:AI,">="&$BU$17,'NSR WO Details'!AI:AI,"<="&$BV$17)) ->  | CN16: =IF(BZ16="","",COUNTIFS('NSR WO Details'!$N:$N,BZ16,'NSR WO Details'!$W:$W,"Missed",'NSR WO Details'!$F:$F,"FLORIDA",'NSR WO Details'!AI:AI,">="&$BU$17,'NSR WO Details'!AI:AI,"<="&$BV$17)) ->  | CP16: =IF(BZ16="","",COUNTIFS('NSR WO Details'!$N:$N,BZ16,'NSR WO Details'!$F:$F,"FLORIDA",'NSR WO Details'!AI:AI,">="&$BU$17,'NSR WO Details'!AI:AI,"<="&$BV$17)) ->  | CQ16: =IF(BZ16="","",SUMIFS('NSR WO Details'!$AE:$AE,'NSR WO Details'!$N:$N,BZ16,'NSR WO Details'!$F:$F,"FLORIDA",'NSR WO Details'!AI:AI,">="&$BU$17,'NSR WO Details'!AI:AI,"<="&$BV$17)) ->  | CS16: =IF(BZ16="","",SUMIFS('RTM Results'!$DG:$DG,'RTM Results'!$BD:$BD,BZ16,'RTM Results'!$O:$O,"Florida",'RTM Results'!H:H,">="&$BU$17,'RTM Results'!H:H,"<="&$BV$17)) ->  | CT16: =IF(BZ16="","",SUMIFS('RTM Results'!$DC:$DC,'RTM Results'!$BD:$BD,BZ16,'RTM Results'!$O:$O,"Florida",'RTM Results'!H:H,">="&$BU$17,'RTM Results'!H:H,"<="&$BV$17)) ->  | CV16: =IF(BZ16="","",SUMIFS('Tool Usage Details'!$T:$T,'Tool Usage Details'!$I:$I,BZ16,'Tool Usage Details'!$G:$G,"FLORIDA REGION",'Tool Usage Details'!E:E,">="&$BU$17,'Tool Usage Details'!E:E,"<="&$BV$17)) ->  | CW16: =IF(BZ16="","",COUNTIFS('Tool Usage Details'!$I:$I,BZ16,'Tool Usage Details'!$U:$U,"PASS",'Tool Usage Details'!$G:$G,"FLORIDA REGION",'Tool Usage Details'!E:E,">="&$BU$17,'Tool Usage Details'!E:E,"<="&$BV$17)) ->  | CY16: =IF(BZ16="","",SUMIFS('One Drop'!$BV:$BV,'One Drop'!$P:$P,BZ16,'One Drop'!$L:$L,"FLORIDA REGION",'One Drop'!AQ:AQ,">="&$BU$17,'One Drop'!AQ:AQ,"<="&$BV$17)) ->  | CZ16: =IF(BZ16="","",SUMIFS('One Drop'!$BQ:$BQ,'One Drop'!$P:$P,BZ16,'One Drop'!$L:$L,"FLORIDA REGION",'One Drop'!AQ:AQ,">="&$BU$17,'One Drop'!AQ:AQ,"<="&$BV$17)) ->  | DB16: =IF(BZ16="","",SUMIFS('NSR WO Details'!$AK:$AK,'NSR WO Details'!$N:$N,BZ16,'NSR WO Details'!$F:$F,"FLORIDA",'NSR WO Details'!AI:AI,">="&$BU$17,'NSR WO Details'!AI:AI,"<="&$BV$17)) ->  | DC16: =IF(BZ16="","",SUMIFS('NSR WO Details'!$AL:$AL,'NSR WO Details'!$N:$N,BZ16,'NSR WO Details'!$F:$F,"FLORIDA",'NSR WO Details'!AI:AI,">="&$BU$17,'NSR WO Details'!AI:AI,"<="&$BV$17)) ->  | DE16: =IF(BZ16="","",SUMIFS(Completion!$CJ:$CJ,Completion!$G:$G,BZ16,Completion!$N:$N,"Install",Completion!$E:$E,"Florida",Completion!AA:AA,">="&$BU$17,Completion!AA:AA,"<="&$BV$17)) ->  | DF16: =IF(BZ16="","",SUMIFS(Completion!$CB:$CB,Completion!$G:$G,BZ16,Completion!$N:$N,"Install",Completion!$E:$E,"Florida",Completion!AA:AA,">="&$BU$17,Completion!AA:AA,"<="&$BV$17)) ->  | DH16: =IF(BZ16="","",SUMIFS(Completion!$CJ:$CJ,Completion!$G:$G,BZ16,Completion!$N:$N,"TC",Completion!$E:$E,"Florida",Completion!AA:AA,">="&BU$17,Completion!AA:AA,"<="&$BV$17)) ->  | DI16: =IF(BZ16="","",SUMIFS(Completion!$CB:$CB,Completion!$G:$G,BZ16,Completion!$N:$N,"TC",Completion!$E:$E,"Florida",Completion!AA:AA,">="&$BU$17,Completion!AA:AA,"<="&$BV$17)) -> 
B17: Jacksonville | I17: =IF(G17="","",SUMIFS('NSR WO Details'!$AG:$AG,'NSR WO Details'!$N:$N,G17,'NSR WO Details'!$F:$F,"FLORIDA")) ->  | J17: =IF(G17="","",COUNTIFS('FTR Detail'!$P:$P,G17,'FTR Detail'!$H:$H,"=FLORIDA")) ->  | L17: =IF(G17="","",SUMIF('Florida Rework'!$E:$E,$G17,'Florida Rework'!$H:$H)) ->  | M17: =IF(G17="","",SUMIF('Florida Rework'!$E:$E,$G17,'Florida Rework'!$I:$I)) ->  | N17: =IF(G17="","",SUMIF('Florida Rework'!$E:$E,$G17,'Florida Rework'!$M:$M)) ->  | P17: =IF(G17="","",SUMIF('Florida Rework'!$E:$E,$G17,'Florida Rework'!$J:$J)) ->  | Q17: =IF(G17="","",SUMIF('Florida Rework'!$E:$E,$G17,'Florida Rework'!$O:$O)) ->  | U17: =IF(G17="","",SUMIFS('Tool Usage Details'!$Q:$Q,'Tool Usage Details'!$I:$I,G17,'Tool Usage Details'!$G:$G,"FLORIDA REGION")) ->  | V17: =IF(G17="","",COUNTIFS('Tool Usage Details'!$I:$I,G17,'Tool Usage Details'!$S:$S,"PASS",'Tool Usage Details'!$G:$G,"FLORIDA REGION")) ->  | X17: =IF(G17="","",COUNTIFS('Tool Usage Details'!$I:$I,G17,'Tool Usage Details'!$R:$R,"PWW",'Tool Usage Details'!G:G,"FLORIDA REGION")+COUNTIFS('Tool Usage Details'!$I:$I,G17,'Tool Usage Details'!$R:$R,"PWO",'Tool Usage Details'!$G:$G,"FLORIDA REGION")) ->  | Z17: =IF(G17="","",SUMIFS('NSR WO Details'!$Z:$Z,'NSR WO Details'!$N:$N,G17,'NSR WO Details'!$F:$F,"FLORIDA")) ->  | AA17: =IF(G17="","",SUMIFS('NSR WO Details'!$AA:$AA,'NSR WO Details'!$N:$N,G17,'NSR WO Details'!$F:$F,"FLORIDA")) ->  | AC17: =IF(G17="","",COUNTIFS('NSR WO Details'!$N:$N,G17,'NSR WO Details'!$W:$W,"Met",'NSR WO Details'!$F:$F,"FLORIDA")) ->  | AD17: =IF(G17="","",COUNTIFS('NSR WO Details'!$N:$N,G17,'NSR WO Details'!$W:$W,"Missed",'NSR WO Details'!$F:$F,"FLORIDA")) ->  | AF17: =IF(G17="","",COUNTIFS('NSR WO Details'!$N:$N,G17,'NSR WO Details'!$F:$F,"FLORIDA")) ->  | AG17: =IF(G17="","",SUMIFS('NSR WO Details'!$AE:$AE,'NSR WO Details'!$N:$N,G17,'NSR WO Details'!$F:$F,"FLORIDA")) ->  | AI17: =IF(G17="","",SUMIFS('RTM Results'!$AT:$AT,'RTM Results'!$DD:$DD,G17,'RTM Results'!$P:$P,"Florida")) ->  | AJ17: =IF(G17="","",SUMIFS('RTM Results'!$AP:$AP,'RTM Results'!$DD:$DD,G17,'RTM Results'!$P:$P,"Florida")) ->  | AL17: =SUMIFS('ML Bonding Compliance'!$AC:$AC,'ML Bonding Compliance'!$S:$S,$G17,'ML Bonding Compliance'!$F:$F,"FLORIDA") -> 0 | AM17: =SUMIFS('ML Bonding Compliance'!$AE:$AE,'ML Bonding Compliance'!$S:$S,$G17,'ML Bonding Compliance'!$F:$F,"FLORIDA") -> 0 | AO17: =IF(G17="","",SUMIFS('Tool Usage Details'!$T:$T,'Tool Usage Details'!$I:$I,G17,'Tool Usage Details'!$G:$G,"FLORIDA REGION")) ->  | AP17: =IF(G17="","",COUNTIFS('Tool Usage Details'!$I:$I,G17,'Tool Usage Details'!$U:$U,"PASS",'Tool Usage Details'!$G:$G,"FLORIDA REGION")) ->  | AR17: =IF(G17="","",SUMIFS('One Drop'!$AB:$AB,'One Drop'!$P:$P,G17,'One Drop'!$L:$L,"FLORIDA REGION")) ->  | AS17: =IF(G17="","",SUMIFS('One Drop'!$AA:$AA,'One Drop'!$P:$P,G17,'One Drop'!$L:$L,"FLORIDA REGION")) ->  | AU17: =IF(G17="","",SUMIFS('NSR WO Details'!$AK:$AK,'NSR WO Details'!$N:$N,G17,'NSR WO Details'!$F:$F,"FLORIDA")) ->  | AV17: =IF(G17="","",SUMIFS('NSR WO Details'!$AL:$AL,'NSR WO Details'!$N:$N,G17,'NSR WO Details'!$F:$F,"FLORIDA")) ->  | AX17: =IF(OR(I17=0,I17=""),"",SUMIFS('Time in Home'!$L:$L,'Time in Home'!$I:$I,$G17,'Time in Home'!E:E,"FLORIDA REGION")) ->  | AY17: =IF(OR(I17=0,I17=""),"",SUMIFS('Time in Home'!$P:$P,'Time in Home'!$I:$I,$G17,'Time in Home'!E:E,"FLORIDA REGION")) ->  | AZ17: =SUMIFS('TQI BP Tech Compliance'!$N:$N,'TQI BP Tech Compliance'!$L:$L,$G17,'TQI BP Tech Compliance'!$F:$F,"FLORIDA REGION") -> 0 | BA17: =SUMIFS('TQI BP Tech Compliance'!$AI:$AI,'TQI BP Tech Compliance'!$L:$L,$G17,'TQI BP Tech Compliance'!$F:$F,"FLORIDA REGION") -> 0 | BB17: =SUMIFS('TQI BP Tech Compliance'!$AB:$AB,'TQI BP Tech Compliance'!$L:$L,$G17,'TQI BP Tech Compliance'!$F:$F,"FLORIDA REGION") -> 0 | BC17: =IFERROR(SUMIFS('TQI BP Tech Compliance'!$AA:$AA,'TQI BP Tech Compliance'!$L:$L,$G17,'TQI BP Tech Compliance'!$F:$F,"FLORIDA REGION")/BB17,"") ->  | BD17: =IFERROR(SUMIFS('TQI BP Tech Compliance'!$Q:$Q,'TQI BP Tech Compliance'!$L:$L,$G17,'TQI BP Tech Compliance'!$F:$F,"FLORIDA REGION"),"") -> 0 | BE17: Enrique Gabino | BF17: =IF(G17="","",SUMIFS(Completion!$CH:$CH,Completion!$AC:$AC,G17,Completion!$N:$N,"Install",Completion!$E:$E,"Florida")) ->  | BG17: =IF(G17="","",SUMIFS(Completion!$AL:$AL,Completion!$AC:$AC,G17,Completion!$N:$N,"Install",Completion!$E:$E,"Florida")) ->  | BI17: =IF(G17="","",SUMIFS(Completion!$CH:$CH,Completion!$AC:$AC,G17,Completion!$N:$N,"TC",Completion!$E:$E,"Florida")) ->  | BJ17: =IF(G17="","",SUMIFS(Completion!$AL:$AL,Completion!$AC:$AC,G17,Completion!$N:$N,"TC",Completion!$E:$E,"Florida")) ->  | BM17: =COUNTIFS(Completion!$AC:$AC,$G17,Completion!$E:$E,"FLORIDA",Completion!$N:$N,"TC") -> 0 | BN17: =COUNTIFS(Completion!$AC:$AC,$G17,Completion!$E:$E,"FLORIDA",Completion!$N:$N,"TC",Completion!$BA:$BA,"Customer") -> 0 | BP17: =IF(SUMIFS('T360 CNH'!V:V,'T360 CNH'!J:J,G17,'T360 CNH'!I:I,"Florida")=0,"",SUMIFS('T360 CNH'!V:V,'T360 CNH'!J:J,G17,'T360 CNH'!I:I,"Florida")) ->  | BQ17: =IF(BP17="","",SUMIFS('T360 CNH'!S:S,'T360 CNH'!J:J,G17,'T360 CNH'!I:I,"Florida")) ->  | BU17: 2024-03-22 | BV17: 2024-03-29 | CB17: =IF(BZ17="","",SUMIFS('NSR WO Details'!$AG:$AG,'NSR WO Details'!$N:$N,BZ17,'NSR WO Details'!$F:$F,"FLORIDA",'NSR WO Details'!AI:AI,">="&$BU$17,'NSR WO Details'!AI:AI,"<="&$BV$17)) ->  | CC17: =IF(BZ17="","",COUNTIFS('FTR Detail'!$P:$P,BZ17,'FTR Detail'!$H:$H,"=FLORIDA",'NSR WO Details'!AI:AI,">="&$BU$17,'NSR WO Details'!AI:AI,"<="&$BV$17)) ->  | CE17: =IF(BZ17="","",SUMIFS('Tool Usage Details'!$Q:$Q,'Tool Usage Details'!$I:$I,BZ17,'Tool Usage Details'!$G:$G,"FLORIDA REGION",'NSR WO Details'!AI:AI,">="&$BU$17,'NSR WO Details'!AJ:AJ,"<="&$BV$17)) ->  | CF17: =IF(BZ17="","",COUNTIFS('Tool Usage Details'!$I:$I,BZ17,'Tool Usage Details'!$S:$S,"PASS",'Tool Usage Details'!$G:$G,"FLORIDA REGION",'NSR WO Details'!AI:AI,">="&$BU$17,'NSR WO Details'!AI:AI,"<="&$BV$17)) ->  | CH17: =IF(BZ17="","",COUNTIFS('Tool Usage Details'!$I:$I,BZ17,'Tool Usage Details'!$R:$R,"PWW",'Tool Usage Details'!$G:$G,"FLORIDA REGION")+COUNTIFS('Tool Usage Details'!$I:$I,BZ17,'Tool Usage Details'!$R:$R,"PWO",'Tool Usage Details'!$G:$G,"FLORIDA REGION",'Tool Usage Details'!E:E,">="&$BU$17,'Tool Usage Details'!E:E,"<="&$BV$17)) ->  | CJ17: =IF(BZ17="","",SUMIFS('NSR WO Details'!$Z:$Z,'NSR WO Details'!$N:$N,BZ17,'NSR WO Details'!$F:$F,"FLORIDA",'NSR WO Details'!AI:AI,">="&$BU$17,'NSR WO Details'!AI:AI,"<="&$BV$17)) ->  | CK17: =IF(BZ17="","",SUMIFS('NSR WO Details'!$AA:$AA,'NSR WO Details'!$N:$N,BZ17,'NSR WO Details'!$F:$F,"FLORIDA",'NSR WO Details'!AI:AI,">="&$BU$17,'NSR WO Details'!AI:AI,"<="&$BV$17)) ->  | CM17: =IF(BZ17="","",COUNTIFS('NSR WO Details'!$N:$N,BZ17,'NSR WO Details'!$W:$W,"Met",'NSR WO Details'!$F:$F,"FLORIDA",'NSR WO Details'!AI:AI,">="&$BU$17,'NSR WO Details'!AI:AI,"<="&$BV$17)) ->  | CN17: =IF(BZ17="","",COUNTIFS('NSR WO Details'!$N:$N,BZ17,'NSR WO Details'!$W:$W,"Missed",'NSR WO Details'!$F:$F,"FLORIDA",'NSR WO Details'!AI:AI,">="&$BU$17,'NSR WO Details'!AI:AI,"<="&$BV$17)) ->  | CP17: =IF(BZ17="","",COUNTIFS('NSR WO Details'!$N:$N,BZ17,'NSR WO Details'!$F:$F,"FLORIDA",'NSR WO Details'!AI:AI,">="&$BU$17,'NSR WO Details'!AI:AI,"<="&$BV$17)) ->  | CQ17: =IF(BZ17="","",SUMIFS('NSR WO Details'!$AE:$AE,'NSR WO Details'!$N:$N,BZ17,'NSR WO Details'!$F:$F,"FLORIDA",'NSR WO Details'!AI:AI,">="&$BU$17,'NSR WO Details'!AI:AI,"<="&$BV$17)) ->  | CS17: =IF(BZ17="","",SUMIFS('RTM Results'!$DG:$DG,'RTM Results'!$BD:$BD,BZ17,'RTM Results'!$O:$O,"Florida",'RTM Results'!H:H,">="&$BU$17,'RTM Results'!H:H,"<="&$BV$17)) ->  | CT17: =IF(BZ17="","",SUMIFS('RTM Results'!$DC:$DC,'RTM Results'!$BD:$BD,BZ17,'RTM Results'!$O:$O,"Florida",'RTM Results'!H:H,">="&$BU$17,'RTM Results'!H:H,"<="&$BV$17)) ->  | CV17: =IF(BZ17="","",SUMIFS('Tool Usage Details'!$T:$T,'Tool Usage Details'!$I:$I,BZ17,'Tool Usage Details'!$G:$G,"FLORIDA REGION",'Tool Usage Details'!E:E,">="&$BU$17,'Tool Usage Details'!E:E,"<="&$BV$17)) ->  | CW17: =IF(BZ17="","",COUNTIFS('Tool Usage Details'!$I:$I,BZ17,'Tool Usage Details'!$U:$U,"PASS",'Tool Usage Details'!$G:$G,"FLORIDA REGION",'Tool Usage Details'!E:E,">="&$BU$17,'Tool Usage Details'!E:E,"<="&$BV$17)) ->  | CY17: =IF(BZ17="","",SUMIFS('One Drop'!$BV:$BV,'One Drop'!$P:$P,BZ17,'One Drop'!$L:$L,"FLORIDA REGION",'One Drop'!AQ:AQ,">="&$BU$17,'One Drop'!AQ:AQ,"<="&$BV$17)) ->  | CZ17: =IF(BZ17="","",SUMIFS('One Drop'!$BQ:$BQ,'One Drop'!$P:$P,BZ17,'One Drop'!$L:$L,"FLORIDA REGION",'One Drop'!AQ:AQ,">="&$BU$17,'One Drop'!AQ:AQ,"<="&$BV$17)) ->  | DB17: =IF(BZ17="","",SUMIFS('NSR WO Details'!$AK:$AK,'NSR WO Details'!$N:$N,BZ17,'NSR WO Details'!$F:$F,"FLORIDA",'NSR WO Details'!AI:AI,">="&$BU$17,'NSR WO Details'!AI:AI,"<="&$BV$17)) ->  | DC17: =IF(BZ17="","",SUMIFS('NSR WO Details'!$AL:$AL,'NSR WO Details'!$N:$N,BZ17,'NSR WO Details'!$F:$F,"FLORIDA",'NSR WO Details'!AI:AI,">="&$BU$17,'NSR WO Details'!AI:AI,"<="&$BV$17)) ->  | DE17: =IF(BZ17="","",SUMIFS(Completion!$CJ:$CJ,Completion!$G:$G,BZ17,Completion!$N:$N,"Install",Completion!$E:$E,"Florida",Completion!AA:AA,">="&$BU$17,Completion!AA:AA,"<="&$BV$17)) ->  | DF17: =IF(BZ17="","",SUMIFS(Completion!$CB:$CB,Completion!$G:$G,BZ17,Completion!$N:$N,"Install",Completion!$E:$E,"Florida",Completion!AA:AA,">="&$BU$17,Completion!AA:AA,"<="&$BV$17)) ->  | DH17: =IF(BZ17="","",SUMIFS(Completion!$CJ:$CJ,Completion!$G:$G,BZ17,Completion!$N:$N,"TC",Completion!$E:$E,"Florida",Completion!AA:AA,">="&BU$17,Completion!AA:AA,"<="&$BV$17)) ->  | DI17: =IF(BZ17="","",SUMIFS(Completion!$CB:$CB,Completion!$G:$G,BZ17,Completion!$N:$N,"TC",Completion!$E:$E,"Florida",Completion!AA:AA,">="&$BU$17,Completion!AA:AA,"<="&$BV$17)) -> 
B18: Florida Panhandle | I18: =IF(G18="","",SUMIFS('NSR WO Details'!$AG:$AG,'NSR WO Details'!$N:$N,G18,'NSR WO Details'!$F:$F,"FLORIDA")) ->  | J18: =IF(G18="","",COUNTIFS('FTR Detail'!$P:$P,G18,'FTR Detail'!$H:$H,"=FLORIDA")) ->  | L18: =IF(G18="","",SUMIF('Florida Rework'!$E:$E,$G18,'Florida Rework'!$H:$H)) ->  | M18: =IF(G18="","",SUMIF('Florida Rework'!$E:$E,$G18,'Florida Rework'!$I:$I)) ->  | N18: =IF(G18="","",SUMIF('Florida Rework'!$E:$E,$G18,'Florida Rework'!$M:$M)) ->  | P18: =IF(G18="","",SUMIF('Florida Rework'!$E:$E,$G18,'Florida Rework'!$J:$J)) ->  | Q18: =IF(G18="","",SUMIF('Florida Rework'!$E:$E,$G18,'Florida Rework'!$O:$O)) ->  | U18: =IF(G18="","",SUMIFS('Tool Usage Details'!$Q:$Q,'Tool Usage Details'!$I:$I,G18,'Tool Usage Details'!$G:$G,"FLORIDA REGION")) ->  | V18: =IF(G18="","",COUNTIFS('Tool Usage Details'!$I:$I,G18,'Tool Usage Details'!$S:$S,"PASS",'Tool Usage Details'!$G:$G,"FLORIDA REGION")) ->  | X18: =IF(G18="","",COUNTIFS('Tool Usage Details'!$I:$I,G18,'Tool Usage Details'!$R:$R,"PWW",'Tool Usage Details'!G:G,"FLORIDA REGION")+COUNTIFS('Tool Usage Details'!$I:$I,G18,'Tool Usage Details'!$R:$R,"PWO",'Tool Usage Details'!$G:$G,"FLORIDA REGION")) ->  | Z18: =IF(G18="","",SUMIFS('NSR WO Details'!$Z:$Z,'NSR WO Details'!$N:$N,G18,'NSR WO Details'!$F:$F,"FLORIDA")) ->  | AA18: =IF(G18="","",SUMIFS('NSR WO Details'!$AA:$AA,'NSR WO Details'!$N:$N,G18,'NSR WO Details'!$F:$F,"FLORIDA")) ->  | AC18: =IF(G18="","",COUNTIFS('NSR WO Details'!$N:$N,G18,'NSR WO Details'!$W:$W,"Met",'NSR WO Details'!$F:$F,"FLORIDA")) ->  | AD18: =IF(G18="","",COUNTIFS('NSR WO Details'!$N:$N,G18,'NSR WO Details'!$W:$W,"Missed",'NSR WO Details'!$F:$F,"FLORIDA")) ->  | AF18: =IF(G18="","",COUNTIFS('NSR WO Details'!$N:$N,G18,'NSR WO Details'!$F:$F,"FLORIDA")) ->  | AG18: =IF(G18="","",SUMIFS('NSR WO Details'!$AE:$AE,'NSR WO Details'!$N:$N,G18,'NSR WO Details'!$F:$F,"FLORIDA")) ->  | AI18: =IF(G18="","",SUMIFS('RTM Results'!$AT:$AT,'RTM Results'!$DD:$DD,G18,'RTM Results'!$P:$P,"Florida")) ->  | AJ18: =IF(G18="","",SUMIFS('RTM Results'!$AP:$AP,'RTM Results'!$DD:$DD,G18,'RTM Results'!$P:$P,"Florida")) ->  | AL18: =SUMIFS('ML Bonding Compliance'!$AC:$AC,'ML Bonding Compliance'!$S:$S,$G18,'ML Bonding Compliance'!$F:$F,"FLORIDA") -> 0 | AM18: =SUMIFS('ML Bonding Compliance'!$AE:$AE,'ML Bonding Compliance'!$S:$S,$G18,'ML Bonding Compliance'!$F:$F,"FLORIDA") -> 0 | AO18: =IF(G18="","",SUMIFS('Tool Usage Details'!$T:$T,'Tool Usage Details'!$I:$I,G18,'Tool Usage Details'!$G:$G,"FLORIDA REGION")) ->  | AP18: =IF(G18="","",COUNTIFS('Tool Usage Details'!$I:$I,G18,'Tool Usage Details'!$U:$U,"PASS",'Tool Usage Details'!$G:$G,"FLORIDA REGION")) ->  | AR18: =IF(G18="","",SUMIFS('One Drop'!$AB:$AB,'One Drop'!$P:$P,G18,'One Drop'!$L:$L,"FLORIDA REGION")) ->  | AS18: =IF(G18="","",SUMIFS('One Drop'!$AA:$AA,'One Drop'!$P:$P,G18,'One Drop'!$L:$L,"FLORIDA REGION")) ->  | AU18: =IF(G18="","",SUMIFS('NSR WO Details'!$AK:$AK,'NSR WO Details'!$N:$N,G18,'NSR WO Details'!$F:$F,"FLORIDA")) ->  | AV18: =IF(G18="","",SUMIFS('NSR WO Details'!$AL:$AL,'NSR WO Details'!$N:$N,G18,'NSR WO Details'!$F:$F,"FLORIDA")) ->  | AX18: =IF(OR(I18=0,I18=""),"",SUMIFS('Time in Home'!$L:$L,'Time in Home'!$I:$I,$G18,'Time in Home'!E:E,"FLORIDA REGION")) ->  | AY18: =IF(OR(I18=0,I18=""),"",SUMIFS('Time in Home'!$P:$P,'Time in Home'!$I:$I,$G18,'Time in Home'!E:E,"FLORIDA REGION")) ->  | AZ18: =SUMIFS('TQI BP Tech Compliance'!$N:$N,'TQI BP Tech Compliance'!$L:$L,$G18,'TQI BP Tech Compliance'!$F:$F,"FLORIDA REGION") -> 0 | BA18: =SUMIFS('TQI BP Tech Compliance'!$AI:$AI,'TQI BP Tech Compliance'!$L:$L,$G18,'TQI BP Tech Compliance'!$F:$F,"FLORIDA REGION") -> 0 | BB18: =SUMIFS('TQI BP Tech Compliance'!$AB:$AB,'TQI BP Tech Compliance'!$L:$L,$G18,'TQI BP Tech Compliance'!$F:$F,"FLORIDA REGION") -> 0 | BC18: =IFERROR(SUMIFS('TQI BP Tech Compliance'!$AA:$AA,'TQI BP Tech Compliance'!$L:$L,$G18,'TQI BP Tech Compliance'!$F:$F,"FLORIDA REGION")/BB18,"") ->  | BD18: =IFERROR(SUMIFS('TQI BP Tech Compliance'!$Q:$Q,'TQI BP Tech Compliance'!$L:$L,$G18,'TQI BP Tech Compliance'!$F:$F,"FLORIDA REGION"),"") -> 0 | BE18: Enrique Gabino | BF18: =IF(G18="","",SUMIFS(Completion!$CH:$CH,Completion!$AC:$AC,G18,Completion!$N:$N,"Install",Completion!$E:$E,"Florida")) ->  | BG18: =IF(G18="","",SUMIFS(Completion!$AL:$AL,Completion!$AC:$AC,G18,Completion!$N:$N,"Install",Completion!$E:$E,"Florida")) ->  | BI18: =IF(G18="","",SUMIFS(Completion!$CH:$CH,Completion!$AC:$AC,G18,Completion!$N:$N,"TC",Completion!$E:$E,"Florida")) ->  | BJ18: =IF(G18="","",SUMIFS(Completion!$AL:$AL,Completion!$AC:$AC,G18,Completion!$N:$N,"TC",Completion!$E:$E,"Florida")) ->  | BM18: =COUNTIFS(Completion!$AC:$AC,$G18,Completion!$E:$E,"FLORIDA",Completion!$N:$N,"TC") -> 0 | BN18: =COUNTIFS(Completion!$AC:$AC,$G18,Completion!$E:$E,"FLORIDA",Completion!$N:$N,"TC",Completion!$BA:$BA,"Customer") -> 0 | BP18: =IF(SUMIFS('T360 CNH'!V:V,'T360 CNH'!J:J,G18,'T360 CNH'!I:I,"Florida")=0,"",SUMIFS('T360 CNH'!V:V,'T360 CNH'!J:J,G18,'T360 CNH'!I:I,"Florida")) ->  | BQ18: =IF(BP18="","",SUMIFS('T360 CNH'!S:S,'T360 CNH'!J:J,G18,'T360 CNH'!I:I,"Florida")) ->  | CB18: =IF(BZ18="","",SUMIFS('NSR WO Details'!$AG:$AG,'NSR WO Details'!$N:$N,BZ18,'NSR WO Details'!$F:$F,"FLORIDA",'NSR WO Details'!AI:AI,">="&$BU$17,'NSR WO Details'!AI:AI,"<="&$BV$17)) ->  | CC18: =IF(BZ18="","",COUNTIFS('FTR Detail'!$P:$P,BZ18,'FTR Detail'!$H:$H,"=FLORIDA",'NSR WO Details'!AI:AI,">="&$BU$17,'NSR WO Details'!AI:AI,"<="&$BV$17)) ->  | CE18: =IF(BZ18="","",SUMIFS('Tool Usage Details'!$Q:$Q,'Tool Usage Details'!$I:$I,BZ18,'Tool Usage Details'!$G:$G,"FLORIDA REGION",'NSR WO Details'!AI:AI,">="&$BU$17,'NSR WO Details'!AJ:AJ,"<="&$BV$17)) ->  | CF18: =IF(BZ18="","",COUNTIFS('Tool Usage Details'!$I:$I,BZ18,'Tool Usage Details'!$S:$S,"PASS",'Tool Usage Details'!$G:$G,"FLORIDA REGION",'NSR WO Details'!AI:AI,">="&$BU$17,'NSR WO Details'!AI:AI,"<="&$BV$17)) ->  | CH18: =IF(BZ18="","",COUNTIFS('Tool Usage Details'!$I:$I,BZ18,'Tool Usage Details'!$R:$R,"PWW",'Tool Usage Details'!$G:$G,"FLORIDA REGION")+COUNTIFS('Tool Usage Details'!$I:$I,BZ18,'Tool Usage Details'!$R:$R,"PWO",'Tool Usage Details'!$G:$G,"FLORIDA REGION",'Tool Usage Details'!E:E,">="&$BU$17,'Tool Usage Details'!E:E,"<="&$BV$17)) ->  | CJ18: =IF(BZ18="","",SUMIFS('NSR WO Details'!$Z:$Z,'NSR WO Details'!$N:$N,BZ18,'NSR WO Details'!$F:$F,"FLORIDA",'NSR WO Details'!AI:AI,">="&$BU$17,'NSR WO Details'!AI:AI,"<="&$BV$17)) ->  | CK18: =IF(BZ18="","",SUMIFS('NSR WO Details'!$AA:$AA,'NSR WO Details'!$N:$N,BZ18,'NSR WO Details'!$F:$F,"FLORIDA",'NSR WO Details'!AI:AI,">="&$BU$17,'NSR WO Details'!AI:AI,"<="&$BV$17)) ->  | CM18: =IF(BZ18="","",COUNTIFS('NSR WO Details'!$N:$N,BZ18,'NSR WO Details'!$W:$W,"Met",'NSR WO Details'!$F:$F,"FLORIDA",'NSR WO Details'!AI:AI,">="&$BU$17,'NSR WO Details'!AI:AI,"<="&$BV$17)) ->  | CN18: =IF(BZ18="","",COUNTIFS('NSR WO Details'!$N:$N,BZ18,'NSR WO Details'!$W:$W,"Missed",'NSR WO Details'!$F:$F,"FLORIDA",'NSR WO Details'!AI:AI,">="&$BU$17,'NSR WO Details'!AI:AI,"<="&$BV$17)) ->  | CP18: =IF(BZ18="","",COUNTIFS('NSR WO Details'!$N:$N,BZ18,'NSR WO Details'!$F:$F,"FLORIDA",'NSR WO Details'!AI:AI,">="&$BU$17,'NSR WO Details'!AI:AI,"<="&$BV$17)) ->  | CQ18: =IF(BZ18="","",SUMIFS('NSR WO Details'!$AE:$AE,'NSR WO Details'!$N:$N,BZ18,'NSR WO Details'!$F:$F,"FLORIDA",'NSR WO Details'!AI:AI,">="&$BU$17,'NSR WO Details'!AI:AI,"<="&$BV$17)) ->  | CS18: =IF(BZ18="","",SUMIFS('RTM Results'!$DG:$DG,'RTM Results'!$BD:$BD,BZ18,'RTM Results'!$O:$O,"Florida",'RTM Results'!H:H,">="&$BU$17,'RTM Results'!H:H,"<="&$BV$17)) ->  | CT18: =IF(BZ18="","",SUMIFS('RTM Results'!$DC:$DC,'RTM Results'!$BD:$BD,BZ18,'RTM Results'!$O:$O,"Florida",'RTM Results'!H:H,">="&$BU$17,'RTM Results'!H:H,"<="&$BV$17)) ->  | CV18: =IF(BZ18="","",SUMIFS('Tool Usage Details'!$T:$T,'Tool Usage Details'!$I:$I,BZ18,'Tool Usage Details'!$G:$G,"FLORIDA REGION",'Tool Usage Details'!E:E,">="&$BU$17,'Tool Usage Details'!E:E,"<="&$BV$17)) ->  | CW18: =IF(BZ18="","",COUNTIFS('Tool Usage Details'!$I:$I,BZ18,'Tool Usage Details'!$U:$U,"PASS",'Tool Usage Details'!$G:$G,"FLORIDA REGION",'Tool Usage Details'!E:E,">="&$BU$17,'Tool Usage Details'!E:E,"<="&$BV$17)) ->  | CY18: =IF(BZ18="","",SUMIFS('One Drop'!$BV:$BV,'One Drop'!$P:$P,BZ18,'One Drop'!$L:$L,"FLORIDA REGION",'One Drop'!AQ:AQ,">="&$BU$17,'One Drop'!AQ:AQ,"<="&$BV$17)) ->  | CZ18: =IF(BZ18="","",SUMIFS('One Drop'!$BQ:$BQ,'One Drop'!$P:$P,BZ18,'One Drop'!$L:$L,"FLORIDA REGION",'One Drop'!AQ:AQ,">="&$BU$17,'One Drop'!AQ:AQ,"<="&$BV$17)) ->  | DB18: =IF(BZ18="","",SUMIFS('NSR WO Details'!$AK:$AK,'NSR WO Details'!$N:$N,BZ18,'NSR WO Details'!$F:$F,"FLORIDA",'NSR WO Details'!AI:AI,">="&$BU$17,'NSR WO Details'!AI:AI,"<="&$BV$17)) ->  | DC18: =IF(BZ18="","",SUMIFS('NSR WO Details'!$AL:$AL,'NSR WO Details'!$N:$N,BZ18,'NSR WO Details'!$F:$F,"FLORIDA",'NSR WO Details'!AI:AI,">="&$BU$17,'NSR WO Details'!AI:AI,"<="&$BV$17)) ->  | DE18: =IF(BZ18="","",SUMIFS(Completion!$CJ:$CJ,Completion!$G:$G,BZ18,Completion!$N:$N,"Install",Completion!$E:$E,"Florida",Completion!AA:AA,">="&$BU$17,Completion!AA:AA,"<="&$BV$17)) ->  | DF18: =IF(BZ18="","",SUMIFS(Completion!$CB:$CB,Completion!$G:$G,BZ18,Completion!$N:$N,"Install",Completion!$E:$E,"Florida",Completion!AA:AA,">="&$BU$17,Completion!AA:AA,"<="&$BV$17)) ->  | DH18: =IF(BZ18="","",SUMIFS(Completion!$CJ:$CJ,Completion!$G:$G,BZ18,Completion!$N:$N,"TC",Completion!$E:$E,"Florida",Completion!AA:AA,">="&BU$17,Completion!AA:AA,"<="&$BV$17)) ->  | DI18: =IF(BZ18="","",SUMIFS(Completion!$CB:$CB,Completion!$G:$G,BZ18,Completion!$N:$N,"TC",Completion!$E:$E,"Florida",Completion!AA:AA,">="&$BU$17,Completion!AA:AA,"<="&$BV$17)) -> 
B19: Lake Orlando | I19: =IF(G19="","",SUMIFS('NSR WO Details'!$AG:$AG,'NSR WO Details'!$N:$N,G19,'NSR WO Details'!$F:$F,"FLORIDA")) ->  | J19: =IF(G19="","",COUNTIFS('FTR Detail'!$P:$P,G19,'FTR Detail'!$H:$H,"=FLORIDA")) ->  | L19: =IF(G19="","",SUMIF('Florida Rework'!$E:$E,$G19,'Florida Rework'!$H:$H)) ->  | M19: =IF(G19="","",SUMIF('Florida Rework'!$E:$E,$G19,'Florida Rework'!$I:$I)) ->  | N19: =IF(G19="","",SUMIF('Florida Rework'!$E:$E,$G19,'Florida Rework'!$M:$M)) ->  | P19: =IF(G19="","",SUMIF('Florida Rework'!$E:$E,$G19,'Florida Rework'!$J:$J)) ->  | Q19: =IF(G19="","",SUMIF('Florida Rework'!$E:$E,$G19,'Florida Rework'!$O:$O)) ->  | U19: =IF(G19="","",SUMIFS('Tool Usage Details'!$Q:$Q,'Tool Usage Details'!$I:$I,G19,'Tool Usage Details'!$G:$G,"FLORIDA REGION")) ->  | V19: =IF(G19="","",COUNTIFS('Tool Usage Details'!$I:$I,G19,'Tool Usage Details'!$S:$S,"PASS",'Tool Usage Details'!$G:$G,"FLORIDA REGION")) ->  | X19: =IF(G19="","",COUNTIFS('Tool Usage Details'!$I:$I,G19,'Tool Usage Details'!$R:$R,"PWW",'Tool Usage Details'!G:G,"FLORIDA REGION")+COUNTIFS('Tool Usage Details'!$I:$I,G19,'Tool Usage Details'!$R:$R,"PWO",'Tool Usage Details'!$G:$G,"FLORIDA REGION")) ->  | Z19: =IF(G19="","",SUMIFS('NSR WO Details'!$Z:$Z,'NSR WO Details'!$N:$N,G19,'NSR WO Details'!$F:$F,"FLORIDA")) ->  | AA19: =IF(G19="","",SUMIFS('NSR WO Details'!$AA:$AA,'NSR WO Details'!$N:$N,G19,'NSR WO Details'!$F:$F,"FLORIDA")) ->  | AC19: =IF(G19="","",COUNTIFS('NSR WO Details'!$N:$N,G19,'NSR WO Details'!$W:$W,"Met",'NSR WO Details'!$F:$F,"FLORIDA")) ->  | AD19: =IF(G19="","",COUNTIFS('NSR WO Details'!$N:$N,G19,'NSR WO Details'!$W:$W,"Missed",'NSR WO Details'!$F:$F,"FLORIDA")) ->  | AF19: =IF(G19="","",COUNTIFS('NSR WO Details'!$N:$N,G19,'NSR WO Details'!$F:$F,"FLORIDA")) ->  | AG19: =IF(G19="","",SUMIFS('NSR WO Details'!$AE:$AE,'NSR WO Details'!$N:$N,G19,'NSR WO Details'!$F:$F,"FLORIDA")) ->  | AI19: =IF(G19="","",SUMIFS('RTM Results'!$AT:$AT,'RTM Results'!$DD:$DD,G19,'RTM Results'!$P:$P,"Florida")) ->  | AJ19: =IF(G19="","",SUMIFS('RTM Results'!$AP:$AP,'RTM Results'!$DD:$DD,G19,'RTM Results'!$P:$P,"Florida")) ->  | AL19: =SUMIFS('ML Bonding Compliance'!$AC:$AC,'ML Bonding Compliance'!$S:$S,$G19,'ML Bonding Compliance'!$F:$F,"FLORIDA") -> 0 | AM19: =SUMIFS('ML Bonding Compliance'!$AE:$AE,'ML Bonding Compliance'!$S:$S,$G19,'ML Bonding Compliance'!$F:$F,"FLORIDA") -> 0 | AO19: =IF(G19="","",SUMIFS('Tool Usage Details'!$T:$T,'Tool Usage Details'!$I:$I,G19,'Tool Usage Details'!$G:$G,"FLORIDA REGION")) ->  | AP19: =IF(G19="","",COUNTIFS('Tool Usage Details'!$I:$I,G19,'Tool Usage Details'!$U:$U,"PASS",'Tool Usage Details'!$G:$G,"FLORIDA REGION")) ->  | AR19: =IF(G19="","",SUMIFS('One Drop'!$AB:$AB,'One Drop'!$P:$P,G19,'One Drop'!$L:$L,"FLORIDA REGION")) ->  | AS19: =IF(G19="","",SUMIFS('One Drop'!$AA:$AA,'One Drop'!$P:$P,G19,'One Drop'!$L:$L,"FLORIDA REGION")) ->  | AU19: =IF(G19="","",SUMIFS('NSR WO Details'!$AK:$AK,'NSR WO Details'!$N:$N,G19,'NSR WO Details'!$F:$F,"FLORIDA")) ->  | AV19: =IF(G19="","",SUMIFS('NSR WO Details'!$AL:$AL,'NSR WO Details'!$N:$N,G19,'NSR WO Details'!$F:$F,"FLORIDA")) ->  | AX19: =IF(OR(I19=0,I19=""),"",SUMIFS('Time in Home'!$L:$L,'Time in Home'!$I:$I,$G19,'Time in Home'!E:E,"FLORIDA REGION")) ->  | AY19: =IF(OR(I19=0,I19=""),"",SUMIFS('Time in Home'!$P:$P,'Time in Home'!$I:$I,$G19,'Time in Home'!E:E,"FLORIDA REGION")) ->  | AZ19: =SUMIFS('TQI BP Tech Compliance'!$N:$N,'TQI BP Tech Compliance'!$L:$L,$G19,'TQI BP Tech Compliance'!$F:$F,"FLORIDA REGION") -> 0 | BA19: =SUMIFS('TQI BP Tech Compliance'!$AI:$AI,'TQI BP Tech Compliance'!$L:$L,$G19,'TQI BP Tech Compliance'!$F:$F,"FLORIDA REGION") -> 0 | BB19: =SUMIFS('TQI BP Tech Compliance'!$AB:$AB,'TQI BP Tech Compliance'!$L:$L,$G19,'TQI BP Tech Compliance'!$F:$F,"FLORIDA REGION") -> 0 | BC19: =IFERROR(SUMIFS('TQI BP Tech Compliance'!$AA:$AA,'TQI BP Tech Compliance'!$L:$L,$G19,'TQI BP Tech Compliance'!$F:$F,"FLORIDA REGION")/BB19,"") ->  | BD19: =IFERROR(SUMIFS('TQI BP Tech Compliance'!$Q:$Q,'TQI BP Tech Compliance'!$L:$L,$G19,'TQI BP Tech Compliance'!$F:$F,"FLORIDA REGION"),"") -> 0 | BE19: Enrique Gabino | BF19: =IF(G19="","",SUMIFS(Completion!$CH:$CH,Completion!$AC:$AC,G19,Completion!$N:$N,"Install",Completion!$E:$E,"Florida")) ->  | BG19: =IF(G19="","",SUMIFS(Completion!$AL:$AL,Completion!$AC:$AC,G19,Completion!$N:$N,"Install",Completion!$E:$E,"Florida")) ->  | BI19: =IF(G19="","",SUMIFS(Completion!$CH:$CH,Completion!$AC:$AC,G19,Completion!$N:$N,"TC",Completion!$E:$E,"Florida")) ->  | BJ19: =IF(G19="","",SUMIFS(Completion!$AL:$AL,Completion!$AC:$AC,G19,Completion!$N:$N,"TC",Completion!$E:$E,"Florida")) ->  | BM19: =COUNTIFS(Completion!$AC:$AC,$G19,Completion!$E:$E,"FLORIDA",Completion!$N:$N,"TC") -> 0 | BN19: =COUNTIFS(Completion!$AC:$AC,$G19,Completion!$E:$E,"FLORIDA",Completion!$N:$N,"TC",Completion!$BA:$BA,"Customer") -> 0 | BP19: =IF(SUMIFS('T360 CNH'!V:V,'T360 CNH'!J:J,G19,'T360 CNH'!I:I,"Florida")=0,"",SUMIFS('T360 CNH'!V:V,'T360 CNH'!J:J,G19,'T360 CNH'!I:I,"Florida")) ->  | BQ19: =IF(BP19="","",SUMIFS('T360 CNH'!S:S,'T360 CNH'!J:J,G19,'T360 CNH'!I:I,"Florida")) ->  | CB19: =IF(BZ19="","",SUMIFS('NSR WO Details'!$AG:$AG,'NSR WO Details'!$N:$N,BZ19,'NSR WO Details'!$F:$F,"FLORIDA",'NSR WO Details'!AI:AI,">="&$BU$17,'NSR WO Details'!AI:AI,"<="&$BV$17)) ->  | CC19: =IF(BZ19="","",COUNTIFS('FTR Detail'!$P:$P,BZ19,'FTR Detail'!$H:$H,"=FLORIDA",'NSR WO Details'!AI:AI,">="&$BU$17,'NSR WO Details'!AI:AI,"<="&$BV$17)) ->  | CE19: =IF(BZ19="","",SUMIFS('Tool Usage Details'!$Q:$Q,'Tool Usage Details'!$I:$I,BZ19,'Tool Usage Details'!$G:$G,"FLORIDA REGION",'NSR WO Details'!AI:AI,">="&$BU$17,'NSR WO Details'!AJ:AJ,"<="&$BV$17)) ->  | CF19: =IF(BZ19="","",COUNTIFS('Tool Usage Details'!$I:$I,BZ19,'Tool Usage Details'!$S:$S,"PASS",'Tool Usage Details'!$G:$G,"FLORIDA REGION",'NSR WO Details'!AI:AI,">="&$BU$17,'NSR WO Details'!AI:AI,"<="&$BV$17)) ->  | CH19: =IF(BZ19="","",COUNTIFS('Tool Usage Details'!$I:$I,BZ19,'Tool Usage Details'!$R:$R,"PWW",'Tool Usage Details'!$G:$G,"FLORIDA REGION")+COUNTIFS('Tool Usage Details'!$I:$I,BZ19,'Tool Usage Details'!$R:$R,"PWO",'Tool Usage Details'!$G:$G,"FLORIDA REGION",'Tool Usage Details'!E:E,">="&$BU$17,'Tool Usage Details'!E:E,"<="&$BV$17)) ->  | CJ19: =IF(BZ19="","",SUMIFS('NSR WO Details'!$Z:$Z,'NSR WO Details'!$N:$N,BZ19,'NSR WO Details'!$F:$F,"FLORIDA",'NSR WO Details'!AI:AI,">="&$BU$17,'NSR WO Details'!AI:AI,"<="&$BV$17)) ->  | CK19: =IF(BZ19="","",SUMIFS('NSR WO Details'!$AA:$AA,'NSR WO Details'!$N:$N,BZ19,'NSR WO Details'!$F:$F,"FLORIDA",'NSR WO Details'!AI:AI,">="&$BU$17,'NSR WO Details'!AI:AI,"<="&$BV$17)) ->  | CM19: =IF(BZ19="","",COUNTIFS('NSR WO Details'!$N:$N,BZ19,'NSR WO Details'!$W:$W,"Met",'NSR WO Details'!$F:$F,"FLORIDA",'NSR WO Details'!AI:AI,">="&$BU$17,'NSR WO Details'!AI:AI,"<="&$BV$17)) ->  | CN19: =IF(BZ19="","",COUNTIFS('NSR WO Details'!$N:$N,BZ19,'NSR WO Details'!$W:$W,"Missed",'NSR WO Details'!$F:$F,"FLORIDA",'NSR WO Details'!AI:AI,">="&$BU$17,'NSR WO Details'!AI:AI,"<="&$BV$17)) ->  | CP19: =IF(BZ19="","",COUNTIFS('NSR WO Details'!$N:$N,BZ19,'NSR WO Details'!$F:$F,"FLORIDA",'NSR WO Details'!AI:AI,">="&$BU$17,'NSR WO Details'!AI:AI,"<="&$BV$17)) ->  | CQ19: =IF(BZ19="","",SUMIFS('NSR WO Details'!$AE:$AE,'NSR WO Details'!$N:$N,BZ19,'NSR WO Details'!$F:$F,"FLORIDA",'NSR WO Details'!AI:AI,">="&$BU$17,'NSR WO Details'!AI:AI,"<="&$BV$17)) ->  | CS19: =IF(BZ19="","",SUMIFS('RTM Results'!$DG:$DG,'RTM Results'!$BD:$BD,BZ19,'RTM Results'!$O:$O,"Florida",'RTM Results'!H:H,">="&$BU$17,'RTM Results'!H:H,"<="&$BV$17)) ->  | CT19: =IF(BZ19="","",SUMIFS('RTM Results'!$DC:$DC,'RTM Results'!$BD:$BD,BZ19,'RTM Results'!$O:$O,"Florida",'RTM Results'!H:H,">="&$BU$17,'RTM Results'!H:H,"<="&$BV$17)) ->  | CV19: =IF(BZ19="","",SUMIFS('Tool Usage Details'!$T:$T,'Tool Usage Details'!$I:$I,BZ19,'Tool Usage Details'!$G:$G,"FLORIDA REGION",'Tool Usage Details'!E:E,">="&$BU$17,'Tool Usage Details'!E:E,"<="&$BV$17)) ->  | CW19: =IF(BZ19="","",COUNTIFS('Tool Usage Details'!$I:$I,BZ19,'Tool Usage Details'!$U:$U,"PASS",'Tool Usage Details'!$G:$G,"FLORIDA REGION",'Tool Usage Details'!E:E,">="&$BU$17,'Tool Usage Details'!E:E,"<="&$BV$17)) ->  | CY19: =IF(BZ19="","",SUMIFS('One Drop'!$BV:$BV,'One Drop'!$P:$P,BZ19,'One Drop'!$L:$L,"FLORIDA REGION",'One Drop'!AQ:AQ,">="&$BU$17,'One Drop'!AQ:AQ,"<="&$BV$17)) ->  | CZ19: =IF(BZ19="","",SUMIFS('One Drop'!$BQ:$BQ,'One Drop'!$P:$P,BZ19,'One Drop'!$L:$L,"FLORIDA REGION",'One Drop'!AQ:AQ,">="&$BU$17,'One Drop'!AQ:AQ,"<="&$BV$17)) ->  | DB19: =IF(BZ19="","",SUMIFS('NSR WO Details'!$AK:$AK,'NSR WO Details'!$N:$N,BZ19,'NSR WO Details'!$F:$F,"FLORIDA",'NSR WO Details'!AI:AI,">="&$BU$17,'NSR WO Details'!AI:AI,"<="&$BV$17)) ->  | DC19: =IF(BZ19="","",SUMIFS('NSR WO Details'!$AL:$AL,'NSR WO Details'!$N:$N,BZ19,'NSR WO Details'!$F:$F,"FLORIDA",'NSR WO Details'!AI:AI,">="&$BU$17,'NSR WO Details'!AI:AI,"<="&$BV$17)) ->  | DE19: =IF(BZ19="","",SUMIFS(Completion!$CJ:$CJ,Completion!$G:$G,BZ19,Completion!$N:$N,"Install",Completion!$E:$E,"Florida",Completion!AA:AA,">="&$BU$17,Completion!AA:AA,"<="&$BV$17)) ->  | DF19: =IF(BZ19="","",SUMIFS(Completion!$CB:$CB,Completion!$G:$G,BZ19,Completion!$N:$N,"Install",Completion!$E:$E,"Florida",Completion!AA:AA,">="&$BU$17,Completion!AA:AA,"<="&$BV$17)) ->  | DH19: =IF(BZ19="","",SUMIFS(Completion!$CJ:$CJ,Completion!$G:$G,BZ19,Completion!$N:$N,"TC",Completion!$E:$E,"Florida",Completion!AA:AA,">="&BU$17,Completion!AA:AA,"<="&$BV$17)) ->  | DI19: =IF(BZ19="","",SUMIFS(Completion!$CB:$CB,Completion!$G:$G,BZ19,Completion!$N:$N,"TC",Completion!$E:$E,"Florida",Completion!AA:AA,">="&$BU$17,Completion!AA:AA,"<="&$BV$17)) -> 
B20: Drop Bury | I20: Total Jobs | J20: Jobs FTR | K20: FTR | L20: Total Jobs | M20: Total Installs | N20: Total SOI | O20: SOI | P20: Total TC's | Q20: Total Repeats | R20: Repeats | S20: Total Rework | T20: Rework | U20: Jobs | V20: Pass | W20: PHT | X20: Pure Pass Fails | Y20: PHT Pure Pass | Z20: Tot Surv | AA20: Tot Fail | AB20: tNPS | AC20: Calls Met | AD20: Calls Missed | AE20: OTA | AF20: Total Jobs | AG20: Callback | AH20: Contact w/in 48hrs | AI20: Total Jobs | AJ20: Total Invalid | AK20: % Valid RTM | AL20: Jobs | AM20: Pictures Uploaded | AN20: ML Bonding Compliance | AO20: Total Jobs | AP20: Total Comp | AQ20: Ingress Test Ran | AR20: Number of Drops | AS20: One Drop Usage | AT20: One Drop | AU20: Tool Usage Jobs | AV20: Tool Usage | AW20: Tool Usage Rate | AX20: Average Time in Home - Installs | AY20: Average Time in Home - TC's | AZ20: QC Audits Completed | BA20: Average Score | BB20: QB Audits Completed | BC20: Average Score | BD20: >=2 QA/QB Compliance | BF20: Total Installs | BG20: Completed | BH20: Install Completion % | BI20: Total TC's | BJ20: Completed | BK20: TC Completion % | BL20: Total Completion % | BM20: TC's | BN20: TC Cancels | BO20: Cancel Rate | BP20: Not Home Jobs | BQ20: CNH Initiate | BR20: T360 CNH | CB20: =IF(BZ20="","",SUMIFS('NSR WO Details'!$AG:$AG,'NSR WO Details'!$N:$N,BZ20,'NSR WO Details'!$F:$F,"FLORIDA",'NSR WO Details'!AI:AI,">="&$BU$17,'NSR WO Details'!AI:AI,"<="&$BV$17)) ->  | CC20: =IF(BZ20="","",COUNTIFS('FTR Detail'!$P:$P,BZ20,'FTR Detail'!$H:$H,"=FLORIDA",'NSR WO Details'!AI:AI,">="&$BU$17,'NSR WO Details'!AI:AI,"<="&$BV$17)) ->  | CE20: =IF(BZ20="","",SUMIFS('Tool Usage Details'!$Q:$Q,'Tool Usage Details'!$I:$I,BZ20,'Tool Usage Details'!$G:$G,"FLORIDA REGION",'NSR WO Details'!AI:AI,">="&$BU$17,'NSR WO Details'!AJ:AJ,"<="&$BV$17)) ->  | CF20: =IF(BZ20="","",COUNTIFS('Tool Usage Details'!$I:$I,BZ20,'Tool Usage Details'!$S:$S,"PASS",'Tool Usage Details'!$G:$G,"FLORIDA REGION",'NSR WO Details'!AI:AI,">="&$BU$17,'NSR WO Details'!AI:AI,"<="&$BV$17)) ->  | CH20: =IF(BZ20="","",COUNTIFS('Tool Usage Details'!$I:$I,BZ20,'Tool Usage Details'!$R:$R,"PWW",'Tool Usage Details'!$G:$G,"FLORIDA REGION")+COUNTIFS('Tool Usage Details'!$I:$I,BZ20,'Tool Usage Details'!$R:$R,"PWO",'Tool Usage Details'!$G:$G,"FLORIDA REGION",'Tool Usage Details'!E:E,">="&$BU$17,'Tool Usage Details'!E:E,"<="&$BV$17)) ->  | CJ20: =IF(BZ20="","",SUMIFS('NSR WO Details'!$Z:$Z,'NSR WO Details'!$N:$N,BZ20,'NSR WO Details'!$F:$F,"FLORIDA",'NSR WO Details'!AI:AI,">="&$BU$17,'NSR WO Details'!AI:AI,"<="&$BV$17)) ->  | CK20: =IF(BZ20="","",SUMIFS('NSR WO Details'!$AA:$AA,'NSR WO Details'!$N:$N,BZ20,'NSR WO Details'!$F:$F,"FLORIDA",'NSR WO Details'!AI:AI,">="&$BU$17,'NSR WO Details'!AI:AI,"<="&$BV$17)) ->  | CM20: =IF(BZ20="","",COUNTIFS('NSR WO Details'!$N:$N,BZ20,'NSR WO Details'!$W:$W,"Met",'NSR WO Details'!$F:$F,"FLORIDA",'NSR WO Details'!AI:AI,">="&$BU$17,'NSR WO Details'!AI:AI,"<="&$BV$17)) ->  | CN20: =IF(BZ20="","",COUNTIFS('NSR WO Details'!$N:$N,BZ20,'NSR WO Details'!$W:$W,"Missed",'NSR WO Details'!$F:$F,"FLORIDA",'NSR WO Details'!AI:AI,">="&$BU$17,'NSR WO Details'!AI:AI,"<="&$BV$17)) ->  | CP20: =IF(BZ20="","",COUNTIFS('NSR WO Details'!$N:$N,BZ20,'NSR WO Details'!$F:$F,"FLORIDA",'NSR WO Details'!AI:AI,">="&$BU$17,'NSR WO Details'!AI:AI,"<="&$BV$17)) ->  | CQ20: =IF(BZ20="","",SUMIFS('NSR WO Details'!$AE:$AE,'NSR WO Details'!$N:$N,BZ20,'NSR WO Details'!$F:$F,"FLORIDA",'NSR WO Details'!AI:AI,">="&$BU$17,'NSR WO Details'!AI:AI,"<="&$BV$17)) ->  | CS20: =IF(BZ20="","",SUMIFS('RTM Results'!$DG:$DG,'RTM Results'!$BD:$BD,BZ20,'RTM Results'!$O:$O,"Florida",'RTM Results'!H:H,">="&$BU$17,'RTM Results'!H:H,"<="&$BV$17)) ->  | CT20: =IF(BZ20="","",SUMIFS('RTM Results'!$DC:$DC,'RTM Results'!$BD:$BD,BZ20,'RTM Results'!$O:$O,"Florida",'RTM Results'!H:H,">="&$BU$17,'RTM Results'!H:H,"<="&$BV$17)) ->  | CV20: =IF(BZ20="","",SUMIFS('Tool Usage Details'!$T:$T,'Tool Usage Details'!$I:$I,BZ20,'Tool Usage Details'!$G:$G,"FLORIDA REGION",'Tool Usage Details'!E:E,">="&$BU$17,'Tool Usage Details'!E:E,"<="&$BV$17)) ->  | CW20: =IF(BZ20="","",COUNTIFS('Tool Usage Details'!$I:$I,BZ20,'Tool Usage Details'!$U:$U,"PASS",'Tool Usage Details'!$G:$G,"FLORIDA REGION",'Tool Usage Details'!E:E,">="&$BU$17,'Tool Usage Details'!E:E,"<="&$BV$17)) ->  | CY20: =IF(BZ20="","",SUMIFS('One Drop'!$BV:$BV,'One Drop'!$P:$P,BZ20,'One Drop'!$L:$L,"FLORIDA REGION",'One Drop'!AQ:AQ,">="&$BU$17,'One Drop'!AQ:AQ,"<="&$BV$17)) ->  | CZ20: =IF(BZ20="","",SUMIFS('One Drop'!$BQ:$BQ,'One Drop'!$P:$P,BZ20,'One Drop'!$L:$L,"FLORIDA REGION",'One Drop'!AQ:AQ,">="&$BU$17,'One Drop'!AQ:AQ,"<="&$BV$17)) ->  | DB20: =IF(BZ20="","",SUMIFS('NSR WO Details'!$AK:$AK,'NSR WO Details'!$N:$N,BZ20,'NSR WO Details'!$F:$F,"FLORIDA",'NSR WO Details'!AI:AI,">="&$BU$17,'NSR WO Details'!AI:AI,"<="&$BV$17)) ->  | DC20: =IF(BZ20="","",SUMIFS('NSR WO Details'!$AL:$AL,'NSR WO Details'!$N:$N,BZ20,'NSR WO Details'!$F:$F,"FLORIDA",'NSR WO Details'!AI:AI,">="&$BU$17,'NSR WO Details'!AI:AI,"<="&$BV$17)) ->  | DE20: =IF(BZ20="","",SUMIFS(Completion!$CJ:$CJ,Completion!$G:$G,BZ20,Completion!$N:$N,"Install",Completion!$E:$E,"Florida",Completion!AA:AA,">="&$BU$17,Completion!AA:AA,"<="&$BV$17)) ->  | DF20: =IF(BZ20="","",SUMIFS(Completion!$CB:$CB,Completion!$G:$G,BZ20,Completion!$N:$N,"Install",Completion!$E:$E,"Florida",Completion!AA:AA,">="&$BU$17,Completion!AA:AA,"<="&$BV$17)) ->  | DH20: =IF(BZ20="","",SUMIFS(Completion!$CJ:$CJ,Completion!$G:$G,BZ20,Completion!$N:$N,"TC",Completion!$E:$E,"Florida",Completion!AA:AA,">="&BU$17,Completion!AA:AA,"<="&$BV$17)) ->  | DI20: =IF(BZ20="","",SUMIFS(Completion!$CB:$CB,Completion!$G:$G,BZ20,Completion!$N:$N,"TC",Completion!$E:$E,"Florida",Completion!AA:AA,">="&$BU$17,Completion!AA:AA,"<="&$BV$17)) -> 
B21: Low Performers | CB21: =IF(BZ21="","",SUMIFS('NSR WO Details'!$AG:$AG,'NSR WO Details'!$N:$N,BZ21,'NSR WO Details'!$F:$F,"FLORIDA",'NSR WO Details'!AI:AI,">="&$BU$17,'NSR WO Details'!AI:AI,"<="&$BV$17)) ->  | CC21: =IF(BZ21="","",COUNTIFS('FTR Detail'!$P:$P,BZ21,'FTR Detail'!$H:$H,"=FLORIDA",'NSR WO Details'!AI:AI,">="&$BU$17,'NSR WO Details'!AI:AI,"<="&$BV$17)) ->  | CE21: =IF(BZ21="","",SUMIFS('Tool Usage Details'!$Q:$Q,'Tool Usage Details'!$I:$I,BZ21,'Tool Usage Details'!$G:$G,"FLORIDA REGION",'NSR WO Details'!AI:AI,">="&$BU$17,'NSR WO Details'!AJ:AJ,"<="&$BV$17)) ->  | CF21: =IF(BZ21="","",COUNTIFS('Tool Usage Details'!$I:$I,BZ21,'Tool Usage Details'!$S:$S,"PASS",'Tool Usage Details'!$G:$G,"FLORIDA REGION",'NSR WO Details'!AI:AI,">="&$BU$17,'NSR WO Details'!AI:AI,"<="&$BV$17)) ->  | CH21: =IF(BZ21="","",COUNTIFS('Tool Usage Details'!$I:$I,BZ21,'Tool Usage Details'!$R:$R,"PWW",'Tool Usage Details'!$G:$G,"FLORIDA REGION")+COUNTIFS('Tool Usage Details'!$I:$I,BZ21,'Tool Usage Details'!$R:$R,"PWO",'Tool Usage Details'!$G:$G,"FLORIDA REGION",'Tool Usage Details'!E:E,">="&$BU$17,'Tool Usage Details'!E:E,"<="&$BV$17)) ->  | CJ21: =IF(BZ21="","",SUMIFS('NSR WO Details'!$Z:$Z,'NSR WO Details'!$N:$N,BZ21,'NSR WO Details'!$F:$F,"FLORIDA",'NSR WO Details'!AI:AI,">="&$BU$17,'NSR WO Details'!AI:AI,"<="&$BV$17)) ->  | CK21: =IF(BZ21="","",SUMIFS('NSR WO Details'!$AA:$AA,'NSR WO Details'!$N:$N,BZ21,'NSR WO Details'!$F:$F,"FLORIDA",'NSR WO Details'!AI:AI,">="&$BU$17,'NSR WO Details'!AI:AI,"<="&$BV$17)) ->  | CM21: =IF(BZ21="","",COUNTIFS('NSR WO Details'!$N:$N,BZ21,'NSR WO Details'!$W:$W,"Met",'NSR WO Details'!$F:$F,"FLORIDA",'NSR WO Details'!AI:AI,">="&$BU$17,'NSR WO Details'!AI:AI,"<="&$BV$17)) ->  | CN21: =IF(BZ21="","",COUNTIFS('NSR WO Details'!$N:$N,BZ21,'NSR WO Details'!$W:$W,"Missed",'NSR WO Details'!$F:$F,"FLORIDA",'NSR WO Details'!AI:AI,">="&$BU$17,'NSR WO Details'!AI:AI,"<="&$BV$17)) ->  | CP21: =IF(BZ21="","",COUNTIFS('NSR WO Details'!$N:$N,BZ21,'NSR WO Details'!$F:$F,"FLORIDA",'NSR WO Details'!AI:AI,">="&$BU$17,'NSR WO Details'!AI:AI,"<="&$BV$17)) ->  | CQ21: =IF(BZ21="","",SUMIFS('NSR WO Details'!$AE:$AE,'NSR WO Details'!$N:$N,BZ21,'NSR WO Details'!$F:$F,"FLORIDA",'NSR WO Details'!AI:AI,">="&$BU$17,'NSR WO Details'!AI:AI,"<="&$BV$17)) ->  | CS21: =IF(BZ21="","",SUMIFS('RTM Results'!$DG:$DG,'RTM Results'!$BD:$BD,BZ21,'RTM Results'!$O:$O,"Florida",'RTM Results'!H:H,">="&$BU$17,'RTM Results'!H:H,"<="&$BV$17)) ->  | CT21: =IF(BZ21="","",SUMIFS('RTM Results'!$DC:$DC,'RTM Results'!$BD:$BD,BZ21,'RTM Results'!$O:$O,"Florida",'RTM Results'!H:H,">="&$BU$17,'RTM Results'!H:H,"<="&$BV$17)) ->  | CV21: =IF(BZ21="","",SUMIFS('Tool Usage Details'!$T:$T,'Tool Usage Details'!$I:$I,BZ21,'Tool Usage Details'!$G:$G,"FLORIDA REGION",'Tool Usage Details'!E:E,">="&$BU$17,'Tool Usage Details'!E:E,"<="&$BV$17)) ->  | CW21: =IF(BZ21="","",COUNTIFS('Tool Usage Details'!$I:$I,BZ21,'Tool Usage Details'!$U:$U,"PASS",'Tool Usage Details'!$G:$G,"FLORIDA REGION",'Tool Usage Details'!E:E,">="&$BU$17,'Tool Usage Details'!E:E,"<="&$BV$17)) ->  | CY21: =IF(BZ21="","",SUMIFS('One Drop'!$BV:$BV,'One Drop'!$P:$P,BZ21,'One Drop'!$L:$L,"FLORIDA REGION",'One Drop'!AQ:AQ,">="&$BU$17,'One Drop'!AQ:AQ,"<="&$BV$17)) ->  | CZ21: =IF(BZ21="","",SUMIFS('One Drop'!$BQ:$BQ,'One Drop'!$P:$P,BZ21,'One Drop'!$L:$L,"FLORIDA REGION",'One Drop'!AQ:AQ,">="&$BU$17,'One Drop'!AQ:AQ,"<="&$BV$17)) ->  | DB21: =IF(BZ21="","",SUMIFS('NSR WO Details'!$AK:$AK,'NSR WO Details'!$N:$N,BZ21,'NSR WO Details'!$F:$F,"FLORIDA",'NSR WO Details'!AI:AI,">="&$BU$17,'NSR WO Details'!AI:AI,"<="&$BV$17)) ->  | DC21: =IF(BZ21="","",SUMIFS('NSR WO Details'!$AL:$AL,'NSR WO Details'!$N:$N,BZ21,'NSR WO Details'!$F:$F,"FLORIDA",'NSR WO Details'!AI:AI,">="&$BU$17,'NSR WO Details'!AI:AI,"<="&$BV$17)) ->  | DE21: =IF(BZ21="","",SUMIFS(Completion!$CJ:$CJ,Completion!$G:$G,BZ21,Completion!$N:$N,"Install",Completion!$E:$E,"Florida",Completion!AA:AA,">="&$BU$17,Completion!AA:AA,"<="&$BV$17)) ->  | DF21: =IF(BZ21="","",SUMIFS(Completion!$CB:$CB,Completion!$G:$G,BZ21,Completion!$N:$N,"Install",Completion!$E:$E,"Florida",Completion!AA:AA,">="&$BU$17,Completion!AA:AA,"<="&$BV$17)) ->  | DH21: =IF(BZ21="","",SUMIFS(Completion!$CJ:$CJ,Completion!$G:$G,BZ21,Completion!$N:$N,"TC",Completion!$E:$E,"Florida",Completion!AA:AA,">="&BU$17,Completion!AA:AA,"<="&$BV$17)) ->  | DI21: =IF(BZ21="","",SUMIFS(Completion!$CB:$CB,Completion!$G:$G,BZ21,Completion!$N:$N,"TC",Completion!$E:$E,"Florida",Completion!AA:AA,">="&$BU$17,Completion!AA:AA,"<="&$BV$17)) -> 
B22: Tech Rankings | I22: =SUMIF(I8:I19,">0") -> 280 | J22: =SUMIF(J8:J19,">0") -> 29 | K22: =IFERROR(1-(J22/I22),"") -> 0.896 | L22: =SUM(L8:L19) -> 292 | M22: =SUM(M8:M19) -> 104 | N22: =SUM(N8:N19) -> 8 | O22: =IFERROR(SUM(N22/M22),"") -> 0.0769 | P22: =SUM(P8:P19) -> 180 | Q22: =SUM(Q8:Q19) -> 20 | R22: =IFERROR(SUM(Q22/P22),"") -> 0.1111 | S22: =SUM(S8:S19) -> 28 | T22: =IFERROR(SUM(S22/L22),"") -> 0.0959 | U22: =SUMIF(U8:U19,">0") -> 161 | V22: =SUMIF(V8:V19,">0") -> 161 | W22: =IFERROR(SUM(V22/U22),"") -> 1 | X22: =SUMIF(X8:X19,">0") -> 1 | Y22: =IFERROR(1-(X22/V22),"") -> 0.994 | Z22: =SUMIF(Z8:Z19,">0") -> 42 | AA22: =SUMIF(AA8:AA19,">0") -> 42 | AB22: =IFERROR(SUM(AA22/Z22),"") -> 1 | AC22: =SUMIF(AC8:AC19,">0") -> 282 | AD22: =SUMIF(AD8:AD19,">0") -> 8 | AE22: =IFERROR(SUM(AC22/(AC22+AD22)),"") -> 0.9724 | AF22: =SUMIF(AF8:AF19,">0") -> 292 | AG22: =SUMIF(AG8:AG19,">0") -> 25 | AH22: =IFERROR(SUM(AG22/AF22),"") -> 0.086 | AI22: =SUM(AI8:AI19) -> 6 | AJ22: =SUM(AJ8:AJ19) -> 0 | AK22: =IFERROR(1-(SUM(AJ22/AI22)),"") -> 1 | AL22: =SUM(AL8:AL19) -> 161 | AM22: =SUM(AM8:AM19) -> 12 | AN22: =IFERROR(SUM(AM22/AL22),"") -> 0.0745 | AO22: =SUMIF(AO8:AO19,">0") -> 161 | AP22: =SUMIF(AP8:AP19,">0") -> 161 | AQ22: =IFERROR(SUM(AP22/AO22),"") -> 1 | AR22: =SUM(AR8:AR19) -> 28 | AS22: =SUM(AS8:AS19) -> 27 | AT22: =IFERROR(SUM(AS22/AR22),"") -> 0.9643 | AU22: =SUM(AU8:AU19) -> 161 | AV22: =SUM(AV8:AV19) -> 161 | AW22: =IFERROR(SUM(AV22/AU22),"") -> 1 | AX22: =IFERROR(AVERAGE(AX8:AX19),"") -> 101.21 | AY22: =IFERROR(AVERAGE(AY8:AY19),"") -> 58 | AZ22: =SUM(AZ8:AZ19) -> 10 | BA22: =IFERROR(AVERAGEIF(BA8:BA19,"<>0"),"") -> 86 | BB22: =SUM(BB8:BB19) -> 3 | BC22: =IFERROR(AVERAGEIF(BC8:BC19,"<>0"),"") -> 29 | BD22: =IFERROR(SUM(BD8:BD19)/COUNTIF(I8:I19,">=10"),"") -> 0.5625 | BF22: =SUM(BF8:BF19) -> 119 | BG22: =SUM(BG8:BG19) -> 104 | BH22: =IFERROR(SUM(BG22/BF22),"") -> 0.8739 | BI22: =SUM(BI8:BI19) -> 202 | BJ22: =SUM(BJ8:BJ19) -> 178 | BK22: =IFERROR(SUM(BJ22/BI22),"") -> 0.8812 | BL22: =IFERROR(SUM(BG22,BJ22)/SUM(BF22,BI22),"") -> 0.8785 | BM22: =SUM(BM8:BM19) -> 202 | BN22: =SUM(BN8:BN19) -> 10 | BO22: =IFERROR(SUM(BN22/BM22),"") -> 0.0495 | BP22: =SUM(BP8:BP19) -> 5 | BQ22: =SUM(BQ8:BQ19) -> 5 | BR22: =IFERROR(SUM(BQ22/BP22),"") -> 1 | CB22: =IF(BZ22="","",SUMIFS('NSR WO Details'!$AG:$AG,'NSR WO Details'!$N:$N,BZ22,'NSR WO Details'!$F:$F,"FLORIDA",'NSR WO Details'!AI:AI,">="&$BU$17,'NSR WO Details'!AI:AI,"<="&$BV$17)) ->  | CC22: =IF(BZ22="","",COUNTIFS('FTR Detail'!$P:$P,BZ22,'FTR Detail'!$H:$H,"=FLORIDA",'NSR WO Details'!AI:AI,">="&$BU$17,'NSR WO Details'!AI:AI,"<="&$BV$17)) ->  | CE22: =IF(BZ22="","",SUMIFS('Tool Usage Details'!$Q:$Q,'Tool Usage Details'!$I:$I,BZ22,'Tool Usage Details'!$G:$G,"FLORIDA REGION",'NSR WO Details'!AI:AI,">="&$BU$17,'NSR WO Details'!AJ:AJ,"<="&$BV$17)) ->  | CF22: =IF(BZ22="","",COUNTIFS('Tool Usage Details'!$I:$I,BZ22,'Tool Usage Details'!$S:$S,"PASS",'Tool Usage Details'!$G:$G,"FLORIDA REGION",'NSR WO Details'!AI:AI,">="&$BU$17,'NSR WO Details'!AI:AI,"<="&$BV$17)) ->  | CH22: =IF(BZ22="","",COUNTIFS('Tool Usage Details'!$I:$I,BZ22,'Tool Usage Details'!$R:$R,"PWW",'Tool Usage Details'!$G:$G,"FLORIDA REGION")+COUNTIFS('Tool Usage Details'!$I:$I,BZ22,'Tool Usage Details'!$R:$R,"PWO",'Tool Usage Details'!$G:$G,"FLORIDA REGION",'Tool Usage Details'!E:E,">="&$BU$17,'Tool Usage Details'!E:E,"<="&$BV$17)) ->  | CJ22: =IF(BZ22="","",SUMIFS('NSR WO Details'!$Z:$Z,'NSR WO Details'!$N:$N,BZ22,'NSR WO Details'!$F:$F,"FLORIDA",'NSR WO Details'!AI:AI,">="&$BU$17,'NSR WO Details'!AI:AI,"<="&$BV$17)) ->  | CK22: =IF(BZ22="","",SUMIFS('NSR WO Details'!$AA:$AA,'NSR WO Details'!$N:$N,BZ22,'NSR WO Details'!$F:$F,"FLORIDA",'NSR WO Details'!AI:AI,">="&$BU$17,'NSR WO Details'!AI:AI,"<="&$BV$17)) ->  | CM22: =IF(BZ22="","",COUNTIFS('NSR WO Details'!$N:$N,BZ22,'NSR WO Details'!$W:$W,"Met",'NSR WO Details'!$F:$F,"FLORIDA",'NSR WO Details'!AI:AI,">="&$BU$17,'NSR WO Details'!AI:AI,"<="&$BV$17)) ->  | CN22: =IF(BZ22="","",COUNTIFS('NSR WO Details'!$N:$N,BZ22,'NSR WO Details'!$W:$W,"Missed",'NSR WO Details'!$F:$F,"FLORIDA",'NSR WO Details'!AI:AI,">="&$BU$17,'NSR WO Details'!AI:AI,"<="&$BV$17)) ->  | CP22: =IF(BZ22="","",COUNTIFS('NSR WO Details'!$N:$N,BZ22,'NSR WO Details'!$F:$F,"FLORIDA",'NSR WO Details'!AI:AI,">="&$BU$17,'NSR WO Details'!AI:AI,"<="&$BV$17)) ->  | CQ22: =IF(BZ22="","",SUMIFS('NSR WO Details'!$AE:$AE,'NSR WO Details'!$N:$N,BZ22,'NSR WO Details'!$F:$F,"FLORIDA",'NSR WO Details'!AI:AI,">="&$BU$17,'NSR WO Details'!AI:AI,"<="&$BV$17)) ->  | CS22: =IF(BZ22="","",SUMIFS('RTM Results'!$DG:$DG,'RTM Results'!$BD:$BD,BZ22,'RTM Results'!$O:$O,"Florida",'RTM Results'!H:H,">="&$BU$17,'RTM Results'!H:H,"<="&$BV$17)) ->  | CT22: =IF(BZ22="","",SUMIFS('RTM Results'!$DC:$DC,'RTM Results'!$BD:$BD,BZ22,'RTM Results'!$O:$O,"Florida",'RTM Results'!H:H,">="&$BU$17,'RTM Results'!H:H,"<="&$BV$17)) ->  | CV22: =IF(BZ22="","",SUMIFS('Tool Usage Details'!$T:$T,'Tool Usage Details'!$I:$I,BZ22,'Tool Usage Details'!$G:$G,"FLORIDA REGION",'Tool Usage Details'!E:E,">="&$BU$17,'Tool Usage Details'!E:E,"<="&$BV$17)) ->  | CW22: =IF(BZ22="","",COUNTIFS('Tool Usage Details'!$I:$I,BZ22,'Tool Usage Details'!$U:$U,"PASS",'Tool Usage Details'!$G:$G,"FLORIDA REGION",'Tool Usage Details'!E:E,">="&$BU$17,'Tool Usage Details'!E:E,"<="&$BV$17)) ->  | CY22: =IF(BZ22="","",SUMIFS('One Drop'!$BV:$BV,'One Drop'!$P:$P,BZ22,'One Drop'!$L:$L,"FLORIDA REGION",'One Drop'!AQ:AQ,">="&$BU$17,'One Drop'!AQ:AQ,"<="&$BV$17)) ->  | CZ22: =IF(BZ22="","",SUMIFS('One Drop'!$BQ:$BQ,'One Drop'!$P:$P,BZ22,'One Drop'!$L:$L,"FLORIDA REGION",'One Drop'!AQ:AQ,">="&$BU$17,'One Drop'!AQ:AQ,"<="&$BV$17)) ->  | DB22: =IF(BZ22="","",SUMIFS('NSR WO Details'!$AK:$AK,'NSR WO Details'!$N:$N,BZ22,'NSR WO Details'!$F:$F,"FLORIDA",'NSR WO Details'!AI:AI,">="&$BU$17,'NSR WO Details'!AI:AI,"<="&$BV$17)) ->  | DC22: =IF(BZ22="","",SUMIFS('NSR WO Details'!$AL:$AL,'NSR WO Details'!$N:$N,BZ22,'NSR WO Details'!$F:$F,"FLORIDA",'NSR WO Details'!AI:AI,">="&$BU$17,'NSR WO Details'!AI:AI,"<="&$BV$17)) ->  | DE22: =IF(BZ22="","",SUMIFS(Completion!$CJ:$CJ,Completion!$G:$G,BZ22,Completion!$N:$N,"Install",Completion!$E:$E,"Florida",Completion!AA:AA,">="&$BU$17,Completion!AA:AA,"<="&$BV$17)) ->  | DF22: =IF(BZ22="","",SUMIFS(Completion!$CB:$CB,Completion!$G:$G,BZ22,Completion!$N:$N,"Install",Completion!$E:$E,"Florida",Completion!AA:AA,">="&$BU$17,Completion!AA:AA,"<="&$BV$17)) ->  | DH22: =IF(BZ22="","",SUMIFS(Completion!$CJ:$CJ,Completion!$G:$G,BZ22,Completion!$N:$N,"TC",Completion!$E:$E,"Florida",Completion!AA:AA,">="&BU$17,Completion!AA:AA,"<="&$BV$17)) ->  | DI22: =IF(BZ22="","",SUMIFS(Completion!$CB:$CB,Completion!$G:$G,BZ22,Completion!$N:$N,"TC",Completion!$E:$E,"Florida",Completion!AA:AA,">="&$BU$17,Completion!AA:AA,"<="&$BV$17)) -> 
B23: Tech Coaching Form | CB23: =IF(BZ23="","",SUMIFS('NSR WO Details'!$AG:$AG,'NSR WO Details'!$N:$N,BZ23,'NSR WO Details'!$F:$F,"FLORIDA",'NSR WO Details'!AI:AI,">="&$BU$17,'NSR WO Details'!AI:AI,"<="&$BV$17)) ->  | CC23: =IF(BZ23="","",COUNTIFS('FTR Detail'!$P:$P,BZ23,'FTR Detail'!$H:$H,"=FLORIDA",'NSR WO Details'!AI:AI,">="&$BU$17,'NSR WO Details'!AI:AI,"<="&$BV$17)) ->  | CE23: =IF(BZ23="","",SUMIFS('Tool Usage Details'!$Q:$Q,'Tool Usage Details'!$I:$I,BZ23,'Tool Usage Details'!$G:$G,"FLORIDA REGION",'NSR WO Details'!AI:AI,">="&$BU$17,'NSR WO Details'!AJ:AJ,"<="&$BV$17)) ->  | CF23: =IF(BZ23="","",COUNTIFS('Tool Usage Details'!$I:$I,BZ23,'Tool Usage Details'!$S:$S,"PASS",'Tool Usage Details'!$G:$G,"FLORIDA REGION",'NSR WO Details'!AI:AI,">="&$BU$17,'NSR WO Details'!AI:AI,"<="&$BV$17)) ->  | CH23: =IF(BZ23="","",COUNTIFS('Tool Usage Details'!$I:$I,BZ23,'Tool Usage Details'!$R:$R,"PWW",'Tool Usage Details'!$G:$G,"FLORIDA REGION")+COUNTIFS('Tool Usage Details'!$I:$I,BZ23,'Tool Usage Details'!$R:$R,"PWO",'Tool Usage Details'!$G:$G,"FLORIDA REGION",'Tool Usage Details'!E:E,">="&$BU$17,'Tool Usage Details'!E:E,"<="&$BV$17)) ->  | CJ23: =IF(BZ23="","",SUMIFS('NSR WO Details'!$Z:$Z,'NSR WO Details'!$N:$N,BZ23,'NSR WO Details'!$F:$F,"FLORIDA",'NSR WO Details'!AI:AI,">="&$BU$17,'NSR WO Details'!AI:AI,"<="&$BV$17)) ->  | CK23: =IF(BZ23="","",SUMIFS('NSR WO Details'!$AA:$AA,'NSR WO Details'!$N:$N,BZ23,'NSR WO Details'!$F:$F,"FLORIDA",'NSR WO Details'!AI:AI,">="&$BU$17,'NSR WO Details'!AI:AI,"<="&$BV$17)) ->  | CM23: =IF(BZ23="","",COUNTIFS('NSR WO Details'!$N:$N,BZ23,'NSR WO Details'!$W:$W,"Met",'NSR WO Details'!$F:$F,"FLORIDA",'NSR WO Details'!AI:AI,">="&$BU$17,'NSR WO Details'!AI:AI,"<="&$BV$17)) ->  | CN23: =IF(BZ23="","",COUNTIFS('NSR WO Details'!$N:$N,BZ23,'NSR WO Details'!$W:$W,"Missed",'NSR WO Details'!$F:$F,"FLORIDA",'NSR WO Details'!AI:AI,">="&$BU$17,'NSR WO Details'!AI:AI,"<="&$BV$17)) ->  | CP23: =IF(BZ23="","",COUNTIFS('NSR WO Details'!$N:$N,BZ23,'NSR WO Details'!$F:$F,"FLORIDA",'NSR WO Details'!AI:AI,">="&$BU$17,'NSR WO Details'!AI:AI,"<="&$BV$17)) ->  | CQ23: =IF(BZ23="","",SUMIFS('NSR WO Details'!$AE:$AE,'NSR WO Details'!$N:$N,BZ23,'NSR WO Details'!$F:$F,"FLORIDA",'NSR WO Details'!AI:AI,">="&$BU$17,'NSR WO Details'!AI:AI,"<="&$BV$17)) ->  | CS23: =IF(BZ23="","",SUMIFS('RTM Results'!$DG:$DG,'RTM Results'!$BD:$BD,BZ23,'RTM Results'!$O:$O,"Florida",'RTM Results'!H:H,">="&$BU$17,'RTM Results'!H:H,"<="&$BV$17)) ->  | CT23: =IF(BZ23="","",SUMIFS('RTM Results'!$DC:$DC,'RTM Results'!$BD:$BD,BZ23,'RTM Results'!$O:$O,"Florida",'RTM Results'!H:H,">="&$BU$17,'RTM Results'!H:H,"<="&$BV$17)) ->  | CV23: =IF(BZ23="","",SUMIFS('Tool Usage Details'!$T:$T,'Tool Usage Details'!$I:$I,BZ23,'Tool Usage Details'!$G:$G,"FLORIDA REGION",'Tool Usage Details'!E:E,">="&$BU$17,'Tool Usage Details'!E:E,"<="&$BV$17)) ->  | CW23: =IF(BZ23="","",COUNTIFS('Tool Usage Details'!$I:$I,BZ23,'Tool Usage Details'!$U:$U,"PASS",'Tool Usage Details'!$G:$G,"FLORIDA REGION",'Tool Usage Details'!E:E,">="&$BU$17,'Tool Usage Details'!E:E,"<="&$BV$17)) ->  | CY23: =IF(BZ23="","",SUMIFS('One Drop'!$BV:$BV,'One Drop'!$P:$P,BZ23,'One Drop'!$L:$L,"FLORIDA REGION",'One Drop'!AQ:AQ,">="&$BU$17,'One Drop'!AQ:AQ,"<="&$BV$17)) ->  | CZ23: =IF(BZ23="","",SUMIFS('One Drop'!$BQ:$BQ,'One Drop'!$P:$P,BZ23,'One Drop'!$L:$L,"FLORIDA REGION",'One Drop'!AQ:AQ,">="&$BU$17,'One Drop'!AQ:AQ,"<="&$BV$17)) ->  | DB23: =IF(BZ23="","",SUMIFS('NSR WO Details'!$AK:$AK,'NSR WO Details'!$N:$N,BZ23,'NSR WO Details'!$F:$F,"FLORIDA",'NSR WO Details'!AI:AI,">="&$BU$17,'NSR WO Details'!AI:AI,"<="&$BV$17)) ->  | DC23: =IF(BZ23="","",SUMIFS('NSR WO Details'!$AL:$AL,'NSR WO Details'!$N:$N,BZ23,'NSR WO Details'!$F:$F,"FLORIDA",'NSR WO Details'!AI:AI,">="&$BU$17,'NSR WO Details'!AI:AI,"<="&$BV$17)) ->  | DE23: =IF(BZ23="","",SUMIFS(Completion!$CJ:$CJ,Completion!$G:$G,BZ23,Completion!$N:$N,"Install",Completion!$E:$E,"Florida",Completion!AA:AA,">="&$BU$17,Completion!AA:AA,"<="&$BV$17)) ->  | DF23: =IF(BZ23="","",SUMIFS(Completion!$CB:$CB,Completion!$G:$G,BZ23,Completion!$N:$N,"Install",Completion!$E:$E,"Florida",Completion!AA:AA,">="&$BU$17,Completion!AA:AA,"<="&$BV$17)) ->  | DH23: =IF(BZ23="","",SUMIFS(Completion!$CJ:$CJ,Completion!$G:$G,BZ23,Completion!$N:$N,"TC",Completion!$E:$E,"Florida",Completion!AA:AA,">="&BU$17,Completion!AA:AA,"<="&$BV$17)) ->  | DI23: =IF(BZ23="","",SUMIFS(Completion!$CB:$CB,Completion!$G:$G,BZ23,Completion!$N:$N,"TC",Completion!$E:$E,"Florida",Completion!AA:AA,">="&$BU$17,Completion!AA:AA,"<="&$BV$17)) -> 
B24: Rework Summary | F24: Alexandr Sviridov | CB24: =IF(BZ24="","",SUMIFS('NSR WO Details'!$AG:$AG,'NSR WO Details'!$N:$N,BZ24,'NSR WO Details'!$F:$F,"FLORIDA",'NSR WO Details'!AI:AI,">="&$BU$17,'NSR WO Details'!AI:AI,"<="&$BV$17)) ->  | CC24: =IF(BZ24="","",COUNTIFS('FTR Detail'!$P:$P,BZ24,'FTR Detail'!$H:$H,"=FLORIDA",'NSR WO Details'!AI:AI,">="&$BU$17,'NSR WO Details'!AI:AI,"<="&$BV$17)) ->  | CE24: =IF(BZ24="","",SUMIFS('Tool Usage Details'!$Q:$Q,'Tool Usage Details'!$I:$I,BZ24,'Tool Usage Details'!$G:$G,"FLORIDA REGION",'NSR WO Details'!AI:AI,">="&$BU$17,'NSR WO Details'!AJ:AJ,"<="&$BV$17)) ->  | CF24: =IF(BZ24="","",COUNTIFS('Tool Usage Details'!$I:$I,BZ24,'Tool Usage Details'!$S:$S,"PASS",'Tool Usage Details'!$G:$G,"FLORIDA REGION",'NSR WO Details'!AI:AI,">="&$BU$17,'NSR WO Details'!AI:AI,"<="&$BV$17)) ->  | CH24: =IF(BZ24="","",COUNTIFS('Tool Usage Details'!$I:$I,BZ24,'Tool Usage Details'!$R:$R,"PWW",'Tool Usage Details'!$G:$G,"FLORIDA REGION")+COUNTIFS('Tool Usage Details'!$I:$I,BZ24,'Tool Usage Details'!$R:$R,"PWO",'Tool Usage Details'!$G:$G,"FLORIDA REGION",'Tool Usage Details'!E:E,">="&$BU$17,'Tool Usage Details'!E:E,"<="&$BV$17)) ->  | CJ24: =IF(BZ24="","",SUMIFS('NSR WO Details'!$Z:$Z,'NSR WO Details'!$N:$N,BZ24,'NSR WO Details'!$F:$F,"FLORIDA",'NSR WO Details'!AI:AI,">="&$BU$17,'NSR WO Details'!AI:AI,"<="&$BV$17)) ->  | CK24: =IF(BZ24="","",SUMIFS('NSR WO Details'!$AA:$AA,'NSR WO Details'!$N:$N,BZ24,'NSR WO Details'!$F:$F,"FLORIDA",'NSR WO Details'!AI:AI,">="&$BU$17,'NSR WO Details'!AI:AI,"<="&$BV$17)) ->  | CM24: =IF(BZ24="","",COUNTIFS('NSR WO Details'!$N:$N,BZ24,'NSR WO Details'!$W:$W,"Met",'NSR WO Details'!$F:$F,"FLORIDA",'NSR WO Details'!AI:AI,">="&$BU$17,'NSR WO Details'!AI:AI,"<="&$BV$17)) ->  | CN24: =IF(BZ24="","",COUNTIFS('NSR WO Details'!$N:$N,BZ24,'NSR WO Details'!$W:$W,"Missed",'NSR WO Details'!$F:$F,"FLORIDA",'NSR WO Details'!AI:AI,">="&$BU$17,'NSR WO Details'!AI:AI,"<="&$BV$17)) ->  | CP24: =IF(BZ24="","",COUNTIFS('NSR WO Details'!$N:$N,BZ24,'NSR WO Details'!$F:$F,"FLORIDA",'NSR WO Details'!AI:AI,">="&$BU$17,'NSR WO Details'!AI:AI,"<="&$BV$17)) ->  | CQ24: =IF(BZ24="","",SUMIFS('NSR WO Details'!$AE:$AE,'NSR WO Details'!$N:$N,BZ24,'NSR WO Details'!$F:$F,"FLORIDA",'NSR WO Details'!AI:AI,">="&$BU$17,'NSR WO Details'!AI:AI,"<="&$BV$17)) ->  | CS24: =IF(BZ24="","",SUMIFS('RTM Results'!$DG:$DG,'RTM Results'!$BD:$BD,BZ24,'RTM Results'!$O:$O,"Florida",'RTM Results'!H:H,">="&$BU$17,'RTM Results'!H:H,"<="&$BV$17)) ->  | CT24: =IF(BZ24="","",SUMIFS('RTM Results'!$DC:$DC,'RTM Results'!$BD:$BD,BZ24,'RTM Results'!$O:$O,"Florida",'RTM Results'!H:H,">="&$BU$17,'RTM Results'!H:H,"<="&$BV$17)) ->  | CV24: =IF(BZ24="","",SUMIFS('Tool Usage Details'!$T:$T,'Tool Usage Details'!$I:$I,BZ24,'Tool Usage Details'!$G:$G,"FLORIDA REGION",'Tool Usage Details'!E:E,">="&$BU$17,'Tool Usage Details'!E:E,"<="&$BV$17)) ->  | CW24: =IF(BZ24="","",COUNTIFS('Tool Usage Details'!$I:$I,BZ24,'Tool Usage Details'!$U:$U,"PASS",'Tool Usage Details'!$G:$G,"FLORIDA REGION",'Tool Usage Details'!E:E,">="&$BU$17,'Tool Usage Details'!E:E,"<="&$BV$17)) ->  | CY24: =IF(BZ24="","",SUMIFS('One Drop'!$BV:$BV,'One Drop'!$P:$P,BZ24,'One Drop'!$L:$L,"FLORIDA REGION",'One Drop'!AQ:AQ,">="&$BU$17,'One Drop'!AQ:AQ,"<="&$BV$17)) ->  | CZ24: =IF(BZ24="","",SUMIFS('One Drop'!$BQ:$BQ,'One Drop'!$P:$P,BZ24,'One Drop'!$L:$L,"FLORIDA REGION",'One Drop'!AQ:AQ,">="&$BU$17,'One Drop'!AQ:AQ,"<="&$BV$17)) ->  | DB24: =IF(BZ24="","",SUMIFS('NSR WO Details'!$AK:$AK,'NSR WO Details'!$N:$N,BZ24,'NSR WO Details'!$F:$F,"FLORIDA",'NSR WO Details'!AI:AI,">="&$BU$17,'NSR WO Details'!AI:AI,"<="&$BV$17)) ->  | DC24: =IF(BZ24="","",SUMIFS('NSR WO Details'!$AL:$AL,'NSR WO Details'!$N:$N,BZ24,'NSR WO Details'!$F:$F,"FLORIDA",'NSR WO Details'!AI:AI,">="&$BU$17,'NSR WO Details'!AI:AI,"<="&$BV$17)) ->  | DE24: =IF(BZ24="","",SUMIFS(Completion!$CJ:$CJ,Completion!$G:$G,BZ24,Completion!$N:$N,"Install",Completion!$E:$E,"Florida",Completion!AA:AA,">="&$BU$17,Completion!AA:AA,"<="&$BV$17)) ->  | DF24: =IF(BZ24="","",SUMIFS(Completion!$CB:$CB,Completion!$G:$G,BZ24,Completion!$N:$N,"Install",Completion!$E:$E,"Florida",Completion!AA:AA,">="&$BU$17,Completion!AA:AA,"<="&$BV$17)) ->  | DH24: =IF(BZ24="","",SUMIFS(Completion!$CJ:$CJ,Completion!$G:$G,BZ24,Completion!$N:$N,"TC",Completion!$E:$E,"Florida",Completion!AA:AA,">="&BU$17,Completion!AA:AA,"<="&$BV$17)) ->  | DI24: =IF(BZ24="","",SUMIFS(Completion!$CB:$CB,Completion!$G:$G,BZ24,Completion!$N:$N,"TC",Completion!$E:$E,"Florida",Completion!AA:AA,">="&$BU$17,Completion!AA:AA,"<="&$BV$17)) -> 
B25: FTR Rankings | CB25: Total Jobs | CC25: Jobs FTR | CD25: FTR | CE25: Jobs | CF25: Pass | CG25: PHT | CH25: Pure Pass Fails | CI25: PHT Pure Pass | CJ25: Tot Surv | CK25: Tot Fail | CL25: tNPS | CM25: Calls Met | CN25: Calls Missed | CO25: OTA | CP25: Total Jobs | CQ25: Callback | CR25: Contact w/in 48hrs | CS25: Total Jobs | CT25: Total Invalid | CU25: % Valid RTM | CV25: Total Jobs | CW25: Total Comp | CX25: Ingress Test Ran | CY25: Number of Drops | CZ25: One Drop Usage | DA25: One Drop | DB25: Tool Usage Jobs | DC25: Tool Usage | DD25: Tool Usage Rate | DE25: Total Installs | DF25: Completed | DG25: Install Completion % | DH25: Total TC's | DI25: Completed | DJ25: TC Completion % | DK25: Total Completion %
B26: tNPS Rankings | F26: =F5 -> Start Date:9/22/2024, End Date: 10/13/2024
B27: Tool Usage Rankings | F27: Tech Name | G27: Tech ID | H27: Score | I27: Total Jobs | J27: Jobs FTR | K27: FTR | L27: Total Jobs | M27: Total Installs | N27: Total SOI | O27: SOI | P27: Total TC's | Q27: Total Repeats | R27: Repeats | S27: Total Rework | T27: Rework | U27: Jobs | V27: Pass | W27: PHT | X27: Pure Pass Fails | Y27: PHT Pure Pass | Z27: Tot Surv | AA27: Tot Fail | AB27: tNPS | AC27: Calls Met | AD27: Calls Missed | AE27: OTA | AF27: Total Jobs | AG27: Callback | AH27: Contact w/in 48hrs | AI27: Total Jobs | AJ27: Total Invalid | AK27: % Valid RTM | AL27: Jobs | AM27: Pictures Uploaded | AN27: ML Bonding Compliance | AO27: Total Jobs | AP27: Total Comp | AQ27: Ingress Test Ran | AR27: Number of Drops | AS27: One Drop Usage | AT27: One Drop | AU27: Tool Usage Jobs | AV27: Tool Usage | AW27: Tool Usage Rate | AX27: Average Time in Home - Installs | AY27: Average Time in Home - TC's | AZ27: QC Audits Completed | BA27: Average Score | BB27: QB Audits Completed | BC27: Average Score | BD27: >=2 QA/QB Compliance | BF27: Total Installs | BG27: Completed | BH27: Install Completion % | BI27: Total TC's | BJ27: Completed | BK27: TC Completion % | BL27: Total Completion % | BM27: TC's | BN27: TC Cancels | BO27: Cancel Rate | BP27: Not Home Jobs | BQ27: CNH Initiate | BR27: T360 CNH | CB27: =SUMIF(CB8:CB24,">0") -> 0 | CC27: =SUMIF(CC8:CC24,">0") -> 0 | CD27: =IFERROR(1-(CC27/CB27),"") ->  | CE27: =SUMIF(CE8:CE24,">0") -> 0 | CF27: =SUMIF(CF8:CF24,">0") -> 0 | CG27: =IFERROR(SUM(CF27/CE27),"") ->  | CH27: =SUMIF(CH8:CH24,">0") -> 0 | CI27: =IFERROR(1-(CH27/CF27),"") ->  | CJ27: =SUMIF(CJ8:CJ24,">0") -> 0 | CK27: =SUMIF(CK8:CK24,">0") -> 0 | CL27: =IFERROR(SUM(CK27/CJ27),"") ->  | CM27: =SUMIF(CM8:CM24,">0") -> 0 | CN27: =SUMIF(CN8:CN24,">0") -> 0 | CO27: =IFERROR(SUM(CM27/(CM27+CN27)),"") ->  | CP27: =SUMIF(CP8:CP24,">0") -> 0 | CQ27: =SUMIF(CQ8:CQ24,">0") -> 0 | CR27: =IFERROR(SUM(CQ27/CP27),"") ->  | CS27: =SUM(CS8:CS24) -> 0 | CT27: =SUM(CT8:CT24) -> 0 | CU27: =IFERROR(1-(SUM(CT27/CS27)),"") ->  | CV27: =SUMIF(CV8:CV24,">0") -> 0 | CW27: =SUMIF(CW8:CW24,">0") -> 0 | CX27: =IFERROR(SUM(CW27/CV27),"") ->  | CY27: =SUM(CY8:CY24) -> 0 | CZ27: =SUM(CZ8:CZ24) -> 0 | DA27: =IFERROR(SUM(CZ27/CY27),"") ->  | DB27: =SUM(DB8:DB24) -> 0 | DC27: =SUM(DC8:DC24) -> 0 | DD27: =IFERROR(SUM(DC27/DB27),"") ->  | DE27: =SUM(DE8:DE24) -> 0 | DF27: =SUM(DF8:DF24) -> 0 | DG27: =IFERROR(SUM(DF27/DE27),"") ->  | DH27: =SUM(DH8:DH24) -> 0 | DI27: =SUM(DI8:DI24) -> 0 | DJ27: =IFERROR(SUM(DI27/DH27),"") ->  | DK27: =IFERROR(SUM(DF27,DI27)/SUM(DE27,DH27),"") -> 
B28: T360 CNH Rannkings
B29: 48hr Callback Rankings | F29: Alexandr Sviridov | G29: 8603 | H29: =IF(AW29="","",IFERROR(IF(K29>=92%,3.5,0)+IF(AB29>=92.5%,3.5,0)+IF(AW29>=98.5%,3,0),"")) ->  | I29: =IF(G29="","",SUMIFS('NSR WO Details'!$AG:$AG,'NSR WO Details'!$N:$N,G29,'NSR WO Details'!$F:$F,"FLORIDA")) -> 1 | J29: =IF(G29="","",COUNTIFS('FTR Detail'!$P:$P,G29,'FTR Detail'!$H:$H,"=FLORIDA")) -> 1 | K29: =IFERROR(1-(J29/I29),"") -> 0 | L29: =IF(G29="","",SUMIF('Florida Rework'!$E:$E,$G29,'Florida Rework'!$H:$H)) -> 1 | M29: =IF(G29="","",SUMIF('Florida Rework'!$E:$E,$G29,'Florida Rework'!$I:$I)) -> 0 | N29: =IF(G29="","",SUMIF('Florida Rework'!$E:$E,$G29,'Florida Rework'!$M:$M)) -> 0 | O29: =IFERROR(SUM(N29/M29),"") ->  | P29: =IF(G29="","",SUMIF('Florida Rework'!$E:$E,$G29,'Florida Rework'!$J:$J)) -> 1 | Q29: =IF(G29="","",SUMIF('Florida Rework'!$E:$E,$G29,'Florida Rework'!$O:$O)) -> 1 | R29: =IFERROR(SUM(Q29/P29),"") -> 1 | S29: =IFERROR(SUM(N29+Q29),"") -> 1 | T29: =IFERROR(SUM(S29/L29),"") -> 1 | U29: =IF(G29="","",SUMIFS('Tool Usage Details'!$Q:$Q,'Tool Usage Details'!$I:$I,G29,'Tool Usage Details'!$G:$G,"FLORIDA REGION")) -> 0 | V29: =IF(G29="","",COUNTIFS('Tool Usage Details'!$I:$I,G29,'Tool Usage Details'!$S:$S,"PASS",'Tool Usage Details'!$G:$G,"FLORIDA REGION")) -> 0 | W29: =IFERROR(SUM(V29/U29),"") ->  | X29: =IF(G29="","",COUNTIFS('Tool Usage Details'!$I:$I,G29,'Tool Usage Details'!$R:$R,"PWW",'Tool Usage Details'!G:G,"FLORIDA REGION")+COUNTIFS('Tool Usage Details'!$I:$I,G29,'Tool Usage Details'!$R:$R,"PWO",'Tool Usage Details'!$G:$G,"FLORIDA REGION")) -> 0 | Y29: =IFERROR(1-(X29/V29),"") ->  | Z29: =IF(G29="","",SUMIFS('NSR WO Details'!$Z:$Z,'NSR WO Details'!$N:$N,G29,'NSR WO Details'!$F:$F,"FLORIDA")) -> 0 | AA29: =IF(G29="","",SUMIFS('NSR WO Details'!$AA:$AA,'NSR WO Details'!$N:$N,G29,'NSR WO Details'!$F:$F,"FLORIDA")) -> 0 | AB29: =IF(G29="","",IFERROR((AA29/Z29),"")) ->  | AC29: =IF(G29="","",COUNTIFS('NSR WO Details'!$N:$N,G29,'NSR WO Details'!$W:$W,"Met",'NSR WO Details'!$F:$F,"FLORIDA")) -> 1 | AD29: =IF(G29="","",COUNTIFS('NSR WO Details'!$N:$N,G29,'NSR WO Details'!$W:$W,"Missed",'NSR WO Details'!$F:$F,"FLORIDA")) -> 0 | AE29: =IFERROR(SUM(AC29/(AC29+AD29)),"") -> 1 | AF29: =IF(G29="","",COUNTIFS('NSR WO Details'!$N:$N,G29,'NSR WO Details'!$F:$F,"FLORIDA")) -> 1 | AG29: =IF(G29="","",SUMIFS('NSR WO Details'!$AE:$AE,'NSR WO Details'!$N:$N,G29,'NSR WO Details'!$F:$F,"FLORIDA")) -> 1 | AH29: =IFERROR(SUM(AG29/AF29),"") -> 1 | AI29: =IF(G29="","",SUMIFS('RTM Results'!$AT:$AT,'RTM Results'!$DD:$DD,G29,'RTM Results'!$P:$P,"Florida")) -> 0 | AJ29: =IF(G29="","",SUMIFS('RTM Results'!$AP:$AP,'RTM Results'!$DD:$DD,G29,'RTM Results'!$P:$P,"Florida")) -> 0 | AK29: =IFERROR(1-(SUM(AJ29/AI29)),"") ->  | AL29: =SUMIFS('ML Bonding Compliance'!$AC:$AC,'ML Bonding Compliance'!$S:$S,$G29,'ML Bonding Compliance'!$F:$F,"FLORIDA") -> 1 | AM29: =SUMIFS('ML Bonding Compliance'!$AE:$AE,'ML Bonding Compliance'!$S:$S,$G29,'ML Bonding Compliance'!$F:$F,"FLORIDA") -> 0 | AN29: =IFERROR(SUM(AM29/AL29),"") -> 0 | AO29: =IF(G29="","",SUMIFS('Tool Usage Details'!$T:$T,'Tool Usage Details'!$I:$I,G29,'Tool Usage Details'!$G:$G,"FLORIDA REGION")) -> 0 | AP29: =IF(G29="","",COUNTIFS('Tool Usage Details'!$I:$I,G29,'Tool Usage Details'!$U:$U,"PASS",'Tool Usage Details'!$G:$G,"FLORIDA REGION")) -> 0 | AQ29: =IFERROR(SUM(AP29/AO29),"") ->  | AR29: =IF(G29="","",SUMIFS('One Drop'!$AB:$AB,'One Drop'!$P:$P,G29,'One Drop'!$L:$L,"FLORIDA REGION")) -> 1 | AS29: =IF(G29="","",SUMIFS('One Drop'!$AA:$AA,'One Drop'!$P:$P,G29,'One Drop'!$L:$L,"FLORIDA REGION")) -> 1 | AT29: =IFERROR(SUM(AS29/AR29),"") -> 1 | AU29: =IF(G29="","",SUMIFS('NSR WO Details'!$AK:$AK,'NSR WO Details'!$N:$N,G29,'NSR WO Details'!$F:$F,"FLORIDA")) -> 0 | AV29: =IF(G29="","",SUMIFS('NSR WO Details'!$AL:$AL,'NSR WO Details'!$N:$N,G29,'NSR WO Details'!$F:$F,"FLORIDA")) -> 0 | AW29: =IFERROR(SUM(AV29/AU29),"") ->  | AX29: =IF(OR(I29=0,I29=""),"",SUMIFS('Time in Home'!$L:$L,'Time in Home'!$I:$I,$G29,'Time in Home'!E:E,"FLORIDA REGION")) -> 0 | AY29: =IF(OR(I29=0,I29=""),"",SUMIFS('Time in Home'!$P:$P,'Time in Home'!$I:$I,$G29,'Time in Home'!E:E,"FLORIDA REGION")) -> 84 | AZ29: =SUMIFS('TQI BP Tech Compliance'!$N:$N,'TQI BP Tech Compliance'!$L:$L,$G29,'TQI BP Tech Compliance'!$F:$F,"FLORIDA REGION") -> 0 | BA29: =SUMIFS('TQI BP Tech Compliance'!$AI:$AI,'TQI BP Tech Compliance'!$L:$L,$G29,'TQI BP Tech Compliance'!$F:$F,"FLORIDA REGION") -> 0 | BB29: =SUMIFS('TQI BP Tech Compliance'!$AB:$AB,'TQI BP Tech Compliance'!$L:$L,$G29,'TQI BP Tech Compliance'!$F:$F,"FLORIDA REGION") -> 0 | BC29: =IFERROR(SUMIFS('TQI BP Tech Compliance'!$AA:$AA,'TQI BP Tech Compliance'!$L:$L,$G29,'TQI BP Tech Compliance'!$F:$F,"FLORIDA REGION")/BB29,"") ->  | BD29: =IFERROR(SUMIFS('TQI BP Tech Compliance'!$Q:$Q,'TQI BP Tech Compliance'!$L:$L,$G29,'TQI BP Tech Compliance'!$F:$F,"FLORIDA REGION"),"") -> 0 | BE29: Alexandr Sviridov | BF29: =IF(G29="","",SUMIFS(Completion!$CH:$CH,Completion!$AC:$AC,G29,Completion!$N:$N,"Install",Completion!$E:$E,"Florida")) -> 0 | BG29: =IF(G29="","",SUMIFS(Completion!$AL:$AL,Completion!$AC:$AC,G29,Completion!$N:$N,"Install",Completion!$E:$E,"Florida")) -> 0 | BH29: =IFERROR(SUM(BG29/BF29),"") ->  | BI29: =IF(G29="","",SUMIFS(Completion!$CH:$CH,Completion!$AC:$AC,G29,Completion!$N:$N,"TC",Completion!$E:$E,"Florida")) -> 1 | BJ29: =IF(G29="","",SUMIFS(Completion!$AL:$AL,Completion!$AC:$AC,G29,Completion!$N:$N,"TC",Completion!$E:$E,"Florida")) -> 1 | BK29: =IFERROR(SUM(BJ29/BI29),"") -> 1 | BL29: =IFERROR(SUM(BG29,BJ29)/SUM(BF29,BI29),"") -> 1 | BM29: =COUNTIFS(Completion!$AC:$AC,$G29,Completion!$E:$E,"FLORIDA",Completion!$N:$N,"TC") -> 1 | BN29: =COUNTIFS(Completion!$AC:$AC,$G29,Completion!$E:$E,"FLORIDA",Completion!$N:$N,"TC",Completion!$BA:$BA,"Customer") -> 0 | BO29: =IFERROR(SUM(BN29/BM29),"") -> 0 | BP29: =IF(SUMIFS('T360 CNH'!V:V,'T360 CNH'!J:J,G29,'T360 CNH'!I:I,"Florida")=0,"",SUMIFS('T360 CNH'!V:V,'T360 CNH'!J:J,G29,'T360 CNH'!I:I,"Florida")) ->  | BQ29: =IF(BP29="","",SUMIFS('T360 CNH'!S:S,'T360 CNH'!J:J,G29,'T360 CNH'!I:I,"Florida")) ->  | BR29: =IFERROR(SUM(BQ29/BP29),"") ->  | BY29: Alexandr Sviridov
